Workbook

Sheet Instructions
I2: Validation - Croisement des tables
B3: Instructions:
A4: 1 | B4: Dupliquer votre modèle de détermination avant de passer aux étapes suivantes. | I4: Ovoltotrec | J4: Rapport GTYF | K4: Rapport ECONO
A5: 2 | B5: Coller les OUTPUTs ci-dessous dans votre modèle de détermination. | I5: =VLOOKUP("Ovoltotrec",Output!$C:$AM,8,FALSE) -> 8748700 | J5: =VLOOKUP("OVOLTOTREC",GTYF!$C:$AQ,8,FALSE)=I5 -> TRUE | K5: =VLOOKUP("OVOLTOTREC",Econo!$C:$AQ,8,FALSE)=I5 -> TRUE
B6: Outputs pour Cahier_Détermination_2023
A7: 3 | B7: Ajouter l'agrégat FCIMPROD_SNAT au thème 5 de la section LANSCAPE de votre modèle et les courbes SNAT
B8: *AGGREGATE FCIMPROD_SNAT FCxxxx
A9: 4 | B9: Copier coller la syntaxe TARGET_GTYF_DET, TARGET_ECONO, TARGET AREA, TARGET DETAIL (voir plus bas) dans la section "Reports" du scénario de détermination.
B10: *TARGET GTYF_DET.dbf
B11: *TARGET_ECONO.dbf
B12: *TARGET AREA.dbf et *TARGET DETAIL.dbf
A13: 5 | B13: Insérer la syntaxe économique dans les sections Output, Lanscape, …
A14: 6 | B14: Compiler le scénario (Faire une fleche sur vos scénarios)
A15: 7 | B15: Ouvrir vos rapports Output, GTYF et ECONO directement de WS. Contrôle A --> Contrôle C
A16: 8 | B16: Copier/coller vos rapports Output, GTYF et ECONO dans les onglets appropriés. Attention de respecter le nombres de colonnes. Les onglets Output, GTYF et ECONO sont préformatés et contiennent des formules aux colonnes AM à AP.
A17: 9 | B17: Valider que la cellule I5 indique vrai lorsque vous aurez collé vos données dans les onglets "Output", "GTYF" et ÉCONO" pour s'assurer que les données proviennent de la même optimisation.
A18: 10 | B18: Utiliser le fichier DBF pour copier/coller votre calendrier de COS dans l'onglet Cedule_COS et y ajouter les COS absents (COS fermés ou toujours ouverts) et compléter leur calendrier par des "0" ou des "1".
A19: 11 | B19: Compléter toutes les cellules et onglets de couleur | D19: jaune
A20: 12 | B20: Notez que les tableaux 9, 10, 13, 15 et 17 ont des instructions particulières

Sheet Suivi_modif
B2: Modifications apportées au cahier:
B3: Version originale (v1) | C3: Version de départ
B4: Version modifiée 2 novembre 2021 (v2) | C4: Correction du calcul de % de sapin en P0 (cellule O9)
B5: Version modifiée 4 novembre 2021 (v3) | C5: Correction du % récolte volume sur pied destiné à l'aménagement (Tableau - CelluleV59)
B6: Version modifiée 4 novembre 2021 (v3) | C6: Correction des valideurs Vrai/Faux (Tableau - Cellule W101, W102, W103)

Sheet Tableaux
T1: Instructions : Compléter les cellules oranges | AB1: Avec l'utilisation de l'outil à Éric
B2: PROER1 : vous pouvez utiliser l'outil FoxPro pour compléter les cellules oranges : | T2: 1) Cellule V11 : Inscrire la superficie totale brute de la carte WS | AB2: 2508272
B3: l'outil intérroge la carte Woodstock et met les valeurs dans un fichier Excel | T3: 2) Cellule V15 : Inscrire la superficie WS des GS RP1 et RP2 (ça ne devrait être que du EXEX et EXTI) | AB3: 0
B4: interroge_carte_WS_pour cahier_analyse.FXP | T4: 3) Cellule V24 : Inscrire la superficie WS des GS RP3 à RP9 sur INC | AB4: 43934.8
B5: T:\Donnees\Courant\CPF_2023-2028\Comite_Vague_2\30_Phase1\32_Sce1\Outils | T5: 4) Cellule V25 : Inscrire la superficie WS des GS SNAT sur INC (qui ne sont pas des RP) | AB5: 62265 | AC5: T2 a T14 ajusté pour 02471
T6: 5) Cellules L20 à S21 : Inscrire la superficie de la carte WS pour chacune des cases oranges | AC6: en date du 29-09-2021
B7: Catégories | I7: Superficie | Z7: Total | AA7: Sup_aff | AB7: 3678.5
I8: ha | J8: % | V8: Période | Z8: Total | AA8: Sup_empche | AB8: 25751.5
B9: Superficie totale du territoire d'analyse (EXHU exclu) | I9: =V11-V16 -> 2508230.7 | J9: =IFERROR(I9/I9,"-") -> 1 | S9: =LEFT(B$25,10) -> Tableau 1. | T9: Output | U9: Superficie | V9: 0 | Z9: Total | AA9: Sup_ecot | AB9: 17489.3
B10: Pertes (emprise chemin, écotone, improductif) | I10: =U20+V20+Y20 -> 49468.1 | J10: =I10/I9 -> 0.01972230864 | S10: =LEFT(B$25,10) -> Tableau 1. | T10: OSUPTOT | U10: WS | V10: =VLOOKUP(T10,Output!$C:$H,6,FALSE) -> 2458804 | Z10: INC | AA10: Sup_brivAB | AB10: 37574.4
B11: Territoire improductif (EXEX + EXTI) | I11: =SUM(V13:V14) -> 510113.2 | J11: =I11/I9 -> 0.2033757102 | S11: Tableau 1. | U11: Brute | V11: =AB2 -> 2508272 | X11: Sup_soustraite : | Y11: =T20+U20+V20+Y20+AA20 -> 98532.8 | Z11: INC | AA11: Sup_brivCD | AB11: 51705.9
B12: sans possibilité de remise en production | I12: =I11-I13 -> 510113.2 | J12: - | S12: Tableau 1. | U12: pertes | V12: =U20+V20+Y20 -> 49468.1 | X12: Sup nette : | Y12: =V11-Y11 -> 2409739.2 | Z12: Total | AA12: Sup_impro | AB12: 6227.3
B13: avec possibilité de remise en production (RP1 et RP2) | I13: =V15 -> 0 | J13: - | S13: Tableau 1. | T13: OSUPEXEX | U13: EXEX | V13: =VLOOKUP(T13,Output!$C:$H,6,FALSE) -> 303448.7 | Z13: Total | AA13: Sup_pentf | AB13: 45386.2
S14: Tableau 1. | T14: OSUPEXTI | U14: EXTI | V14: =VLOOKUP(T14,Output!$C:$H,6,FALSE) -> 206664.5 | Z14: INC | AA14: Sup_pentf | AB14: 35465.4 | AC14: =AB13-AB14 -> 9920.8
B15: Territoire inclus dans l’UA mais exclu des activités d'aménagement (EXIN) | I15: =V17 -> 469533.4 | J15: =I15/I9 -> 0.1871970549 | S15: Tableau 1. | U15: RP1/RP2 | V15: =AB3 -> 0
B16: pentes abruptes et sommets (codes F et S) --> potentiellement récoltables | I16: =AA21 -> 35465.4 | J16: - | S16: Tableau 1. | T16: OSUPEXHU | U16: EXHU | V16: =VLOOKUP(T16,Output!$C:$H,6,FALSE) -> 41.3
B17: bandes riveraines (densité AB) --> potentiellement récoltables | I17: =W21 -> 37574.4 | J17: - | S17: Tableau 1. | T17: OSUPEXIN | U17: EXIN | V17: =VLOOKUP(T17,Output!$C:$H,6,FALSE) -> 469533.4
B18: bandes riveraines (densité CD) --> potentiellement récoltables | I18: =X21 -> 51705.9 | J18: - | S18: Tableau 1. | T18: ↓ | U18: ↓ | V18: ↓ | Y18: ↓ | AA18: ↓
B19: autres | I19: =I15-I16-I17-I18 -> 344787.7 | S19: Tableau 1. | T19: Sup_aff | U19: Sup_empche | V19: Sup_ecot | W19: Sup_brivAB | X19: Sup_brivCD | Y19: Sup_impro | Z19: Sup_aut | AA19: Sup_pentf
B20: Territoire destiné à l'aménagement forestier (INC) | I20: =V22 -> 1479116.1 | J20: =I20/I9 -> 0.5897049661 | S20: Tableau 1. | T20: =AB7 -> 3678.5 | U20: =AB8 -> 25751.5 | V20: =AB9 -> 17489.3 | Y20: =AB12 -> 6227.3 | AA20: =AB13 -> 45386.2 | AB20: Total
B21: forestier exploitable | I21: =V22-I22-I23 -> 1372916.3 | J21: - | S21: Tableau 1. | W21: =AB10 -> 37574.4 | X21: =AB11 -> 51705.9 | AA21: =AB14 -> 35465.4 | AB21: INC
B22: forestier inexploitable avec possibilité de remise en production (RP3 à RP15) | I22: =V24 -> 43934.8 | J22: - | S22: Tableau 1. | T22: OSUPINC | U22: INC | V22: =VLOOKUP(T22,Output!$C:$H,6,FALSE) -> 1479116.1
B23: forestier inexploitable sans possibilité de remise en production (SNAT) | I23: =V25 -> 62265 | J23: - | S23: Tableau 1.
S24: Tableau 1. | U24: RP3 à RP9 | V24: =AB4 -> 43934.8
B25: Tableau 1. Répartition de la superficie de l'unité d'aménagement pas catégorie de territoire | S25: Tableau 1. | U25: SNAT | V25: =AB5 -> 62265
B26: Catégories | F26: Superficies
F27: Hectares | G27: %
B28: Superficie totale de l’unité d’aménagement | F28: =ROUND(I9,-1) -> 2508230 | G28: =F28/F28 -> 1
B29: Retraits de superficie
B30: Territoire non forestier | F30: =ROUND(I10+I11,-1) -> 559580 | G30: =F30/F28 -> 0.2230975628
B31: Territoire forestier peu productif (30 à 50 m³/ha) | F31: =ROUND(I22+I23,-1) -> 106200 | G31: =F31/F28 -> 0.0423406147
B32: Territoire forestier exclu de l’aménagement | F32: =ROUND(F28-F30-F31-F33,-1) -> 469530 | G32: =F32/F28 -> 0.1871957516 | N32: À compléter UA : | O32: UA:
B33: Superficie destinée à l’aménagement forestier | F33: =ROUND(I21,-1) -> 1372920 | G33: =F33/F28 -> 0.5473660709 | O33: 02471 | T33: Légende | U33: Output | V33: P2@P6
S34: =LEFT(B$46,10) -> Tableau 3. | T34: Sepm | U34: OVOLGSEPMREC | V34: =IFERROR(VLOOKUP($U34,Output!$C:$AM,37,FALSE)/5,0) -> 1534214.232
S35: Tableau 3.
S36: Tableau 3. | T36: Tho | U36: OVOLTHOREC | V36: =IFERROR(VLOOKUP($U36,Output!$C:$AM,37,FALSE)/5,0) -> 36.3935
S37: Tableau 3. | T37: Pru | U37: OVOLPRUREC | V37: =IFERROR(VLOOKUP($U37,Output!$C:$AM,37,FALSE)/5,0) -> 0
S38: Tableau 3. | T38: Pins | U38: OVOLGPINSREC | V38: =IFERROR(VLOOKUP($U38,Output!$C:$AM,37,FALSE)/5,0) -> 458.0065
S39: Tableau 3. | T39: Peu | U39: OVOLGPEUREC | V39: =IFERROR(VLOOKUP($U39,Output!$C:$AM,37,FALSE)/5,0) -> 65737.481
S40: Tableau 3. | T40: Bop | U40: OVOLGBPREC | V40: =IFERROR(VLOOKUP($U40,Output!$C:$AM,37,FALSE)/5,0) -> 145296.7615
S41: Tableau 3. | T41: Boj | U41: OVOLBOJREC | V41: =IFERROR(VLOOKUP($U41,Output!$C:$AM,37,FALSE)/5,0) -> 479.317
S42: Tableau 3. | T42: Ers | U42: OVOLERSREC | V42: =IFERROR(VLOOKUP($U42,Output!$C:$AM,37,FALSE)/5,0) -> 0
S43: Tableau 3. | T43: Err | U43: OVOLGEROREC | V43: =IFERROR(VLOOKUP($U43,Output!$C:$AM,37,FALSE)/5,0) -> 3233.201
S44: Tableau 3. | T44: Autre .F. (Auf) | V44: =V47-V42-V41 -> 284.607
S45: Tableau 3. | T45: résineux | U45: OVOLGRREC | V45: =IFERROR(VLOOKUP($U45,Output!$C:$AM,37,FALSE)/5,0) -> 1534708.632
B46: Tableau 3. Possibilités forestières par essence ou par groupe d’essences et écart avec la période 2018-2023 | S46: Tableau 3. | T46: intolérant | U46: OVOLGFIREC | V46: =IFERROR(VLOOKUP($U46,Output!$C:$AM,37,FALSE)/5,0) -> 214267.444
B47: Périodes | C47: ="Possibilités forestières (m"&CHAR(179)&" bruts/an)" -> Possibilités forestières (m³ bruts/an) | S47: Tableau 3. | T47: Tolérant | U47: OVOLGFTREC | V47: =IFERROR(VLOOKUP($U47,Output!$C:$AM,37,FALSE)/5,0) -> 763.924
C48: SEPM | D48: Thuya | E48: Pruche | F48: Pins blanc et rouge | G48: Peupliers | H48: Bouleau à papier | I48: Bouleau jaune | J48: Érables à sucre et rouge | K48: Autres feuillus durs | L48: Total | N48: Possibilité forestière unitaire (PAC / Sup destinée à l'aménagement) | S48: Tableau 3. | T48: Total récoltés | U48: OVOLTOTREC | V48: =IFERROR(VLOOKUP($U48,Output!$C:$AM,37,FALSE)/5,0) -> 1749740
B49: 2023-2028 | C49: =ROUND(V$34,-2) -> 1534200 | D49: =ROUND(V$36,-2) -> 0 | E49: =ROUND(V$37,-2) -> 0 | F49: =ROUND(V$38,-2) -> 500 | G49: =ROUND(V$39,-2) -> 65700 | H49: =ROUND(V$40,-2) -> 145300 | I49: =ROUND(V$41,-2) -> 500 | J49: =ROUND(V$50,-2) -> 3200 | K49: =ROUND(V$44,-2) -> 300 | L49: =SUM(C49:K49) -> 1749700 | N49: =V57 -> 1.274466101 | S49: Tableau 3. | T49: FN sur pied | U49: OVOLGFNREC | V49: =IFERROR(VLOOKUP($U49,Output!$C:$AM,37,FALSE)/5,0) -> 284.6075
C50: =C49/$L$49 -> 0.876836029 | D50: 0 | E50: 0 | F50: 0.0002857632737 | G50: 0.03754929416 | H50: 0.08304280734 | I50: 0.0002857632737 | J50: 0.001828884952 | K50: 0.0001714579642 | L50: =SUM(C50:K50) -> 1 | S50: Tableau 3. | T50: ER | V50: =V42+V43 -> 3233.201
B51: 2018-2023 | C51: =VLOOKUP($O$33,DataLocal!$A$6:$W$35,13,FALSE) -> 1307200 | D51: =VLOOKUP($O$33,DataLocal!$A$6:$W$35,14,FALSE) -> 0 | E51: =VLOOKUP($O$33,DataLocal!$A$6:$W$35,15,FALSE) -> 0 | F51: =VLOOKUP($O$33,DataLocal!$A$6:$W$35,16,FALSE) -> 400 | G51: =VLOOKUP($O$33,DataLocal!$A$6:$W$35,17,FALSE) -> 49200 | H51: =VLOOKUP($O$33,DataLocal!$A$6:$W$35,18,FALSE) -> 172100 | I51: =VLOOKUP($O$33,DataLocal!$A$6:$W$35,19,FALSE) -> 10100 | J51: =VLOOKUP($O$33,DataLocal!$A$6:$W$35,20,FALSE) -> 3600 | K51: =VLOOKUP($O$33,DataLocal!$A$6:$W$35,21,FALSE) -> 0 | L51: =VLOOKUP($O$33,DataLocal!$A$6:$W$35,23,FALSE) -> 1542600 | N51: % du volume sur pied initial | S51: Tableau 3. | U51: OVOLSABREC | V51: =IFERROR(VLOOKUP($U51,Output!$C:$AM,37,FALSE)/5,0) -> 364277.765
B52: Écart | C52: =IFERROR((C49/C$51)-1,0) -> 0.1736536108 | D52: 0 | E52: 0 | F52: 0.25 | G52: 0.3353658537 | H52: -0.1557234166 | I52: -0.9504950495 | J52: -0.1111111111 | K52: 0 | L52: 0.1342538571 | N52: =V59 -> 0.01963707537 | S52: Tableau 3. | U52: OVOLGEPXREC | V52: =IFERROR(VLOOKUP($U52,Output!$C:$AM,37,FALSE)/5,0) -> 1117896.416
B53: ="Répartition de la composante SEPM des possibilités forestières 2023-2028 : sapin ("&IFERROR(ROUND(V51/V34*100,0),0)&"%), épinettes ("&IFERROR(ROUND(V52/V34*100,0),0)&"%), pin gris ("&IFERROR(ROUND(V53/V34*100,0),0)&"%) et mélèzes ("&IFERROR(ROUND(V54/V34*100,0),0)&"%)." -> Répartition de la composante SEPM des possibilités forestières 2023-2028 : sapin (24%), épinettes (73%), pin gris (3%) et mélèzes (0%). | S53: Tableau 3. | U53: OVOLGPGREC | V53: =IFERROR(VLOOKUP($U53,Output!$C:$AM,37,FALSE)/5,0) -> 46759.025
B54: ="Répartition de la composante Érables à sucre et rouge des possibilités forestières 2023-2028 : érable à sucre("&IFERROR(ROUND(V42/(V42+V43)*100,0),0)&"%) et érable rouge ("&IFERROR(ROUND(V43/(V42+V43)*100,0),0)&"%)." -> Répartition de la composante Érables à sucre et rouge des possibilités forestières 2023-2028 : érable à sucre(0%) et érable rouge (100%). | S54: Tableau 3. | U54: OVOLGMLREC | V54: =IFERROR(VLOOKUP($U54,Output!$C:$AM,37,FALSE)/5,0) -> 5281.027
B55: Copier/Coller le tableau ci-dessus avec les lignes 53 et 54 | S55: Tableau 3. | U55: OSUPINC | V55: =IFERROR(VLOOKUP($U55,Output!$C:$AM,6,FALSE),0) -> 1479116.1
S56: Tableau 3. | U56: OVOLTOTPIEDINC | V56: =IFERROR(VLOOKUP($U56,Output!$C:$AM,7,FALSE),0) -> 87742679.88
S57: Tableau 3. | U57: Possibilité forestière unitaire | V57: =IFERROR(V48/F33,0) -> 1.274466101
S58: Tableau 3. | U58: % récolte volume sur pied
U59: % récolte volume sur pied destiné à l'aménagement | V59: =V48/Figures!V19 -> 0.01963707537
B61: Tableau 4. Répartition des superficies récoltées et des possibilités forestières par grand type de forêt
B62: Grands types de forêt | D62: Superficie récoltée* | H62: Possibilités forestières* | S62: =LEFT(B$61,10) -> Tableau 4. | V62: Output total non arrondi | W62: Écart entre la somme du tableau et le output total
D63: Coupes totales | F63: Coupes partielles | H63: Résineux | J63: Feuillus tolérants | L63: Feuillus intolérants | N63: Total | S63: Tableau 4. | T63: Total | Z63: P2 à P6
D64: ha/an | E64: % | F64: ha/an | G64: % | H64: m³ bruts/an | I64: % | J64: ="m"&CHAR(179)&" bruts/an" -> m³ bruts/an | K64: % | L64: ="m"&CHAR(179)&" bruts/an" -> m³ bruts/an | M64: % | N64: ="m"&CHAR(179)&" bruts/an" -> m³ bruts/an | O64: % | S64: Tableau 4. | T64: ha/an | U64: % | Y64: Famille de courbe | Z64: OSUPINC | AA64: OSUPREALREGAFIN | AB64: OSUPREALREGAPAR | AC64: OSUPREALREGAPRE | AD64: OVOLGRREC | AE64: OVOLGAURREC | AF64: OVOLGFIREC | AG64: OVOLGFTREC | AH64: OVOLTOTREC
B65: Bétulaies blanches | D65: =ROUND(AA65/5,-1) -> 400 | E65: =IFERROR(D65/D$79,0) -> 0.02428658166 | F65: =ROUND(AB65/5,-1) -> 0 | G65: =IFERROR(F65/F$79,0) -> 0 | H65: =ROUND(AD65/5,-2) -> 6700 | I65: =IFERROR(H65/H$79,0) -> 0.004365674073 | J65: =ROUND(AG65/5,-2) -> 200 | K65: =IFERROR(J65/J$79,0) -> 0.25 | L65: =ROUND(AF65/5,-2) -> 60500 | M65: =L65/L$79 -> 0.2824463119 | N65: =H65+J65+L65 -> 67400 | O65: =N65/$N$79 -> 0.0385208893 | S65: Tableau 4. | T65: =D65+F65 -> 400 | U65: =IFERROR(T65/T$79,0) -> 0.02336448598 | V65: =(AA65+AB65)/5 -> 402.346 | W65: =T65-V65 -> -2.346 | Y65: (FCTYF_BOP) | Z65: =VLOOKUP(Z$64&$Y65,GTYF!$C:$AP,6,FALSE) -> 30846.1 | AA65: =VLOOKUP(AA$64&$Y65,GTYF!$C:$AP,37,FALSE) -> 2011.73 | AB65: =VLOOKUP(AB$64&$Y65,GTYF!$C:$AP,37,FALSE) -> 0 | AC65: =VLOOKUP(AC$64&$Y65,GTYF!$C:$AP,37,FALSE) -> 2011.73 | AD65: =VLOOKUP(AD$64&$Y65,GTYF!$C:$AP,37,FALSE) -> 33363.454 | AE65: =VLOOKUP(AE$64&$Y65,GTYF!$C:$AP,37,FALSE) -> 59.748 | AF65: =VLOOKUP(AF$64&$Y65,GTYF!$C:$AP,37,FALSE) -> 302559.502 | AG65: =VLOOKUP(AG$64&$Y65,GTYF!$C:$AP,37,FALSE) -> 1029.586 | AH65: =VLOOKUP(AH$64&$Y65,GTYF!$C:$AP,37,FALSE) -> 336952.54
B66: Bétulaies blanches à résineux | D66: 300 | E66: =IFERROR(D66/D$79,0) -> 0.01821493625 | F66: 0 | G66: =IFERROR(F66/F$79,0) -> 0 | H66: =ROUND(AD66/5,-2) -> 15500 | I66: =IFERROR(H66/H$79,0) -> 0.01009969375 | J66: =ROUND(AG66/5,-2) -> 100 | K66: 0.125 | L66: =ROUND(AF66/5,-2) -> 28400 | M66: =L66/L$79 -> 0.1325863679 | N66: =H66+J66+L66 -> 44000 | O66: 0.02514716809 | S66: Tableau 4. | T66: 300 | U66: =IFERROR(T66/T$79,0) -> 0.01752336449 | V66: =(AA66+AB66)/5 -> 299.6924 | W66: 0.3076 | Y66: (FCTYF_BOPR) | Z66: =VLOOKUP(Z$64&$Y66,GTYF!$C:$AP,6,FALSE) -> 26955.5 | AA66: =VLOOKUP(AA$64&$Y66,GTYF!$C:$AP,37,FALSE) -> 1498.462 | AB66: =VLOOKUP(AB$64&$Y66,GTYF!$C:$AP,37,FALSE) -> 0 | AC66: =VLOOKUP(AC$64&$Y66,GTYF!$C:$AP,37,FALSE) -> 1498.462 | AD66: =VLOOKUP(AD$64&$Y66,GTYF!$C:$AP,37,FALSE) -> 77445.518 | AE66: =VLOOKUP(AE$64&$Y66,GTYF!$C:$AP,37,FALSE) -> 0 | AF66: =VLOOKUP(AF$64&$Y66,GTYF!$C:$AP,37,FALSE) -> 142061.392 | AG66: =VLOOKUP(AG$64&$Y66,GTYF!$C:$AP,37,FALSE) -> 385.998 | AH66: =VLOOKUP(AH$64&$Y66,GTYF!$C:$AP,37,FALSE) -> 219892.906
B67: Cédrières | D67: 0 | E67: 0 | F67: 0 | G67: 0 | H67: =ROUND(AD67/5,-2) -> 0 | I67: 0 | J67: 0 | K67: 0 | L67: 0 | M67: 0 | N67: 0 | O67: 0 | S67: Tableau 4. | T67: 0 | U67: 0 | V67: =(AA67+AB67)/5 -> 0 | W67: 0 | Y67: (FCTYF_THO) | Z67: =VLOOKUP(Z$64&$Y67,GTYF!$C:$AP,6,FALSE) -> 0 | AA67: =VLOOKUP(AA$64&$Y67,GTYF!$C:$AP,37,FALSE) -> 0 | AB67: =VLOOKUP(AB$64&$Y67,GTYF!$C:$AP,37,FALSE) -> 0 | AC67: =VLOOKUP(AC$64&$Y67,GTYF!$C:$AP,37,FALSE) -> 0 | AD67: =VLOOKUP(AD$64&$Y67,GTYF!$C:$AP,37,FALSE) -> 0 | AE67: =VLOOKUP(AE$64&$Y67,GTYF!$C:$AP,37,FALSE) -> 0 | AF67: =VLOOKUP(AF$64&$Y67,GTYF!$C:$AP,37,FALSE) -> 0 | AG67: =VLOOKUP(AG$64&$Y67,GTYF!$C:$AP,37,FALSE) -> 0 | AH67: =VLOOKUP(AH$64&$Y67,GTYF!$C:$AP,37,FALSE) -> 0
B68: Érablières rouges | D68: 0 | E68: 0 | F68: 0 | G68: 0 | H68: 0 | I68: 0 | J68: 0 | K68: 0 | L68: 0 | M68: 0 | N68: 0 | O68: 0 | S68: Tableau 4. | T68: 0 | U68: 0 | V68: =(AA68+AB68)/5 -> 0 | W68: 0 | Y68: (FCTYF_ERO) | Z68: =VLOOKUP(Z$64&$Y68,GTYF!$C:$AP,6,FALSE) -> 0 | AA68: =VLOOKUP(AA$64&$Y68,GTYF!$C:$AP,37,FALSE) -> 0 | AB68: =VLOOKUP(AB$64&$Y68,GTYF!$C:$AP,37,FALSE) -> 0 | AC68: =VLOOKUP(AC$64&$Y68,GTYF!$C:$AP,37,FALSE) -> 0 | AD68: =VLOOKUP(AD$64&$Y68,GTYF!$C:$AP,37,FALSE) -> 0 | AE68: =VLOOKUP(AE$64&$Y68,GTYF!$C:$AP,37,FALSE) -> 0 | AF68: =VLOOKUP(AF$64&$Y68,GTYF!$C:$AP,37,FALSE) -> 0 | AG68: =VLOOKUP(AG$64&$Y68,GTYF!$C:$AP,37,FALSE) -> 0 | AH68: =VLOOKUP(AH$64&$Y68,GTYF!$C:$AP,37,FALSE) -> 0
B69: Feuillus tolérants | D69: 0 | E69: 0 | F69: 0 | G69: 0 | H69: 0 | I69: 0 | J69: 0 | K69: 0 | L69: 0 | M69: 0 | N69: 0 | O69: 0 | S69: Tableau 4. | T69: 0 | U69: 0 | V69: 0 | W69: 0 | Y69: (FCTYF_FT) | Z69: =VLOOKUP(Z$64&$Y69,GTYF!$C:$AP,6,FALSE) -> 0 | AA69: =VLOOKUP(AA$64&$Y69,GTYF!$C:$AP,37,FALSE) -> 0 | AB69: =VLOOKUP(AB$64&$Y69,GTYF!$C:$AP,37,FALSE) -> 0 | AC69: =VLOOKUP(AC$64&$Y69,GTYF!$C:$AP,37,FALSE) -> 0 | AD69: =VLOOKUP(AD$64&$Y69,GTYF!$C:$AP,37,FALSE) -> 0 | AE69: =VLOOKUP(AE$64&$Y69,GTYF!$C:$AP,37,FALSE) -> 0 | AF69: =VLOOKUP(AF$64&$Y69,GTYF!$C:$AP,37,FALSE) -> 0 | AG69: =VLOOKUP(AG$64&$Y69,GTYF!$C:$AP,37,FALSE) -> 0 | AH69: =VLOOKUP(AH$64&$Y69,GTYF!$C:$AP,37,FALSE) -> 0
B70: Feuillus tolérants à résineux | D70: 0 | E70: 0 | F70: 0 | G70: 0 | H70: 0 | I70: 0 | J70: 0 | K70: 0 | L70: 0 | M70: 0 | N70: 0 | O70: 0 | S70: Tableau 4. | T70: 0 | U70: 0 | V70: 0 | W70: 0 | Y70: (FCTYF_FTR) | Z70: =VLOOKUP(Z$64&$Y70,GTYF!$C:$AP,6,FALSE) -> 0 | AA70: =VLOOKUP(AA$64&$Y70,GTYF!$C:$AP,37,FALSE) -> 0 | AB70: =VLOOKUP(AB$64&$Y70,GTYF!$C:$AP,37,FALSE) -> 0 | AC70: =VLOOKUP(AC$64&$Y70,GTYF!$C:$AP,37,FALSE) -> 0 | AD70: =VLOOKUP(AD$64&$Y70,GTYF!$C:$AP,37,FALSE) -> 0 | AE70: =VLOOKUP(AE$64&$Y70,GTYF!$C:$AP,37,FALSE) -> 0 | AF70: =VLOOKUP(AF$64&$Y70,GTYF!$C:$AP,37,FALSE) -> 0 | AG70: =VLOOKUP(AG$64&$Y70,GTYF!$C:$AP,37,FALSE) -> 0 | AH70: =VLOOKUP(AH$64&$Y70,GTYF!$C:$AP,37,FALSE) -> 0
B71: Pessières | D71: =ROUND(AA71/5,-1) -> 12340 | E71: 0.7492410443 | F71: 650 | G71: 1 | H71: 1185400 | I71: 0.7723985144 | J71: 200 | K71: 0.25 | L71: 37700 | M71: 0.1760037348 | N71: 1223300 | O71: 0.6991484254 | S71: Tableau 4. | T71: 12990 | U71: 0.7587616822 | V71: 12987.5164 | W71: =T71-V71 -> 2.4836 | Y71: (FCTYF_EPX) | Z71: =VLOOKUP(Z$64&$Y71,GTYF!$C:$AP,6,FALSE) -> 910710.6 | AA71: =VLOOKUP(AA$64&$Y71,GTYF!$C:$AP,37,FALSE) -> 61687.582 | AB71: =VLOOKUP(AB$64&$Y71,GTYF!$C:$AP,37,FALSE) -> 3250 | AC71: =VLOOKUP(AC$64&$Y71,GTYF!$C:$AP,37,FALSE) -> 64937.582 | AD71: =VLOOKUP(AD$64&$Y71,GTYF!$C:$AP,37,FALSE) -> 5926980.316 | AE71: =VLOOKUP(AE$64&$Y71,GTYF!$C:$AP,37,FALSE) -> 1464.55 | AF71: =VLOOKUP(AF$64&$Y71,GTYF!$C:$AP,37,FALSE) -> 188537.636 | AG71: =VLOOKUP(AG$64&$Y71,GTYF!$C:$AP,37,FALSE) -> 803.43 | AH71: =VLOOKUP(AH$64&$Y71,GTYF!$C:$AP,37,FALSE) -> 6116321.382
B72: Peupleraies | D72: 180 | E72: 0.01092896175 | F72: 0 | G72: 0 | H72: 2400 | I72: 0.001563823549 | J72: 100 | K72: 0.125 | L72: 30500 | M72: 0.1423902894 | N72: 33000 | O72: 0.01886037606 | S72: Tableau 4. | T72: 180 | U72: 0.01051401869 | V72: 182.5132 | W72: -2.5132 | Y72: (FCTYF_PEU) | Z72: =VLOOKUP(Z$64&$Y72,GTYF!$C:$AP,6,FALSE) -> 10468 | AA72: =VLOOKUP(AA$64&$Y72,GTYF!$C:$AP,37,FALSE) -> 912.566 | AB72: =VLOOKUP(AB$64&$Y72,GTYF!$C:$AP,37,FALSE) -> 0 | AC72: =VLOOKUP(AC$64&$Y72,GTYF!$C:$AP,37,FALSE) -> 912.566 | AD72: =VLOOKUP(AD$64&$Y72,GTYF!$C:$AP,37,FALSE) -> 12065.34 | AE72: =VLOOKUP(AE$64&$Y72,GTYF!$C:$AP,37,FALSE) -> 18.068 | AF72: =VLOOKUP(AF$64&$Y72,GTYF!$C:$AP,37,FALSE) -> 152513.26 | AG72: =VLOOKUP(AG$64&$Y72,GTYF!$C:$AP,37,FALSE) -> 320.02 | AH72: =VLOOKUP(AH$64&$Y72,GTYF!$C:$AP,37,FALSE) -> 164898.622
B73: Peupleraies à résineux | D73: 0 | E73: 0 | F73: 0 | G73: 0 | H73: 0 | I73: 0 | J73: 0 | K73: 0 | L73: 0 | M73: 0 | N73: 0 | O73: 0 | S73: Tableau 4. | T73: 0 | U73: 0 | V73: 0 | W73: 0 | Y73: (FCTYF_PEUR) | Z73: =VLOOKUP(Z$64&$Y73,GTYF!$C:$AP,6,FALSE) -> 0 | AA73: =VLOOKUP(AA$64&$Y73,GTYF!$C:$AP,37,FALSE) -> 0 | AB73: =VLOOKUP(AB$64&$Y73,GTYF!$C:$AP,37,FALSE) -> 0 | AC73: =VLOOKUP(AC$64&$Y73,GTYF!$C:$AP,37,FALSE) -> 0 | AD73: =VLOOKUP(AD$64&$Y73,GTYF!$C:$AP,37,FALSE) -> 0 | AE73: =VLOOKUP(AE$64&$Y73,GTYF!$C:$AP,37,FALSE) -> 0 | AF73: =VLOOKUP(AF$64&$Y73,GTYF!$C:$AP,37,FALSE) -> 0 | AG73: =VLOOKUP(AG$64&$Y73,GTYF!$C:$AP,37,FALSE) -> 0 | AH73: =VLOOKUP(AH$64&$Y73,GTYF!$C:$AP,37,FALSE) -> 0
B74: Pinèdes blanches | D74: 0 | E74: 0 | F74: 0 | G74: 0 | H74: 0 | I74: 0 | J74: 0 | K74: 0 | L74: 0 | M74: 0 | N74: 0 | O74: 0 | S74: Tableau 4. | T74: 0 | U74: 0 | V74: 0 | W74: 0 | Y74: (FCTYF_PIN) | Z74: =VLOOKUP(Z$64&$Y74,GTYF!$C:$AP,6,FALSE) -> 0 | AA74: =VLOOKUP(AA$64&$Y74,GTYF!$C:$AP,37,FALSE) -> 0 | AB74: =VLOOKUP(AB$64&$Y74,GTYF!$C:$AP,37,FALSE) -> 0 | AC74: =VLOOKUP(AC$64&$Y74,GTYF!$C:$AP,37,FALSE) -> 0 | AD74: =VLOOKUP(AD$64&$Y74,GTYF!$C:$AP,37,FALSE) -> 0 | AE74: =VLOOKUP(AE$64&$Y74,GTYF!$C:$AP,37,FALSE) -> 0 | AF74: =VLOOKUP(AF$64&$Y74,GTYF!$C:$AP,37,FALSE) -> 0 | AG74: =VLOOKUP(AG$64&$Y74,GTYF!$C:$AP,37,FALSE) -> 0 | AH74: =VLOOKUP(AH$64&$Y74,GTYF!$C:$AP,37,FALSE) -> 0
B75: Pinèdes grises | D75: 340 | E75: 0.02064359441 | F75: 0 | G75: 0 | H75: 25400 | I75: 0.01655046589 | J75: 0 | K75: 0 | L75: 300 | M75: 0.001400560224 | N75: 25700 | O75: 0.01468823227 | S75: Tableau 4. | T75: 340 | U75: 0.01985981308 | V75: 335.0296 | W75: 4.9704 | Y75: (FCTYF_PIG) | Z75: =VLOOKUP(Z$64&$Y75,GTYF!$C:$AP,6,FALSE) -> 50590.1 | AA75: =VLOOKUP(AA$64&$Y75,GTYF!$C:$AP,37,FALSE) -> 1675.148 | AB75: =VLOOKUP(AB$64&$Y75,GTYF!$C:$AP,37,FALSE) -> 0 | AC75: =VLOOKUP(AC$64&$Y75,GTYF!$C:$AP,37,FALSE) -> 1675.148 | AD75: =VLOOKUP(AD$64&$Y75,GTYF!$C:$AP,37,FALSE) -> 126994.06 | AE75: =VLOOKUP(AE$64&$Y75,GTYF!$C:$AP,37,FALSE) -> 0 | AF75: =VLOOKUP(AF$64&$Y75,GTYF!$C:$AP,37,FALSE) -> 1514.312 | AG75: =VLOOKUP(AG$64&$Y75,GTYF!$C:$AP,37,FALSE) -> 0 | AH75: =VLOOKUP(AH$64&$Y75,GTYF!$C:$AP,37,FALSE) -> 128508.37
B76: Prucheraies | D76: 0 | E76: 0 | F76: 0 | G76: 0 | H76: 0 | I76: 0 | J76: 0 | K76: 0 | L76: 0 | M76: 0 | N76: 0 | O76: 0 | S76: Tableau 4. | T76: 0 | U76: 0 | V76: 0 | W76: 0 | Y76: (FCTYF_PRU) | Z76: =VLOOKUP(Z$64&$Y76,GTYF!$C:$AP,6,FALSE) -> 0 | AA76: =VLOOKUP(AA$64&$Y76,GTYF!$C:$AP,37,FALSE) -> 0 | AB76: =VLOOKUP(AB$64&$Y76,GTYF!$C:$AP,37,FALSE) -> 0 | AC76: =VLOOKUP(AC$64&$Y76,GTYF!$C:$AP,37,FALSE) -> 0 | AD76: =VLOOKUP(AD$64&$Y76,GTYF!$C:$AP,37,FALSE) -> 0 | AE76: =VLOOKUP(AE$64&$Y76,GTYF!$C:$AP,37,FALSE) -> 0 | AF76: =VLOOKUP(AF$64&$Y76,GTYF!$C:$AP,37,FALSE) -> 0 | AG76: =VLOOKUP(AG$64&$Y76,GTYF!$C:$AP,37,FALSE) -> 0 | AH76: =VLOOKUP(AH$64&$Y76,GTYF!$C:$AP,37,FALSE) -> 0
B77: Résineux à feuillus | D77: 810 | E77: 0.04918032787 | F77: 0 | G77: 0 | H77: 69500 | I77: 0.04528572359 | J77: 200 | K77: 0.25 | L77: 37200 | M77: 0.1736694678 | N77: 106900 | O77: 0.06109618792 | S77: Tableau 4. | T77: 810 | U77: 0.04731308411 | V77: 808.604 | W77: 1.396 | Y77: (FCTYF_RF) | Z77: =VLOOKUP(Z$64&$Y77,GTYF!$C:$AP,6,FALSE) -> 107461.6 | AA77: =VLOOKUP(AA$64&$Y77,GTYF!$C:$AP,37,FALSE) -> 4043.02 | AB77: =VLOOKUP(AB$64&$Y77,GTYF!$C:$AP,37,FALSE) -> 0 | AC77: =VLOOKUP(AC$64&$Y77,GTYF!$C:$AP,37,FALSE) -> 4043.02 | AD77: =VLOOKUP(AD$64&$Y77,GTYF!$C:$AP,37,FALSE) -> 347709.39 | AE77: =VLOOKUP(AE$64&$Y77,GTYF!$C:$AP,37,FALSE) -> 929.632 | AF77: =VLOOKUP(AF$64&$Y77,GTYF!$C:$AP,37,FALSE) -> 186115.448 | AG77: =VLOOKUP(AG$64&$Y77,GTYF!$C:$AP,37,FALSE) -> 1041.548 | AH77: =VLOOKUP(AH$64&$Y77,GTYF!$C:$AP,37,FALSE) -> 534866.384
B78: Sapinières | D78: 2100 | E78: 0.1275045537 | F78: 0 | G78: 0 | H78: 229800 | I78: 0.1497361048 | J78: =ROUND(AG78/5,-2) -> 0 | K78: 0 | L78: 19600 | M78: 0.09150326797 | N78: 249400 | O78: 0.1425387209 | S78: Tableau 4. | T78: 2100 | U78: 0.1226635514 | V78: 2103.2836 | W78: -3.2836 | Y78: (FCTYF_SAB) | Z78: =VLOOKUP(Z$64&$Y78,GTYF!$C:$AP,6,FALSE) -> 235884.4 | AA78: =VLOOKUP(AA$64&$Y78,GTYF!$C:$AP,37,FALSE) -> 10516.418 | AB78: =VLOOKUP(AB$64&$Y78,GTYF!$C:$AP,37,FALSE) -> 0 | AC78: =VLOOKUP(AC$64&$Y78,GTYF!$C:$AP,37,FALSE) -> 10516.418 | AD78: =VLOOKUP(AD$64&$Y78,GTYF!$C:$AP,37,FALSE) -> 1148985.092 | AE78: =VLOOKUP(AE$64&$Y78,GTYF!$C:$AP,37,FALSE) -> 0 | AF78: =VLOOKUP(AF$64&$Y78,GTYF!$C:$AP,37,FALSE) -> 98035.67 | AG78: =VLOOKUP(AG$64&$Y78,GTYF!$C:$AP,37,FALSE) -> 239.04 | AH78: =VLOOKUP(AH$64&$Y78,GTYF!$C:$AP,37,FALSE) -> 1247259.8
B79: Total | D79: =SUM(D65:D78) -> 16470 | E79: =SUM(E65:E78) -> 1 | F79: =SUM(F65:F78) -> 650 | G79: =SUM(G65:G78) -> 1 | H79: =SUM(H65:H78) -> 1534700 | I79: =SUM(I65:I78) -> 1 | J79: 800 | K79: 1 | L79: 214200 | M79: 1 | N79: =SUM(N65:N78) -> 1749700 | O79: 1 | S79: Tableau 4. | T79: =SUM(T65:T78) -> 17120 | U79: =SUM(U65:U78) -> 1 | V79: =SUM(V65:V78) -> 17118.9852 | W79: 1.0148 | Y79: Somme | Z79: =SUM(Z65:Z78) -> 1372916.3 | AA79: =SUM(AA65:AA78) -> 82344.926 | AB79: =SUM(AB65:AB78) -> 3250 | AC79: =SUM(AC65:AC78) -> 85594.926
B80: * Les superficies sont arrondies à la dizaine près et les volumes à la centaine près. Cette opération peut engendrer de légères distorsions sur les sommes | S80: Tableau 4. | Y80: Total (Output) | Z80: =VLOOKUP(Z$64,Output!$C:$AP,6,FALSE) -> 1479116.1
Y81: Écart | Z81: =Z79-Z80 -> -106199.8
N82: Écart de possibilité
N83: =Instructions!I5/5-N79 -> 40 | O83: Valideur
B84: Tableau 8. Traitements commerciaux supportant les possibilités forestières
B85: Traitements commerciaux (récolte) | G85: Superficie annuelle moyenne (ha/an) | H85: Superficie antérieure (ha/an) | I85: Écart (ha/an)
T88: Légende | U88: Name | V88: PERIOD2@6
B89: Coupe avec protection de la régénération et des sols (CPRS) | G89: =IFERROR(ROUND(V89,-1),0)-G90-G91 -> 16330 | H89: =IFERROR(ROUND(VLOOKUP(O33,DataLocal!$A:$BH,37,FALSE),-1),0) -> 15090 | I89: =G89-H89 -> 1240 | S89: =LEFT(B$84,10) -> Tableau 8. | T89: Coupes avec protection de la régénération et des sols (CPRS) | U89: OSUPCT | V89: =IFERROR(VLOOKUP(U89,Output!$C:$AQ,37,FALSE)/5,"0000") -> 16325.6985
B90: Coupe avec protection des petites tiges marchandes (CPPTM) | G90: =IFERROR(ROUND(V90,-1),0) -> 0 | H90: =IFERROR(ROUND(VLOOKUP(O33,DataLocal!$A:$BH,38,FALSE),-1),0) -> 0 | I90: =G90-H90 -> 0 | S90: Tableau 8. | T90: Coupe avec protection des petites tiges marchandes (CPPTM) | U90: OSUPREALACPPTM | V90: =IFERROR(VLOOKUP(U90,Output!$C:$AQ,37,FALSE)/5,"0000") -> 0
B91: Coupe avec réserve de semenciers (CRS) | G91: =IFERROR(ROUND(V91,-1),0) -> 0 | H91: =IFERROR(ROUND(VLOOKUP(33,DataLocal!$A:$BH,39,FALSE),-1),0) -> 0 | I91: 0 | S91: Tableau 8. | T91: Coupe avec réserve de semenciers (CRS) | U91: OSUPREALACRS | V91: =IFERROR(VLOOKUP(U91,Output!$C:$AQ,37,FALSE)/5,"0000") -> 0
B92: Total des coupes finales | G92: =SUM(G89:G91) -> 16330 | H92: =SUM(H89:H91) -> 15090 | I92: 1240 | S92: Tableau 8.
B93: Éclaircie commerciale | G93: =IFERROR(ROUND(V93,-1),0) -> 0 | H93: =IFERROR(ROUND(VLOOKUP(O33,DataLocal!$A:$BH,40,FALSE),-1),0) -> 20 | I93: -20 | S93: Tableau 8. | T93: Éclaircie commerciale (EC) | U93: OSUPEC_SEPM | V93: =IFERROR(VLOOKUP(U93,Output!$C:$AQ,37,FALSE)/5,"0000") -> 0
B94: Coupe progressive régulière | G94: =IFERROR(ROUND(V94+V95,-1),0) -> 0 | H94: =IFERROR(ROUND(VLOOKUP(O33,DataLocal!$A:$BH,41,FALSE),-1),0) -> 1120 | I94: -1120 | S94: Tableau 8. | T94: Coupe progressive régulière initiale (CPROG) | U94: OSUPCPROG_INI | V94: =IFERROR(VLOOKUP(U94,Output!$C:$AQ,37,FALSE)/5,"0000") -> 0000
B95: Coupe progressive irrégulière à régénération lente (CPIL) | G95: =IFERROR(ROUND(V96+V97,-1),0) -> 650 | H95: =IFERROR(ROUND(VLOOKUP(O33,DataLocal!$A:$BH,42,FALSE),-1),0) -> 0 | I95: 650 | S95: Tableau 8. | T95: Coupe progressive régulière finale (CPROG) | U95: OSUPCPROG_FIN | V95: =IFERROR(VLOOKUP(U95,Output!$C:$AQ,37,FALSE)/5,"0000") -> 0000
B96: Coupe progressive irrégulière à couvert permanent (CPICP) | G96: =IFERROR(ROUND(V98,-1),0) -> 0 | H96: =IFERROR(ROUND(VLOOKUP(O33,DataLocal!$A:$BH,43,FALSE),-1),0) -> 0 | I96: 0 | S96: Tableau 8. | T96: Coupe progessive irrégulière initiale (CPIRL) | U96: OSUPCPIRL_INI | V96: =IFERROR(VLOOKUP(U96,Output!$C:$AQ,37,FALSE)/5,"0000") -> 650
B97: Coupes de jardinage ou d'amélioration | G97: =IFERROR(ROUND(V99,-1),0) -> 0 | H97: =IFERROR(ROUND(VLOOKUP(O33,DataLocal!$A:$BH,44,FALSE),-1),0) -> 0 | I97: 0 | T97: Coupe progessive irrégulière finale (CPIRL) | U97: OSUPCPIRL_FIN | V97: =IFERROR(VLOOKUP(U97,Output!$C:$AQ,37,FALSE)/5,"0000") -> 0
B98: Total des coupes partielles | G98: =SUM(G93:G97) -> 650 | H98: =SUM(H93:H97) -> 1140 | I98: -490 | S98: =LEFT(B$84,10) -> Tableau 8. | T98: Coupe à couvert permanent (CPICP) | U98: OSUPCPICP | V98: =IFERROR(VLOOKUP(U98,Output!$C:$AQ,37,FALSE)/5,"0000") -> 0000
B99: Total des activités de récolte | G99: =G92+G98 -> 16980 | H99: =H98+H92 -> 16230 | I99: 750 | S99: =LEFT(B$84,10) -> Tableau 8. | T99: Coupe de jardinage (CJ) | U99: OSUPCJ | V99: =IFERROR(VLOOKUP(U99,Output!$C:$AQ,37,FALSE)/5,"0000") -> 0000
B100: % des coupes totales / récolte | G100: =IFERROR(G92/G99,0) -> 0.9617196702 | H100: =IFERROR(H92/H99,0) -> 0.9297597043 | I100: =ROUND(G100-H100,2) -> 0.03 | W100: Valideur
B101: % des coupes partielles / récolte | G101: =IFERROR(G98/G99,0) -> 0.0382803298 | H101: =IFERROR(H98/H99,0) -> 0.07024029575 | I101: =ROUND(G101-H101,2) -> -0.03 | S101: =LEFT(B$84,10) -> Tableau 8. | U101: OSUPREALREGAPAR | V101: =VLOOKUP(U101,Output!$C:$AQ,37,FALSE)/5 -> 650 | W101: =ROUND(SUM(V93:V99),0)=ROUND(V101,0) -> TRUE
B102: Coupes partielles de peuplements résineux | G102: =(AB67+AB71+AB75+AB76+AB77+AB78)/5 -> 650 | H102: =IFERROR(ROUND(VLOOKUP(O33,DataLocal!$A:$BH,45,FALSE),-1),0) -> 1120 | I102: -470 | S102: =LEFT(B$84,10) -> Tableau 8. | U102: OSUPREALREGAFIN | V102: =VLOOKUP(U102,Output!$C:$AQ,37,FALSE)/5 -> 16325.6985 | W102: =ROUND((V89),0)=ROUND(V102,0) -> TRUE
B103: Coupes partielles de peuplements de feuillus tolérants et de pins | G103: =(AB69+AB70+AB74)/5 -> 0 | H103: =IFERROR(ROUND(VLOOKUP(O33,DataLocal!$A:$BH,46,FALSE),-1),0) -> 0 | I103: 0 | S103: =LEFT(B$84,10) -> Tableau 8. | U103: OSUPREALREGAPRE | V103: =VLOOKUP(U103,Output!$C:$AQ,37,FALSE)/5 -> 16975.6985 | W103: =ROUND(V89+SUM(V93:V99),0)=ROUND(V103,0) -> TRUE
B104: * Les superficies sont arrondies à la dizaine près. Cette opération peut engendrer de légères distorsions sur les sommes.
B109: Tableau 9. Variables descriptives reliées aux coupes partielles et totales par grand type de forêt | L109: La CRV est-elle compabilisée avec les coupes partielles (regaPar)?
B110: Grands types de forêt | E110: Coupes partielles | H110: Coupes totales | L110: Si Oui - Remplacer alors les valeurs (colonne H et I) par celles-ci
E111: Rotation moyenne | F111: Prélèvement moyen | G111: Surface terrière moyenne avant coupe | H111: Âge moyen des peuplements | I111: Volume moyen toutes essences | J111: Dimension des bois SEPM | M111: Âge moyen des peuplements | N111: Volume moyen toutes essences
S113: Référence Tableau 63 du cahier d'analyse VF
E115: Années | F115: ="m"&CHAR(179)&"/ha" -> m³/ha | G115: ="m"&CHAR(178)&"/ha" -> m²/ha | H115: Années | I115: ="m"&CHAR(179)&"/an" -> m³/an | J115: ="dcm"&CHAR(179)&"/tige" -> dcm³/tige | M115: Années | N115: ="m"&CHAR(179)&"/an" -> m³/an | S115: =LEFT(B$109,10) -> Tableau 9. | V115: OSUPREALREGAPRE | W115: OSUPINC | X115: OVOLGSEPMRECREGAFIN | Y115: ONBTGSEPMRECREGAFIN | Z115: OVOLTOTRECACT | AA115: OVOLTOTRECACFP | AB115: OVOLTOTRECACRS | AC115: OVOLTOTRECACPPTM | AD115: OSUPREALREGAFIN | AE115: OVOLTOTRECACRV | AF115: OAGETOTRECACT | AG115: OAGETOTRECACFP | AH115: OAGETOTRECACRS | AI115: OAGETOTRECACPPTM | AJ115: OSUPREALREGAFIN | AK115: OAGETOTRECACRV | AM115: OVOLTOTRECaEC | AN115: OVOLTOTRECaEC2 | AO115: OVOLTOTRECaEC3 | AP115: OVOLTOTRECaCA | AQ115: OVOLTOTRECaCA2 | AR115: OVOLTOTRECaCPROG | AS115: OVOLTOTRECaCPIL | AT115: OVOLTOTRECaCPIP | AU115: OVOLTOTRECaCPFORT | AV115: OVOLTOTRECaCPFAIBL | AW115: OVOLTOTRECaCP | AX115: OVOLTOTRECaCPJ | AY115: OVOLTOTRECaCJ | AZ115: SOMME | BA115: OSUPREALREGAPAR
B116: =T116 -> Bétulaies blanches | E116: - | F116: =IFERROR($AZ116/$BA116,"-") -> - | G116: - | H116: =IFERROR(($AF116+$AG116+$AH116+$AI116+$AK116)/$AJ116*5,"-") -> 87.82126826 | I116: =IFERROR(($Z116+$AA116+$AB116+$AC116+$AE116)/$AD116,"-") -> 167.4939182 | J116: =(IFERROR(X116/Y116*1000,"-")) -> 116.067672 | M116: =IFERROR(($AF116+$AG116+$AH116+$AI116)/$AJ116*5,"-") -> 87.82126826 | N116: =IFERROR(($Z116+$AA116+$AB116+$AC116)/$AD116,"-") -> 167.4939182 | S116: =LEFT(B$109,10) -> Tableau 9. | T116: Bétulaies blanches | U116: (FCTYF_BOP) | V116: =VLOOKUP(V$115&$U116,GTYF!$C:$AQ,37,FALSE) -> 2011.73 | W116: =VLOOKUP(W$115&$U116,GTYF!$C:$AQ,6,FALSE) -> 30846.1 | X116: =VLOOKUP(X$115&$U116,GTYF!$C:$AQ,37,FALSE) -> 33303.708 | Y116: =VLOOKUP(Y$115&$U116,GTYF!$C:$AQ,37,FALSE) -> 286933.54 | Z116: =VLOOKUP(Z$115&$U116,GTYF!$C:$AQ,37,FALSE) -> 336952.54 | AA116: =VLOOKUP(AA$115&$U116,GTYF!$C:$AQ,37,FALSE) -> 0 | AB116: =VLOOKUP(AB$115&$U116,GTYF!$C:$AQ,37,FALSE) -> 0 | AC116: =VLOOKUP(AC$115&$U116,GTYF!$C:$AQ,37,FALSE) -> 0 | AD116: =VLOOKUP(AD$115&$U116,GTYF!$C:$AQ,37,FALSE) -> 2011.73 | AE116: =VLOOKUP(AE$115&$U116,GTYF!$C:$AQ,37,FALSE) -> 0 | AF116: =VLOOKUP(AF$115&$U116,GTYF!$C:$AQ,37,FALSE) -> 35334.536 | AG116: =VLOOKUP(AG$115&$U116,GTYF!$C:$AQ,37,FALSE) -> 0 | AH116: =VLOOKUP(AH$115&$U116,GTYF!$C:$AQ,37,FALSE) -> 0 | AI116: =VLOOKUP(AI$115&$U116,GTYF!$C:$AQ,37,FALSE) -> 0 | AJ116: =VLOOKUP(AJ$115&$U116,GTYF!$C:$AQ,37,FALSE) -> 2011.73 | AK116: =VLOOKUP(AK$115&$U116,GTYF!$C:$AQ,37,FALSE) -> 0 | AM116: =VLOOKUP(AM$115&$U116,GTYF!$C:$AQ,37,FALSE) -> 0 | AN116: =VLOOKUP(AN$115&$U116,GTYF!$C:$AQ,37,FALSE) -> 0 | AO116: =VLOOKUP(AO$115&$U116,GTYF!$C:$AQ,37,FALSE) -> 0 | AP116: =VLOOKUP(AP$115&$U116,GTYF!$C:$AQ,37,FALSE) -> 0 | AQ116: =VLOOKUP(AQ$115&$U116,GTYF!$C:$AQ,37,FALSE) -> 0 | AR116: =VLOOKUP(AR$115&$U116,GTYF!$C:$AQ,37,FALSE) -> 0 | AS116: =VLOOKUP(AS$115&$U116,GTYF!$C:$AQ,37,FALSE) -> 0 | AT116: =VLOOKUP(AT$115&$U116,GTYF!$C:$AQ,37,FALSE) -> 0 | AU116: =VLOOKUP(AU$115&$U116,GTYF!$C:$AQ,37,FALSE) -> 0 | AV116: =VLOOKUP(AV$115&$U116,GTYF!$C:$AQ,37,FALSE) -> 0 | AW116: =VLOOKUP(AW$115&$U116,GTYF!$C:$AQ,37,FALSE) -> 0 | AX116: =VLOOKUP(AX$115&$U116,GTYF!$C:$AQ,37,FALSE) -> 0 | AY116: =VLOOKUP(AY$115&$U116,GTYF!$C:$AQ,37,FALSE) -> 0 | AZ116: =SUM(AM116:AY116) -> 0 | BA116: =VLOOKUP(BA$115&$U116,GTYF!$C:$AQ,37,FALSE) -> 0
B117: Bétulaies blanches à résineux | E117: - | F117: - | G117: - | H117: =IFERROR(($AF117+$AG117+$AH117+$AI117+$AK117)/$AJ117*5,"-") -> 90.14761135 | I117: =IFERROR(($Z117+$AA117+$AB117+$AC117+$AE117)/$AD117,"-") -> 146.745734 | J117: =(IFERROR(X117/Y117*1000,"-")) -> 138.4695266 | M117: =IFERROR(($AF117+$AG117+$AH117+$AI117)/$AJ117*5,"-") -> 90.14761135 | N117: =IFERROR(($Z117+$AA117+$AB117+$AC117)/$AD117,"-") -> 146.745734 | S117: Tableau 9. | T117: Bétulaies blanches à résineux | U117: (FCTYF_BOPR) | V117: =VLOOKUP(V$115&$U117,GTYF!$C:$AQ,37,FALSE) -> 1498.462 | W117: =VLOOKUP(W$115&$U117,GTYF!$C:$AQ,6,FALSE) -> 26955.5 | X117: =VLOOKUP(X$115&$U117,GTYF!$C:$AQ,37,FALSE) -> 77445.518 | Y117: =VLOOKUP(Y$115&$U117,GTYF!$C:$AQ,37,FALSE) -> 559296.474 | Z117: =VLOOKUP(Z$115&$U117,GTYF!$C:$AQ,37,FALSE) -> 219892.906 | AA117: =VLOOKUP(AA$115&$U117,GTYF!$C:$AQ,37,FALSE) -> 0 | AB117: =VLOOKUP(AB$115&$U117,GTYF!$C:$AQ,37,FALSE) -> 0 | AC117: =VLOOKUP(AC$115&$U117,GTYF!$C:$AQ,37,FALSE) -> 0 | AD117: =VLOOKUP(AD$115&$U117,GTYF!$C:$AQ,37,FALSE) -> 1498.462 | AE117: =VLOOKUP(AE$115&$U117,GTYF!$C:$AQ,37,FALSE) -> 0 | AF117: =VLOOKUP(AF$115&$U117,GTYF!$C:$AQ,37,FALSE) -> 27016.554 | AG117: =VLOOKUP(AG$115&$U117,GTYF!$C:$AQ,37,FALSE) -> 0 | AH117: =VLOOKUP(AH$115&$U117,GTYF!$C:$AQ,37,FALSE) -> 0 | AI117: =VLOOKUP(AI$115&$U117,GTYF!$C:$AQ,37,FALSE) -> 0 | AJ117: =VLOOKUP(AJ$115&$U117,GTYF!$C:$AQ,37,FALSE) -> 1498.462 | AK117: =VLOOKUP(AK$115&$U117,GTYF!$C:$AQ,37,FALSE) -> 0 | AM117: =VLOOKUP(AM$115&$U117,GTYF!$C:$AQ,37,FALSE) -> 0 | AN117: =VLOOKUP(AN$115&$U117,GTYF!$C:$AQ,37,FALSE) -> 0 | AO117: =VLOOKUP(AO$115&$U117,GTYF!$C:$AQ,37,FALSE) -> 0 | AP117: =VLOOKUP(AP$115&$U117,GTYF!$C:$AQ,37,FALSE) -> 0 | AQ117: =VLOOKUP(AQ$115&$U117,GTYF!$C:$AQ,37,FALSE) -> 0 | AR117: =VLOOKUP(AR$115&$U117,GTYF!$C:$AQ,37,FALSE) -> 0 | AS117: =VLOOKUP(AS$115&$U117,GTYF!$C:$AQ,37,FALSE) -> 0 | AT117: =VLOOKUP(AT$115&$U117,GTYF!$C:$AQ,37,FALSE) -> 0 | AU117: =VLOOKUP(AU$115&$U117,GTYF!$C:$AQ,37,FALSE) -> 0 | AV117: =VLOOKUP(AV$115&$U117,GTYF!$C:$AQ,37,FALSE) -> 0 | AW117: =VLOOKUP(AW$115&$U117,GTYF!$C:$AQ,37,FALSE) -> 0 | AX117: =VLOOKUP(AX$115&$U117,GTYF!$C:$AQ,37,FALSE) -> 0 | AY117: =VLOOKUP(AY$115&$U117,GTYF!$C:$AQ,37,FALSE) -> 0 | AZ117: =SUM(AM117:AY117) -> 0 | BA117: =VLOOKUP(BA$115&$U117,GTYF!$C:$AQ,37,FALSE) -> 0
B118: Cédrières | F118: - | H118: =IFERROR(($AF118+$AG118+$AH118+$AI118+$AK118)/$AJ118*5,"-") -> - | I118: - | J118: =(IFERROR(X118/Y118*1000,"-")) -> - | M118: - | N118: - | S118: Tableau 9. | T118: Cédrières | U118: (FCTYF_THO) | V118: =VLOOKUP(V$115&$U118,GTYF!$C:$AQ,37,FALSE) -> 0 | W118: =VLOOKUP(W$115&$U118,GTYF!$C:$AQ,6,FALSE) -> 0 | X118: =VLOOKUP(X$115&$U118,GTYF!$C:$AQ,37,FALSE) -> 0 | Y118: =VLOOKUP(Y$115&$U118,GTYF!$C:$AQ,37,FALSE) -> 0 | Z118: =VLOOKUP(Z$115&$U118,GTYF!$C:$AQ,37,FALSE) -> 0 | AA118: =VLOOKUP(AA$115&$U118,GTYF!$C:$AQ,37,FALSE) -> 0 | AB118: =VLOOKUP(AB$115&$U118,GTYF!$C:$AQ,37,FALSE) -> 0 | AC118: =VLOOKUP(AC$115&$U118,GTYF!$C:$AQ,37,FALSE) -> 0 | AD118: =VLOOKUP(AD$115&$U118,GTYF!$C:$AQ,37,FALSE) -> 0 | AE118: =VLOOKUP(AE$115&$U118,GTYF!$C:$AQ,37,FALSE) -> 0 | AF118: =VLOOKUP(AF$115&$U118,GTYF!$C:$AQ,37,FALSE) -> 0 | AG118: =VLOOKUP(AG$115&$U118,GTYF!$C:$AQ,37,FALSE) -> 0 | AH118: =VLOOKUP(AH$115&$U118,GTYF!$C:$AQ,37,FALSE) -> 0 | AI118: =VLOOKUP(AI$115&$U118,GTYF!$C:$AQ,37,FALSE) -> 0 | AJ118: =VLOOKUP(AJ$115&$U118,GTYF!$C:$AQ,37,FALSE) -> 0 | AK118: =VLOOKUP(AK$115&$U118,GTYF!$C:$AQ,37,FALSE) -> 0 | AM118: =VLOOKUP(AM$115&$U118,GTYF!$C:$AQ,37,FALSE) -> 0 | AN118: =VLOOKUP(AN$115&$U118,GTYF!$C:$AQ,37,FALSE) -> 0 | AO118: =VLOOKUP(AO$115&$U118,GTYF!$C:$AQ,37,FALSE) -> 0 | AP118: =VLOOKUP(AP$115&$U118,GTYF!$C:$AQ,37,FALSE) -> 0 | AQ118: =VLOOKUP(AQ$115&$U118,GTYF!$C:$AQ,37,FALSE) -> 0 | AR118: =VLOOKUP(AR$115&$U118,GTYF!$C:$AQ,37,FALSE) -> 0 | AS118: =VLOOKUP(AS$115&$U118,GTYF!$C:$AQ,37,FALSE) -> 0 | AT118: =VLOOKUP(AT$115&$U118,GTYF!$C:$AQ,37,FALSE) -> 0 | AU118: =VLOOKUP(AU$115&$U118,GTYF!$C:$AQ,37,FALSE) -> 0 | AV118: =VLOOKUP(AV$115&$U118,GTYF!$C:$AQ,37,FALSE) -> 0 | AW118: =VLOOKUP(AW$115&$U118,GTYF!$C:$AQ,37,FALSE) -> 0 | AX118: =VLOOKUP(AX$115&$U118,GTYF!$C:$AQ,37,FALSE) -> 0 | AY118: =VLOOKUP(AY$115&$U118,GTYF!$C:$AQ,37,FALSE) -> 0 | AZ118: 0 | BA118: =VLOOKUP(BA$115&$U118,GTYF!$C:$AQ,37,FALSE) -> 0
B119: Érablières rouges | F119: - | H119: - | I119: - | J119: - | M119: - | N119: - | S119: Tableau 9. | T119: Érablières rouges | U119: (FCTYF_ERO) | V119: =VLOOKUP(V$115&$U119,GTYF!$C:$AQ,37,FALSE) -> 0 | W119: =VLOOKUP(W$115&$U119,GTYF!$C:$AQ,6,FALSE) -> 0 | X119: =VLOOKUP(X$115&$U119,GTYF!$C:$AQ,37,FALSE) -> 0 | Y119: =VLOOKUP(Y$115&$U119,GTYF!$C:$AQ,37,FALSE) -> 0 | Z119: =VLOOKUP(Z$115&$U119,GTYF!$C:$AQ,37,FALSE) -> 0 | AA119: =VLOOKUP(AA$115&$U119,GTYF!$C:$AQ,37,FALSE) -> 0 | AB119: =VLOOKUP(AB$115&$U119,GTYF!$C:$AQ,37,FALSE) -> 0 | AC119: =VLOOKUP(AC$115&$U119,GTYF!$C:$AQ,37,FALSE) -> 0 | AD119: =VLOOKUP(AD$115&$U119,GTYF!$C:$AQ,37,FALSE) -> 0 | AE119: =VLOOKUP(AE$115&$U119,GTYF!$C:$AQ,37,FALSE) -> 0 | AF119: =VLOOKUP(AF$115&$U119,GTYF!$C:$AQ,37,FALSE) -> 0 | AG119: =VLOOKUP(AG$115&$U119,GTYF!$C:$AQ,37,FALSE) -> 0 | AH119: =VLOOKUP(AH$115&$U119,GTYF!$C:$AQ,37,FALSE) -> 0 | AI119: =VLOOKUP(AI$115&$U119,GTYF!$C:$AQ,37,FALSE) -> 0 | AJ119: =VLOOKUP(AJ$115&$U119,GTYF!$C:$AQ,37,FALSE) -> 0 | AK119: =VLOOKUP(AK$115&$U119,GTYF!$C:$AQ,37,FALSE) -> 0 | AM119: =VLOOKUP(AM$115&$U119,GTYF!$C:$AQ,37,FALSE) -> 0 | AN119: =VLOOKUP(AN$115&$U119,GTYF!$C:$AQ,37,FALSE) -> 0 | AO119: =VLOOKUP(AO$115&$U119,GTYF!$C:$AQ,37,FALSE) -> 0 | AP119: =VLOOKUP(AP$115&$U119,GTYF!$C:$AQ,37,FALSE) -> 0 | AQ119: =VLOOKUP(AQ$115&$U119,GTYF!$C:$AQ,37,FALSE) -> 0 | AR119: =VLOOKUP(AR$115&$U119,GTYF!$C:$AQ,37,FALSE) -> 0 | AS119: =VLOOKUP(AS$115&$U119,GTYF!$C:$AQ,37,FALSE) -> 0 | AT119: =VLOOKUP(AT$115&$U119,GTYF!$C:$AQ,37,FALSE) -> 0 | AU119: =VLOOKUP(AU$115&$U119,GTYF!$C:$AQ,37,FALSE) -> 0 | AV119: =VLOOKUP(AV$115&$U119,GTYF!$C:$AQ,37,FALSE) -> 0 | AW119: =VLOOKUP(AW$115&$U119,GTYF!$C:$AQ,37,FALSE) -> 0 | AX119: =VLOOKUP(AX$115&$U119,GTYF!$C:$AQ,37,FALSE) -> 0 | AY119: =VLOOKUP(AY$115&$U119,GTYF!$C:$AQ,37,FALSE) -> 0 | AZ119: 0 | BA119: =VLOOKUP(BA$115&$U119,GTYF!$C:$AQ,37,FALSE) -> 0
B120: Feuillus tolérants | F120: - | H120: - | I120: - | J120: - | M120: - | N120: - | S120: Tableau 9. | T120: Feuillus tolérants | U120: (FCTYF_FT) | V120: =VLOOKUP(V$115&$U120,GTYF!$C:$AQ,37,FALSE) -> 0 | W120: =VLOOKUP(W$115&$U120,GTYF!$C:$AQ,6,FALSE) -> 0 | X120: =VLOOKUP(X$115&$U120,GTYF!$C:$AQ,37,FALSE) -> 0 | Y120: =VLOOKUP(Y$115&$U120,GTYF!$C:$AQ,37,FALSE) -> 0 | Z120: =VLOOKUP(Z$115&$U120,GTYF!$C:$AQ,37,FALSE) -> 0 | AA120: =VLOOKUP(AA$115&$U120,GTYF!$C:$AQ,37,FALSE) -> 0 | AB120: =VLOOKUP(AB$115&$U120,GTYF!$C:$AQ,37,FALSE) -> 0 | AC120: =VLOOKUP(AC$115&$U120,GTYF!$C:$AQ,37,FALSE) -> 0 | AD120: =VLOOKUP(AD$115&$U120,GTYF!$C:$AQ,37,FALSE) -> 0 | AE120: =VLOOKUP(AE$115&$U120,GTYF!$C:$AQ,37,FALSE) -> 0 | AF120: =VLOOKUP(AF$115&$U120,GTYF!$C:$AQ,37,FALSE) -> 0 | AG120: =VLOOKUP(AG$115&$U120,GTYF!$C:$AQ,37,FALSE) -> 0 | AH120: =VLOOKUP(AH$115&$U120,GTYF!$C:$AQ,37,FALSE) -> 0 | AI120: =VLOOKUP(AI$115&$U120,GTYF!$C:$AQ,37,FALSE) -> 0 | AJ120: =VLOOKUP(AJ$115&$U120,GTYF!$C:$AQ,37,FALSE) -> 0 | AK120: =VLOOKUP(AK$115&$U120,GTYF!$C:$AQ,37,FALSE) -> 0 | AM120: =VLOOKUP(AM$115&$U120,GTYF!$C:$AQ,37,FALSE) -> 0 | AN120: =VLOOKUP(AN$115&$U120,GTYF!$C:$AQ,37,FALSE) -> 0 | AO120: =VLOOKUP(AO$115&$U120,GTYF!$C:$AQ,37,FALSE) -> 0 | AP120: =VLOOKUP(AP$115&$U120,GTYF!$C:$AQ,37,FALSE) -> 0 | AQ120: =VLOOKUP(AQ$115&$U120,GTYF!$C:$AQ,37,FALSE) -> 0 | AR120: =VLOOKUP(AR$115&$U120,GTYF!$C:$AQ,37,FALSE) -> 0 | AS120: =VLOOKUP(AS$115&$U120,GTYF!$C:$AQ,37,FALSE) -> 0 | AT120: =VLOOKUP(AT$115&$U120,GTYF!$C:$AQ,37,FALSE) -> 0 | AU120: =VLOOKUP(AU$115&$U120,GTYF!$C:$AQ,37,FALSE) -> 0 | AV120: =VLOOKUP(AV$115&$U120,GTYF!$C:$AQ,37,FALSE) -> 0 | AW120: =VLOOKUP(AW$115&$U120,GTYF!$C:$AQ,37,FALSE) -> 0 | AX120: =VLOOKUP(AX$115&$U120,GTYF!$C:$AQ,37,FALSE) -> 0 | AY120: =VLOOKUP(AY$115&$U120,GTYF!$C:$AQ,37,FALSE) -> 0 | AZ120: 0 | BA120: =VLOOKUP(BA$115&$U120,GTYF!$C:$AQ,37,FALSE) -> 0
B121: Feuillus tolérants à résineux | F121: =IFERROR($AZ121/$BA121,"-") -> - | H121: - | I121: - | J121: - | M121: - | N121: - | S121: Tableau 9. | T121: Feuillus tolérants à résineux | U121: (FCTYF_FTR) | V121: =VLOOKUP(V$115&$U121,GTYF!$C:$AQ,37,FALSE) -> 0 | W121: =VLOOKUP(W$115&$U121,GTYF!$C:$AQ,6,FALSE) -> 0 | X121: =VLOOKUP(X$115&$U121,GTYF!$C:$AQ,37,FALSE) -> 0 | Y121: =VLOOKUP(Y$115&$U121,GTYF!$C:$AQ,37,FALSE) -> 0 | Z121: =VLOOKUP(Z$115&$U121,GTYF!$C:$AQ,37,FALSE) -> 0 | AA121: =VLOOKUP(AA$115&$U121,GTYF!$C:$AQ,37,FALSE) -> 0 | AB121: =VLOOKUP(AB$115&$U121,GTYF!$C:$AQ,37,FALSE) -> 0 | AC121: =VLOOKUP(AC$115&$U121,GTYF!$C:$AQ,37,FALSE) -> 0 | AD121: =VLOOKUP(AD$115&$U121,GTYF!$C:$AQ,37,FALSE) -> 0 | AE121: =VLOOKUP(AE$115&$U121,GTYF!$C:$AQ,37,FALSE) -> 0 | AF121: =VLOOKUP(AF$115&$U121,GTYF!$C:$AQ,37,FALSE) -> 0 | AG121: =VLOOKUP(AG$115&$U121,GTYF!$C:$AQ,37,FALSE) -> 0 | AH121: =VLOOKUP(AH$115&$U121,GTYF!$C:$AQ,37,FALSE) -> 0 | AI121: =VLOOKUP(AI$115&$U121,GTYF!$C:$AQ,37,FALSE) -> 0 | AJ121: =VLOOKUP(AJ$115&$U121,GTYF!$C:$AQ,37,FALSE) -> 0 | AK121: =VLOOKUP(AK$115&$U121,GTYF!$C:$AQ,37,FALSE) -> 0 | AM121: =VLOOKUP(AM$115&$U121,GTYF!$C:$AQ,37,FALSE) -> 0 | AN121: =VLOOKUP(AN$115&$U121,GTYF!$C:$AQ,37,FALSE) -> 0 | AO121: =VLOOKUP(AO$115&$U121,GTYF!$C:$AQ,37,FALSE) -> 0 | AP121: =VLOOKUP(AP$115&$U121,GTYF!$C:$AQ,37,FALSE) -> 0 | AQ121: =VLOOKUP(AQ$115&$U121,GTYF!$C:$AQ,37,FALSE) -> 0 | AR121: =VLOOKUP(AR$115&$U121,GTYF!$C:$AQ,37,FALSE) -> 0 | AS121: =VLOOKUP(AS$115&$U121,GTYF!$C:$AQ,37,FALSE) -> 0 | AT121: =VLOOKUP(AT$115&$U121,GTYF!$C:$AQ,37,FALSE) -> 0 | AU121: =VLOOKUP(AU$115&$U121,GTYF!$C:$AQ,37,FALSE) -> 0 | AV121: =VLOOKUP(AV$115&$U121,GTYF!$C:$AQ,37,FALSE) -> 0 | AW121: =VLOOKUP(AW$115&$U121,GTYF!$C:$AQ,37,FALSE) -> 0 | AX121: =VLOOKUP(AX$115&$U121,GTYF!$C:$AQ,37,FALSE) -> 0 | AY121: =VLOOKUP(AY$115&$U121,GTYF!$C:$AQ,37,FALSE) -> 0 | AZ121: =SUM(AM121:AY121) -> 0 | BA121: =VLOOKUP(BA$115&$U121,GTYF!$C:$AQ,37,FALSE) -> 0
B122: Pessières | E122: 44 | F122: 76.78120185 | G122: 27,5 | H122: >120 | I122: 95.10475664 | J122: 101.6327242 | M122: 169.9498124 | N122: 95.10475664 | S122: Tableau 9. | T122: Pessières | U122: (FCTYF_EPX) | V122: =VLOOKUP(V$115&$U122,GTYF!$C:$AQ,37,FALSE) -> 64937.582 | W122: =VLOOKUP(W$115&$U122,GTYF!$C:$AQ,6,FALSE) -> 910710.6 | X122: =VLOOKUP(X$115&$U122,GTYF!$C:$AQ,37,FALSE) -> 5683053.762 | Y122: =VLOOKUP(Y$115&$U122,GTYF!$C:$AQ,37,FALSE) -> 55917558.14 | Z122: =VLOOKUP(Z$115&$U122,GTYF!$C:$AQ,37,FALSE) -> 5092819.346 | AA122: =VLOOKUP(AA$115&$U122,GTYF!$C:$AQ,37,FALSE) -> 773963.128 | AB122: =VLOOKUP(AB$115&$U122,GTYF!$C:$AQ,37,FALSE) -> 0 | AC122: =VLOOKUP(AC$115&$U122,GTYF!$C:$AQ,37,FALSE) -> 0 | AD122: =VLOOKUP(AD$115&$U122,GTYF!$C:$AQ,37,FALSE) -> 61687.582 | AE122: =VLOOKUP(AE$115&$U122,GTYF!$C:$AQ,37,FALSE) -> 0 | AF122: =VLOOKUP(AF$115&$U122,GTYF!$C:$AQ,37,FALSE) -> 2004370.108 | AG122: =VLOOKUP(AG$115&$U122,GTYF!$C:$AQ,37,FALSE) -> 92388.49 | AH122: =VLOOKUP(AH$115&$U122,GTYF!$C:$AQ,37,FALSE) -> 0 | AI122: =VLOOKUP(AI$115&$U122,GTYF!$C:$AQ,37,FALSE) -> 0 | AJ122: =VLOOKUP(AJ$115&$U122,GTYF!$C:$AQ,37,FALSE) -> 61687.582 | AK122: =VLOOKUP(AK$115&$U122,GTYF!$C:$AQ,37,FALSE) -> 0 | AM122: =VLOOKUP(AM$115&$U122,GTYF!$C:$AQ,37,FALSE) -> 0 | AN122: =VLOOKUP(AN$115&$U122,GTYF!$C:$AQ,37,FALSE) -> 0 | AO122: =VLOOKUP(AO$115&$U122,GTYF!$C:$AQ,37,FALSE) -> 0 | AP122: =VLOOKUP(AP$115&$U122,GTYF!$C:$AQ,37,FALSE) -> 0 | AQ122: =VLOOKUP(AQ$115&$U122,GTYF!$C:$AQ,37,FALSE) -> 0 | AR122: =VLOOKUP(AR$115&$U122,GTYF!$C:$AQ,37,FALSE) -> 0 | AS122: =VLOOKUP(AS$115&$U122,GTYF!$C:$AQ,37,FALSE) -> 249538.906 | AT122: =VLOOKUP(AT$115&$U122,GTYF!$C:$AQ,37,FALSE) -> 0 | AU122: =VLOOKUP(AU$115&$U122,GTYF!$C:$AQ,37,FALSE) -> 0 | AV122: =VLOOKUP(AV$115&$U122,GTYF!$C:$AQ,37,FALSE) -> 0 | AW122: =VLOOKUP(AW$115&$U122,GTYF!$C:$AQ,37,FALSE) -> 0 | AX122: =VLOOKUP(AX$115&$U122,GTYF!$C:$AQ,37,FALSE) -> 0 | AY122: =VLOOKUP(AY$115&$U122,GTYF!$C:$AQ,37,FALSE) -> 0 | AZ122: 249538.906 | BA122: =VLOOKUP(BA$115&$U122,GTYF!$C:$AQ,37,FALSE) -> 3250
B123: Peupleraies | E123: - | F123: - | G123: - | H123: 72.48877341 | I123: 180.697749 | J123: 107.5283505 | M123: 72.48877341 | N123: 180.697749 | S123: Tableau 9. | T123: Peupleraies | U123: (FCTYF_PEU) | V123: =VLOOKUP(V$115&$U123,GTYF!$C:$AQ,37,FALSE) -> 912.566 | W123: =VLOOKUP(W$115&$U123,GTYF!$C:$AQ,6,FALSE) -> 10468 | X123: =VLOOKUP(X$115&$U123,GTYF!$C:$AQ,37,FALSE) -> 12047.268 | Y123: =VLOOKUP(Y$115&$U123,GTYF!$C:$AQ,37,FALSE) -> 112038.062 | Z123: =VLOOKUP(Z$115&$U123,GTYF!$C:$AQ,37,FALSE) -> 164898.622 | AA123: =VLOOKUP(AA$115&$U123,GTYF!$C:$AQ,37,FALSE) -> 0 | AB123: =VLOOKUP(AB$115&$U123,GTYF!$C:$AQ,37,FALSE) -> 0 | AC123: =VLOOKUP(AC$115&$U123,GTYF!$C:$AQ,37,FALSE) -> 0 | AD123: =VLOOKUP(AD$115&$U123,GTYF!$C:$AQ,37,FALSE) -> 912.566 | AE123: =VLOOKUP(AE$115&$U123,GTYF!$C:$AQ,37,FALSE) -> 0 | AF123: =VLOOKUP(AF$115&$U123,GTYF!$C:$AQ,37,FALSE) -> 13230.158 | AG123: =VLOOKUP(AG$115&$U123,GTYF!$C:$AQ,37,FALSE) -> 0 | AH123: =VLOOKUP(AH$115&$U123,GTYF!$C:$AQ,37,FALSE) -> 0 | AI123: =VLOOKUP(AI$115&$U123,GTYF!$C:$AQ,37,FALSE) -> 0 | AJ123: =VLOOKUP(AJ$115&$U123,GTYF!$C:$AQ,37,FALSE) -> 912.566 | AK123: =VLOOKUP(AK$115&$U123,GTYF!$C:$AQ,37,FALSE) -> 0 | AM123: =VLOOKUP(AM$115&$U123,GTYF!$C:$AQ,37,FALSE) -> 0 | AN123: =VLOOKUP(AN$115&$U123,GTYF!$C:$AQ,37,FALSE) -> 0 | AO123: =VLOOKUP(AO$115&$U123,GTYF!$C:$AQ,37,FALSE) -> 0 | AP123: =VLOOKUP(AP$115&$U123,GTYF!$C:$AQ,37,FALSE) -> 0 | AQ123: =VLOOKUP(AQ$115&$U123,GTYF!$C:$AQ,37,FALSE) -> 0 | AR123: =VLOOKUP(AR$115&$U123,GTYF!$C:$AQ,37,FALSE) -> 0 | AS123: =VLOOKUP(AS$115&$U123,GTYF!$C:$AQ,37,FALSE) -> 0 | AT123: =VLOOKUP(AT$115&$U123,GTYF!$C:$AQ,37,FALSE) -> 0 | AU123: =VLOOKUP(AU$115&$U123,GTYF!$C:$AQ,37,FALSE) -> 0 | AV123: =VLOOKUP(AV$115&$U123,GTYF!$C:$AQ,37,FALSE) -> 0 | AW123: =VLOOKUP(AW$115&$U123,GTYF!$C:$AQ,37,FALSE) -> 0 | AX123: =VLOOKUP(AX$115&$U123,GTYF!$C:$AQ,37,FALSE) -> 0 | AY123: =VLOOKUP(AY$115&$U123,GTYF!$C:$AQ,37,FALSE) -> 0 | AZ123: 0 | BA123: =VLOOKUP(BA$115&$U123,GTYF!$C:$AQ,37,FALSE) -> 0
B124: Peupleraies à résineux | E124: - | F124: - | G124: - | H124: - | I124: - | J124: - | M124: - | N124: - | S124: Tableau 9. | T124: Peupleraies à résineux | U124: (FCTYF_PEUR) | V124: =VLOOKUP(V$115&$U124,GTYF!$C:$AQ,37,FALSE) -> 0 | W124: =VLOOKUP(W$115&$U124,GTYF!$C:$AQ,6,FALSE) -> 0 | X124: =VLOOKUP(X$115&$U124,GTYF!$C:$AQ,37,FALSE) -> 0 | Y124: =VLOOKUP(Y$115&$U124,GTYF!$C:$AQ,37,FALSE) -> 0 | Z124: =VLOOKUP(Z$115&$U124,GTYF!$C:$AQ,37,FALSE) -> 0 | AA124: =VLOOKUP(AA$115&$U124,GTYF!$C:$AQ,37,FALSE) -> 0 | AB124: =VLOOKUP(AB$115&$U124,GTYF!$C:$AQ,37,FALSE) -> 0 | AC124: =VLOOKUP(AC$115&$U124,GTYF!$C:$AQ,37,FALSE) -> 0 | AD124: =VLOOKUP(AD$115&$U124,GTYF!$C:$AQ,37,FALSE) -> 0 | AE124: =VLOOKUP(AE$115&$U124,GTYF!$C:$AQ,37,FALSE) -> 0 | AF124: =VLOOKUP(AF$115&$U124,GTYF!$C:$AQ,37,FALSE) -> 0 | AG124: =VLOOKUP(AG$115&$U124,GTYF!$C:$AQ,37,FALSE) -> 0 | AH124: =VLOOKUP(AH$115&$U124,GTYF!$C:$AQ,37,FALSE) -> 0 | AI124: =VLOOKUP(AI$115&$U124,GTYF!$C:$AQ,37,FALSE) -> 0 | AJ124: =VLOOKUP(AJ$115&$U124,GTYF!$C:$AQ,37,FALSE) -> 0 | AK124: =VLOOKUP(AK$115&$U124,GTYF!$C:$AQ,37,FALSE) -> 0 | AM124: =VLOOKUP(AM$115&$U124,GTYF!$C:$AQ,37,FALSE) -> 0 | AN124: =VLOOKUP(AN$115&$U124,GTYF!$C:$AQ,37,FALSE) -> 0 | AO124: =VLOOKUP(AO$115&$U124,GTYF!$C:$AQ,37,FALSE) -> 0 | AP124: =VLOOKUP(AP$115&$U124,GTYF!$C:$AQ,37,FALSE) -> 0 | AQ124: =VLOOKUP(AQ$115&$U124,GTYF!$C:$AQ,37,FALSE) -> 0 | AR124: =VLOOKUP(AR$115&$U124,GTYF!$C:$AQ,37,FALSE) -> 0 | AS124: =VLOOKUP(AS$115&$U124,GTYF!$C:$AQ,37,FALSE) -> 0 | AT124: =VLOOKUP(AT$115&$U124,GTYF!$C:$AQ,37,FALSE) -> 0 | AU124: =VLOOKUP(AU$115&$U124,GTYF!$C:$AQ,37,FALSE) -> 0 | AV124: =VLOOKUP(AV$115&$U124,GTYF!$C:$AQ,37,FALSE) -> 0 | AW124: =VLOOKUP(AW$115&$U124,GTYF!$C:$AQ,37,FALSE) -> 0 | AX124: =VLOOKUP(AX$115&$U124,GTYF!$C:$AQ,37,FALSE) -> 0 | AY124: =VLOOKUP(AY$115&$U124,GTYF!$C:$AQ,37,FALSE) -> 0 | AZ124: 0 | BA124: =VLOOKUP(BA$115&$U124,GTYF!$C:$AQ,37,FALSE) -> 0
B125: Pinèdes blanches | E125: - | F125: - | G125: - | H125: - | I125: - | J125: - | M125: - | N125: - | S125: Tableau 9. | T125: Pinèdes blanches | U125: (FCTYF_PIN) | V125: =VLOOKUP(V$115&$U125,GTYF!$C:$AQ,37,FALSE) -> 0 | W125: =VLOOKUP(W$115&$U125,GTYF!$C:$AQ,6,FALSE) -> 0 | X125: =VLOOKUP(X$115&$U125,GTYF!$C:$AQ,37,FALSE) -> 0 | Y125: =VLOOKUP(Y$115&$U125,GTYF!$C:$AQ,37,FALSE) -> 0 | Z125: =VLOOKUP(Z$115&$U125,GTYF!$C:$AQ,37,FALSE) -> 0 | AA125: =VLOOKUP(AA$115&$U125,GTYF!$C:$AQ,37,FALSE) -> 0 | AB125: =VLOOKUP(AB$115&$U125,GTYF!$C:$AQ,37,FALSE) -> 0 | AC125: =VLOOKUP(AC$115&$U125,GTYF!$C:$AQ,37,FALSE) -> 0 | AD125: =VLOOKUP(AD$115&$U125,GTYF!$C:$AQ,37,FALSE) -> 0 | AE125: =VLOOKUP(AE$115&$U125,GTYF!$C:$AQ,37,FALSE) -> 0 | AF125: =VLOOKUP(AF$115&$U125,GTYF!$C:$AQ,37,FALSE) -> 0 | AG125: =VLOOKUP(AG$115&$U125,GTYF!$C:$AQ,37,FALSE) -> 0 | AH125: =VLOOKUP(AH$115&$U125,GTYF!$C:$AQ,37,FALSE) -> 0 | AI125: =VLOOKUP(AI$115&$U125,GTYF!$C:$AQ,37,FALSE) -> 0 | AJ125: =VLOOKUP(AJ$115&$U125,GTYF!$C:$AQ,37,FALSE) -> 0 | AK125: =VLOOKUP(AK$115&$U125,GTYF!$C:$AQ,37,FALSE) -> 0 | AM125: =VLOOKUP(AM$115&$U125,GTYF!$C:$AQ,37,FALSE) -> 0 | AN125: =VLOOKUP(AN$115&$U125,GTYF!$C:$AQ,37,FALSE) -> 0 | AO125: =VLOOKUP(AO$115&$U125,GTYF!$C:$AQ,37,FALSE) -> 0 | AP125: =VLOOKUP(AP$115&$U125,GTYF!$C:$AQ,37,FALSE) -> 0 | AQ125: =VLOOKUP(AQ$115&$U125,GTYF!$C:$AQ,37,FALSE) -> 0 | AR125: =VLOOKUP(AR$115&$U125,GTYF!$C:$AQ,37,FALSE) -> 0 | AS125: =VLOOKUP(AS$115&$U125,GTYF!$C:$AQ,37,FALSE) -> 0 | AT125: =VLOOKUP(AT$115&$U125,GTYF!$C:$AQ,37,FALSE) -> 0 | AU125: =VLOOKUP(AU$115&$U125,GTYF!$C:$AQ,37,FALSE) -> 0 | AV125: =VLOOKUP(AV$115&$U125,GTYF!$C:$AQ,37,FALSE) -> 0 | AW125: =VLOOKUP(AW$115&$U125,GTYF!$C:$AQ,37,FALSE) -> 0 | AX125: =VLOOKUP(AX$115&$U125,GTYF!$C:$AQ,37,FALSE) -> 0 | AY125: =VLOOKUP(AY$115&$U125,GTYF!$C:$AQ,37,FALSE) -> 0 | AZ125: 0 | BA125: =VLOOKUP(BA$115&$U125,GTYF!$C:$AQ,37,FALSE) -> 0
B126: Pinèdes grises | E126: - | F126: - | G126: - | H126: >120 | I126: 76.71463656 | J126: 92.1117234 | M126: 126.6739775 | N126: 76.71463656 | S126: Tableau 9. | T126: Pinèdes grises | U126: (FCTYF_PIG) | V126: =VLOOKUP(V$115&$U126,GTYF!$C:$AQ,37,FALSE) -> 1675.148 | W126: =VLOOKUP(W$115&$U126,GTYF!$C:$AQ,6,FALSE) -> 50590.1 | X126: =VLOOKUP(X$115&$U126,GTYF!$C:$AQ,37,FALSE) -> 126994.06 | Y126: =VLOOKUP(Y$115&$U126,GTYF!$C:$AQ,37,FALSE) -> 1378695.95 | Z126: =VLOOKUP(Z$115&$U126,GTYF!$C:$AQ,37,FALSE) -> 128508.37 | AA126: =VLOOKUP(AA$115&$U126,GTYF!$C:$AQ,37,FALSE) -> 0 | AB126: =VLOOKUP(AB$115&$U126,GTYF!$C:$AQ,37,FALSE) -> 0 | AC126: =VLOOKUP(AC$115&$U126,GTYF!$C:$AQ,37,FALSE) -> 0 | AD126: =VLOOKUP(AD$115&$U126,GTYF!$C:$AQ,37,FALSE) -> 1675.148 | AE126: =VLOOKUP(AE$115&$U126,GTYF!$C:$AQ,37,FALSE) -> 0 | AF126: =VLOOKUP(AF$115&$U126,GTYF!$C:$AQ,37,FALSE) -> 42439.532 | AG126: =VLOOKUP(AG$115&$U126,GTYF!$C:$AQ,37,FALSE) -> 0 | AH126: =VLOOKUP(AH$115&$U126,GTYF!$C:$AQ,37,FALSE) -> 0 | AI126: =VLOOKUP(AI$115&$U126,GTYF!$C:$AQ,37,FALSE) -> 0 | AJ126: =VLOOKUP(AJ$115&$U126,GTYF!$C:$AQ,37,FALSE) -> 1675.148 | AK126: =VLOOKUP(AK$115&$U126,GTYF!$C:$AQ,37,FALSE) -> 0 | AM126: =VLOOKUP(AM$115&$U126,GTYF!$C:$AQ,37,FALSE) -> 0 | AN126: =VLOOKUP(AN$115&$U126,GTYF!$C:$AQ,37,FALSE) -> 0 | AO126: =VLOOKUP(AO$115&$U126,GTYF!$C:$AQ,37,FALSE) -> 0 | AP126: =VLOOKUP(AP$115&$U126,GTYF!$C:$AQ,37,FALSE) -> 0 | AQ126: =VLOOKUP(AQ$115&$U126,GTYF!$C:$AQ,37,FALSE) -> 0 | AR126: =VLOOKUP(AR$115&$U126,GTYF!$C:$AQ,37,FALSE) -> 0 | AS126: =VLOOKUP(AS$115&$U126,GTYF!$C:$AQ,37,FALSE) -> 0 | AT126: =VLOOKUP(AT$115&$U126,GTYF!$C:$AQ,37,FALSE) -> 0 | AU126: =VLOOKUP(AU$115&$U126,GTYF!$C:$AQ,37,FALSE) -> 0 | AV126: =VLOOKUP(AV$115&$U126,GTYF!$C:$AQ,37,FALSE) -> 0 | AW126: =VLOOKUP(AW$115&$U126,GTYF!$C:$AQ,37,FALSE) -> 0 | AX126: =VLOOKUP(AX$115&$U126,GTYF!$C:$AQ,37,FALSE) -> 0 | AY126: =VLOOKUP(AY$115&$U126,GTYF!$C:$AQ,37,FALSE) -> 0 | AZ126: 0 | BA126: =VLOOKUP(BA$115&$U126,GTYF!$C:$AQ,37,FALSE) -> 0
B127: Prucheraies | E127: - | F127: - | G127: - | H127: - | I127: - | J127: - | M127: - | N127: - | S127: Tableau 9. | T127: Prucheraies | U127: (FCTYF_PRU) | V127: =VLOOKUP(V$115&$U127,GTYF!$C:$AQ,37,FALSE) -> 0 | W127: =VLOOKUP(W$115&$U127,GTYF!$C:$AQ,6,FALSE) -> 0 | X127: =VLOOKUP(X$115&$U127,GTYF!$C:$AQ,37,FALSE) -> 0 | Y127: =VLOOKUP(Y$115&$U127,GTYF!$C:$AQ,37,FALSE) -> 0 | Z127: =VLOOKUP(Z$115&$U127,GTYF!$C:$AQ,37,FALSE) -> 0 | AA127: =VLOOKUP(AA$115&$U127,GTYF!$C:$AQ,37,FALSE) -> 0 | AB127: =VLOOKUP(AB$115&$U127,GTYF!$C:$AQ,37,FALSE) -> 0 | AC127: =VLOOKUP(AC$115&$U127,GTYF!$C:$AQ,37,FALSE) -> 0 | AD127: =VLOOKUP(AD$115&$U127,GTYF!$C:$AQ,37,FALSE) -> 0 | AE127: =VLOOKUP(AE$115&$U127,GTYF!$C:$AQ,37,FALSE) -> 0 | AF127: =VLOOKUP(AF$115&$U127,GTYF!$C:$AQ,37,FALSE) -> 0 | AG127: =VLOOKUP(AG$115&$U127,GTYF!$C:$AQ,37,FALSE) -> 0 | AH127: =VLOOKUP(AH$115&$U127,GTYF!$C:$AQ,37,FALSE) -> 0 | AI127: =VLOOKUP(AI$115&$U127,GTYF!$C:$AQ,37,FALSE) -> 0 | AJ127: =VLOOKUP(AJ$115&$U127,GTYF!$C:$AQ,37,FALSE) -> 0 | AK127: =VLOOKUP(AK$115&$U127,GTYF!$C:$AQ,37,FALSE) -> 0 | AM127: =VLOOKUP(AM$115&$U127,GTYF!$C:$AQ,37,FALSE) -> 0 | AN127: =VLOOKUP(AN$115&$U127,GTYF!$C:$AQ,37,FALSE) -> 0 | AO127: =VLOOKUP(AO$115&$U127,GTYF!$C:$AQ,37,FALSE) -> 0 | AP127: =VLOOKUP(AP$115&$U127,GTYF!$C:$AQ,37,FALSE) -> 0 | AQ127: =VLOOKUP(AQ$115&$U127,GTYF!$C:$AQ,37,FALSE) -> 0 | AR127: =VLOOKUP(AR$115&$U127,GTYF!$C:$AQ,37,FALSE) -> 0 | AS127: =VLOOKUP(AS$115&$U127,GTYF!$C:$AQ,37,FALSE) -> 0 | AT127: =VLOOKUP(AT$115&$U127,GTYF!$C:$AQ,37,FALSE) -> 0 | AU127: =VLOOKUP(AU$115&$U127,GTYF!$C:$AQ,37,FALSE) -> 0 | AV127: =VLOOKUP(AV$115&$U127,GTYF!$C:$AQ,37,FALSE) -> 0 | AW127: =VLOOKUP(AW$115&$U127,GTYF!$C:$AQ,37,FALSE) -> 0 | AX127: =VLOOKUP(AX$115&$U127,GTYF!$C:$AQ,37,FALSE) -> 0 | AY127: =VLOOKUP(AY$115&$U127,GTYF!$C:$AQ,37,FALSE) -> 0 | AZ127: 0 | BA127: =VLOOKUP(BA$115&$U127,GTYF!$C:$AQ,37,FALSE) -> 0
B128: Résineux à feuillus | E128: - | F128: - | G128: - | H128: 81.89579324 | I128: 132.2937754 | J128: 128.9692407 | M128: 81.89579324 | N128: 132.2937754 | S128: Tableau 9. | T128: Résineux à feuillus | U128: (FCTYF_RF) | V128: =VLOOKUP(V$115&$U128,GTYF!$C:$AQ,37,FALSE) -> 4043.02 | W128: =VLOOKUP(W$115&$U128,GTYF!$C:$AQ,6,FALSE) -> 107461.6 | X128: =VLOOKUP(X$115&$U128,GTYF!$C:$AQ,37,FALSE) -> 346779.752 | Y128: =VLOOKUP(Y$115&$U128,GTYF!$C:$AQ,37,FALSE) -> 2688856.274 | Z128: =VLOOKUP(Z$115&$U128,GTYF!$C:$AQ,37,FALSE) -> 385891.374 | AA128: =VLOOKUP(AA$115&$U128,GTYF!$C:$AQ,37,FALSE) -> 148975.006 | AB128: =VLOOKUP(AB$115&$U128,GTYF!$C:$AQ,37,FALSE) -> 0 | AC128: =VLOOKUP(AC$115&$U128,GTYF!$C:$AQ,37,FALSE) -> 0 | AD128: =VLOOKUP(AD$115&$U128,GTYF!$C:$AQ,37,FALSE) -> 4043.02 | AE128: =VLOOKUP(AE$115&$U128,GTYF!$C:$AQ,37,FALSE) -> 0 | AF128: =VLOOKUP(AF$115&$U128,GTYF!$C:$AQ,37,FALSE) -> 53052.206 | AG128: =VLOOKUP(AG$115&$U128,GTYF!$C:$AQ,37,FALSE) -> 13169.06 | AH128: =VLOOKUP(AH$115&$U128,GTYF!$C:$AQ,37,FALSE) -> 0 | AI128: =VLOOKUP(AI$115&$U128,GTYF!$C:$AQ,37,FALSE) -> 0 | AJ128: =VLOOKUP(AJ$115&$U128,GTYF!$C:$AQ,37,FALSE) -> 4043.02 | AK128: =VLOOKUP(AK$115&$U128,GTYF!$C:$AQ,37,FALSE) -> 0 | AM128: =VLOOKUP(AM$115&$U128,GTYF!$C:$AQ,37,FALSE) -> 0 | AN128: =VLOOKUP(AN$115&$U128,GTYF!$C:$AQ,37,FALSE) -> 0 | AO128: =VLOOKUP(AO$115&$U128,GTYF!$C:$AQ,37,FALSE) -> 0 | AP128: =VLOOKUP(AP$115&$U128,GTYF!$C:$AQ,37,FALSE) -> 0 | AQ128: =VLOOKUP(AQ$115&$U128,GTYF!$C:$AQ,37,FALSE) -> 0 | AR128: =VLOOKUP(AR$115&$U128,GTYF!$C:$AQ,37,FALSE) -> 0 | AS128: =VLOOKUP(AS$115&$U128,GTYF!$C:$AQ,37,FALSE) -> 0 | AT128: =VLOOKUP(AT$115&$U128,GTYF!$C:$AQ,37,FALSE) -> 0 | AU128: =VLOOKUP(AU$115&$U128,GTYF!$C:$AQ,37,FALSE) -> 0 | AV128: =VLOOKUP(AV$115&$U128,GTYF!$C:$AQ,37,FALSE) -> 0 | AW128: =VLOOKUP(AW$115&$U128,GTYF!$C:$AQ,37,FALSE) -> 0 | AX128: =VLOOKUP(AX$115&$U128,GTYF!$C:$AQ,37,FALSE) -> 0 | AY128: =VLOOKUP(AY$115&$U128,GTYF!$C:$AQ,37,FALSE) -> 0 | AZ128: 0 | BA128: =VLOOKUP(BA$115&$U128,GTYF!$C:$AQ,37,FALSE) -> 0
B129: Sapinières | E129: - | F129: - | G129: - | H129: 110.5173815 | I129: 118.6012005 | J129: 109.006403 | M129: =IFERROR(($AF129+$AG129+$AH129+$AI129)/$AJ129*5,"-") -> 110.5173815 | N129: 118.6012005 | S129: Tableau 9. | T129: Sapinières | U129: (FCTYF_SAB) | V129: =VLOOKUP(V$115&$U129,GTYF!$C:$AQ,37,FALSE) -> 10516.418 | W129: =VLOOKUP(W$115&$U129,GTYF!$C:$AQ,6,FALSE) -> 235884.4 | X129: =VLOOKUP(X$115&$U129,GTYF!$C:$AQ,37,FALSE) -> 1148985.092 | Y129: =VLOOKUP(Y$115&$U129,GTYF!$C:$AQ,37,FALSE) -> 10540528.45 | Z129: =VLOOKUP(Z$115&$U129,GTYF!$C:$AQ,37,FALSE) -> 1247259.8 | AA129: =VLOOKUP(AA$115&$U129,GTYF!$C:$AQ,37,FALSE) -> 0 | AB129: =VLOOKUP(AB$115&$U129,GTYF!$C:$AQ,37,FALSE) -> 0 | AC129: =VLOOKUP(AC$115&$U129,GTYF!$C:$AQ,37,FALSE) -> 0 | AD129: =VLOOKUP(AD$115&$U129,GTYF!$C:$AQ,37,FALSE) -> 10516.418 | AE129: =VLOOKUP(AE$115&$U129,GTYF!$C:$AQ,37,FALSE) -> 0 | AF129: =VLOOKUP(AF$115&$U129,GTYF!$C:$AQ,37,FALSE) -> 232449.396 | AG129: =VLOOKUP(AG$115&$U129,GTYF!$C:$AQ,37,FALSE) -> 0 | AH129: =VLOOKUP(AH$115&$U129,GTYF!$C:$AQ,37,FALSE) -> 0 | AI129: =VLOOKUP(AI$115&$U129,GTYF!$C:$AQ,37,FALSE) -> 0 | AJ129: =VLOOKUP(AJ$115&$U129,GTYF!$C:$AQ,37,FALSE) -> 10516.418 | AK129: =VLOOKUP(AK$115&$U129,GTYF!$C:$AQ,37,FALSE) -> 0 | AM129: =VLOOKUP(AM$115&$U129,GTYF!$C:$AQ,37,FALSE) -> 0 | AN129: =VLOOKUP(AN$115&$U129,GTYF!$C:$AQ,37,FALSE) -> 0 | AO129: =VLOOKUP(AO$115&$U129,GTYF!$C:$AQ,37,FALSE) -> 0 | AP129: =VLOOKUP(AP$115&$U129,GTYF!$C:$AQ,37,FALSE) -> 0 | AQ129: =VLOOKUP(AQ$115&$U129,GTYF!$C:$AQ,37,FALSE) -> 0 | AR129: =VLOOKUP(AR$115&$U129,GTYF!$C:$AQ,37,FALSE) -> 0 | AS129: =VLOOKUP(AS$115&$U129,GTYF!$C:$AQ,37,FALSE) -> 0 | AT129: =VLOOKUP(AT$115&$U129,GTYF!$C:$AQ,37,FALSE) -> 0 | AU129: =VLOOKUP(AU$115&$U129,GTYF!$C:$AQ,37,FALSE) -> 0 | AV129: =VLOOKUP(AV$115&$U129,GTYF!$C:$AQ,37,FALSE) -> 0 | AW129: =VLOOKUP(AW$115&$U129,GTYF!$C:$AQ,37,FALSE) -> 0 | AX129: =VLOOKUP(AX$115&$U129,GTYF!$C:$AQ,37,FALSE) -> 0 | AY129: =VLOOKUP(AY$115&$U129,GTYF!$C:$AQ,37,FALSE) -> 0 | AZ129: 0 | BA129: =VLOOKUP(BA$115&$U129,GTYF!$C:$AQ,37,FALSE) -> 0
S130: Tableau 9. | T130: Tous les GTYF | V130: =SUM(V116:V129) -> 85594.926 | W130: =SUM(W116:W129) -> 1372916.3 | X130: 7428609.16 | Y130: 71483906.89 | Z130: 7576222.958 | AA130: 922938.134 | AB130: 0 | AC130: 0 | AD130: 82344.926 | AE130: 0 | AF130: 2407892.49 | AG130: 105557.55 | AH130: 0 | AI130: 0 | AJ130: 82344.926 | AK130: 0
L131: Les statistiques portants sur les coupes partielles proviennent d'un Script R et sont disponibles ici:
L132: T:\Donnees\02_Courant\01_CPF\01_UA\0XXXX\70_Determination\72_Rapport\01_Cahier_DET\Tableau_9
B134: Tableau 10. Traitements non commerciaux supportant les possibilités forestières
B135: Traitements non commerciaux | F135: Superficie annuelle moyenne (ha/an) | G135: Superficie antérieure (ha/an) | H135: Écart (ha/an) | X135: Exemple U03772
K138: Le texte en rouge demande à l'analyste de valider la nature exacte du traitement et les superficies - variable selon la vague et l'UA - veuillez ensuite mettre en noir et supprimer la remarque si elle ne s'applique pas (si DEG_1 ne contient pas de regarni)
B139: Ligniculture (essences à croissance rapide) | F139: =ROUND(V139,-1) -> 0 | G139: =IFERROR(ROUND(VLOOKUP(O33,DataLocal!$A:$BH,47,FALSE),-1),0) -> 0 | H139: =F139-G139 -> 0 | S139: =LEFT(B$134,11) -> Tableau 10. | T139: Plantation ligniculture (pins, feuillus) | U139: OSUPPL_PPF | V139: =IFERROR(VLOOKUP(U139,Output!C:AQ,37,FALSE),0)/5 -> 0
B140: Plantation intensive (2 000 plants/ha) | F140: =ROUND(V140,-1) -> 640 | G140: =IFERROR(ROUND(VLOOKUP(O33,DataLocal!$A:$BH,48,FALSE),-1),0) -> 1030 | H140: =F140-G140 -> -390 | S140: Tableau 10. | T140: Plantation intensive | U140: OSUPPL_SEPM_I | V140: =IFERROR(VLOOKUP(U140,Output!C:AQ,37,FALSE),0)/5 -> 637.983
B141: Plantation de base (1 600 plants/ha)* | F141: =ROUND(V141,-1) -> 1880 | G141: =IFERROR(ROUND(VLOOKUP(O33,DataLocal!$A:$BH,49,FALSE),-1),0) -> 1970 | H141: -90 | S141: Tableau 10. | T141: Plantation de base | U141: OSUPPL_SEPM_E | V141: =IFERROR(VLOOKUP(U141,Output!C:AQ,37,FALSE),0)/5 -> 1880.4705
B142: Regarni | F142: =ROUND(V142,-1) -> 4400 | G142: =IFERROR(ROUND(VLOOKUP(O33,DataLocal!$A:$BH,50,FALSE),-1),0) -> 180 | H142: 4220 | S142: Tableau 10. | T142: Regarni | U142: OSUPREG_2 | V142: =IFERROR(VLOOKUP(U142,Output!C:AQ,37,FALSE),0)/5 -> 4400
B143: % des plantations dans les coupes totales | F143: =IFERROR(SUM(F139:F141)/G92,0) -> 0.1543172076 | G143: =IFERROR(SUM(G139:G141)/H92,0) -> 0.1988071571 | H143: -0.04448994946 | S143: Tableau 10.
B144: Total des travaux de reboisement | F144: =ROUND(SUM(F139:F142),-1) -> 6920 | G144: =ROUND(SUM(G139:G142),-1) -> 3180 | H144: 3740 | S144: Tableau 10.
B145: Nettoiement (régénération naturelle et plantation) | F145: =ROUND(V145,-1) -> 2320 | G145: =IFERROR(ROUND(VLOOKUP(O33,DataLocal!$A:$BH,51,FALSE),-1),0) -> 990 | H145: 1330 | S145: Tableau 10. | T145: Nettoiement | U145: OSUPREALNET | V145: =IFERROR(VLOOKUP(U145,Output!C:AQ,37,FALSE),0)/5 -> 2319.6895
B146: Éclaircie précommerciale | F146: =ROUND(V146,-1) -> 330 | G146: =IFERROR(ROUND(VLOOKUP(O33,DataLocal!$A:$BH,52,FALSE),-1),0) -> 0 | H146: 330 | S146: Tableau 10. | T146: Éclaircie précommerciale de la régénération naturelle | U146: OSUPREALEPC | V146: =IFERROR(VLOOKUP(U146,Output!C:AQ,37,FALSE),0)/5 -> 331.6145 | X146: Exemple U09751
B147: Dégagement de la régénération naturelle (et regarni) | F147: =ROUND(V147,-1) -> 670 | G147: =IFERROR(ROUND(VLOOKUP(O33,DataLocal!$A:$BH,53,FALSE),-1),0) -> 0 | H147: 670 | S147: Tableau 10. | T147: Dégagement de la régénération naturelle | U147: OSUPDEG_2 | V147: =IFERROR(VLOOKUP(U147,Output!C:AQ,37,FALSE),0)/5 -> 668.647
B148: Dégagement des plantations | F148: =ROUND(V148,-1) -> 1250 | G148: =IFERROR(ROUND(VLOOKUP(O33,DataLocal!$A:$BH,54,FALSE),-1),0) -> 1490 | H148: -240 | S148: Tableau 10. | T148: Dégagement de plantation | U148: OSUPDEG_1 | V148: =IFERROR(VLOOKUP(U148,Output!C:AQ,37,FALSE),0)/5 -> 1248.8415
B149: Élagage | F149: =ROUND(V149,-1) -> 0 | G149: =IFERROR(ROUND(VLOOKUP(O33,DataLocal!$A:$BN,66,FALSE),-1),0) -> 0 | H149: 0 | S149: Tableau 10. | T149: Élagage (plantation) | U149: OSUPELAG | V149: =IFERROR(VLOOKUP(U149,Output!C:AQ,37,FALSE),0)/5 -> 0
B150: Total des travaux d'éducation | F150: =SUM(F145:F149) -> 4570 | G150: =SUM(G145:G149) -> 2480 | H150: 2090 | S150: Tableau 10. | U150: OSUPSCA_LIGN | V150: =IFERROR(VLOOKUP(U150,Output!C:AQ,37,FALSE),0)/5 -> 0
B151: Scarifiage partiel | F151: =ROUND(V152,-1) -> 1320 | G151: =IFERROR(ROUND(VLOOKUP(O33,DataLocal!$A:$BH,58,FALSE),-1),0) -> 210 | H151: 1110 | S151: Tableau 10. | U151: OSUPSCA_LRD | V151: =IFERROR(VLOOKUP(U151,Output!C:AQ,37,FALSE),0)/5 -> 0
B152: Scarifiage en plein | F152: =ROUND(V153+V150+V151,-1) -> 2520 | G152: =IFERROR(ROUND(VLOOKUP(O33,DataLocal!$A:$BH,59,FALSE),-1),0) -> 3130 | H152: -610 | S152: Tableau 10. | U152: OSUPSCA_PART | V152: =IFERROR(VLOOKUP(U152,Output!C:AQ,37,FALSE),0)/5 -> 1318.647
B153: Total de la préparation de terrain | F153: =IFERROR(SUM(F151:F152),0) -> 3840 | G153: =IFERROR(SUM(G151:G152),0) -> 3340 | H153: 500 | S153: Tableau 10. | U153: OSUPSCA_REG | V153: =IFERROR(VLOOKUP(U153,Output!C:AQ,37,FALSE),0)/5 -> 2518.4535
B154: Total des travaux sans récolte | F154: =F153+F150+F144 -> 15330 | G154: =G153+G150+G144 -> 9000 | H154: 6330
B155: * Comprend 700 ha/an de regarni avec rendement équivalent à une plantation de base
B160: Tableau 13 : Variation du volume sur pied à court, moyen et long terme | L160: % du volume total | U160: colonne | V160: 37 | W160: 38 | X160: 39 | Y160: 40 | AF160: 37 | AG160: 38 | AH160: 39 | AI160: 40
B161: Essences | C161: Volume moyen sur pied (m3) | G161: Volume moyen sur pied (%) | V161: Volume moyen sur pied (m3) | Z161: Volume moyen sur pied (%) | AF161: Volume dans courbe SNAT
C162: 2023 à 2048 | D162: 2048 à 2073 | E162: 2073 à 2118 | F162: 2118 à 2168 | G162: =C162 -> 2023 à 2048 | H162: =D162 -> 2048 à 2073 | I162: =E162 -> 2073 à 2118 | J162: =F162 -> 2118 à 2168 | L162: 2023 à 2048 | T162: Légende | U162: Name | V162: p 2 à 6 | W162: p 7 à 11 | X162: p 12 à 20 | Y162: p 21 à 30 | Z162: p 2 à 6 | AA162: p 7 à 11 | AB162: p 12 à 20 | AC162: p 21 à 30 | AE162: Name | AF162: p 2 à 6 | AG162: p 7 à 11 | AH162: p 12 à 20 | AI162: p 21 à 30
B163: =T163 -> Sapin baumier | C163: =ROUND(V163-AF163,-2) -> 13445300 | D163: =ROUND(W163-AG163,-2) -> 14209600 | E163: 16581500 | F163: 16201400 | G163: =C163/C$177 -> 0.1922185052 | H163: =D163/D$177 -> 0.2096732782 | I163: =E163/E$177 -> 0.1992233635 | J163: =F163/F$177 -> 0.1833276756 | L163: =C163/C$177 -> 0.1922185052 | S163: =LEFT(B$160,11) -> Tableau 13 | T163: Sapin baumier | U163: OVOLSABPIEDINC | V163: =VLOOKUP($U163,Output!$C:$AQ,V$160,FALSE) -> 13541270.08 | W163: =VLOOKUP($U163,Output!$C:$AQ,W$160,FALSE) -> 14311193.51 | X163: =VLOOKUP($U163,Output!$C:$AQ,X$160,FALSE) -> 16696114.24 | Y163: =VLOOKUP($U163,Output!$C:$AQ,Y$160,FALSE) -> 16317496.04 | Z163: =V163/V$178 -> 0.1854647166 | AA163: =W163/W$178 -> 0.2020012351 | AB163: =X163/X$178 -> 0.1925747881 | AC163: =Y163/Y$178 -> 0.1773765699 | AE163: OVOLSABPIEDSNAT | AF163: =VLOOKUP($AE163,Output!$C:$AQ,AF$160,FALSE) -> 96019.2825 | AG163: =VLOOKUP($AE163,Output!$C:$AQ,AG$160,FALSE) -> 101583.374 | AH163: =VLOOKUP($AE163,Output!$C:$AQ,AH$160,FALSE) -> 114582.4 | AI163: =VLOOKUP($AE163,Output!$C:$AQ,AI$160,FALSE) -> 116099.968
B164: =T164 -> Épinettes | C164: =ROUND(V164-AF164,-2) -> 42476500 | D164: 35356200 | E164: 45141600 | F164: 48697100 | G164: 0.607258249 | H164: 0.521707181 | I164: 0.5423671794 | J164: 0.5510342408 | L164: 0.607258249 | S164: Tableau 13 | T164: Épinettes | U164: OVOLgEpxPIEDINC | V164: =VLOOKUP($U164,Output!$C:$AQ,V$160,FALSE) -> 45260162.79 | W164: =VLOOKUP($U164,Output!$C:$AQ,W$160,FALSE) -> 38149490.43 | X164: =VLOOKUP($U164,Output!$C:$AQ,X$160,FALSE) -> 48280242.78 | Y164: =VLOOKUP($U164,Output!$C:$AQ,Y$160,FALSE) -> 51930745.58 | Z164: 0.6198948264 | AA164: 0.5384766953 | AB164: 0.5568695437 | AC164: 0.5645043517 | AE164: OVOLgEpxPIEDSNAT | AF164: =VLOOKUP($AE164,Output!$C:$AQ,AF$160,FALSE) -> 2783705.672 | AG164: =VLOOKUP($AE164,Output!$C:$AQ,AG$160,FALSE) -> 2793283.512 | AH164: =VLOOKUP($AE164,Output!$C:$AQ,AH$160,FALSE) -> 3138654.278 | AI164: =VLOOKUP($AE164,Output!$C:$AQ,AI$160,FALSE) -> 3233671.715
B165: =T165 -> Pin gris | C165: 4029000 | D165: 7670100 | E165: 10461500 | F165: 11675800 | G165: 0.05759993138 | H165: 0.1131780635 | I165: 0.1256928033 | J165: 0.1321180438 | L165: 0.05759993138 | S165: Tableau 13 | T165: Pin gris | U165: OVOLgPgPIEDINC | V165: =VLOOKUP($U165,Output!$C:$AQ,V$160,FALSE) -> 4146978.93 | W165: =VLOOKUP($U165,Output!$C:$AQ,W$160,FALSE) -> 7784531.95 | X165: =VLOOKUP($U165,Output!$C:$AQ,X$160,FALSE) -> 10593601.25 | Y165: =VLOOKUP($U165,Output!$C:$AQ,Y$160,FALSE) -> 11838862.94 | Z165: 0.05679808965 | AA165: 0.1098779824 | AB165: 0.122187743 | AC165: 0.1286923492 | AE165: OVOLgPgPIEDSNAT | AF165: =VLOOKUP($AE165,Output!$C:$AQ,AF$160,FALSE) -> 117933.175 | AG165: =VLOOKUP($AE165,Output!$C:$AQ,AG$160,FALSE) -> 114428.238 | AH165: =VLOOKUP($AE165,Output!$C:$AQ,AH$160,FALSE) -> 132080.7989 | AI165: =VLOOKUP($AE165,Output!$C:$AQ,AI$160,FALSE) -> 163027.791
B166: =T166 -> Mélèzes | C166: 426300 | D166: 1517800 | E166: 1460600 | F166: 1244300 | G166: 0.006094527363 | H166: 0.02239627447 | I166: 0.01754881312 | J166: 0.01407993301 | L166: 0.006094527363 | S166: Tableau 13 | T166: Mélèzes | U166: OVOLgMlPIEDINC | V166: =VLOOKUP($U166,Output!$C:$AQ,V$160,FALSE) -> 484539.56 | W166: =VLOOKUP($U166,Output!$C:$AQ,W$160,FALSE) -> 1572859.326 | X166: =VLOOKUP($U166,Output!$C:$AQ,X$160,FALSE) -> 1528010.829 | Y166: =VLOOKUP($U166,Output!$C:$AQ,Y$160,FALSE) -> 1334541.438 | Z166: 0.006636378393 | AA166: 0.02220077077 | AB166: 0.01762424222 | AC166: 0.01450690609 | AE166: OVOLGMlPIEDSNAT | AF166: =VLOOKUP($AE166,Output!$C:$AQ,AF$160,FALSE) -> 58196.1675 | AG166: =VLOOKUP($AE166,Output!$C:$AQ,AG$160,FALSE) -> 55068.056 | AH166: =VLOOKUP($AE166,Output!$C:$AQ,AH$160,FALSE) -> 67444.74667 | AI166: =VLOOKUP($AE166,Output!$C:$AQ,AI$160,FALSE) -> 90256.514
B167: Thuya | C167: =ROUND(V167-AF167,-2) -> 1500 | D167: 1300 | E167: 1100 | F167: 900 | G167: 2.144450163e-05 | H167: 1.918247253e-05 | I167: 1.321627717e-05 | J167: 1.018399077e-05 | L167: 2.144450163e-05 | S167: Tableau 13 | T167: Thuya | U167: OVOLTHOPIEDINC | V167: =VLOOKUP($U167,Output!$C:$AQ,V$160,FALSE) -> 1469.195 | W167: =VLOOKUP($U167,Output!$C:$AQ,W$160,FALSE) -> 1334.224 | X167: =VLOOKUP($U167,Output!$C:$AQ,X$160,FALSE) -> 1064.751111 | Y167: =VLOOKUP($U167,Output!$C:$AQ,Y$160,FALSE) -> 934.614 | Z167: 2.012247246e-05 | AA167: 1.883245417e-05 | AB167: 1.228095451e-05 | AC167: 1.015956278e-05 | AE167: OVOLTHOPIEDSNAT | AF167: =VLOOKUP($AE167,Output!$C:$AQ,AF$160,FALSE) -> 0 | AG167: =VLOOKUP($AE167,Output!$C:$AQ,AG$160,FALSE) -> 0 | AH167: =VLOOKUP($AE167,Output!$C:$AQ,AH$160,FALSE) -> 0 | AI167: =VLOOKUP($AE167,Output!$C:$AQ,AI$160,FALSE) -> 0
B168: Pruche | C168: 0 | D168: 0 | E168: 0 | F168: 0 | G168: 0 | H168: 0 | I168: 0 | J168: 0 | L168: 0 | S168: Tableau 13 | T168: Pruche | U168: OVOLPRUPIEDINC | V168: =VLOOKUP($U168,Output!$C:$AQ,V$160,FALSE) -> 0 | W168: =VLOOKUP($U168,Output!$C:$AQ,W$160,FALSE) -> 0 | X168: =VLOOKUP($U168,Output!$C:$AQ,X$160,FALSE) -> 0 | Y168: =VLOOKUP($U168,Output!$C:$AQ,Y$160,FALSE) -> 0 | Z168: 0 | AA168: 0 | AB168: 0 | AC168: 0 | AE168: OVOLPRUPIEDSNAT | AF168: =VLOOKUP($AE168,Output!$C:$AQ,AF$160,FALSE) -> 0 | AG168: =VLOOKUP($AE168,Output!$C:$AQ,AG$160,FALSE) -> 0 | AH168: =VLOOKUP($AE168,Output!$C:$AQ,AH$160,FALSE) -> 0 | AI168: =VLOOKUP($AE168,Output!$C:$AQ,AI$160,FALSE) -> 0
B169: Pins blanc et rouge | C169: 20900 | D169: 23000 | E169: 11700 | F169: 5400 | G169: 0.0002987933894 | H169: 0.0003393822063 | I169: 0.0001405731299 | J169: 6.11039446e-05 | L169: 0.0002987933894 | S169: Tableau 13 | T169: Pins blanc et rouge | U169: OVOLGPINSPIEDINC | V169: =VLOOKUP($U169,Output!$C:$AQ,V$160,FALSE) -> 20884.1725 | W169: =VLOOKUP($U169,Output!$C:$AQ,W$160,FALSE) -> 23038.842 | X169: =VLOOKUP($U169,Output!$C:$AQ,X$160,FALSE) -> 11662.87111 | Y169: =VLOOKUP($U169,Output!$C:$AQ,Y$160,FALSE) -> 5350.063 | Z169: 0.0002860349961 | AA169: 0.0003251912244 | AB169: 0.0001345208172 | AC169: 5.815695137e-05 | AE169: OVOLGPINSCPIEDSNAT | AF169: =VLOOKUP($AE169,Output!$C:$AQ,AF$160,FALSE) -> 0 | AG169: =VLOOKUP($AE169,Output!$C:$AQ,AG$160,FALSE) -> 0 | AH169: =VLOOKUP($AE169,Output!$C:$AQ,AH$160,FALSE) -> 0 | AI169: =VLOOKUP($AE169,Output!$C:$AQ,AI$160,FALSE) -> 0
B170: Peupliers | C170: 2572600 | D170: 2318000 | E170: 2558700 | F170: 2519600 | G170: 0.03677874993 | H170: 0.0342038241 | I170: 0.03074226217 | J170: 0.02851064793 | L170: 0.03677874993 | S170: Tableau 13 | T170: Peupliers | U170: OVOLGPEUPIEDINC | V170: =VLOOKUP($U170,Output!$C:$AQ,V$160,FALSE) -> 2574646.953 | W170: =VLOOKUP($U170,Output!$C:$AQ,W$160,FALSE) -> 2320344.542 | X170: =VLOOKUP($U170,Output!$C:$AQ,X$160,FALSE) -> 2561691.294 | Y170: =VLOOKUP($U170,Output!$C:$AQ,Y$160,FALSE) -> 2522532.633 | Z170: 0.03526302663 | AA170: 0.03275145872 | AB170: 0.02954682454 | AC170: 0.02742076265 | AE170: OVOLPEUPIEDSNAT | AF170: =VLOOKUP($AE170,Output!$C:$AQ,AF$160,FALSE) -> 2035.2625 | AG170: =VLOOKUP($AE170,Output!$C:$AQ,AG$160,FALSE) -> 2356.318 | AH170: =VLOOKUP($AE170,Output!$C:$AQ,AH$160,FALSE) -> 3000.8 | AI170: =VLOOKUP($AE170,Output!$C:$AQ,AI$160,FALSE) -> 2890.907
B171: Bouleau à papier | C171: 6668900 | D171: 6482600 | E171: 6914800 | F171: 7895100 | G171: 0.09534082461 | H171: 0.09565561264 | I171: 0.08307992123 | J171: 0.08933736167 | L171: 0.09534082461 | S171: Tableau 13 | T171: Bouleau à papier | U171: OVOLgBpPIEDINC | V171: =VLOOKUP($U171,Output!$C:$AQ,V$160,FALSE) -> 6675582.703 | W171: =VLOOKUP($U171,Output!$C:$AQ,W$160,FALSE) -> 6492702.344 | X171: =VLOOKUP($U171,Output!$C:$AQ,X$160,FALSE) -> 6927629.052 | Y171: =VLOOKUP($U171,Output!$C:$AQ,Y$160,FALSE) -> 7907941.667 | Z171: 0.09143049705 | AA171: 0.09164392138 | AB171: 0.079904023 | AC171: 0.08596193708 | AE171: OVOLgBpPIEDSNAT | AF171: =VLOOKUP($AE171,Output!$C:$AQ,AF$160,FALSE) -> 6718.3475 | AG171: =VLOOKUP($AE171,Output!$C:$AQ,AG$160,FALSE) -> 10146.542 | AH171: =VLOOKUP($AE171,Output!$C:$AQ,AH$160,FALSE) -> 12789.04778 | AI171: =VLOOKUP($AE171,Output!$C:$AQ,AI$160,FALSE) -> 12842.972
B172: Bouleau jaune | C172: 171700 | D172: 76300 | E172: 14700 | F172: 12800 | G172: 0.00245468062 | H172: 0.00112586358 | I172: 0.0001766175221 | J172: 0.0001448389798 | L172: 0.00245468062 | S172: Tableau 13 | T172: Bouleau jaune | U172: OVOLBOJPIEDINC | V172: =VLOOKUP($U172,Output!$C:$AQ,V$160,FALSE) -> 171652.955 | W172: =VLOOKUP($U172,Output!$C:$AQ,W$160,FALSE) -> 76323.448 | X172: =VLOOKUP($U172,Output!$C:$AQ,X$160,FALSE) -> 14746.43556 | Y172: =VLOOKUP($U172,Output!$C:$AQ,Y$160,FALSE) -> 13476.575 | Z172: 0.002351003005 | AA172: 0.001077298742 | AB172: 0.0001700869831 | AC172: 0.0001464948201 | AE172: OVOLBOJPIEDSNAT | AF172: =VLOOKUP($AE172,Output!$C:$AQ,AF$160,FALSE) -> 0 | AG172: =VLOOKUP($AE172,Output!$C:$AQ,AG$160,FALSE) -> 0 | AH172: =VLOOKUP($AE172,Output!$C:$AQ,AH$160,FALSE) -> 78.98444444 | AI172: =VLOOKUP($AE172,Output!$C:$AQ,AI$160,FALSE) -> 725.753
B173: Érable rouge | C173: 124500 | D173: 107200 | E173: 79900 | F173: 115400 | G173: 0.001779893635 | H173: 0.001581816196 | I173: 0.0009599823142 | J173: 0.001305813927 | L173: 0.001779893635 | S173: Tableau 13 | T173: Érable rouge | U173: OVOLgEroPIEDINC | V173: =VLOOKUP($U173,Output!$C:$AQ,V$160,FALSE) -> 124461.5825 | W173: =VLOOKUP($U173,Output!$C:$AQ,W$160,FALSE) -> 107162.792 | X173: =VLOOKUP($U173,Output!$C:$AQ,X$160,FALSE) -> 79916.85778 | Y173: =VLOOKUP($U173,Output!$C:$AQ,Y$160,FALSE) -> 115413.933 | Z173: 0.001704657834 | AA173: 0.001512593365 | AB173: 0.000921769684 | AC173: 0.001254587561 | AE173: OVOLgEroPIEDSNAT | AF173: =VLOOKUP($AE173,Output!$C:$AQ,AF$160,FALSE) -> 0 | AG173: =VLOOKUP($AE173,Output!$C:$AQ,AG$160,FALSE) -> 0 | AH173: =VLOOKUP($AE173,Output!$C:$AQ,AH$160,FALSE) -> 0 | AI173: =VLOOKUP($AE173,Output!$C:$AQ,AI$160,FALSE) -> 0
B174: Érable à sucre | C174: 0 | D174: 0 | E174: 0 | F174: 0 | G174: 0 | H174: 0 | I174: 0 | J174: 0 | L174: 0 | S174: Tableau 13 | T174: Érable à sucre | U174: OVOLERSPIEDINC | V174: =VLOOKUP($U174,Output!$C:$AQ,V$160,FALSE) -> 0 | W174: =VLOOKUP($U174,Output!$C:$AQ,W$160,FALSE) -> 0 | X174: =VLOOKUP($U174,Output!$C:$AQ,X$160,FALSE) -> 0 | Y174: =VLOOKUP($U174,Output!$C:$AQ,Y$160,FALSE) -> 0 | Z174: 0 | AA174: 0 | AB174: 0 | AC174: 0 | AE174: OVOLERSPIEDSNAT | AF174: =VLOOKUP($AE174,Output!$C:$AQ,AF$160,FALSE) -> 0 | AG174: =VLOOKUP($AE174,Output!$C:$AQ,AG$160,FALSE) -> 0 | AH174: =VLOOKUP($AE174,Output!$C:$AQ,AH$160,FALSE) -> 0 | AI174: =VLOOKUP($AE174,Output!$C:$AQ,AI$160,FALSE) -> 0
B175: Autres feuillus durs | C175: =ROUND(V175-AF175,-2) -> 11000 | D175: 8100 | E175: 4700 | F175: 6200 | G175: 0.0001572596786 | H175: 0.0001195215596 | I175: 5.64695479e-05 | J175: 7.015638084e-05 | L175: 0.0001572596786 | S175: Tableau 13 | T175: Autres feuillus durs | V175: =V178-V176-V174-V173-V172-V171-V170-V169-V168-V167 -> 10999.1375 | W175: =W178-W176-W174-W173-W172-W171-W170-W169-W168-W167 -> 8078.022 | X175: =X178-X176-X174-X173-X172-X171-X170-X169-X168-X167 -> 4697.116667 | Y175: =Y178-Y176-Y174-Y173-Y172-Y171-Y170-Y169-Y168-Y167 -> 6230.211 | Z175: 0.0001506470152 | AA175: 0.0001140205686 | AB175: 5.417705182e-05 | AC175: 6.772445076e-05 | AE175: Autres feuillus durs | AF175: =AF178-AF176-AF174-AF173-AF172-AF171-AF170-AF169-AF168-AF167 -> 3.351487976e-10 | AG175: =AG178-AG176-AG174-AG173-AG172-AG171-AG170-AG169-AG168-AG167 -> -0.00200000046 | AH175: =AH178-AH176-AH174-AH173-AH172-AH171-AH170-AH169-AH168-AH167 -> 0.001111111732 | AI175: =AI178-AI176-AI174-AI173-AI172-AI171-AI170-AI169-AI168-AI167 -> 6.793925422e-10
B176: Autres essences | C176: =IF($L$163<0.0095,C163,0)+IF($L$164<0.0095,C164,0)+IF($L$165<0.0095,C165,0)+IF($L$166<0.0095,C166,0)+IF($L$167<0.0095,C167,0)+IF($L$168<0.0095,C168,0)+IF($L$169<0.0095,C169,0)+IF($L$170<0.0095,C170,0)+IF($L$171<0.0095,C171,0)+IF($L$172<0.0095,C172,0)+IF($L$173<0.0095,C173,0)+IF($L$174<0.0095,C174+0)+IF($L$175<0.0095,C175,0) -> 755900 | D176: =IF($L$163<0.0095,D163,0)+IF($L$164<0.0095,D164,0)+IF($L$165<0.0095,D165,0)+IF($L$166<0.0095,D166,0)+IF($L$167<0.0095,D167,0)+IF($L$168<0.0095,D168,0)+IF($L$169<0.0095,D169,0)+IF($L$170<0.0095,D170,0)+IF($L$171<0.0095,D171,0)+IF($L$172<0.0095,D172,0)+IF($L$173<0.0095,D173,0)+IF($L$174<0.0095,D174+0)+IF($L$175<0.0095,D175,0) -> 1733700 | E176: =IF($L$163<0.0095,E163,0)+IF($L$164<0.0095,E164,0)+IF($L$165<0.0095,E165,0)+IF($L$166<0.0095,E166,0)+IF($L$167<0.0095,E167,0)+IF($L$168<0.0095,E168,0)+IF($L$169<0.0095,E169,0)+IF($L$170<0.0095,E170,0)+IF($L$171<0.0095,E171,0)+IF($L$172<0.0095,E172,0)+IF($L$173<0.0095,E173,0)+IF($L$174<0.0095,E174+0)+IF($L$175<0.0095,E175,0) -> 1572700 | F176: =IF($L$163<0.0095,F163,0)+IF($L$164<0.0095,F164,0)+IF($L$165<0.0095,F165,0)+IF($L$166<0.0095,F166,0)+IF($L$167<0.0095,F167,0)+IF($L$168<0.0095,F168,0)+IF($L$169<0.0095,F169,0)+IF($L$170<0.0095,F170,0)+IF($L$171<0.0095,F171,0)+IF($L$172<0.0095,F172,0)+IF($L$173<0.0095,F173,0)+IF($L$174<0.0095,F174+0)+IF($L$175<0.0095,F175,0) -> 1385000 | G176: 0.01080659919 | H176: 0.02558204048 | I176: 0.01889567191 | J176: 0.01567203024 | L176: 0.01080659919 | S176: Tableau 13 | T176: SEPM | U176: OVOLGSEPMPIEDINC | V176: =VLOOKUP($U176,Output!$C:$AQ,V$160,FALSE) -> 63432951.36 | W176: =VLOOKUP($U176,Output!$C:$AQ,W$160,FALSE) -> 61818075.21 | X176: =VLOOKUP($U176,Output!$C:$AQ,X$160,FALSE) -> 77097969.1 | Y176: =VLOOKUP($U176,Output!$C:$AQ,Y$160,FALSE) -> 81421645.99 | Z176: 0.868794011 | AA176: 0.8725566836 | AB176: 0.889256317 | AC176: 0.8850801769 | AE176: OVOLgSEPMPIEDSNAT | AF176: =VLOOKUP($AE176,Output!$C:$AQ,AF$160,FALSE) -> 3055854.292 | AG176: =VLOOKUP($AE176,Output!$C:$AQ,AG$160,FALSE) -> 3064363.178 | AH176: =VLOOKUP($AE176,Output!$C:$AQ,AH$160,FALSE) -> 3452762.222 | AI176: =VLOOKUP($AE176,Output!$C:$AQ,AI$160,FALSE) -> 3603055.988
B177: Total | C177: =ROUND(V178-AF178,-2) -> 69948000 | D177: =ROUND(W178-AG178,-2) -> 67770200 | E177: =ROUND(X178-AH178,-2) -> 83230700 | F177: =ROUND(Y178-AI178,-2) -> 88374000 | G177: 1 | H177: 1 | I177: 1 | J177: 1 | S177: Tableau 13 | T177: FN - ERS BOJ | U177: OVOLGFNPIEDINC | V177: =VLOOKUP($U177,Output!$C:$AQ,V$160,FALSE) -> 10999.135 | W177: =VLOOKUP($U177,Output!$C:$AQ,W$160,FALSE) -> 8078.022 | X177: =VLOOKUP($U177,Output!$C:$AQ,X$160,FALSE) -> 4697.111111 | Y177: =VLOOKUP($U177,Output!$C:$AQ,Y$160,FALSE) -> 6230.213 | Z177: 0.0001506469809 | AA177: 0.0001140205686 | AB177: 5.417698774e-05 | AC177: 6.77244725e-05 | AE177: OVOLgFnPIEDSNAT | AF177: =VLOOKUP($AE177,Output!$C:$AQ,AF$160,FALSE) -> 0 | AG177: =VLOOKUP($AE177,Output!$C:$AQ,AG$160,FALSE) -> 0 | AH177: =VLOOKUP($AE177,Output!$C:$AQ,AH$160,FALSE) -> 0 | AI177: =VLOOKUP($AE177,Output!$C:$AQ,AI$160,FALSE) -> 0
L178: Masquer les lignes du tableau qui sont en surbrillance | S178: Tableau 13 | T178: TOT sur pied | U178: OVOLTOTPIEDINC | V178: =VLOOKUP($U178,Output!$C:$AQ,V$160,FALSE) -> 73012648.05 | W178: =VLOOKUP($U178,Output!$C:$AQ,W$160,FALSE) -> 70847059.43 | X178: =VLOOKUP($U178,Output!$C:$AQ,X$160,FALSE) -> 86699377.48 | Y178: =VLOOKUP($U178,Output!$C:$AQ,Y$160,FALSE) -> 91993525.68 | Z178: 1 | AA178: 1 | AB178: 1 | AC178: 1 | AE178: OVOLTOTPIEDSNAT | AF178: =VLOOKUP($AE178,Output!$C:$AQ,AF$160,FALSE) -> 3064607.902 | AG178: =VLOOKUP($AE178,Output!$C:$AQ,AG$160,FALSE) -> 3076866.036 | AH178: =VLOOKUP($AE178,Output!$C:$AQ,AH$160,FALSE) -> 3468631.056 | AI178: =VLOOKUP($AE178,Output!$C:$AQ,AI$160,FALSE) -> 3619515.62
L179: Ces volumes sont comptabilisés dans "Autres essences" | S179: Tableau 13 | T179: Érables à sucre et rouge
D182: P2 | E182: P3 | F182: P4 | G182: P5 | H182: P6
B183: Tableau 15 Statistiques sur les compartiments d’organisation spatiale admissibles à la récolte par période
B184: Compartiments d'organisation spatiale | D184: 2023-2028 | E184: 2028-2033 | F184: 2033-2038 | G184: 2038-2043 | H184: 2043-2048
B185: Nombre total | D185: =Cedule_COS!G6 -> 407
B186: En pessière | D186: =COUNTIF(Cedule_COS!$A$10:$A$1009,"<S*") -> 196 | J186: Fait la sommation automatique des COS débutant par la lettre "P" ou par "C", valider et corriger si nécessaire
B187: En sapinière | D187: =COUNTIF(Cedule_COS!$A$10:$A$1009,"S*") -> 211 | J187: Fait la sommation automatique des COS débutant par la lettre "S", valider et corriger si nécessaire
B188: Admissibles à la récolte | D188: =Cedule_COS!C7 -> 93 | E188: =Cedule_COS!D7 -> 113 | F188: =Cedule_COS!E7 -> 73 | G188: =Cedule_COS!F7 -> 81 | H188: =Cedule_COS!G7 -> 62
B189: % de compartiments admissibles | D189: =Cedule_COS!C8 -> 0.2285012285 | E189: =Cedule_COS!D8 -> 0.2776412776 | F189: =Cedule_COS!E8 -> 0.1793611794 | G189: =Cedule_COS!F8 -> 0.199017199 | H189: =Cedule_COS!G8 -> 0.1523341523
B193: Tableau 17 Superficies considérées pour l'analyse de la mortalité d'ici la période 2023-2028 | S193: =LEFT(B$193,11) -> Tableau 17 | T193: Légende | V193: Output | W193: Valeur | X193: Période | Y193: Année
F194: ha | G194: % | S194: =LEFT(B$193,11) -> Tableau 17 | T194: Incluses aux activités de récolte | V194: OSUPINC | W194: =VLOOKUP($V194,Output!$C:$AQ,6,FALSE) -> 1479116.1 | X194: P0 | Y194: 2018
B195: Épidémie sévère confirmée à la photo-interprétation | F195: =W195 -> 640 | G195: =F195/W$194 -> 0.0004326908483 | J195: Faire une sélection sur le thème 8 = "INC" et seulement les années correspondant à l'épidémie actuelle | S195: =LEFT(B$193,11) -> Tableau 17 | T195: Épidémie sévère confirmée à la photo-interprétation | V195: Requete dans la table d'attribut | W195: 640
B196: Défoliation cumulative (cote ≥ 15) | F196: =ROUND(W196,-1) -> 124860 | G196: =F196/W$194 -> 0.08441528018 | J196: Des champs avaient été ajoutés par l'analyste à la fin de table d'attribut de la carte woodstock | S196: =LEFT(B$193,11) -> Tableau 17 | T196: Défoliation cumulative projetée 2023 ≥ 15 | V196: OSUPINC15+ | W196: 124860 | X196: P1 | Y196: 2023
B197: Mortalité projetée | F197: =ROUND(SUM(W197:W198),-1) -> 56910 | G197: =F197/W$194 -> 0.03847568152 | J197: et c'est sur ces derniers que doivent se réaliser les requêtes | S197: =LEFT(B$193,11) -> Tableau 17 | T197: Mortalité projetée (sommation des 2 actions) | V197: osupaTBEmort | W197: =VLOOKUP($V197,Output!$C:$AQ,8,FALSE) -> 44970 | X197: P2 | Y197: 2028
B198: Récupération prévue 2018-2023 | F198: =-ROUND(W199,-1) -> -25490 | G198: =F198/W$194 -> -0.01723326519 | V198: Osupactiontberetard | W198: =VLOOKUP($V198,Output!$C:$AQ,8,FALSE) -> 11940 | X198: P2 | Y198: 2028
S199: =LEFT(B$193,11) -> Tableau 17 | T199: Récolte prévue à court terme (récupération) | V199: osuprealregapre_15+ | W199: =VLOOKUP($V199,Output!$C:$AQ,7,FALSE) -> 25490 | X199: P1 | Y199: 2023

Sheet Figures
B2: Figure 2. Répartition du volume de bois marchand sur pied en début de calcul (m3). | N2: Volume sur pied en P0 | S2: Source: CahierDetermination_2018-2023 | V2: Volume sur pied en P0 - volume en SNAT | Z2: Volume dans courbe SNAT
L3: Conserver les GTYF même s'ils sont absents de l'UA | S3: Intrants | T3: Légende | U3: Name | V3: PERIOD0 | W3: % | X3: PERIOD0 | Z3: Name | AB3: PERIOD0
N4: Total | O4: =V19 -> 89103900 | S4: =LEFT(B$2,10) -> Figure 2. | T4: Autres feuillus durs | V4: =ROUND(V19-V17-V11-V12-V10-V8-V9-V6-V5-V7,-2) -> 12300 | W4: =IFERROR(V4/$V$19,0) -> 0.0001380410958 | X4: =X19-X17-X11-X12-X10-X8-X9-X6-X5-X7 -> 12243.51 | Z4: Autres feuillus durs | AB4: =ROUND(AB19-AB17-AB11-AB12-AB10-AB8-AB9-AB6-AB5-AB7,-2) -> 0
N5: % R | O5: =(V17+V12+V11+V10)/V19 -> 0.8825696743 | S5: Figure 2. | T5: Érable à sucre | U5: OVOLERSPIEDINC | V5: =ROUND(X5-AB5,-2) -> 0 | W5: 0 | X5: =VLOOKUP(U5,Output!$C:$AQ,6,FALSE) -> 0 | Z5: OVOLERSPIEDSNAT | AB5: =VLOOKUP(Z5,Output!$C:$AQ,6,FALSE) -> 0
N6: %SEPM | O6: =V17/V19 -> 0.8822992035 | S6: Figure 2. | T6: Érable rouge | U6: OVOLgEroPIEDINC | V6: 146900 | W6: 0.001648637153 | X6: =VLOOKUP(U6,Output!$C:$AQ,6,FALSE) -> 146919.92 | Z6: OVOLgEroPIEDSNAT | AB6: =VLOOKUP(Z6,Output!$C:$AQ,6,FALSE) -> 0
N7: % Fi | O7: =W21 -> 0 | P7: =O7*O4 -> 0 | S7: Figure 2. | T7: Bouleau jaune | U7: OVOLBOJPIEDINC | V7: 200500 | W7: 0.002250182091 | X7: =VLOOKUP(U7,Output!$C:$AQ,6,FALSE) -> 200468.56 | Z7: OVOLBOJPIEDSNAT | AB7: =VLOOKUP(Z7,Output!$C:$AQ,6,FALSE) -> 0
N8: % FT | O8: =W22 -> 0 | S8: Figure 2. | T8: Bouleau à papier | U8: OVOLgBpPIEDINC | V8: 7485800 | W8: 0.08401203539 | X8: =VLOOKUP(U8,Output!$C:$AQ,6,FALSE) -> 7490695.58 | Z8: OVOLgBpPIEDSNAT | AB8: =VLOOKUP(Z8,Output!$C:$AQ,6,FALSE) -> 4847.54
N9: %Sapin | O9: =V16/V17 -> 0.245545771 | S9: Figure 2. | T9: Peupliers | U9: OVOLGPEUPIEDINC | V9: 2618000 | W9: 0.02938142999 | X9: =VLOOKUP(U9,Output!$C:$AQ,6,FALSE) -> 2619682.71 | Z9: OVOLPEUPIEDSNAT | AB9: =VLOOKUP(Z9,Output!$C:$AQ,6,FALSE) -> 1653.51
N10: %ERR | O10: =IFERROR(V6/(V5+V6),0) -> 1 | S10: Figure 2. | T10: Pins blanc et rouge | U10: OVOLGPINSPIEDINC | V10: 22600 | W10: 0.000253636485 | X10: =VLOOKUP(U10,Output!$C:$AQ,6,FALSE) -> 22618.94 | Z10: OVOLGPINSCPIEDSNAT | AB10: =VLOOKUP(Z10,Output!$C:$AQ,6,FALSE) -> 0
S11: Figure 2. | T11: Pruche | U11: OVOLPRUPIEDINC | V11: 0 | W11: 0 | X11: =VLOOKUP(U11,Output!$C:$AQ,6,FALSE) -> 0 | Z11: OVOLPRUPIEDSNAT | AB11: =VLOOKUP(Z11,Output!$C:$AQ,6,FALSE) -> 0
N12: Volume sur pied au calcul 2015-2018 | P12: UA | S12: Figure 2. | T12: Thuya | U12: OVOLTHOPIEDINC | V12: 1500 | W12: 1.683427998e-05 | X12: =VLOOKUP(U12,Output!$C:$AQ,6,FALSE) -> 1481.74 | Z12: OVOLTHOPIEDSNAT | AB12: =VLOOKUP(Z12,Output!$C:$AQ,6,FALSE) -> 0
P13: =Tableaux!O33 -> 02471 | S13: Figure 2. | T13: Mélèzes | U13: OVOLgMlPIEDINC | V13: 277500 | W13: 0.003114341796 | X13: =VLOOKUP(U13,Output!$C:$AQ,6,FALSE) -> 326561.99 | Z13: OVOLGMlPIEDSNAT | AB13: =VLOOKUP(Z13,Output!$C:$AQ,6,FALSE) -> 49066.07
N14: Total | O14: =VLOOKUP(P13,DataLocal!$A:$BM,61,FALSE) -> 0 | S14: Figure 2. | T14: Pin gris | U14: OVOLgPgPIEDINC | V14: 3102200 | W14: 0.03481553557 | X14: =VLOOKUP(U14,Output!$C:$AQ,6,FALSE) -> 3208078.24 | Z14: OVOLgPgPIEDSNAT | AB14: =VLOOKUP(Z14,Output!$C:$AQ,6,FALSE) -> 105897.3
N15: % R | O15: =VLOOKUP(P13,DataLocal!$A:$BM,62,FALSE) -> 0 | S15: Figure 2. | T15: Épinettes | U15: OVOLgEpxPIEDINC | V15: 55932700 | W15: 0.6277244879 | X15: =VLOOKUP(U15,Output!$C:$AQ,6,FALSE) -> 58626251.85 | Z15: OVOLgEpxPIEDSNAT | AB15: =VLOOKUP(Z15,Output!$C:$AQ,6,FALSE) -> 2693549.69
N16: % SEPM | O16: =VLOOKUP(P13,DataLocal!$A:$BM,63,FALSE) -> 0 | S16: Figure 2. | T16: Sapin baumier | U16: OVOLSABPIEDINC | V16: =ROUND(X16-AB16,-2) -> 19303900 | W16: 0.2166448382 | X16: =VLOOKUP(U16,Output!$C:$AQ,6,FALSE) -> 19392830.24 | Z16: OVOLSABPIEDSNAT | AB16: =VLOOKUP(Z16,Output!$C:$AQ,6,FALSE) -> 88912.63
N17: % Fi | O17: =VLOOKUP(P13,DataLocal!$A:$BM,64,FALSE) -> 0 | S17: Figure 2. | T17: SEPM | U17: OVOLGSEPMPIEDINC | V17: =ROUND(X17-AB17,-2) -> 78616300 | W17: =IFERROR(V17/$V$19,0) -> 0.8822992035 | X17: =VLOOKUP(U17,Output!$C:$AQ,6,FALSE) -> 81553722.32 | Z17: OVOLgSEPMPIEDSNAT | AB17: =VLOOKUP(Z17,Output!$C:$AQ,6,FALSE) -> 2937425.69
N18: % Ft | O18: =VLOOKUP(P13,DataLocal!$A:$BM,65,FALSE) -> 0 | S18: Figure 2. | T18: FN - ERS BOJ | U18: OVOLGFNPIEDINC | V18: 12200 | W18: 0.0001369188105 | X18: =VLOOKUP(U18,Output!$C:$AQ,6,FALSE) -> 12243.51 | Z18: OVOLgFnPIEDSNAT | AB18: =VLOOKUP(Z18,Output!$C:$AQ,6,FALSE) -> 0
S19: Figure 2. | T19: TOT sur pied | U19: OVOLTOTPIEDINC | V19: =ROUND(X19-AB19,-2) -> 89103900 | W19: 1 | X19: =VLOOKUP(U19,Output!$C:$AQ,6,FALSE) -> 92047833.28 | Z19: OVOLTOTPIEDSNAT | AB19: =VLOOKUP(Z19,Output!$C:$AQ,6,FALSE) -> 2943926.74
N20: Vol R | O20: =ROUND(O15*$O$14,-2) -> 0 | T20: Érables à sucre et rouge | U20: Érables à sucre et rouge | V20: =V5+V6 -> 146900 | W20: 0.001648637153 | X20: =X5+X6 -> 146919.92 | Z20: Érables à sucre et rouge | AB20: =AB5+AB6 -> 0
N21: Vol SEPM | O21: =ROUND(O16*$O$14,-2) -> 0 | P21: Traduits en m3 | T21: gFi | U21: OVOLgFiPIEDINC | V21: =ROUND(X21-AB21,-2) ->  | W21: 0 | X21: =VLOOKUP(U21,Output!$C:$AQ,6,FALSE) -> 10257298.21 | Z21: OVOLgFiPIEDSNAT | AB21: =VLOOKUP(Z21,Output!$C:$AQ,6,FALSE) -> 
N22: Vol Fi | O22: =ROUND(O17*$O$14,-2) -> 0 | P22: approximativement | T22: gFt | U22: OVOLgFtPIEDINC | W22: 0 | X22: =VLOOKUP(U22,Output!$C:$AQ,6,FALSE) -> 212712.07 | Z22: OVOLgFtPIEDSNAT | AB22: =VLOOKUP(Z22,Output!$C:$AQ,6,FALSE) -> 
N23: Vol Ft | O23: =ROUND(O18*$O$14,-2) -> 0
V24: =V4+V6+V7+V8+V9+V10+V12+V13+V14+V15+V16 -> 89103900
B27: Type de couvert : | C27: =#REF! -> 
B28: Figure 3. Répartition de la superficie par grand type de forêt en début de calcul (ha). | S28: Intrants | T28: Légende | V28: PERIOD0 | W28: % | X28: PERIOD0
S29: =LEFT(B$28,10) -> Figure 3. | T29: Sapinières | U29: (FCTYF_SAB) | V29: =ROUND(X29,-1) -> 235880 | W29: =V29/V$44 -> 0.1599058494 | X29: =VLOOKUP("OSUPINC"&$U29,GTYF!$C:$AP,6,FALSE) -> 235884.4
S30: Figure 3. | T30: Résineux à feuillus | U30: (FCTYF_RF) | V30: =ROUND(X30,-1) -> 107460 | W30: 0.07284840843 | X30: =VLOOKUP("OSUPINC"&$U30,GTYF!$C:$AP,6,FALSE) -> 107461.6
S31: Figure 3. | T31: Prucheraies | U31: (FCTYF_PRU) | V31: 0 | W31: 0 | X31: =VLOOKUP("OSUPINC"&$U31,GTYF!$C:$AP,6,FALSE) -> 0
S32: Figure 3. | T32: Pinèdes grises | U32: (FCTYF_PIG) | V32: 50590 | W32: 0.03429556097 | X32: =VLOOKUP("OSUPINC"&$U32,GTYF!$C:$AP,6,FALSE) -> 50590.1
L33: Conserver les GTYF même s'ils sont absents de l'UA | S33: Figure 3. | T33: Pinèdes blanches | U33: (FCTYF_PIN) | V33: 0 | W33: 0 | X33: =VLOOKUP("OSUPINC"&$U33,GTYF!$C:$AP,6,FALSE) -> 0
S34: Figure 3. | T34: Peupleraies à résineux | U34: (FCTYF_PEUR) | V34: 0 | W34: 0 | X34: =VLOOKUP("OSUPINC"&$U34,GTYF!$C:$AP,6,FALSE) -> 0
S35: Figure 3. | T35: Peupleraies | U35: (FCTYF_PEU) | V35: 10470 | W35: 0.00709773717 | X35: =VLOOKUP("OSUPINC"&$U35,GTYF!$C:$AP,6,FALSE) -> 10468
S36: Figure 3. | T36: Pessières | U36: (FCTYF_EPX) | V36: 910710 | W36: 0.6173811096 | X36: =VLOOKUP("OSUPINC"&$U36,GTYF!$C:$AP,6,FALSE) -> 910710.6
S37: Figure 3. | T37: Feuillus tolérants à résineux | U37: (FCTYF_FTR) | V37: 0 | W37: 0 | X37: =VLOOKUP("OSUPINC"&$U37,GTYF!$C:$AP,6,FALSE) -> 0
S38: Figure 3. | T38: Feuillus tolérants | U38: (FCTYF_FT) | V38: 0 | W38: 0 | X38: =VLOOKUP("OSUPINC"&$U38,GTYF!$C:$AP,6,FALSE) -> 0
S39: Figure 3. | T39: Érablières rouges | U39: (FCTYF_ERO) | V39: 0 | W39: 0 | X39: =VLOOKUP("OSUPINC"&$U39,GTYF!$C:$AP,6,FALSE) -> 0
S40: Figure 3. | T40: Cédrières | U40: (FCTYF_THO) | V40: 0 | W40: 0 | X40: =VLOOKUP("OSUPINC"&$U40,GTYF!$C:$AP,6,FALSE) -> 0
S41: Figure 3. | T41: Bétulaies blanches à résineux | U41: (FCTYF_BOPR) | V41: 26960 | W41: 0.01827650373 | X41: =VLOOKUP("OSUPINC"&$U41,GTYF!$C:$AP,6,FALSE) -> 26955.5
S42: Figure 3. | T42: Bétulaies blanches | U42: (FCTYF_BOP) | V42: 30850 | W42: 0.02091358087 | X42: =VLOOKUP("OSUPINC"&$U42,GTYF!$C:$AP,6,FALSE) -> 30846.1
U43: Somme: | V43: =SUM(V29:V42) -> 1372920 | X43: =SUM(X29:X42) -> 1372916.3
T44: OSUPINC | U44: Tous | V44: =VLOOKUP("OSUPINC",Output!$C:$AP,7,FALSE) -> 1475118.02
V45: =V43-V44 -> -102198.02 | W45: Écart
V49: 2018
B50: Figure 4. Superficie destinée à l'aménagement forestier par classe d'âge en début de calcul (ha). | S50: Intrants | U50: Name | V50: PERIOD0 | X50: Classe d'âge | Y50: OUTPUT | Z50: Superficie (ha) | AA50: Pourcentage (%)
S51: =LEFT(B$50,10) -> Figure 4. | T51: 10 ans | U51: OSUP_INC_CLASSEAGEFCAGEAGE1 | V51: =VLOOKUP(U51,Output!$C:$AQ,6,FALSE) -> 114865.9 | X51: 10 | Z51: =ROUND(SUM(V51:V54),-1) -> 363500 | AA51: =IFERROR(Z51/$V$89,0) -> 0.2457548802
S52: Figure 4. | T52: 10 ans | U52: OSUP_INC_CLASSEAGEFCAGEAGE2 | V52: =VLOOKUP(U52,Output!$C:$AQ,6,FALSE) -> 70388.1 | X52: 30 | Z52: =ROUND(SUM(V55:V58),-1) -> 174730 | AA52: 0.1181313624
S53: Figure 4. | T53: 10 ans | U53: OSUP_INC_CLASSEAGEFCAGEAGE3 | V53: =VLOOKUP(U53,Output!$C:$AQ,6,FALSE) -> 87129.3 | X53: 50 | Z53: =ROUND(SUM(V59:V62),-1) -> 133190 | AA53: 0.090047022
S54: Figure 4. | T54: 10 ans | U54: OSUP_INC_CLASSEAGEFCAGEAGE4 | V54: =VLOOKUP(U54,Output!$C:$AQ,6,FALSE) -> 91119 | X54: 70 | Z54: =ROUND(SUM(V63:V66),-1) -> 99960 | AA54: 0.06758090186
S55: Figure 4. | T55: 30 ans | U55: OSUP_INC_CLASSEAGEFCAGEAGE5 | V55: =VLOOKUP(U55,Output!$C:$AQ,6,FALSE) -> 56597.3 | X55: 90 | Z55: =ROUND(SUM(V67:V70),-1) -> 75330 | AA55: 0.050929065
S56: Figure 4. | T56: 30 ans | U56: OSUP_INC_CLASSEAGEFCAGEAGE6 | V56: =VLOOKUP(U56,Output!$C:$AQ,6,FALSE) -> 37838.2 | X56: 120 et plus | Z56: =ROUND(SUM(V71:V80),-1) -> 632410 | AA56: 0.4275594052
S57: Figure 4. | T57: 30 ans | U57: OSUP_INC_CLASSEAGEFCAGEAGE7 | V57: =VLOOKUP(U57,Output!$C:$AQ,6,FALSE) -> 50518.7
S58: Figure 4. | T58: 30 ans | U58: OSUP_INC_CLASSEAGEFCAGEAGE8 | V58: =VLOOKUP(U58,Output!$C:$AQ,6,FALSE) -> 29774
S59: Figure 4. | T59: 50 ans | U59: OSUP_INC_CLASSEAGEFCAGEAGE9 | V59: =VLOOKUP(U59,Output!$C:$AQ,6,FALSE) -> 50021.8
S60: Figure 4. | T60: 50 ans | U60: OSUP_INC_CLASSEAGEFCAGEAGE10 | V60: =VLOOKUP(U60,Output!$C:$AQ,6,FALSE) -> 24777.9
S61: Figure 4. | T61: 50 ans | U61: OSUP_INC_CLASSEAGEFCAGEAGE11 | V61: =VLOOKUP(U61,Output!$C:$AQ,6,FALSE) -> 26169.4
N62: Proportion de la superficie dont l'évolution est suivi en âge: | S62: Figure 4. | T62: 50 ans | U62: OSUP_INC_CLASSEAGEFCAGEAGE12 | V62: =VLOOKUP(U62,Output!$C:$AQ,6,FALSE) -> 32216.5
N63: =IF(AND($W$81>=99.5%,$W$81<100%),"> 99%",IF(AND($W$81>=0.1%,$W$81<0.5%),"< 1%",$W$81)) -> 1 | S63: Figure 4. | T63: 70 ans | U63: OSUP_INC_CLASSEAGEFCAGEAGE13 | V63: =VLOOKUP(U63,Output!$C:$AQ,6,FALSE) -> 33205.1
S64: Figure 4. | T64: 70 ans | U64: OSUP_INC_CLASSEAGEFCAGEAGE14 | V64: =VLOOKUP(U64,Output!$C:$AQ,6,FALSE) -> 36361.8
S65: Figure 4. | T65: 70 ans | U65: OSUP_INC_CLASSEAGEFCAGEAGE15 | V65: =VLOOKUP(U65,Output!$C:$AQ,6,FALSE) -> 13416.5
S66: Figure 4. | T66: 70 ans | U66: OSUP_INC_CLASSEAGEFCAGEAGE16 | V66: =VLOOKUP(U66,Output!$C:$AQ,6,FALSE) -> 16977.8
S67: Figure 4. | T67: 90 ans | U67: OSUP_INC_CLASSEAGEFCAGEAGE17 | V67: =VLOOKUP(U67,Output!$C:$AQ,6,FALSE) -> 14317.8
S68: Figure 4. | T68: 90 ans | U68: OSUP_INC_CLASSEAGEFCAGEAGE18 | V68: =VLOOKUP(U68,Output!$C:$AQ,6,FALSE) -> 21495.7
B69: Figure 5. Superficie destinée à l'aménagement forestier par classe de surface terrière en début de calcul (ha) | S69: Figure 4. | T69: 90 ans | U69: OSUP_INC_CLASSEAGEFCAGEAGE19 | V69: =VLOOKUP(U69,Output!$C:$AQ,6,FALSE) -> 16766.7
S70: Figure 4. | T70: 90 ans | U70: OSUP_INC_CLASSEAGEFCAGEAGE20 | V70: =VLOOKUP(U70,Output!$C:$AQ,6,FALSE) -> 22750.2
S71: Figure 4. | T71: 120 et plus | U71: OSUP_INC_CLASSEAGEFCAGEAGE21 | V71: =VLOOKUP(U71,Output!$C:$AQ,6,FALSE) -> 9958.7
S72: Figure 4. | T72: 120 et plus | U72: OSUP_INC_CLASSEAGEFCAGEAGE22 | V72: =VLOOKUP(U72,Output!$C:$AQ,6,FALSE) -> 23245.4
S73: Figure 4. | T73: 120 et plus | U73: OSUP_INC_CLASSEAGEFCAGEAGE23 | V73: =VLOOKUP(U73,Output!$C:$AQ,6,FALSE) -> 63215.1
S74: Figure 4. | T74: 120 et plus | U74: OSUP_INC_CLASSEAGEFCAGEAGE24 | V74: =VLOOKUP(U74,Output!$C:$AQ,6,FALSE) -> 14000.1
S75: Figure 4. | T75: 120 et plus | U75: OSUP_INC_CLASSEAGEFCAGEAGE25 | V75: =VLOOKUP(U75,Output!$C:$AQ,6,FALSE) -> 0
N76: Proportion de la superficie dont l'évolution est suivi en surface terrière: | S76: Figure 4. | T76: 120 et plus | U76: OSUP_INC_CLASSEAGEFCAGEAGE26 | V76: =VLOOKUP(U76,Output!$C:$AQ,6,FALSE) -> 45965.6
N77: =IF(AND($W$88>=99.5%,$W$88<100%),"> 99%",IF(AND($W$88>=0.1%,$W$88<0.5%),"< 1%",$W$88)) -> 0 | S77: Figure 4. | T77: 120 et plus | U77: OSUP_INC_CLASSEAGEFCAGEAGE27 | V77: =VLOOKUP(U77,Output!$C:$AQ,6,FALSE) -> 7077
S78: Figure 4. | T78: 120 et plus | U78: OSUP_INC_CLASSEAGEFCAGEAGE28 | V78: =VLOOKUP(U78,Output!$C:$AQ,6,FALSE) -> 19037.8
S79: Figure 4. | T79: 120 et plus | U79: OSUP_INC_CLASSEAGEFCAGEAGE29 | V79: =VLOOKUP(U79,Output!$C:$AQ,6,FALSE) -> 7960.3
S80: Figure 4. | T80: 120 et plus | U80: OSUP_INC_CLASSEAGEFCAGEAGE30+ | V80: =VLOOKUP(U80,Output!$C:$AQ,6,FALSE) -> 441948.4
U81: Sous-total | V81: =SUM(V51:V80) -> 1479116.1 | W81: =V81/V89 -> 1
S82: =LEFT(B$69,10) -> Figure 5. | T82: <16 | U82: OSUPINC_ST016(FCST) | V82: =VLOOKUP(U82,GTYF!$C:$AQ,6,FALSE) -> 0 | W82: =IFERROR(V82/$V$88,0) -> 0
S83: Figure 5. | T83: 16 à 18 | U83: OSUPINC_ST1619(FCST) | V83: =VLOOKUP(U83,GTYF!$C:$AQ,6,FALSE) -> 0 | W83: 0
S84: Figure 5. | T84: 19 à 21 | U84: OSUPINC_ST1922(FCST) | V84: =VLOOKUP(U84,GTYF!$C:$AQ,6,FALSE) -> 0 | W84: 0
S85: Figure 5. | T85: 22 à 24 | U85: OSUPINC_ST2225(FCST) | V85: =VLOOKUP(U85,GTYF!$C:$AQ,6,FALSE) -> 0 | W85: 0
S86: Figure 5. | T86: 25 à 28 | U86: OSUPINC_ST2528(FCST) | V86: =VLOOKUP(U86,GTYF!$C:$AQ,6,FALSE) -> 0 | W86: 0
S87: Figure 5. | T87: 29+ | U87: OSUPINC_ST29+(FCST) | V87: =VLOOKUP(U87,GTYF!$C:$AQ,6,FALSE) -> 0 | W87: 0
S88: Figure 5. | T88: Total 0-29+ | U88: Sous-total | V88: =SUM(V82:V87) -> 0 | W88: =V88/V89 -> 0
U89: OSUPINC | V89: =VLOOKUP(U89,Output!$C:$AQ,6,FALSE) -> 1479116.1
A91: 80 | B91: Figure 6. Évolution des volumes et des possibilités forestières à rendement non-décroissant
U93: Période | V93: P0 | W93: P1 | X93: P2 | Y93: P3 | Z93: P4 | AA93: P5 | AB93: P6 | AC93: P7 | AD93: P8 | AE93: P9 | AF93: P10 | AG93: P11 | AH93: P12 | AI93: P13 | AJ93: P14 | AK93: P15 | AL93: P16 | AM93: P17 | AN93: P18 | AO93: P19 | AP93: P20 | AQ93: P21 | AR93: P22 | AS93: P23 | AT93: P24 | AU93: P25 | AV93: P26 | AW93: P27 | AX93: P28 | AY93: P29 | AZ93: P30
U94: Colonne | V94: 6 | W94: 7 | X94: 8 | Y94: 9 | Z94: 10 | AA94: 11 | AB94: 12 | AC94: 13 | AD94: 14 | AE94: 15 | AF94: 16 | AG94: 17 | AH94: 18 | AI94: 19 | AJ94: 20 | AK94: 21 | AL94: 22 | AM94: 23 | AN94: 24 | AO94: 25 | AP94: 26 | AQ94: 27 | AR94: 28 | AS94: 29 | AT94: 30 | AU94: 31 | AV94: 32 | AW94: 33 | AX94: 34 | AY94: 35 | AZ94: 36
S95: =LEFT(B$91,10) -> Figure 6. | T95: Légende | U95: Axe des "X" Début de période | W95: 2018 | X95: 2023 | Y95: 2028 | Z95: 2033 | AA95: 2038 | AB95: 2043 | AC95: 2048 | AD95: 2053 | AE95: 2058 | AF95: 2063 | AG95: 2068 | AH95: 2073 | AI95: 2078 | AJ95: 2083 | AK95: 2088 | AL95: 2093 | AM95: 2098 | AN95: 2103 | AO95: 2108 | AP95: 2113 | AQ95: 2118 | AR95: 2123 | AS95: 2128 | AT95: 2133 | AU95: 2138 | AV95: 2143 | AW95: 2148 | AX95: 2153 | AY95: 2158 | AZ95: 2163
S96: =LEFT(B$91,10) -> Figure 6. | T96: Possibilités forestières quinquennales | U96: OVOLTOTREC | V96: =VLOOKUP($U96,Output!$C:$AM,V$94,FALSE) -> 0 | W96: =VLOOKUP($U96,Output!$C:$AM,W$94,FALSE) -> 9014996 | X96: =VLOOKUP($U96,Output!$C:$AM,X$94,FALSE) -> 8748700 | Y96: =VLOOKUP($U96,Output!$C:$AM,Y$94,FALSE) -> 8748700 | Z96: =VLOOKUP($U96,Output!$C:$AM,Z$94,FALSE) -> 8748700 | AA96: =VLOOKUP($U96,Output!$C:$AM,AA$94,FALSE) -> 8748700 | AB96: =VLOOKUP($U96,Output!$C:$AM,AB$94,FALSE) -> 8748700 | AC96: =VLOOKUP($U96,Output!$C:$AM,AC$94,FALSE) -> 8748700 | AD96: =VLOOKUP($U96,Output!$C:$AM,AD$94,FALSE) -> 8887403.08 | AE96: =VLOOKUP($U96,Output!$C:$AM,AE$94,FALSE) -> 8887403.08 | AF96: =VLOOKUP($U96,Output!$C:$AM,AF$94,FALSE) -> 8887403.08 | AG96: =VLOOKUP($U96,Output!$C:$AM,AG$94,FALSE) -> 8887403.08 | AH96: =VLOOKUP($U96,Output!$C:$AM,AH$94,FALSE) -> 8887403.08 | AI96: =VLOOKUP($U96,Output!$C:$AM,AI$94,FALSE) -> 8887403.08 | AJ96: =VLOOKUP($U96,Output!$C:$AM,AJ$94,FALSE) -> 8888133.84 | AK96: =VLOOKUP($U96,Output!$C:$AM,AK$94,FALSE) -> 8888133.84 | AL96: =VLOOKUP($U96,Output!$C:$AM,AL$94,FALSE) -> 8925473.69 | AM96: =VLOOKUP($U96,Output!$C:$AM,AM$94,FALSE) -> 8945455.48 | AN96: =VLOOKUP($U96,Output!$C:$AM,AN$94,FALSE) -> 10562720.09 | AO96: =VLOOKUP($U96,Output!$C:$AM,AO$94,FALSE) -> 10574742.9 | AP96: =VLOOKUP($U96,Output!$C:$AM,AP$94,FALSE) -> 10574742.9 | AQ96: =VLOOKUP($U96,Output!$C:$AM,AQ$94,FALSE) -> 10574742.9 | AR96: =VLOOKUP($U96,Output!$C:$AM,AR$94,FALSE) -> 12047937.24 | AS96: =VLOOKUP($U96,Output!$C:$AM,AS$94,FALSE) -> 12136611.65 | AT96: =VLOOKUP($U96,Output!$C:$AM,AT$94,FALSE) -> 12136611.65 | AU96: =VLOOKUP($U96,Output!$C:$AM,AU$94,FALSE) -> 12136611.65 | AV96: =VLOOKUP($U96,Output!$C:$AM,AV$94,FALSE) -> 12139927.8 | AW96: =VLOOKUP($U96,Output!$C:$AM,AW$94,FALSE) -> 12139927.8 | AX96: =VLOOKUP($U96,Output!$C:$AM,AX$94,FALSE) -> 12139927.8 | AY96: =VLOOKUP($U96,Output!$C:$AM,AY$94,FALSE) -> 12139927.8 | AZ96: =VLOOKUP($U96,Output!$C:$AM,AZ$94,FALSE) -> 12511821.22
S97: =LEFT(B$91,10) -> Figure 6. | T97: Volume à maturité | U97: OVOLMATUREADM | V97: =VLOOKUP($U97,Output!$C:$AM,V$94,FALSE) -> 59209033.47 | W97: =VLOOKUP($U97,Output!$C:$AM,W$94,FALSE) -> 58675022.19 | X97: =VLOOKUP($U97,Output!$C:$AM,X$94,FALSE) -> 55892872.27 | Y97: =VLOOKUP($U97,Output!$C:$AM,Y$94,FALSE) -> 55321918.5 | Z97: =VLOOKUP($U97,Output!$C:$AM,Z$94,FALSE) -> 52362764.28 | AA97: =VLOOKUP($U97,Output!$C:$AM,AA$94,FALSE) -> 49334011.66 | AB97: =VLOOKUP($U97,Output!$C:$AM,AB$94,FALSE) -> 47337819.03 | AC97: =VLOOKUP($U97,Output!$C:$AM,AC$94,FALSE) -> 42392296.39 | AD97: =VLOOKUP($U97,Output!$C:$AM,AD$94,FALSE) -> 37853255.51 | AE97: =VLOOKUP($U97,Output!$C:$AM,AE$94,FALSE) -> 32392554.36 | AF97: =VLOOKUP($U97,Output!$C:$AM,AF$94,FALSE) -> 31785257.47 | AG97: =VLOOKUP($U97,Output!$C:$AM,AG$94,FALSE) -> 32013152.36 | AH97: =VLOOKUP($U97,Output!$C:$AM,AH$94,FALSE) -> 33295429.32 | AI97: =VLOOKUP($U97,Output!$C:$AM,AI$94,FALSE) -> 35665545.18 | AJ97: =VLOOKUP($U97,Output!$C:$AM,AJ$94,FALSE) -> 40603941.71 | AK97: =VLOOKUP($U97,Output!$C:$AM,AK$94,FALSE) -> 40028477.16 | AL97: =VLOOKUP($U97,Output!$C:$AM,AL$94,FALSE) -> 42345472.29 | AM97: =VLOOKUP($U97,Output!$C:$AM,AM$94,FALSE) -> 44126060.78 | AN97: =VLOOKUP($U97,Output!$C:$AM,AN$94,FALSE) -> 44684340.96 | AO97: =VLOOKUP($U97,Output!$C:$AM,AO$94,FALSE) -> 47683384.27 | AP97: =VLOOKUP($U97,Output!$C:$AM,AP$94,FALSE) -> 50522756.7 | AQ97: =VLOOKUP($U97,Output!$C:$AM,AQ$94,FALSE) -> 53562512.86 | AR97: =VLOOKUP($U97,Output!$C:$AM,AR$94,FALSE) -> 56788902.8 | AS97: =VLOOKUP($U97,Output!$C:$AM,AS$94,FALSE) -> 57010990.57 | AT97: =VLOOKUP($U97,Output!$C:$AM,AT$94,FALSE) -> 55091578.27 | AU97: =VLOOKUP($U97,Output!$C:$AM,AU$94,FALSE) -> 51667974.4 | AV97: =VLOOKUP($U97,Output!$C:$AM,AV$94,FALSE) -> 50875153.31 | AW97: =VLOOKUP($U97,Output!$C:$AM,AW$94,FALSE) -> 47517432.11 | AX97: =VLOOKUP($U97,Output!$C:$AM,AX$94,FALSE) -> 44740145.95 | AY97: =VLOOKUP($U97,Output!$C:$AM,AY$94,FALSE) -> 41963102.17 | AZ97: =VLOOKUP($U97,Output!$C:$AM,AZ$94,FALSE) -> 39897156.2
S98: =LEFT(B$91,10) -> Figure 6. | T98: Volume sur pied | U98: OVOLTOTPIEDINC | V98: =VLOOKUP($U98,Output!$C:$AM,V$94,FALSE) -> 92047833.28 | W98: =VLOOKUP($U98,Output!$C:$AM,W$94,FALSE) -> 87742679.88 | X98: =VLOOKUP($U98,Output!$C:$AM,X$94,FALSE) -> 81406694.89 | Y98: =VLOOKUP($U98,Output!$C:$AM,Y$94,FALSE) -> 77224111.81 | Z98: =VLOOKUP($U98,Output!$C:$AM,Z$94,FALSE) -> 74011284.64 | AA98: =VLOOKUP($U98,Output!$C:$AM,AA$94,FALSE) -> 71212164.72 | AB98: =VLOOKUP($U98,Output!$C:$AM,AB$94,FALSE) -> 69603031.05 | AC98: =VLOOKUP($U98,Output!$C:$AM,AC$94,FALSE) -> 68806281.93 | AD98: =VLOOKUP($U98,Output!$C:$AM,AD$94,FALSE) -> 69388001.34 | AE98: =VLOOKUP($U98,Output!$C:$AM,AE$94,FALSE) -> 70448771.27 | AF98: =VLOOKUP($U98,Output!$C:$AM,AF$94,FALSE) -> 71937899.78 | AG98: =VLOOKUP($U98,Output!$C:$AM,AG$94,FALSE) -> 73654342.82 | AH98: =VLOOKUP($U98,Output!$C:$AM,AH$94,FALSE) -> 75434151.28 | AI98: =VLOOKUP($U98,Output!$C:$AM,AI$94,FALSE) -> 77954032.45 | AJ98: =VLOOKUP($U98,Output!$C:$AM,AJ$94,FALSE) -> 81120464.62 | AK98: =VLOOKUP($U98,Output!$C:$AM,AK$94,FALSE) -> 84531760.19 | AL98: =VLOOKUP($U98,Output!$C:$AM,AL$94,FALSE) -> 87911015.45 | AM98: =VLOOKUP($U98,Output!$C:$AM,AM$94,FALSE) -> 91075190.81 | AN98: =VLOOKUP($U98,Output!$C:$AM,AN$94,FALSE) -> 92759794.37 | AO98: =VLOOKUP($U98,Output!$C:$AM,AO$94,FALSE) -> 94230548.83 | AP98: =VLOOKUP($U98,Output!$C:$AM,AP$94,FALSE) -> 95277439.31 | AQ98: =VLOOKUP($U98,Output!$C:$AM,AQ$94,FALSE) -> 96137189.77 | AR98: =VLOOKUP($U98,Output!$C:$AM,AR$94,FALSE) -> 95509774.5 | AS98: =VLOOKUP($U98,Output!$C:$AM,AS$94,FALSE) -> 94409723.81 | AT98: =VLOOKUP($U98,Output!$C:$AM,AT$94,FALSE) -> 93151968.1 | AU98: =VLOOKUP($U98,Output!$C:$AM,AU$94,FALSE) -> 91871036.81 | AV98: =VLOOKUP($U98,Output!$C:$AM,AV$94,FALSE) -> 90809182.01 | AW98: =VLOOKUP($U98,Output!$C:$AM,AW$94,FALSE) -> 89462383.27 | AX98: =VLOOKUP($U98,Output!$C:$AM,AX$94,FALSE) -> 89462383.27 | AY98: =VLOOKUP($U98,Output!$C:$AM,AY$94,FALSE) -> 89659232.03 | AZ98: =VLOOKUP($U98,Output!$C:$AM,AZ$94,FALSE) -> 89462383.27
S99: =LEFT(B$91,10) -> Figure 6. | T99: Volume récoltable | U99: OVOLTOTADMREGAPRE | V99: =VLOOKUP($U99,Output!$C:$AM,V$94,FALSE) -> 0 | W99: =VLOOKUP($U99,Output!$C:$AM,W$94,FALSE) -> 21832290.07 | X99: =VLOOKUP($U99,Output!$C:$AM,X$94,FALSE) -> 20296717.79 | Y99: =VLOOKUP($U99,Output!$C:$AM,Y$94,FALSE) -> 19332706.39 | Z99: =VLOOKUP($U99,Output!$C:$AM,Z$94,FALSE) -> 19566407.09 | AA99: =VLOOKUP($U99,Output!$C:$AM,AA$94,FALSE) -> 17770445.37 | AB99: =VLOOKUP($U99,Output!$C:$AM,AB$94,FALSE) -> 18250481.27 | AC99: =VLOOKUP($U99,Output!$C:$AM,AC$94,FALSE) -> 19045616.87 | AD99: =VLOOKUP($U99,Output!$C:$AM,AD$94,FALSE) -> 21198102.86 | AE99: =VLOOKUP($U99,Output!$C:$AM,AE$94,FALSE) -> 16082652.29 | AF99: =VLOOKUP($U99,Output!$C:$AM,AF$94,FALSE) -> 14114372.27 | AG99: =VLOOKUP($U99,Output!$C:$AM,AG$94,FALSE) -> 13913713.09 | AH99: =VLOOKUP($U99,Output!$C:$AM,AH$94,FALSE) -> 13976226.12 | AI99: =VLOOKUP($U99,Output!$C:$AM,AI$94,FALSE) -> 12592382.14 | AJ99: =VLOOKUP($U99,Output!$C:$AM,AJ$94,FALSE) -> 16148067.41 | AK99: =VLOOKUP($U99,Output!$C:$AM,AK$94,FALSE) -> 16202743.67 | AL99: =VLOOKUP($U99,Output!$C:$AM,AL$94,FALSE) -> 12470107.47 | AM99: =VLOOKUP($U99,Output!$C:$AM,AM$94,FALSE) -> 12903649.06 | AN99: =VLOOKUP($U99,Output!$C:$AM,AN$94,FALSE) -> 20614718.39 | AO99: =VLOOKUP($U99,Output!$C:$AM,AO$94,FALSE) -> 15428122.72 | AP99: =VLOOKUP($U99,Output!$C:$AM,AP$94,FALSE) -> 17308771.94 | AQ99: =VLOOKUP($U99,Output!$C:$AM,AQ$94,FALSE) -> 14035659.71 | AR99: =VLOOKUP($U99,Output!$C:$AM,AR$94,FALSE) -> 18601236.65 | AS99: =VLOOKUP($U99,Output!$C:$AM,AS$94,FALSE) -> 21332807.94 | AT99: =VLOOKUP($U99,Output!$C:$AM,AT$94,FALSE) -> 22563258.77 | AU99: =VLOOKUP($U99,Output!$C:$AM,AU$94,FALSE) -> 19339192.88 | AV99: =VLOOKUP($U99,Output!$C:$AM,AV$94,FALSE) -> 23095145.12 | AW99: =VLOOKUP($U99,Output!$C:$AM,AW$94,FALSE) -> 20441292.19 | AX99: =VLOOKUP($U99,Output!$C:$AM,AX$94,FALSE) -> 19843835.56 | AY99: =VLOOKUP($U99,Output!$C:$AM,AY$94,FALSE) -> 17783539.34 | AZ99: =VLOOKUP($U99,Output!$C:$AM,AZ$94,FALSE) -> 16340277.23
T116: * Source: Cahier_analyse, Tableau 13, onglet Budget | X116: Moyenne P2 à P6
B117: Figure 7. Répartition du budget annuel par familles de traitements prévus à la stratégie d’aménagement et coût moyen à l’hectare par famille de traitements
S118: =LEFT(B$117,10) -> Figure 7. | T118: Légende | U118: Output taux | V118: Output superficie | W118: $/ha | X118: ha | Y118: $
S119: =LEFT(B$117,10) -> Figure 7. | T119: Coupes avec protection de la régénération et des sols (CPRS) | U119: OTAUXCT_100 | V119: OSUPCT | W119: =IFERROR(VLOOKUP(U119,Output!$C:$AQ,37,FALSE),0) -> 0 | X119: =IFERROR(VLOOKUP(V119,Output!$C:$AQ,37,FALSE),"0000")/5 -> 16325.6985 | Y119: =W119*X119 -> 0
S120: =LEFT(B$117,10) -> Figure 7. | T120: Coupe avec protection des petites tiges marchandes (CPPTM) | V120: OSUPREALaCPPTM | W120: =IFERROR(VLOOKUP(U120,Output!$C:$AQ,8,FALSE),0) -> 0 | X120: =IFERROR(VLOOKUP(V120,Output!$C:$AQ,37,FALSE),"0000")/5 -> 0 | Y120: =W120*X120 -> 0
S121: =LEFT(B$117,10) -> Figure 7. | T121: Coupe avec réserve de semenciers (CRS) | V121: OSUPREALaCRS | W121: =IFERROR(VLOOKUP(U121,Output!$C:$AQ,8,FALSE),0) -> 0 | X121: =IFERROR(VLOOKUP(V121,Output!$C:$AQ,37,FALSE),"0000")/5 -> 0 | Y121: 0
T122: Coupe à rétention variable (CRV, CPPTM, CPPTM, CPHR, CDL)
S123: =LEFT(B$117,10) -> Figure 7. | T123: Coupes finales | W123: =(ROUND(Y123/X123,0))&"$/ha" -> 0$/ha | X123: =SUM(X119:X121) -> 16325.6985 | Y123: =SUM(Y119:Y121) -> 0
S124: Figure 7. | T124: Éclaircie commerciale (EC) | U124: OTAUXEC_SEPM_100 | V124: OSUPEC_SEPM | W124: =IFERROR(VLOOKUP(U124,Output!$C:$AQ,37,FALSE),0) -> 1250 | X124: =IFERROR(VLOOKUP(V124,Output!$C:$AQ,37,FALSE),"0000")/5 -> 0 | Y124: 0
S125: Figure 7. | T125: Coupe progressive régulière initiale (CPROG) | U125: OTAUXCPROG_INI_100 | V125: OSUPCPROG_INI | W125: =IFERROR(VLOOKUP(U125,Output!$C:$AQ,37,FALSE),0) -> 430 | X125: =IFERROR(VLOOKUP(V125,Output!$C:$AQ,37,FALSE),"0000")/5 -> 0 | Y125: 0
S126: Figure 7. | T126: Coupe progressive régulière finale (CPROG) | U126: OTAUXCPROG_FIN_100 | V126: OSUPCPROG_FIN | W126: =IFERROR(VLOOKUP(U126,Output!$C:$AQ,37,FALSE),0) -> 0 | X126: =IFERROR(VLOOKUP(V126,Output!$C:$AQ,37,FALSE),"0000")/5 -> 0 | Y126: 0
S127: Figure 7. | T127: Coupe progessive irrégulière initiale (CPIRL) | U127: OTAUXCPIRL_INI_100 | V127: OSUPCPIRL_INI | W127: =IFERROR(VLOOKUP(U127,Output!$C:$AQ,37,FALSE),0) -> 300 | X127: =IFERROR(VLOOKUP(V127,Output!$C:$AQ,37,FALSE),"0000")/5 -> 650 | Y127: 195000
S128: Figure 7. | T128: Coupe progessive irrégulière finale (CPIRL) | U128: OTAUXCPIRL_FIN_100 | V128: OSUPCPIRL_FIN | W128: =IFERROR(VLOOKUP(U128,Output!$C:$AQ,37,FALSE),0) -> 0 | X128: =IFERROR(VLOOKUP(V128,Output!$C:$AQ,37,FALSE),"0000")/5 -> 0 | Y128: 0
S129: Figure 7. | T129: Coupe à couvert permanent (CPICP) | U129: OTAUXCPICP_100 | V129: OSUPCPICP | W129: =IFERROR(VLOOKUP(U129,Output!$C:$AQ,37,FALSE),0) -> 350 | X129: =IFERROR(VLOOKUP(V129,Output!$C:$AQ,37,FALSE),"0000")/5 -> 0 | Y129: 0
S130: Figure 7. | T130: Coupe de jardinage (CJ) | U130: OTAUXCJ_100 | V130: OSUPCJ | W130: =IFERROR(VLOOKUP(U130,Output!$C:$AQ,37,FALSE),0) -> 673.69 | X130: =IFERROR(VLOOKUP(V130,Output!$C:$AQ,37,FALSE),"0000")/5 -> 0 | Y130: 0
S131: Figure 7. | T131: Coupes partielles | W131: =(ROUND(Y131/X131,0))&"$/ha" -> 300$/ha | X131: =SUM(X124:X130) -> 650 | Y131: =SUM(Y124:Y130) -> 195000
S132: Figure 7. | T132: Plantation ligniculture (pins, feuillus) | U132: OTAUXPL_PPF_100 | V132: OSUPPL_PPF | W132: =IFERROR(VLOOKUP(U132,Output!$C:$AQ,37,FALSE),0) -> 1640 | X132: =IFERROR(VLOOKUP(V132,Output!$C:$AQ,37,FALSE),"0000")/5 -> 0 | Y132: 0
S133: Figure 7. | T133: Plantation intensive | U133: OTAUXPL_SEPM_I_100 | V133: OSUPPL_SEPM_I | W133: =IFERROR(VLOOKUP(U133,Output!$C:$AQ,37,FALSE),0) -> 1390 | X133: =IFERROR(VLOOKUP(V133,Output!$C:$AQ,37,FALSE),"0000")/5 -> 637.983 | Y133: 886796.37
S134: Figure 7. | T134: Plantation de base | U134: OTAUXPL_SEPM_E_100 | V134: OSUPPL_SEPM_E | W134: =IFERROR(VLOOKUP(U134,Output!$C:$AQ,37,FALSE),0) -> 1110 | X134: =IFERROR(VLOOKUP(V134,Output!$C:$AQ,37,FALSE),"0000")/5 -> 1880.4705 | Y134: 2087322.255
S135: Figure 7. | T135: Regarni | U135: OTAUXREG_100 | V135: OSUPREG_2 | W135: =IFERROR(VLOOKUP(U135,Output!$C:$AQ,37,FALSE),0) -> 420 | X135: =IFERROR(VLOOKUP(V135,Output!$C:$AQ,37,FALSE),"0000")/5 -> 4400 | Y135: 1848000
S136: Figure 7. | T136: Ensemencement (ENS) | U136: OTAUXENS_100 | V136: OSUPENS | W136: =IFERROR(VLOOKUP(U136,Output!$C:$AQ,37,FALSE),0) -> 130 | X136: =IFERROR(VLOOKUP(V136,Output!$C:$AQ,37,FALSE),"0000")/5 -> 0 | Y136: =W136*X136 -> 0
S137: Figure 7. | T137: Reboisement | W137: =(ROUND(Y137/X137,0))&"$/ha" -> 697$/ha | X137: =SUM(X132:X136) -> 6918.4535 | Y137: =SUM(Y132:Y136) -> 4822118.625
S138: Figure 7. | T138: Dégagement de la régénération naturelle | U138: OTAUXDEG_2_100 | V138: OSUPDEG_2 | W138: =IFERROR(VLOOKUP(U138,Output!$C:$AQ,37,FALSE),0) -> 1280 | X138: =IFERROR(VLOOKUP(V138,Output!$C:$AQ,37,FALSE),"0000")/5 -> 668.647 | Y138: 855868.16
S139: Figure 7. | T139: Dégagement de plantation | U139: OTAUXDEG_1_100 | V139: OSUPDEG_1 | W139: =IFERROR(VLOOKUP(U139,Output!$C:$AQ,37,FALSE),0) -> 1280 | X139: =IFERROR(VLOOKUP(V139,Output!$C:$AQ,37,FALSE),"0000")/5 -> 1248.8415 | Y139: 1598517.12
S140: Figure 7. | T140: Nettoiement de la régénération naturelle | U140: OTAUXNETT_100 | V140: OSUPREALNET | W140: =IFERROR(VLOOKUP(U140,Output!$C:$AQ,37,FALSE),0) -> 1240 | X140: =IFERROR(VLOOKUP(V140,Output!$C:$AQ,37,FALSE),"0000")/5-X141 -> 800 | Y140: 992000
C141: $ /m3 | E141: $ /ha | S141: Figure 7. | T141: Nettoiement de plantation | U141: OTAUXNETT_100 | V141: OSUPTCADNETT_T100% | W141: =IFERROR(VLOOKUP(U141,Output!$C:$AQ,37,FALSE),0) -> 1240 | X141: =IFERROR(VLOOKUP(V141,Output!$C:$AQ,37,FALSE),"0000")/5 -> 1519.6895 | Y141: 1884414.98
C142: =Y151/(Instructions!I5/5) -> 7.250571971 | E142: =Y151/Tableaux!F33 -> 9.240608193 | S142: Figure 7. | T142: Éclaircie précommerciale (EPC_1) | U142: OTAUXEPC_1_100 | V142: OSUPEPC_1 | W142: =IFERROR(VLOOKUP(U142,Output!$C:$AQ,37,FALSE),0) -> 1560 | X142: =IFERROR(VLOOKUP(V142,Output!$C:$AQ,37,FALSE),"0000")/5 -> 220 | Y142: 343200
S143: Figure 7. | T143: Éclaircie précommerciale (EPC_2) | U143: OTAUXEPC_2_100 | V143: OSUPEPC_2 | W143: =IFERROR(VLOOKUP(U143,Output!$C:$AQ,37,FALSE),0) -> 1560 | X143: =IFERROR(VLOOKUP(V143,Output!$C:$AQ,37,FALSE),"0000")/5 -> 111.6145 | Y143: 174118.62
S144: Figure 7. | T144: Éclaircie précommerciale de la régénération naturelle | V144: OSUPREALEPC | W144: =IFERROR(VLOOKUP(U144,Output!$C:$AQ,37,FALSE),0) -> 0 | X144: =IFERROR(VLOOKUP(V144,Output!$C:$AQ,37,FALSE),"0000")/5 -> 331.6145 | Y144: 0
S145: Figure 7. | T145: Élagage (plantation) | U145: OTAUXELAG_100 | V145: OSUPELAG | W145: =IFERROR(VLOOKUP(U145,Output!$C:$AQ,37,FALSE),0) -> 1630 | X145: =IFERROR(VLOOKUP(V145,Output!$C:$AQ,37,FALSE),"0000")/5 -> 0 | Y145: 0
S146: Figure 7. | T146: Travaux d'éducation | W146: =(ROUND(Y146/X146,0))&"$/ha" -> 1280$/ha | X146: =SUM(X138:X143)+X145 -> 4568.7925 | Y146: =SUM(Y138:Y143)+Y145 -> 5848118.88
S147: Figure 7. | T147: Préparation terrain lignicult. + ferti + élagage (SCA_LIGN) | U147: OTAUXSCA_LIGN_100 | V147: OSUPSCA_LIGN | W147: =IFERROR(VLOOKUP(U147,Output!$C:$AQ,37,FALSE),0) -> 1540 | X147: =IFERROR(VLOOKUP(V147,Output!$C:$AQ,37,FALSE),"0000")/5 -> 0 | Y147: 0
S148: Figure 7. | T148: Préparation de terrain partielle (SCA_PART) | U148: OTAUXSCA_PART_100 | V148: OSUPSCA_PART | W148: =IFERROR(VLOOKUP(U148,Output!$C:$AQ,37,FALSE),0) -> 560 | X148: =IFERROR(VLOOKUP(V148,Output!$C:$AQ,37,FALSE),"0000")/5 -> 1318.647 | Y148: 738442.32
S149: Figure 7. | T149: Préparation de terrain régulière, 1 passage (SCA_REG) | U149: OTAUXSCA_REG_100 | V149: OSUPSCA_REG | W149: =IFERROR(VLOOKUP(U149,Output!$C:$AQ,37,FALSE),0) -> 430 | X149: =IFERROR(VLOOKUP(V149,Output!$C:$AQ,37,FALSE),"0000")/5 -> 2518.4535 | Y149: 1082935.005 | AA149: Valideur
B150: Figure 9b Évolution de la superficie des vieilles forêts selon leur degré d'altération | S150: Figure 7. | T150: Préparation de terrain | W150: =(ROUND(Y150/X150,0))&"$/ha" -> 475$/ha | X150: =SUM(X147:X149) -> 3837.1005 | Y150: =SUM(Y147:Y149) -> 1821377.325 | Z150: =Y123+Y131+Y137+Y146+Y150 -> 12686614.83 | AA150: =Y151-Z150 -> 0.9700000025
S151: Figure 7. | T151: Investissement sylvicole annuel (O$INVESTISTS)* | V151: O$INVESTISTS_2 | Y151: =IFERROR(VLOOKUP(V151,Output!$C:$AQ,37,FALSE),"0000")/5 -> 12686615.8
S155: =LEFT(B$117,10) -> Figure 7. | T155: =T123 -> Coupes finales | U155: =Y123 -> 0 | V155: =W123 -> 0$/ha
S156: =LEFT(B$117,10) -> Figure 7. | T156: =T131 -> Coupes partielles | U156: =Y131 -> 195000 | V156: =W131 -> 300$/ha
S157: =LEFT(B$117,10) -> Figure 7. | T157: =T137 -> Reboisement | U157: =Y137 -> 4822118.625 | V157: =W137 -> 697$/ha
S158: =LEFT(B$117,10) -> Figure 7. | T158: =T146 -> Travaux d'éducation | U158: =Y146 -> 5848118.88 | V158: =W146 -> 1280$/ha
S159: =LEFT(B$117,10) -> Figure 7. | T159: =T150 -> Préparation de terrain | U159: =Y150 -> 1821377.325 | V159: =W150 -> 475$/ha
U161: Période | V161: P0 | W161: P1 | X161: P2 | Y161: P3 | Z161: P4 | AA161: P5 | AB161: P6 | AC161: P7 | AD161: P8 | AE161: P9 | AF161: P10 | AG161: P11 | AH161: P12 | AI161: P13 | AJ161: P14 | AK161: P15 | AL161: P16 | AM161: P17 | AN161: P18 | AO161: P19 | AP161: P20 | AQ161: P21 | AR161: P22 | AS161: P23 | AT161: P24 | AU161: P25 | AV161: P26 | AW161: P27 | AX161: P28 | AY161: P29 | AZ161: P30
S162: =LEFT(B$150,10) -> Figure 9b | U162: Axe des "X" Fin de période | V162: 2018 | W162: 2023 | X162: 2028 | Y162: 2033 | Z162: 2038 | AA162: 2043 | AB162: 2048 | AC162: 2053 | AD162: 2058 | AE162: 2063 | AF162: 2068 | AG162: 2073 | AH162: 2078 | AI162: 2083 | AJ162: 2088 | AK162: 2093 | AL162: 2098 | AM162: 2103 | AN162: 2108 | AO162: 2113 | AP162: 2118 | AQ162: 2123 | AR162: 2128 | AS162: 2133 | AT162: 2138 | AU162: 2143 | AV162: 2148 | AW162: 2153 | AX162: 2158 | AY162: 2163 | AZ162: 2168
S163: Figure 9b | U163: Colonne | V163: 6 | W163: 7 | X163: 8 | Y163: 9 | Z163: 10 | AA163: 11 | AB163: 12 | AC163: 13 | AD163: 14 | AE163: 15 | AF163: 16 | AG163: 17 | AH163: 18 | AI163: 19 | AJ163: 20 | AK163: 21 | AL163: 22 | AM163: 23 | AN163: 24 | AO163: 25 | AP163: 26 | AQ163: 27 | AR163: 28 | AS163: 29 | AT163: 30 | AU163: 31 | AV163: 32 | AW163: 33 | AX163: 34 | AY163: 35 | AZ163: 36
S164: Figure 9b | U164: OSUPREGECO | V164: =VLOOKUP($U164,Output!$C:$AL,V$163,FALSE) -> 1948649.5 | W164: =VLOOKUP($U164,Output!$C:$AL,W$163,FALSE) -> 1944651.42 | X164: =VLOOKUP($U164,Output!$C:$AL,X$163,FALSE) -> 1941672.93 | Y164: =VLOOKUP($U164,Output!$C:$AL,Y$163,FALSE) -> 1938801.33 | Z164: =VLOOKUP($U164,Output!$C:$AL,Z$163,FALSE) -> 1935921.49 | AA164: =VLOOKUP($U164,Output!$C:$AL,AA$163,FALSE) -> 1933597.88 | AB164: =VLOOKUP($U164,Output!$C:$AL,AB$163,FALSE) -> 1931097.5 | AC164: =VLOOKUP($U164,Output!$C:$AL,AC$163,FALSE) -> 1927768.3 | AD164: =VLOOKUP($U164,Output!$C:$AL,AD$163,FALSE) -> 1924456.96 | AE164: =VLOOKUP($U164,Output!$C:$AL,AE$163,FALSE) -> 1922759.64 | AF164: =VLOOKUP($U164,Output!$C:$AL,AF$163,FALSE) -> 1920446.55 | AG164: =VLOOKUP($U164,Output!$C:$AL,AG$163,FALSE) -> 1919253.51 | AH164: =VLOOKUP($U164,Output!$C:$AL,AH$163,FALSE) -> 1918298.64 | AI164: =VLOOKUP($U164,Output!$C:$AL,AI$163,FALSE) -> 1917757.72 | AJ164: =VLOOKUP($U164,Output!$C:$AL,AJ$163,FALSE) -> 1916766.24 | AK164: =VLOOKUP($U164,Output!$C:$AL,AK$163,FALSE) -> 1915119.36 | AL164: =VLOOKUP($U164,Output!$C:$AL,AL$163,FALSE) -> 1913648.3 | AM164: =VLOOKUP($U164,Output!$C:$AL,AM$163,FALSE) -> 1913406.85 | AN164: =VLOOKUP($U164,Output!$C:$AL,AN$163,FALSE) -> 1913287.89 | AO164: =VLOOKUP($U164,Output!$C:$AL,AO$163,FALSE) -> 1913119.95 | AP164: =VLOOKUP($U164,Output!$C:$AL,AP$163,FALSE) -> 1912918.55 | AQ164: =VLOOKUP($U164,Output!$C:$AL,AQ$163,FALSE) -> 1912620.17 | AR164: =VLOOKUP($U164,Output!$C:$AL,AR$163,FALSE) -> 1912322.69 | AS164: =VLOOKUP($U164,Output!$C:$AL,AS$163,FALSE) -> 1912162.92 | AT164: =VLOOKUP($U164,Output!$C:$AL,AT$163,FALSE) -> 1912085.62 | AU164: =VLOOKUP($U164,Output!$C:$AL,AU$163,FALSE) -> 1912025.06 | AV164: =VLOOKUP($U164,Output!$C:$AL,AV$163,FALSE) -> 1912016.5 | AW164: =VLOOKUP($U164,Output!$C:$AL,AW$163,FALSE) -> 1911870.14 | AX164: =VLOOKUP($U164,Output!$C:$AL,AX$163,FALSE) -> 1911800.41 | AY164: =VLOOKUP($U164,Output!$C:$AL,AY$163,FALSE) -> 1911726.88 | AZ164: =VLOOKUP($U164,Output!$C:$AL,AZ$163,FALSE) -> 1911720.43
S165: Figure 9b | T165: Élevé | U165: OSUPVIEUXALERTEREGECO | V165: =VLOOKUP($U165,Output!$C:$AL,V$163,FALSE) -> 371503.43 | W165: =VLOOKUP($U165,Output!$C:$AL,W$163,FALSE) -> 370754.9 | X165: =VLOOKUP($U165,Output!$C:$AL,X$163,FALSE) -> 370193.61 | Y165: =VLOOKUP($U165,Output!$C:$AL,Y$163,FALSE) -> 369645.19 | Z165: =VLOOKUP($U165,Output!$C:$AL,Z$163,FALSE) -> 369083.51 | AA165: =VLOOKUP($U165,Output!$C:$AL,AA$163,FALSE) -> 368619.73 | AB165: =VLOOKUP($U165,Output!$C:$AL,AB$163,FALSE) -> 368133.8 | AC165: =VLOOKUP($U165,Output!$C:$AL,AC$163,FALSE) -> 367496.49 | AD165: =VLOOKUP($U165,Output!$C:$AL,AD$163,FALSE) -> 366871.58 | AE165: =VLOOKUP($U165,Output!$C:$AL,AE$163,FALSE) -> 366553.64 | AF165: =VLOOKUP($U165,Output!$C:$AL,AF$163,FALSE) -> 366109.29 | AG165: =VLOOKUP($U165,Output!$C:$AL,AG$163,FALSE) -> 365881 | AH165: =VLOOKUP($U165,Output!$C:$AL,AH$163,FALSE) -> 365704.49 | AI165: =VLOOKUP($U165,Output!$C:$AL,AI$163,FALSE) -> 365603.44 | AJ165: =VLOOKUP($U165,Output!$C:$AL,AJ$163,FALSE) -> 365414.44 | AK165: =VLOOKUP($U165,Output!$C:$AL,AK$163,FALSE) -> 365095.12 | AL165: =VLOOKUP($U165,Output!$C:$AL,AL$163,FALSE) -> 364809.62 | AM165: =VLOOKUP($U165,Output!$C:$AL,AM$163,FALSE) -> 364766.82 | AN165: =VLOOKUP($U165,Output!$C:$AL,AN$163,FALSE) -> 364744.23 | AO165: =VLOOKUP($U165,Output!$C:$AL,AO$163,FALSE) -> 364712.85 | AP165: =VLOOKUP($U165,Output!$C:$AL,AP$163,FALSE) -> 364674.14 | AQ165: =VLOOKUP($U165,Output!$C:$AL,AQ$163,FALSE) -> 364616.33 | AR165: =VLOOKUP($U165,Output!$C:$AL,AR$163,FALSE) -> 364558.65 | AS165: =VLOOKUP($U165,Output!$C:$AL,AS$163,FALSE) -> 364527.72 | AT165: =VLOOKUP($U165,Output!$C:$AL,AT$163,FALSE) -> 364512.68 | AU165: =VLOOKUP($U165,Output!$C:$AL,AU$163,FALSE) -> 364500.88 | AV165: =VLOOKUP($U165,Output!$C:$AL,AV$163,FALSE) -> 364499.21 | AW165: =VLOOKUP($U165,Output!$C:$AL,AW$163,FALSE) -> 364470.67 | AX165: =VLOOKUP($U165,Output!$C:$AL,AX$163,FALSE) -> 364457.07 | AY165: =VLOOKUP($U165,Output!$C:$AL,AY$163,FALSE) -> 364442.74 | AZ165: =VLOOKUP($U165,Output!$C:$AL,AZ$163,FALSE) -> 364441.48
S166: Figure 9b | U166: OSUPVIEUXACCEPTREGECO | V166: =VLOOKUP($U166,Output!$C:$AL,V$163,FALSE) -> 619172.38 | W166: =VLOOKUP($U166,Output!$C:$AL,W$163,FALSE) -> 617924.84 | X166: =VLOOKUP($U166,Output!$C:$AL,X$163,FALSE) -> 616989.36 | Y166: =VLOOKUP($U166,Output!$C:$AL,Y$163,FALSE) -> 616075.31 | Z166: =VLOOKUP($U166,Output!$C:$AL,Z$163,FALSE) -> 615139.18 | AA166: =VLOOKUP($U166,Output!$C:$AL,AA$163,FALSE) -> 614366.22 | AB166: =VLOOKUP($U166,Output!$C:$AL,AB$163,FALSE) -> 613556.33 | AC166: =VLOOKUP($U166,Output!$C:$AL,AC$163,FALSE) -> 612494.15 | AD166: =VLOOKUP($U166,Output!$C:$AL,AD$163,FALSE) -> 611452.63 | AE166: =VLOOKUP($U166,Output!$C:$AL,AE$163,FALSE) -> 610922.73 | AF166: =VLOOKUP($U166,Output!$C:$AL,AF$163,FALSE) -> 610182.14 | AG166: =VLOOKUP($U166,Output!$C:$AL,AG$163,FALSE) -> 609801.66 | AH166: =VLOOKUP($U166,Output!$C:$AL,AH$163,FALSE) -> 609507.49 | AI166: =VLOOKUP($U166,Output!$C:$AL,AI$163,FALSE) -> 609339.07 | AJ166: =VLOOKUP($U166,Output!$C:$AL,AJ$163,FALSE) -> 609024.07 | AK166: =VLOOKUP($U166,Output!$C:$AL,AK$163,FALSE) -> 608491.86 | AL166: =VLOOKUP($U166,Output!$C:$AL,AL$163,FALSE) -> 608016.04 | AM166: =VLOOKUP($U166,Output!$C:$AL,AM$163,FALSE) -> 607944.7 | AN166: =VLOOKUP($U166,Output!$C:$AL,AN$163,FALSE) -> 607907.05 | AO166: =VLOOKUP($U166,Output!$C:$AL,AO$163,FALSE) -> 607854.75 | AP166: =VLOOKUP($U166,Output!$C:$AL,AP$163,FALSE) -> 607790.24 | AQ166: =VLOOKUP($U166,Output!$C:$AL,AQ$163,FALSE) -> 607693.88 | AR166: =VLOOKUP($U166,Output!$C:$AL,AR$163,FALSE) -> 607597.75 | AS166: =VLOOKUP($U166,Output!$C:$AL,AS$163,FALSE) -> 607546.2 | AT166: =VLOOKUP($U166,Output!$C:$AL,AT$163,FALSE) -> 607521.13 | AU166: =VLOOKUP($U166,Output!$C:$AL,AU$163,FALSE) -> 607501.46 | AV166: =VLOOKUP($U166,Output!$C:$AL,AV$163,FALSE) -> 607498.69 | AW166: =VLOOKUP($U166,Output!$C:$AL,AW$163,FALSE) -> 607451.12 | AX166: =VLOOKUP($U166,Output!$C:$AL,AX$163,FALSE) -> 607428.46 | AY166: =VLOOKUP($U166,Output!$C:$AL,AY$163,FALSE) -> 607404.56 | AZ166: =VLOOKUP($U166,Output!$C:$AL,AZ$163,FALSE) -> 607402.46
S167: Figure 9b | T167: Moyen | V167: =V166-V165 -> 247668.95 | W167: =W166-W165 -> 247169.94 | X167: 246795.75 | Y167: 246430.12 | Z167: 246055.67 | AA167: 245746.49 | AB167: 245422.53 | AC167: 244997.66 | AD167: 244581.05 | AE167: 244369.09 | AF167: 244072.85 | AG167: 243920.66 | AH167: 243803 | AI167: 243735.63 | AJ167: 243609.63 | AK167: 243396.74 | AL167: 243206.42 | AM167: 243177.88 | AN167: 243162.82 | AO167: 243141.9 | AP167: 243116.1 | AQ167: 243077.55 | AR167: 243039.1 | AS167: 243018.48 | AT167: 243008.45 | AU167: 243000.58 | AV167: 242999.48 | AW167: 242980.45 | AX167: 242971.39 | AY167: 242961.82 | AZ167: 242960.98
S168: Figure 9b | T168: Faible | V168: =$V$164-V165-V167 -> 1329477.12 | W168: 1330724.66 | X168: 1331660.14 | Y168: 1332574.19 | Z168: 1333510.32 | AA168: 1334283.28 | AB168: 1335093.17 | AC168: 1336155.35 | AD168: 1337196.87 | AE168: 1337726.77 | AF168: 1338467.36 | AG168: 1338847.84 | AH168: 1339142.01 | AI168: 1339310.43 | AJ168: 1339625.43 | AK168: 1340157.64 | AL168: 1340633.46 | AM168: 1340704.8 | AN168: 1340742.45 | AO168: 1340794.75 | AP168: 1340859.26 | AQ168: 1340955.62 | AR168: 1341051.75 | AS168: 1341103.3 | AT168: 1341128.37 | AU168: 1341148.04 | AV168: 1341150.81 | AW168: 1341198.38 | AX168: 1341221.04 | AY168: 1341244.94 | AZ168: 1341247.04
S169: Figure 9b | T169: Niveau prédit | U169: OSUPVIEUXTOTREGECO | V169: =VLOOKUP($U169,Output!$C:$AL,V$163,FALSE) -> 994374.7 | W169: =VLOOKUP($U169,Output!$C:$AL,W$163,FALSE) -> 939147.53 | X169: =VLOOKUP($U169,Output!$C:$AL,X$163,FALSE) -> 893387.28 | Y169: =VLOOKUP($U169,Output!$C:$AL,Y$163,FALSE) -> 852066.91 | Z169: =VLOOKUP($U169,Output!$C:$AL,Z$163,FALSE) -> 814432.44 | AA169: =VLOOKUP($U169,Output!$C:$AL,AA$163,FALSE) -> 796429.59 | AB169: =VLOOKUP($U169,Output!$C:$AL,AB$163,FALSE) -> 760583.53 | AC169: =VLOOKUP($U169,Output!$C:$AL,AC$163,FALSE) -> 749519.11 | AD169: =VLOOKUP($U169,Output!$C:$AL,AD$163,FALSE) -> 698483.66 | AE169: =VLOOKUP($U169,Output!$C:$AL,AE$163,FALSE) -> 682338 | AF169: =VLOOKUP($U169,Output!$C:$AL,AF$163,FALSE) -> 647002.23 | AG169: =VLOOKUP($U169,Output!$C:$AL,AG$163,FALSE) -> 636628.87 | AH169: =VLOOKUP($U169,Output!$C:$AL,AH$163,FALSE) -> 630259.52 | AI169: =VLOOKUP($U169,Output!$C:$AL,AI$163,FALSE) -> 633759.41 | AJ169: =VLOOKUP($U169,Output!$C:$AL,AJ$163,FALSE) -> 626933.7 | AK169: =VLOOKUP($U169,Output!$C:$AL,AK$163,FALSE) -> 634080.23 | AL169: =VLOOKUP($U169,Output!$C:$AL,AL$163,FALSE) -> 652491.13 | AM169: =VLOOKUP($U169,Output!$C:$AL,AM$163,FALSE) -> 705565.69 | AN169: =VLOOKUP($U169,Output!$C:$AL,AN$163,FALSE) -> 745043.28 | AO169: =VLOOKUP($U169,Output!$C:$AL,AO$163,FALSE) -> 758636.77 | AP169: =VLOOKUP($U169,Output!$C:$AL,AP$163,FALSE) -> 758464.24 | AQ169: =VLOOKUP($U169,Output!$C:$AL,AQ$163,FALSE) -> 743140.56 | AR169: =VLOOKUP($U169,Output!$C:$AL,AR$163,FALSE) -> 742770.99 | AS169: =VLOOKUP($U169,Output!$C:$AL,AS$163,FALSE) -> 754596.68 | AT169: =VLOOKUP($U169,Output!$C:$AL,AT$163,FALSE) -> 770502.93 | AU169: =VLOOKUP($U169,Output!$C:$AL,AU$163,FALSE) -> 778768.07 | AV169: =VLOOKUP($U169,Output!$C:$AL,AV$163,FALSE) -> 747022.49 | AW169: =VLOOKUP($U169,Output!$C:$AL,AW$163,FALSE) -> 726344.51 | AX169: =VLOOKUP($U169,Output!$C:$AL,AX$163,FALSE) -> 703238.59 | AY169: =VLOOKUP($U169,Output!$C:$AL,AY$163,FALSE) -> 710727.27 | AZ169: =VLOOKUP($U169,Output!$C:$AL,AZ$163,FALSE) -> 707835.78
S170: Figure 9b | T170: Portrait préindustriel
B176: Figure 9c Évolution de la superficie des peuplements en régénération selon leur degré d'altération
U177: Période | V177: P0 | W177: P1 | X177: P2 | Y177: P3 | Z177: P4 | AA177: P5 | AB177: P6 | AC177: P7 | AD177: P8 | AE177: P9 | AF177: P10 | AG177: P11 | AH177: P12 | AI177: P13 | AJ177: P14 | AK177: P15 | AL177: P16 | AM177: P17 | AN177: P18 | AO177: P19 | AP177: P20 | AQ177: P21 | AR177: P22 | AS177: P23 | AT177: P24 | AU177: P25 | AV177: P26 | AW177: P27 | AX177: P28 | AY177: P29 | AZ177: P30
U178: Axe des "X" Fin de période | V178: 2018 | W178: 2023 | X178: 2028 | Y178: 2033 | Z178: 2038 | AA178: 2043 | AB178: 2048 | AC178: 2053 | AD178: 2058 | AE178: 2063 | AF178: 2068 | AG178: 2073 | AH178: 2078 | AI178: 2083 | AJ178: 2088 | AK178: 2093 | AL178: 2098 | AM178: 2103 | AN178: 2108 | AO178: 2113 | AP178: 2118 | AQ178: 2123 | AR178: 2128 | AS178: 2133 | AT178: 2138 | AU178: 2143 | AV178: 2148 | AW178: 2153 | AX178: 2158 | AY178: 2163 | AZ178: 2168
S179: =LEFT(B$176,10) -> Figure 9c | U179: Colonne | V179: 6 | W179: 7 | X179: 8 | Y179: 9 | Z179: 10 | AA179: 11 | AB179: 12 | AC179: 13 | AD179: 14 | AE179: 15 | AF179: 16 | AG179: 17 | AH179: 18 | AI179: 19 | AJ179: 20 | AK179: 21 | AL179: 22 | AM179: 23 | AN179: 24 | AO179: 25 | AP179: 26 | AQ179: 27 | AR179: 28 | AS179: 29 | AT179: 30 | AU179: 31 | AV179: 32 | AW179: 33 | AX179: 34 | AY179: 35 | AZ179: 36
S180: Figure 9c | T180: Niveau prédit | U180: OSUPJEUNEREGECO | V180: =VLOOKUP($U180,Output!$C:$AL,V$179,FALSE) -> 396673.7 | W180: =VLOOKUP($U180,Output!$C:$AL,W$179,FALSE) -> 385030.35 | X180: =VLOOKUP($U180,Output!$C:$AL,X$179,FALSE) -> 364740.06 | Y180: =VLOOKUP($U180,Output!$C:$AL,Y$179,FALSE) -> 325451.67 | Z180: =VLOOKUP($U180,Output!$C:$AL,Z$179,FALSE) -> 298773.54 | AA180: =VLOOKUP($U180,Output!$C:$AL,AA$179,FALSE) -> 308638.16 | AB180: =VLOOKUP($U180,Output!$C:$AL,AB$179,FALSE) -> 296235.3 | AC180: =VLOOKUP($U180,Output!$C:$AL,AC$179,FALSE) -> 293291.3 | AD180: =VLOOKUP($U180,Output!$C:$AL,AD$179,FALSE) -> 278711.39 | AE180: =VLOOKUP($U180,Output!$C:$AL,AE$179,FALSE) -> 280901.24 | AF180: =VLOOKUP($U180,Output!$C:$AL,AF$179,FALSE) -> 267445.55 | AG180: =VLOOKUP($U180,Output!$C:$AL,AG$179,FALSE) -> 236923.78 | AH180: =VLOOKUP($U180,Output!$C:$AL,AH$179,FALSE) -> 215293.95 | AI180: =VLOOKUP($U180,Output!$C:$AL,AI$179,FALSE) -> 222155.62 | AJ180: =VLOOKUP($U180,Output!$C:$AL,AJ$179,FALSE) -> 229132.4 | AK180: =VLOOKUP($U180,Output!$C:$AL,AK$179,FALSE) -> 227338.96 | AL180: =VLOOKUP($U180,Output!$C:$AL,AL$179,FALSE) -> 239822.44 | AM180: =VLOOKUP($U180,Output!$C:$AL,AM$179,FALSE) -> 240428.71 | AN180: =VLOOKUP($U180,Output!$C:$AL,AN$179,FALSE) -> 239791.79 | AO180: =VLOOKUP($U180,Output!$C:$AL,AO$179,FALSE) -> 267971.4 | AP180: =VLOOKUP($U180,Output!$C:$AL,AP$179,FALSE) -> 250794.66 | AQ180: =VLOOKUP($U180,Output!$C:$AL,AQ$179,FALSE) -> 294763.02 | AR180: =VLOOKUP($U180,Output!$C:$AL,AR$179,FALSE) -> 314705.33 | AS180: =VLOOKUP($U180,Output!$C:$AL,AS$179,FALSE) -> 296157.06 | AT180: =VLOOKUP($U180,Output!$C:$AL,AT$179,FALSE) -> 314946.5 | AU180: =VLOOKUP($U180,Output!$C:$AL,AU$179,FALSE) -> 295883.62 | AV180: =VLOOKUP($U180,Output!$C:$AL,AV$179,FALSE) -> 283504.07 | AW180: =VLOOKUP($U180,Output!$C:$AL,AW$179,FALSE) -> 293811.26 | AX180: =VLOOKUP($U180,Output!$C:$AL,AX$179,FALSE) -> 285878.57 | AY180: =VLOOKUP($U180,Output!$C:$AL,AY$179,FALSE) -> 299431.71 | AZ180: =VLOOKUP($U180,Output!$C:$AL,AZ$179,FALSE) -> 285180.71
S181: Figure 9c | U181: OSUPREGECO | V181: =VLOOKUP($U181,Output!$C:$AL,V$179,FALSE) -> 1948649.5 | W181: =VLOOKUP($U181,Output!$C:$AL,W$179,FALSE) -> 1944651.42 | X181: =VLOOKUP($U181,Output!$C:$AL,X$179,FALSE) -> 1941672.93 | Y181: =VLOOKUP($U181,Output!$C:$AL,Y$179,FALSE) -> 1938801.33 | Z181: =VLOOKUP($U181,Output!$C:$AL,Z$179,FALSE) -> 1935921.49 | AA181: =VLOOKUP($U181,Output!$C:$AL,AA$179,FALSE) -> 1933597.88 | AB181: =VLOOKUP($U181,Output!$C:$AL,AB$179,FALSE) -> 1931097.5 | AC181: =VLOOKUP($U181,Output!$C:$AL,AC$179,FALSE) -> 1927768.3 | AD181: =VLOOKUP($U181,Output!$C:$AL,AD$179,FALSE) -> 1924456.96 | AE181: =VLOOKUP($U181,Output!$C:$AL,AE$179,FALSE) -> 1922759.64 | AF181: =VLOOKUP($U181,Output!$C:$AL,AF$179,FALSE) -> 1920446.55 | AG181: =VLOOKUP($U181,Output!$C:$AL,AG$179,FALSE) -> 1919253.51 | AH181: =VLOOKUP($U181,Output!$C:$AL,AH$179,FALSE) -> 1918298.64 | AI181: =VLOOKUP($U181,Output!$C:$AL,AI$179,FALSE) -> 1917757.72 | AJ181: =VLOOKUP($U181,Output!$C:$AL,AJ$179,FALSE) -> 1916766.24 | AK181: =VLOOKUP($U181,Output!$C:$AL,AK$179,FALSE) -> 1915119.36 | AL181: =VLOOKUP($U181,Output!$C:$AL,AL$179,FALSE) -> 1913648.3 | AM181: =VLOOKUP($U181,Output!$C:$AL,AM$179,FALSE) -> 1913406.85 | AN181: =VLOOKUP($U181,Output!$C:$AL,AN$179,FALSE) -> 1913287.89 | AO181: =VLOOKUP($U181,Output!$C:$AL,AO$179,FALSE) -> 1913119.95 | AP181: =VLOOKUP($U181,Output!$C:$AL,AP$179,FALSE) -> 1912918.55 | AQ181: =VLOOKUP($U181,Output!$C:$AL,AQ$179,FALSE) -> 1912620.17 | AR181: =VLOOKUP($U181,Output!$C:$AL,AR$179,FALSE) -> 1912322.69 | AS181: =VLOOKUP($U181,Output!$C:$AL,AS$179,FALSE) -> 1912162.92 | AT181: =VLOOKUP($U181,Output!$C:$AL,AT$179,FALSE) -> 1912085.62 | AU181: =VLOOKUP($U181,Output!$C:$AL,AU$179,FALSE) -> 1912025.06 | AV181: =VLOOKUP($U181,Output!$C:$AL,AV$179,FALSE) -> 1912016.5 | AW181: =VLOOKUP($U181,Output!$C:$AL,AW$179,FALSE) -> 1911870.14 | AX181: =VLOOKUP($U181,Output!$C:$AL,AX$179,FALSE) -> 1911800.41 | AY181: =VLOOKUP($U181,Output!$C:$AL,AY$179,FALSE) -> 1911726.88 | AZ181: =VLOOKUP($U181,Output!$C:$AL,AZ$179,FALSE) -> 1911720.43
S182: Figure 9c | V182: =IFERROR(V180/V181,"0000") -> 0.203563391 | W182: 0.1979945331 | X182: 0.187848352 | Y182: 0.1678623101 | Z182: 0.1543314342 | AA182: 0.1596185863 | AB182: 0.1534025599 | AC182: 0.1521403272 | AD182: 0.1448259929 | AE182: 0.1460927482 | AF182: 0.139262168 | AG182: 0.1234457974 | AH182: 0.112231717 | AI182: 0.1158413379 | AJ182: 0.1195411288 | AK182: 0.1187074627 | AL182: 0.1253221086 | AM182: 0.1256547765 | AN182: 0.1253296962 | AO182: 0.1400703599 | AP182: 0.1311057703 | AQ182: 0.1541147713 | AR182: 0.1645670637 | AS182: 0.1548806626 | AT182: 0.1647135969 | AU182: 0.154748819 | AV182: 0.1482749077 | AW182: 0.1536774145 | AX182: 0.1495336901 | AY182: 0.1566289166 | AZ182: 0.1491749032
S183: Figure 9c
S184: Figure 9c | U184: OSUPJEUNEALERTEREGECO | V184: =VLOOKUP($U184,Output!$C:$AL,V$179,FALSE) -> 658617.3 | W184: =VLOOKUP($U184,Output!$C:$AL,W$179,FALSE) -> 657311.3 | X184: =VLOOKUP($U184,Output!$C:$AL,X$179,FALSE) -> 656321.45 | Y184: =VLOOKUP($U184,Output!$C:$AL,Y$179,FALSE) -> 655357.9 | Z184: =VLOOKUP($U184,Output!$C:$AL,Z$179,FALSE) -> 654358.88 | AA184: =VLOOKUP($U184,Output!$C:$AL,AA$179,FALSE) -> 653544.05 | AB184: =VLOOKUP($U184,Output!$C:$AL,AB$179,FALSE) -> 652675.19 | AC184: =VLOOKUP($U184,Output!$C:$AL,AC$179,FALSE) -> 651540.33 | AD184: =VLOOKUP($U184,Output!$C:$AL,AD$179,FALSE) -> 650444.6 | AE184: =VLOOKUP($U184,Output!$C:$AL,AE$179,FALSE) -> 649896.12 | AF184: =VLOOKUP($U184,Output!$C:$AL,AF$179,FALSE) -> 649113.19 | AG184: =VLOOKUP($U184,Output!$C:$AL,AG$179,FALSE) -> 648711.84 | AH184: =VLOOKUP($U184,Output!$C:$AL,AH$179,FALSE) -> 648400.03 | AI184: =VLOOKUP($U184,Output!$C:$AL,AI$179,FALSE) -> 648222.63 | AJ184: =VLOOKUP($U184,Output!$C:$AL,AJ$179,FALSE) -> 647885.48 | AK184: =VLOOKUP($U184,Output!$C:$AL,AK$179,FALSE) -> 647317.04 | AL184: =VLOOKUP($U184,Output!$C:$AL,AL$179,FALSE) -> 646806.64 | AM184: =VLOOKUP($U184,Output!$C:$AL,AM$179,FALSE) -> 646730.92 | AN184: =VLOOKUP($U184,Output!$C:$AL,AN$179,FALSE) -> 646691.17 | AO184: =VLOOKUP($U184,Output!$C:$AL,AO$179,FALSE) -> 646635.64 | AP184: =VLOOKUP($U184,Output!$C:$AL,AP$179,FALSE) -> 646566.38 | AQ184: =VLOOKUP($U184,Output!$C:$AL,AQ$179,FALSE) -> 646462.63 | AR184: =VLOOKUP($U184,Output!$C:$AL,AR$179,FALSE) -> 646359.18 | AS184: =VLOOKUP($U184,Output!$C:$AL,AS$179,FALSE) -> 646303.68 | AT184: =VLOOKUP($U184,Output!$C:$AL,AT$179,FALSE) -> 646276.68 | AU184: =VLOOKUP($U184,Output!$C:$AL,AU$179,FALSE) -> 646255.51 | AV184: =VLOOKUP($U184,Output!$C:$AL,AV$179,FALSE) -> 646252.52 | AW184: =VLOOKUP($U184,Output!$C:$AL,AW$179,FALSE) -> 646201.3 | AX184: =VLOOKUP($U184,Output!$C:$AL,AX$179,FALSE) -> 646176.89 | AY184: =VLOOKUP($U184,Output!$C:$AL,AY$179,FALSE) -> 646151.16 | AZ184: =VLOOKUP($U184,Output!$C:$AL,AZ$179,FALSE) -> 646148.9
S185: Figure 9c | T185: Faible | U185: OSUPJEUNEACCEPTREGECO | V185: =VLOOKUP($U185,Output!$C:$AL,V$179,FALSE) -> 464662.81 | W185: =VLOOKUP($U185,Output!$C:$AL,W$179,FALSE) -> 463755.86 | X185: =VLOOKUP($U185,Output!$C:$AL,X$179,FALSE) -> 463060.04 | Y185: =VLOOKUP($U185,Output!$C:$AL,Y$179,FALSE) -> 462383.6 | Z185: =VLOOKUP($U185,Output!$C:$AL,Z$179,FALSE) -> 461672.53 | AA185: =VLOOKUP($U185,Output!$C:$AL,AA$179,FALSE) -> 461100.02 | AB185: =VLOOKUP($U185,Output!$C:$AL,AB$179,FALSE) -> 460481.19 | AC185: =VLOOKUP($U185,Output!$C:$AL,AC$179,FALSE) -> 459678.14 | AD185: =VLOOKUP($U185,Output!$C:$AL,AD$179,FALSE) -> 458913.54 | AE185: =VLOOKUP($U185,Output!$C:$AL,AE$179,FALSE) -> 458534.79 | AF185: =VLOOKUP($U185,Output!$C:$AL,AF$179,FALSE) -> 457983.17 | AG185: =VLOOKUP($U185,Output!$C:$AL,AG$179,FALSE) -> 457701.13 | AH185: =VLOOKUP($U185,Output!$C:$AL,AH$179,FALSE) -> 457482.94 | AI185: =VLOOKUP($U185,Output!$C:$AL,AI$179,FALSE) -> 457359.63 | AJ185: =VLOOKUP($U185,Output!$C:$AL,AJ$179,FALSE) -> 457121.63 | AK185: =VLOOKUP($U185,Output!$C:$AL,AK$179,FALSE) -> 456717.88 | AL185: =VLOOKUP($U185,Output!$C:$AL,AL$179,FALSE) -> 456354.58 | AM185: =VLOOKUP($U185,Output!$C:$AL,AM$179,FALSE) -> 456302.82 | AN185: =VLOOKUP($U185,Output!$C:$AL,AN$179,FALSE) -> 456274.96 | AO185: =VLOOKUP($U185,Output!$C:$AL,AO$179,FALSE) -> 456236.22 | AP185: =VLOOKUP($U185,Output!$C:$AL,AP$179,FALSE) -> 456187.11 | AQ185: =VLOOKUP($U185,Output!$C:$AL,AQ$179,FALSE) -> 456113.19 | AR185: =VLOOKUP($U185,Output!$C:$AL,AR$179,FALSE) -> 456039.49 | AS185: =VLOOKUP($U185,Output!$C:$AL,AS$179,FALSE) -> 455999.96 | AT185: =VLOOKUP($U185,Output!$C:$AL,AT$179,FALSE) -> 455980.69 | AU185: =VLOOKUP($U185,Output!$C:$AL,AU$179,FALSE) -> 455965.58 | AV185: =VLOOKUP($U185,Output!$C:$AL,AV$179,FALSE) -> 455963.45 | AW185: =VLOOKUP($U185,Output!$C:$AL,AW$179,FALSE) -> 455926.86 | AX185: =VLOOKUP($U185,Output!$C:$AL,AX$179,FALSE) -> 455909.43 | AY185: =VLOOKUP($U185,Output!$C:$AL,AY$179,FALSE) -> 455891.05 | AZ185: =VLOOKUP($U185,Output!$C:$AL,AZ$179,FALSE) -> 455889.43
S186: Figure 9c | T186: Moyen | V186: =V184-V185 -> 193954.49 | W186: 193555.44 | X186: 193261.41 | Y186: 192974.3 | Z186: 192686.35 | AA186: 192444.03 | AB186: 192194 | AC186: 191862.19 | AD186: 191531.06 | AE186: 191361.33 | AF186: 191130.02 | AG186: 191010.71 | AH186: 190917.09 | AI186: 190863 | AJ186: 190763.85 | AK186: 190599.16 | AL186: 190452.06 | AM186: 190428.1 | AN186: 190416.21 | AO186: 190399.42 | AP186: 190379.27 | AQ186: 190349.44 | AR186: 190319.69 | AS186: 190303.72 | AT186: 190295.99 | AU186: 190289.93 | AV186: 190289.07 | AW186: 190274.44 | AX186: 190267.46 | AY186: 190260.11 | AZ186: 190259.47
S187: Figure 9c | T187: Élevé | V187: =$V$181-V184 -> 1290032.2 | W187: 1291338.2 | X187: 1292328.05 | Y187: 1293291.6 | Z187: 1294290.62 | AA187: 1295105.45 | AB187: 1295974.31 | AC187: 1297109.17 | AD187: 1298204.9 | AE187: 1298753.38 | AF187: 1299536.31 | AG187: 1299937.66 | AH187: 1300249.47 | AI187: 1300426.87 | AJ187: 1300764.02 | AK187: 1301332.46 | AL187: 1301842.86 | AM187: 1301918.58 | AN187: 1301958.33 | AO187: 1302013.86 | AP187: 1302083.12 | AQ187: 1302186.87 | AR187: 1302290.32 | AS187: 1302345.82 | AT187: 1302372.82 | AU187: 1302393.99 | AV187: 1302396.98 | AW187: 1302448.2 | AX187: 1302472.61 | AY187: 1302498.34 | AZ187: 1302500.6
U199: Période | V199: P0 | W199: P1 | X199: P2 | Y199: P3 | Z199: P4 | AA199: P5 | AB199: P6 | AC199: P7 | AD199: P8 | AE199: P9 | AF199: P10 | AG199: P11 | AH199: P12 | AI199: P13 | AJ199: P14 | AK199: P15 | AL199: P16 | AM199: P17 | AN199: P18 | AO199: P19 | AP199: P20 | AQ199: P21 | AR199: P22 | AS199: P23 | AT199: P24 | AU199: P25 | AV199: P26 | AW199: P27 | AX199: P28 | AY199: P29 | AZ199: P30
U200: Axe des "X" Fin de période | V200: 2018 | W200: 2023 | X200: 2028 | Y200: 2033 | Z200: 2038 | AA200: 2043 | AB200: 2048 | AC200: 2053 | AD200: 2058 | AE200: 2063 | AF200: 2068 | AG200: 2073 | AH200: 2078 | AI200: 2083 | AJ200: 2088 | AK200: 2093 | AL200: 2098 | AM200: 2103 | AN200: 2108 | AO200: 2113 | AP200: 2118 | AQ200: 2123 | AR200: 2128 | AS200: 2133 | AT200: 2138 | AU200: 2143 | AV200: 2148 | AW200: 2153 | AX200: 2158 | AY200: 2163 | AZ200: 2168
U201: Colonne | V201: 6 | W201: 7 | X201: 8 | Y201: 9 | Z201: 10 | AA201: 11 | AB201: 12 | AC201: 13 | AD201: 14 | AE201: 15 | AF201: 16 | AG201: 17 | AH201: 18 | AI201: 19 | AJ201: 20 | AK201: 21 | AL201: 22 | AM201: 23 | AN201: 24 | AO201: 25 | AP201: 26 | AQ201: 27 | AR201: 28 | AS201: 29 | AT201: 30 | AU201: 31 | AV201: 32 | AW201: 33 | AX201: 34 | AY201: 35 | AZ201: 36
B202: Figure 10a Évolution de la superficie selon le type de couvert | S202: =LEFT(B$202,10) -> Figure 10a | U202: OSUPINC
S203: Figure 10a | U203: Résineux | V203: =SUM(V214,V220,V221,V222,V224,V225) -> 1197185.1 | W203: =SUM(W214,W220,W221,W222,W224,W225) -> 1181585.3 | X203: 1182233.94 | Y203: 1177403.8 | Z203: 1173673.54 | AA203: 1167350.65 | AB203: 1163579.8 | AC203: 1156428.6 | AD203: 1144210.16 | AE203: 1126301.79 | AF203: 1120799.61 | AG203: 1107940.1 | AH203: 1091257.57 | AI203: 1080863.15 | AJ203: 1078562.01 | AK203: 1071240.13 | AL203: 1070250.22 | AM203: 1058979.14 | AN203: 1060511.71 | AO203: 1061474.85 | AP203: 1062505.14 | AQ203: 1059635.42 | AR203: 1054360.5 | AS203: 1044219.85 | AT203: 1049471.38 | AU203: 1048607.57 | AV203: 1049862.79 | AW203: 1054152.91 | AX203: 1050441.12 | AY203: 1048613.22 | AZ203: 1048793.78
S204: Figure 10a | U204: Mixtes résineux | V204: =V223 -> 107461.6 | W204: =W223 -> 118721.85 | X204: 115367.82 | Y204: 118043.72 | Z204: 118716.36 | AA204: 124623.1 | AB204: 126071.75 | AC204: 128432.46 | AD204: 131971.16 | AE204: 142025 | AF204: 141238.2 | AG204: 144628.39 | AH204: 151681.04 | AI204: 155934.87 | AJ204: 155224.54 | AK204: 158588.61 | AL204: 160140.68 | AM204: 172499.32 | AN204: 170068.52 | AO204: 172086.73 | AP204: 172655.16 | AQ204: 176996.49 | AR204: 177882.5 | AS204: 181469.04 | AT204: 182762.41 | AU204: 184644.02 | AV204: 184442.32 | AW204: 183005.6 | AX204: 184620.29 | AY204: 184011.06 | AZ204: 183222.02
S205: Figure 10a | U205: Mixtes feuillus intolérants | V205: =V213+V219 -> 26955.5 | W205: =W213+W219 -> 25307.79 | X205: =X213+X219 -> 24316.54 | Y205: =Y213+Y219 -> 23737.62 | Z205: 23450.44 | AA205: 21684.63 | AB205: 19794.61 | AC205: 19755.39 | AD205: 24021.65 | AE205: 29794.66 | AF205: 33837.59 | AG205: 41367.34 | AH205: 49518.25 | AI205: 54899.89 | AJ205: 57180.93 | AK205: 58407.53 | AL205: 56706.6 | AM205: 55078.77 | AN205: 55891.82 | AO205: 53584.85 | AP205: 51809.43 | AQ205: 50953.41 | AR205: 55045.95 | AS205: 61837.84 | AT205: 55594.66 | AU205: 55605.73 | AV205: 54810.85 | AW205: 52323.55 | AX205: 53645.76 | AY205: 55983.48 | AZ205: 55433.61
S206: Figure 10a | U206: Mixtes feuillus tolérants | V206: =V217 -> 0 | W206: =W217 -> 0 | X206: 0 | Y206: 0 | Z206: 0 | AA206: 0 | AB206: 0 | AC206: 0 | AD206: 0 | AE206: 0 | AF206: 0 | AG206: 0 | AH206: 0 | AI206: 0 | AJ206: 0 | AK206: 0 | AL206: 0 | AM206: 0 | AN206: 0 | AO206: 0 | AP206: 0 | AQ206: 0 | AR206: 0 | AS206: 0 | AT206: 0 | AU206: 0 | AV206: 0 | AW206: 0 | AX206: 0 | AY206: 0 | AZ206: 0
S207: Figure 10a | U207: Feuillus intolérants | V207: =V212+V215+V218 -> 41314.1 | W207: =W212+W215+W218 -> 43303.28 | X207: =X212+X215+X218 -> 44021.42 | Y207: 43882.98 | Z207: 44347.95 | AA207: 44206.31 | AB207: 45918.14 | AC207: 47418.65 | AD207: 48520.78 | AE207: 48904.99 | AF207: 48837.96 | AG207: 49584.48 | AH207: 50108.6 | AI207: 50326.6 | AJ207: 50065.55 | AK207: 51149.89 | AL207: 50817.61 | AM207: 51116.41 | AN207: 51082.63 | AO207: 50240.31 | AP207: 50215.63 | AQ207: 49301.65 | AR207: 49300.55 | AS207: 48903 | AT207: 48523.97 | AU207: 47434.53 | AV207: 47167.34 | AW207: 46654.87 | AX207: 47360.04 | AY207: 47385.91 | AZ207: 48537.8
S208: Figure 10a | U208: Feuillus tolérants | V208: =V216 -> 0 | W208: =W216 -> 0 | X208: 0 | Y208: 0 | Z208: 0 | AA208: 0 | AB208: 0 | AC208: 0 | AD208: 0 | AE208: 0 | AF208: 0 | AG208: 0 | AH208: 0 | AI208: 0 | AJ208: 0 | AK208: 0 | AL208: 0 | AM208: 0 | AN208: 0 | AO208: 0 | AP208: 0 | AQ208: 0 | AR208: 0 | AS208: 0 | AT208: 0 | AU208: 0 | AV208: 0 | AW208: 0 | AX208: 0 | AY208: 0 | AZ208: 0
S209: Figure 10a | U209: Total | V209: =SUM(V203:V208) -> 1372916.3 | W209: =SUM(W203:W208) -> 1368918.22 | X209: =SUM(X203:X208) -> 1365939.72 | Y209: 1363068.12 | Z209: 1360188.29 | AA209: 1357864.69 | AB209: 1355364.3 | AC209: 1352035.1 | AD209: 1348723.75 | AE209: 1347026.44 | AF209: 1344713.36 | AG209: 1343520.31 | AH209: 1342565.46 | AI209: 1342024.51 | AJ209: 1341033.03 | AK209: 1339386.16 | AL209: 1337915.11 | AM209: 1337673.64 | AN209: 1337554.68 | AO209: 1337386.74 | AP209: 1337185.36 | AQ209: 1336886.97 | AR209: 1336589.5 | AS209: 1336429.73 | AT209: 1336352.42 | AU209: 1336291.85 | AV209: 1336283.3 | AW209: 1336136.93 | AX209: 1336067.21 | AY209: 1335993.67 | AZ209: 1335987.21
S210: Figure 10a
S211: Figure 10a
S212: Figure 10a | T212: Bétulaies blanches | U212: (FCTYF_BOP) | V212: =VLOOKUP($U$202&$U212,GTYF!$C:$AP,V$201,FALSE) -> 30846.1 | W212: =VLOOKUP($U$202&$U212,GTYF!$C:$AP,W$201,FALSE) -> 32835.28 | X212: =VLOOKUP($U$202&$U212,GTYF!$C:$AP,X$201,FALSE) -> 33566.71 | Y212: =VLOOKUP($U$202&$U212,GTYF!$C:$AP,Y$201,FALSE) -> 33483.62 | Z212: =VLOOKUP($U$202&$U212,GTYF!$C:$AP,Z$201,FALSE) -> 33991.09 | AA212: =VLOOKUP($U$202&$U212,GTYF!$C:$AP,AA$201,FALSE) -> 33909.08 | AB212: =VLOOKUP($U$202&$U212,GTYF!$C:$AP,AB$201,FALSE) -> 35653.14 | AC212: =VLOOKUP($U$202&$U212,GTYF!$C:$AP,AC$201,FALSE) -> 37184.87 | AD212: =VLOOKUP($U$202&$U212,GTYF!$C:$AP,AD$201,FALSE) -> 38287 | AE212: =VLOOKUP($U$202&$U212,GTYF!$C:$AP,AE$201,FALSE) -> 38686.02 | AF212: =VLOOKUP($U$202&$U212,GTYF!$C:$AP,AF$201,FALSE) -> 38649.6 | AG212: =VLOOKUP($U$202&$U212,GTYF!$C:$AP,AG$201,FALSE) -> 39426.76 | AH212: =VLOOKUP($U$202&$U212,GTYF!$C:$AP,AH$201,FALSE) -> 39957.5 | AI212: =VLOOKUP($U$202&$U212,GTYF!$C:$AP,AI$201,FALSE) -> 40186.53 | AJ212: =VLOOKUP($U$202&$U212,GTYF!$C:$AP,AJ$201,FALSE) -> 39926.37 | AK212: =VLOOKUP($U$202&$U212,GTYF!$C:$AP,AK$201,FALSE) -> 41011.39 | AL212: =VLOOKUP($U$202&$U212,GTYF!$C:$AP,AL$201,FALSE) -> 40680.22 | AM212: =VLOOKUP($U$202&$U212,GTYF!$C:$AP,AM$201,FALSE) -> 40984.95 | AN212: =VLOOKUP($U$202&$U212,GTYF!$C:$AP,AN$201,FALSE) -> 40951.17 | AO212: =VLOOKUP($U$202&$U212,GTYF!$C:$AP,AO$201,FALSE) -> 40108.85 | AP212: =VLOOKUP($U$202&$U212,GTYF!$C:$AP,AP$201,FALSE) -> 40084.17 | AQ212: =VLOOKUP($U$202&$U212,GTYF!$C:$AP,AQ$201,FALSE) -> 39170.19 | AR212: =VLOOKUP($U$202&$U212,GTYF!$C:$AP,AR$201,FALSE) -> 39169.09 | AS212: =VLOOKUP($U$202&$U212,GTYF!$C:$AP,AS$201,FALSE) -> 38771.54 | AT212: =VLOOKUP($U$202&$U212,GTYF!$C:$AP,AT$201,FALSE) -> 38392.51 | AU212: =VLOOKUP($U$202&$U212,GTYF!$C:$AP,AU$201,FALSE) -> 37303.07 | AV212: =VLOOKUP($U$202&$U212,GTYF!$C:$AP,AV$201,FALSE) -> 37035.88 | AW212: =VLOOKUP($U$202&$U212,GTYF!$C:$AP,AW$201,FALSE) -> 36523.41 | AX212: =VLOOKUP($U$202&$U212,GTYF!$C:$AP,AX$201,FALSE) -> 37228.58 | AY212: =VLOOKUP($U$202&$U212,GTYF!$C:$AP,AY$201,FALSE) -> 37254.45 | AZ212: =VLOOKUP($U$202&$U212,GTYF!$C:$AP,AZ$201,FALSE) -> 38406.34
S213: Figure 10a | T213: Bétulaies blanches à résineux | U213: (FCTYF_BOPR) | V213: =VLOOKUP($U$202&$U213,GTYF!$C:$AP,V$201,FALSE) -> 26955.5 | W213: =VLOOKUP($U$202&$U213,GTYF!$C:$AP,W$201,FALSE) -> 25307.79 | X213: =VLOOKUP($U$202&$U213,GTYF!$C:$AP,X$201,FALSE) -> 24316.54 | Y213: =VLOOKUP($U$202&$U213,GTYF!$C:$AP,Y$201,FALSE) -> 23737.62 | Z213: =VLOOKUP($U$202&$U213,GTYF!$C:$AP,Z$201,FALSE) -> 23450.44 | AA213: =VLOOKUP($U$202&$U213,GTYF!$C:$AP,AA$201,FALSE) -> 21684.63 | AB213: =VLOOKUP($U$202&$U213,GTYF!$C:$AP,AB$201,FALSE) -> 19794.61 | AC213: =VLOOKUP($U$202&$U213,GTYF!$C:$AP,AC$201,FALSE) -> 19755.39 | AD213: =VLOOKUP($U$202&$U213,GTYF!$C:$AP,AD$201,FALSE) -> 24021.65 | AE213: =VLOOKUP($U$202&$U213,GTYF!$C:$AP,AE$201,FALSE) -> 29794.66 | AF213: =VLOOKUP($U$202&$U213,GTYF!$C:$AP,AF$201,FALSE) -> 33837.59 | AG213: =VLOOKUP($U$202&$U213,GTYF!$C:$AP,AG$201,FALSE) -> 41367.34 | AH213: =VLOOKUP($U$202&$U213,GTYF!$C:$AP,AH$201,FALSE) -> 49518.25 | AI213: =VLOOKUP($U$202&$U213,GTYF!$C:$AP,AI$201,FALSE) -> 54899.89 | AJ213: =VLOOKUP($U$202&$U213,GTYF!$C:$AP,AJ$201,FALSE) -> 57180.93 | AK213: =VLOOKUP($U$202&$U213,GTYF!$C:$AP,AK$201,FALSE) -> 58407.53 | AL213: =VLOOKUP($U$202&$U213,GTYF!$C:$AP,AL$201,FALSE) -> 56706.6 | AM213: =VLOOKUP($U$202&$U213,GTYF!$C:$AP,AM$201,FALSE) -> 55078.77 | AN213: =VLOOKUP($U$202&$U213,GTYF!$C:$AP,AN$201,FALSE) -> 55891.82 | AO213: =VLOOKUP($U$202&$U213,GTYF!$C:$AP,AO$201,FALSE) -> 53584.85 | AP213: =VLOOKUP($U$202&$U213,GTYF!$C:$AP,AP$201,FALSE) -> 51809.43 | AQ213: =VLOOKUP($U$202&$U213,GTYF!$C:$AP,AQ$201,FALSE) -> 50953.41 | AR213: =VLOOKUP($U$202&$U213,GTYF!$C:$AP,AR$201,FALSE) -> 55045.95 | AS213: =VLOOKUP($U$202&$U213,GTYF!$C:$AP,AS$201,FALSE) -> 61837.84 | AT213: =VLOOKUP($U$202&$U213,GTYF!$C:$AP,AT$201,FALSE) -> 55594.66 | AU213: =VLOOKUP($U$202&$U213,GTYF!$C:$AP,AU$201,FALSE) -> 55605.73 | AV213: =VLOOKUP($U$202&$U213,GTYF!$C:$AP,AV$201,FALSE) -> 54810.85 | AW213: =VLOOKUP($U$202&$U213,GTYF!$C:$AP,AW$201,FALSE) -> 52323.55 | AX213: =VLOOKUP($U$202&$U213,GTYF!$C:$AP,AX$201,FALSE) -> 53645.76 | AY213: =VLOOKUP($U$202&$U213,GTYF!$C:$AP,AY$201,FALSE) -> 55983.48 | AZ213: =VLOOKUP($U$202&$U213,GTYF!$C:$AP,AZ$201,FALSE) -> 55433.61
S214: Figure 10a | T214: Pessières | U214: (FCTYF_EPX) | V214: =VLOOKUP($U$202&$U214,GTYF!$C:$AP,V$201,FALSE) -> 910710.6 | W214: =VLOOKUP($U$202&$U214,GTYF!$C:$AP,W$201,FALSE) -> 890306.17 | X214: =VLOOKUP($U$202&$U214,GTYF!$C:$AP,X$201,FALSE) -> 889794.48 | Y214: =VLOOKUP($U$202&$U214,GTYF!$C:$AP,Y$201,FALSE) -> 880541.84 | Z214: =VLOOKUP($U$202&$U214,GTYF!$C:$AP,Z$201,FALSE) -> 873451.63 | AA214: =VLOOKUP($U$202&$U214,GTYF!$C:$AP,AA$201,FALSE) -> 865452.13 | AB214: =VLOOKUP($U$202&$U214,GTYF!$C:$AP,AB$201,FALSE) -> 858406.61 | AC214: =VLOOKUP($U$202&$U214,GTYF!$C:$AP,AC$201,FALSE) -> 851419 | AD214: =VLOOKUP($U$202&$U214,GTYF!$C:$AP,AD$201,FALSE) -> 846536.2 | AE214: =VLOOKUP($U$202&$U214,GTYF!$C:$AP,AE$201,FALSE) -> 833366.28 | AF214: =VLOOKUP($U$202&$U214,GTYF!$C:$AP,AF$201,FALSE) -> 834408.6 | AG214: =VLOOKUP($U$202&$U214,GTYF!$C:$AP,AG$201,FALSE) -> 829129.12 | AH214: =VLOOKUP($U$202&$U214,GTYF!$C:$AP,AH$201,FALSE) -> 818509.45 | AI214: =VLOOKUP($U$202&$U214,GTYF!$C:$AP,AI$201,FALSE) -> 819775 | AJ214: =VLOOKUP($U$202&$U214,GTYF!$C:$AP,AJ$201,FALSE) -> 823722.69 | AK214: =VLOOKUP($U$202&$U214,GTYF!$C:$AP,AK$201,FALSE) -> 825169.67 | AL214: =VLOOKUP($U$202&$U214,GTYF!$C:$AP,AL$201,FALSE) -> 825856.87 | AM214: =VLOOKUP($U$202&$U214,GTYF!$C:$AP,AM$201,FALSE) -> 815321.71 | AN214: =VLOOKUP($U$202&$U214,GTYF!$C:$AP,AN$201,FALSE) -> 815501 | AO214: =VLOOKUP($U$202&$U214,GTYF!$C:$AP,AO$201,FALSE) -> 813957.05 | AP214: =VLOOKUP($U$202&$U214,GTYF!$C:$AP,AP$201,FALSE) -> 815208.65 | AQ214: =VLOOKUP($U$202&$U214,GTYF!$C:$AP,AQ$201,FALSE) -> 812592.98 | AR214: =VLOOKUP($U$202&$U214,GTYF!$C:$AP,AR$201,FALSE) -> 809254.38 | AS214: =VLOOKUP($U$202&$U214,GTYF!$C:$AP,AS$201,FALSE) -> 802799.63 | AT214: =VLOOKUP($U$202&$U214,GTYF!$C:$AP,AT$201,FALSE) -> 806486.86 | AU214: =VLOOKUP($U$202&$U214,GTYF!$C:$AP,AU$201,FALSE) -> 805847.66 | AV214: =VLOOKUP($U$202&$U214,GTYF!$C:$AP,AV$201,FALSE) -> 805781.23 | AW214: =VLOOKUP($U$202&$U214,GTYF!$C:$AP,AW$201,FALSE) -> 805457.19 | AX214: =VLOOKUP($U$202&$U214,GTYF!$C:$AP,AX$201,FALSE) -> 801790.74 | AY214: =VLOOKUP($U$202&$U214,GTYF!$C:$AP,AY$201,FALSE) -> 799568.8 | AZ214: =VLOOKUP($U$202&$U214,GTYF!$C:$AP,AZ$201,FALSE) -> 799885.09
S215: Figure 10a | T215: Érablières rouges | U215: (FCTYF_ERO) | V215: =VLOOKUP($U$202&$U215,GTYF!$C:$AP,V$201,FALSE) -> 0 | W215: =VLOOKUP($U$202&$U215,GTYF!$C:$AP,W$201,FALSE) -> 0 | X215: =VLOOKUP($U$202&$U215,GTYF!$C:$AP,X$201,FALSE) -> 0 | Y215: =VLOOKUP($U$202&$U215,GTYF!$C:$AP,Y$201,FALSE) -> 0 | Z215: =VLOOKUP($U$202&$U215,GTYF!$C:$AP,Z$201,FALSE) -> 0 | AA215: =VLOOKUP($U$202&$U215,GTYF!$C:$AP,AA$201,FALSE) -> 0 | AB215: =VLOOKUP($U$202&$U215,GTYF!$C:$AP,AB$201,FALSE) -> 0 | AC215: =VLOOKUP($U$202&$U215,GTYF!$C:$AP,AC$201,FALSE) -> 0 | AD215: =VLOOKUP($U$202&$U215,GTYF!$C:$AP,AD$201,FALSE) -> 0 | AE215: =VLOOKUP($U$202&$U215,GTYF!$C:$AP,AE$201,FALSE) -> 0 | AF215: =VLOOKUP($U$202&$U215,GTYF!$C:$AP,AF$201,FALSE) -> 0 | AG215: =VLOOKUP($U$202&$U215,GTYF!$C:$AP,AG$201,FALSE) -> 0 | AH215: =VLOOKUP($U$202&$U215,GTYF!$C:$AP,AH$201,FALSE) -> 0 | AI215: =VLOOKUP($U$202&$U215,GTYF!$C:$AP,AI$201,FALSE) -> 0 | AJ215: =VLOOKUP($U$202&$U215,GTYF!$C:$AP,AJ$201,FALSE) -> 0 | AK215: =VLOOKUP($U$202&$U215,GTYF!$C:$AP,AK$201,FALSE) -> 0 | AL215: =VLOOKUP($U$202&$U215,GTYF!$C:$AP,AL$201,FALSE) -> 0 | AM215: =VLOOKUP($U$202&$U215,GTYF!$C:$AP,AM$201,FALSE) -> 0 | AN215: =VLOOKUP($U$202&$U215,GTYF!$C:$AP,AN$201,FALSE) -> 0 | AO215: =VLOOKUP($U$202&$U215,GTYF!$C:$AP,AO$201,FALSE) -> 0 | AP215: =VLOOKUP($U$202&$U215,GTYF!$C:$AP,AP$201,FALSE) -> 0 | AQ215: =VLOOKUP($U$202&$U215,GTYF!$C:$AP,AQ$201,FALSE) -> 0 | AR215: =VLOOKUP($U$202&$U215,GTYF!$C:$AP,AR$201,FALSE) -> 0 | AS215: =VLOOKUP($U$202&$U215,GTYF!$C:$AP,AS$201,FALSE) -> 0 | AT215: =VLOOKUP($U$202&$U215,GTYF!$C:$AP,AT$201,FALSE) -> 0 | AU215: =VLOOKUP($U$202&$U215,GTYF!$C:$AP,AU$201,FALSE) -> 0 | AV215: =VLOOKUP($U$202&$U215,GTYF!$C:$AP,AV$201,FALSE) -> 0 | AW215: =VLOOKUP($U$202&$U215,GTYF!$C:$AP,AW$201,FALSE) -> 0 | AX215: =VLOOKUP($U$202&$U215,GTYF!$C:$AP,AX$201,FALSE) -> 0 | AY215: =VLOOKUP($U$202&$U215,GTYF!$C:$AP,AY$201,FALSE) -> 0 | AZ215: =VLOOKUP($U$202&$U215,GTYF!$C:$AP,AZ$201,FALSE) -> 0
S216: Figure 10a | T216: Feuillus tolérants | U216: (FCTYF_FT) | V216: =VLOOKUP($U$202&$U216,GTYF!$C:$AP,V$201,FALSE) -> 0 | W216: =VLOOKUP($U$202&$U216,GTYF!$C:$AP,W$201,FALSE) -> 0 | X216: =VLOOKUP($U$202&$U216,GTYF!$C:$AP,X$201,FALSE) -> 0 | Y216: =VLOOKUP($U$202&$U216,GTYF!$C:$AP,Y$201,FALSE) -> 0 | Z216: =VLOOKUP($U$202&$U216,GTYF!$C:$AP,Z$201,FALSE) -> 0 | AA216: =VLOOKUP($U$202&$U216,GTYF!$C:$AP,AA$201,FALSE) -> 0 | AB216: =VLOOKUP($U$202&$U216,GTYF!$C:$AP,AB$201,FALSE) -> 0 | AC216: =VLOOKUP($U$202&$U216,GTYF!$C:$AP,AC$201,FALSE) -> 0 | AD216: =VLOOKUP($U$202&$U216,GTYF!$C:$AP,AD$201,FALSE) -> 0 | AE216: =VLOOKUP($U$202&$U216,GTYF!$C:$AP,AE$201,FALSE) -> 0 | AF216: =VLOOKUP($U$202&$U216,GTYF!$C:$AP,AF$201,FALSE) -> 0 | AG216: =VLOOKUP($U$202&$U216,GTYF!$C:$AP,AG$201,FALSE) -> 0 | AH216: =VLOOKUP($U$202&$U216,GTYF!$C:$AP,AH$201,FALSE) -> 0 | AI216: =VLOOKUP($U$202&$U216,GTYF!$C:$AP,AI$201,FALSE) -> 0 | AJ216: =VLOOKUP($U$202&$U216,GTYF!$C:$AP,AJ$201,FALSE) -> 0 | AK216: =VLOOKUP($U$202&$U216,GTYF!$C:$AP,AK$201,FALSE) -> 0 | AL216: =VLOOKUP($U$202&$U216,GTYF!$C:$AP,AL$201,FALSE) -> 0 | AM216: =VLOOKUP($U$202&$U216,GTYF!$C:$AP,AM$201,FALSE) -> 0 | AN216: =VLOOKUP($U$202&$U216,GTYF!$C:$AP,AN$201,FALSE) -> 0 | AO216: =VLOOKUP($U$202&$U216,GTYF!$C:$AP,AO$201,FALSE) -> 0 | AP216: =VLOOKUP($U$202&$U216,GTYF!$C:$AP,AP$201,FALSE) -> 0 | AQ216: =VLOOKUP($U$202&$U216,GTYF!$C:$AP,AQ$201,FALSE) -> 0 | AR216: =VLOOKUP($U$202&$U216,GTYF!$C:$AP,AR$201,FALSE) -> 0 | AS216: =VLOOKUP($U$202&$U216,GTYF!$C:$AP,AS$201,FALSE) -> 0 | AT216: =VLOOKUP($U$202&$U216,GTYF!$C:$AP,AT$201,FALSE) -> 0 | AU216: =VLOOKUP($U$202&$U216,GTYF!$C:$AP,AU$201,FALSE) -> 0 | AV216: =VLOOKUP($U$202&$U216,GTYF!$C:$AP,AV$201,FALSE) -> 0 | AW216: =VLOOKUP($U$202&$U216,GTYF!$C:$AP,AW$201,FALSE) -> 0 | AX216: =VLOOKUP($U$202&$U216,GTYF!$C:$AP,AX$201,FALSE) -> 0 | AY216: =VLOOKUP($U$202&$U216,GTYF!$C:$AP,AY$201,FALSE) -> 0 | AZ216: =VLOOKUP($U$202&$U216,GTYF!$C:$AP,AZ$201,FALSE) -> 0
S217: Figure 10a | T217: Feuillus tolérants à résineux | U217: (FCTYF_FTR) | V217: =VLOOKUP($U$202&$U217,GTYF!$C:$AP,V$201,FALSE) -> 0 | W217: =VLOOKUP($U$202&$U217,GTYF!$C:$AP,W$201,FALSE) -> 0 | X217: =VLOOKUP($U$202&$U217,GTYF!$C:$AP,X$201,FALSE) -> 0 | Y217: =VLOOKUP($U$202&$U217,GTYF!$C:$AP,Y$201,FALSE) -> 0 | Z217: =VLOOKUP($U$202&$U217,GTYF!$C:$AP,Z$201,FALSE) -> 0 | AA217: =VLOOKUP($U$202&$U217,GTYF!$C:$AP,AA$201,FALSE) -> 0 | AB217: =VLOOKUP($U$202&$U217,GTYF!$C:$AP,AB$201,FALSE) -> 0 | AC217: =VLOOKUP($U$202&$U217,GTYF!$C:$AP,AC$201,FALSE) -> 0 | AD217: =VLOOKUP($U$202&$U217,GTYF!$C:$AP,AD$201,FALSE) -> 0 | AE217: =VLOOKUP($U$202&$U217,GTYF!$C:$AP,AE$201,FALSE) -> 0 | AF217: =VLOOKUP($U$202&$U217,GTYF!$C:$AP,AF$201,FALSE) -> 0 | AG217: =VLOOKUP($U$202&$U217,GTYF!$C:$AP,AG$201,FALSE) -> 0 | AH217: =VLOOKUP($U$202&$U217,GTYF!$C:$AP,AH$201,FALSE) -> 0 | AI217: =VLOOKUP($U$202&$U217,GTYF!$C:$AP,AI$201,FALSE) -> 0 | AJ217: =VLOOKUP($U$202&$U217,GTYF!$C:$AP,AJ$201,FALSE) -> 0 | AK217: =VLOOKUP($U$202&$U217,GTYF!$C:$AP,AK$201,FALSE) -> 0 | AL217: =VLOOKUP($U$202&$U217,GTYF!$C:$AP,AL$201,FALSE) -> 0 | AM217: =VLOOKUP($U$202&$U217,GTYF!$C:$AP,AM$201,FALSE) -> 0 | AN217: =VLOOKUP($U$202&$U217,GTYF!$C:$AP,AN$201,FALSE) -> 0 | AO217: =VLOOKUP($U$202&$U217,GTYF!$C:$AP,AO$201,FALSE) -> 0 | AP217: =VLOOKUP($U$202&$U217,GTYF!$C:$AP,AP$201,FALSE) -> 0 | AQ217: =VLOOKUP($U$202&$U217,GTYF!$C:$AP,AQ$201,FALSE) -> 0 | AR217: =VLOOKUP($U$202&$U217,GTYF!$C:$AP,AR$201,FALSE) -> 0 | AS217: =VLOOKUP($U$202&$U217,GTYF!$C:$AP,AS$201,FALSE) -> 0 | AT217: =VLOOKUP($U$202&$U217,GTYF!$C:$AP,AT$201,FALSE) -> 0 | AU217: =VLOOKUP($U$202&$U217,GTYF!$C:$AP,AU$201,FALSE) -> 0 | AV217: =VLOOKUP($U$202&$U217,GTYF!$C:$AP,AV$201,FALSE) -> 0 | AW217: =VLOOKUP($U$202&$U217,GTYF!$C:$AP,AW$201,FALSE) -> 0 | AX217: =VLOOKUP($U$202&$U217,GTYF!$C:$AP,AX$201,FALSE) -> 0 | AY217: =VLOOKUP($U$202&$U217,GTYF!$C:$AP,AY$201,FALSE) -> 0 | AZ217: =VLOOKUP($U$202&$U217,GTYF!$C:$AP,AZ$201,FALSE) -> 0
S218: Figure 10a | T218: Peupleraies | U218: (FCTYF_PEU) | V218: =VLOOKUP($U$202&$U218,GTYF!$C:$AP,V$201,FALSE) -> 10468 | W218: =VLOOKUP($U$202&$U218,GTYF!$C:$AP,W$201,FALSE) -> 10468 | X218: =VLOOKUP($U$202&$U218,GTYF!$C:$AP,X$201,FALSE) -> 10454.71 | Y218: =VLOOKUP($U$202&$U218,GTYF!$C:$AP,Y$201,FALSE) -> 10399.36 | Z218: =VLOOKUP($U$202&$U218,GTYF!$C:$AP,Z$201,FALSE) -> 10356.86 | AA218: =VLOOKUP($U$202&$U218,GTYF!$C:$AP,AA$201,FALSE) -> 10297.23 | AB218: =VLOOKUP($U$202&$U218,GTYF!$C:$AP,AB$201,FALSE) -> 10265 | AC218: =VLOOKUP($U$202&$U218,GTYF!$C:$AP,AC$201,FALSE) -> 10233.78 | AD218: =VLOOKUP($U$202&$U218,GTYF!$C:$AP,AD$201,FALSE) -> 10233.78 | AE218: =VLOOKUP($U$202&$U218,GTYF!$C:$AP,AE$201,FALSE) -> 10218.97 | AF218: =VLOOKUP($U$202&$U218,GTYF!$C:$AP,AF$201,FALSE) -> 10188.36 | AG218: =VLOOKUP($U$202&$U218,GTYF!$C:$AP,AG$201,FALSE) -> 10157.72 | AH218: =VLOOKUP($U$202&$U218,GTYF!$C:$AP,AH$201,FALSE) -> 10151.1 | AI218: =VLOOKUP($U$202&$U218,GTYF!$C:$AP,AI$201,FALSE) -> 10140.07 | AJ218: =VLOOKUP($U$202&$U218,GTYF!$C:$AP,AJ$201,FALSE) -> 10139.18 | AK218: =VLOOKUP($U$202&$U218,GTYF!$C:$AP,AK$201,FALSE) -> 10138.5 | AL218: =VLOOKUP($U$202&$U218,GTYF!$C:$AP,AL$201,FALSE) -> 10137.39 | AM218: =VLOOKUP($U$202&$U218,GTYF!$C:$AP,AM$201,FALSE) -> 10131.46 | AN218: =VLOOKUP($U$202&$U218,GTYF!$C:$AP,AN$201,FALSE) -> 10131.46 | AO218: =VLOOKUP($U$202&$U218,GTYF!$C:$AP,AO$201,FALSE) -> 10131.46 | AP218: =VLOOKUP($U$202&$U218,GTYF!$C:$AP,AP$201,FALSE) -> 10131.46 | AQ218: =VLOOKUP($U$202&$U218,GTYF!$C:$AP,AQ$201,FALSE) -> 10131.46 | AR218: =VLOOKUP($U$202&$U218,GTYF!$C:$AP,AR$201,FALSE) -> 10131.46 | AS218: =VLOOKUP($U$202&$U218,GTYF!$C:$AP,AS$201,FALSE) -> 10131.46 | AT218: =VLOOKUP($U$202&$U218,GTYF!$C:$AP,AT$201,FALSE) -> 10131.46 | AU218: =VLOOKUP($U$202&$U218,GTYF!$C:$AP,AU$201,FALSE) -> 10131.46 | AV218: =VLOOKUP($U$202&$U218,GTYF!$C:$AP,AV$201,FALSE) -> 10131.46 | AW218: =VLOOKUP($U$202&$U218,GTYF!$C:$AP,AW$201,FALSE) -> 10131.46 | AX218: =VLOOKUP($U$202&$U218,GTYF!$C:$AP,AX$201,FALSE) -> 10131.46 | AY218: =VLOOKUP($U$202&$U218,GTYF!$C:$AP,AY$201,FALSE) -> 10131.46 | AZ218: =VLOOKUP($U$202&$U218,GTYF!$C:$AP,AZ$201,FALSE) -> 10131.46
S219: Figure 10a | T219: Peupleraies à résineux | U219: (FCTYF_PEUR) | V219: =VLOOKUP($U$202&$U219,GTYF!$C:$AP,V$201,FALSE) -> 0 | W219: =VLOOKUP($U$202&$U219,GTYF!$C:$AP,W$201,FALSE) -> 0 | X219: =VLOOKUP($U$202&$U219,GTYF!$C:$AP,X$201,FALSE) -> 0 | Y219: =VLOOKUP($U$202&$U219,GTYF!$C:$AP,Y$201,FALSE) -> 0 | Z219: =VLOOKUP($U$202&$U219,GTYF!$C:$AP,Z$201,FALSE) -> 0 | AA219: =VLOOKUP($U$202&$U219,GTYF!$C:$AP,AA$201,FALSE) -> 0 | AB219: =VLOOKUP($U$202&$U219,GTYF!$C:$AP,AB$201,FALSE) -> 0 | AC219: =VLOOKUP($U$202&$U219,GTYF!$C:$AP,AC$201,FALSE) -> 0 | AD219: =VLOOKUP($U$202&$U219,GTYF!$C:$AP,AD$201,FALSE) -> 0 | AE219: =VLOOKUP($U$202&$U219,GTYF!$C:$AP,AE$201,FALSE) -> 0 | AF219: =VLOOKUP($U$202&$U219,GTYF!$C:$AP,AF$201,FALSE) -> 0 | AG219: =VLOOKUP($U$202&$U219,GTYF!$C:$AP,AG$201,FALSE) -> 0 | AH219: =VLOOKUP($U$202&$U219,GTYF!$C:$AP,AH$201,FALSE) -> 0 | AI219: =VLOOKUP($U$202&$U219,GTYF!$C:$AP,AI$201,FALSE) -> 0 | AJ219: =VLOOKUP($U$202&$U219,GTYF!$C:$AP,AJ$201,FALSE) -> 0 | AK219: =VLOOKUP($U$202&$U219,GTYF!$C:$AP,AK$201,FALSE) -> 0 | AL219: =VLOOKUP($U$202&$U219,GTYF!$C:$AP,AL$201,FALSE) -> 0 | AM219: =VLOOKUP($U$202&$U219,GTYF!$C:$AP,AM$201,FALSE) -> 0 | AN219: =VLOOKUP($U$202&$U219,GTYF!$C:$AP,AN$201,FALSE) -> 0 | AO219: =VLOOKUP($U$202&$U219,GTYF!$C:$AP,AO$201,FALSE) -> 0 | AP219: =VLOOKUP($U$202&$U219,GTYF!$C:$AP,AP$201,FALSE) -> 0 | AQ219: =VLOOKUP($U$202&$U219,GTYF!$C:$AP,AQ$201,FALSE) -> 0 | AR219: =VLOOKUP($U$202&$U219,GTYF!$C:$AP,AR$201,FALSE) -> 0 | AS219: =VLOOKUP($U$202&$U219,GTYF!$C:$AP,AS$201,FALSE) -> 0 | AT219: =VLOOKUP($U$202&$U219,GTYF!$C:$AP,AT$201,FALSE) -> 0 | AU219: =VLOOKUP($U$202&$U219,GTYF!$C:$AP,AU$201,FALSE) -> 0 | AV219: =VLOOKUP($U$202&$U219,GTYF!$C:$AP,AV$201,FALSE) -> 0 | AW219: =VLOOKUP($U$202&$U219,GTYF!$C:$AP,AW$201,FALSE) -> 0 | AX219: =VLOOKUP($U$202&$U219,GTYF!$C:$AP,AX$201,FALSE) -> 0 | AY219: =VLOOKUP($U$202&$U219,GTYF!$C:$AP,AY$201,FALSE) -> 0 | AZ219: =VLOOKUP($U$202&$U219,GTYF!$C:$AP,AZ$201,FALSE) -> 0
S220: Figure 10a | T220: Pinèdes grises | U220: (FCTYF_PIG) | V220: =VLOOKUP($U$202&$U220,GTYF!$C:$AP,V$201,FALSE) -> 50590.1 | W220: =VLOOKUP($U$202&$U220,GTYF!$C:$AP,W$201,FALSE) -> 63518.72 | X220: =VLOOKUP($U$202&$U220,GTYF!$C:$AP,X$201,FALSE) -> 65988.61 | Y220: =VLOOKUP($U$202&$U220,GTYF!$C:$AP,Y$201,FALSE) -> 68404.18 | Z220: =VLOOKUP($U$202&$U220,GTYF!$C:$AP,Z$201,FALSE) -> 70856.08 | AA220: =VLOOKUP($U$202&$U220,GTYF!$C:$AP,AA$201,FALSE) -> 73117.85 | AB220: =VLOOKUP($U$202&$U220,GTYF!$C:$AP,AB$201,FALSE) -> 75204.17 | AC220: =VLOOKUP($U$202&$U220,GTYF!$C:$AP,AC$201,FALSE) -> 76624 | AD220: =VLOOKUP($U$202&$U220,GTYF!$C:$AP,AD$201,FALSE) -> 77700.68 | AE220: =VLOOKUP($U$202&$U220,GTYF!$C:$AP,AE$201,FALSE) -> 76921.41 | AF220: =VLOOKUP($U$202&$U220,GTYF!$C:$AP,AF$201,FALSE) -> 75728.28 | AG220: =VLOOKUP($U$202&$U220,GTYF!$C:$AP,AG$201,FALSE) -> 75812.64 | AH220: =VLOOKUP($U$202&$U220,GTYF!$C:$AP,AH$201,FALSE) -> 75189.2 | AI220: =VLOOKUP($U$202&$U220,GTYF!$C:$AP,AI$201,FALSE) -> 70018.33 | AJ220: =VLOOKUP($U$202&$U220,GTYF!$C:$AP,AJ$201,FALSE) -> 68822.28 | AK220: =VLOOKUP($U$202&$U220,GTYF!$C:$AP,AK$201,FALSE) -> 65878.44 | AL220: =VLOOKUP($U$202&$U220,GTYF!$C:$AP,AL$201,FALSE) -> 63176.35 | AM220: =VLOOKUP($U$202&$U220,GTYF!$C:$AP,AM$201,FALSE) -> 60559.73 | AN220: =VLOOKUP($U$202&$U220,GTYF!$C:$AP,AN$201,FALSE) -> 61997.93 | AO220: =VLOOKUP($U$202&$U220,GTYF!$C:$AP,AO$201,FALSE) -> 63429.2 | AP220: =VLOOKUP($U$202&$U220,GTYF!$C:$AP,AP$201,FALSE) -> 64361.7 | AQ220: =VLOOKUP($U$202&$U220,GTYF!$C:$AP,AQ$201,FALSE) -> 65257.27 | AR220: =VLOOKUP($U$202&$U220,GTYF!$C:$AP,AR$201,FALSE) -> 66013.84 | AS220: =VLOOKUP($U$202&$U220,GTYF!$C:$AP,AS$201,FALSE) -> 64750.36 | AT220: =VLOOKUP($U$202&$U220,GTYF!$C:$AP,AT$201,FALSE) -> 63671.63 | AU220: =VLOOKUP($U$202&$U220,GTYF!$C:$AP,AU$201,FALSE) -> 63054.48 | AV220: =VLOOKUP($U$202&$U220,GTYF!$C:$AP,AV$201,FALSE) -> 64110.93 | AW220: =VLOOKUP($U$202&$U220,GTYF!$C:$AP,AW$201,FALSE) -> 64903.47 | AX220: =VLOOKUP($U$202&$U220,GTYF!$C:$AP,AX$201,FALSE) -> 64858.13 | AY220: =VLOOKUP($U$202&$U220,GTYF!$C:$AP,AY$201,FALSE) -> 62817.61 | AZ220: =VLOOKUP($U$202&$U220,GTYF!$C:$AP,AZ$201,FALSE) -> 62688
S221: Figure 10a | T221: Pinèdes blanches | U221: (FCTYF_PIN) | V221: =VLOOKUP($U$202&$U221,GTYF!$C:$AP,V$201,FALSE) -> 0 | W221: =VLOOKUP($U$202&$U221,GTYF!$C:$AP,W$201,FALSE) -> 0 | X221: =VLOOKUP($U$202&$U221,GTYF!$C:$AP,X$201,FALSE) -> 0 | Y221: =VLOOKUP($U$202&$U221,GTYF!$C:$AP,Y$201,FALSE) -> 0 | Z221: =VLOOKUP($U$202&$U221,GTYF!$C:$AP,Z$201,FALSE) -> 0 | AA221: =VLOOKUP($U$202&$U221,GTYF!$C:$AP,AA$201,FALSE) -> 0 | AB221: =VLOOKUP($U$202&$U221,GTYF!$C:$AP,AB$201,FALSE) -> 0 | AC221: =VLOOKUP($U$202&$U221,GTYF!$C:$AP,AC$201,FALSE) -> 0 | AD221: =VLOOKUP($U$202&$U221,GTYF!$C:$AP,AD$201,FALSE) -> 0 | AE221: =VLOOKUP($U$202&$U221,GTYF!$C:$AP,AE$201,FALSE) -> 0 | AF221: =VLOOKUP($U$202&$U221,GTYF!$C:$AP,AF$201,FALSE) -> 0 | AG221: =VLOOKUP($U$202&$U221,GTYF!$C:$AP,AG$201,FALSE) -> 0 | AH221: =VLOOKUP($U$202&$U221,GTYF!$C:$AP,AH$201,FALSE) -> 0 | AI221: =VLOOKUP($U$202&$U221,GTYF!$C:$AP,AI$201,FALSE) -> 0 | AJ221: =VLOOKUP($U$202&$U221,GTYF!$C:$AP,AJ$201,FALSE) -> 0 | AK221: =VLOOKUP($U$202&$U221,GTYF!$C:$AP,AK$201,FALSE) -> 0 | AL221: =VLOOKUP($U$202&$U221,GTYF!$C:$AP,AL$201,FALSE) -> 0 | AM221: =VLOOKUP($U$202&$U221,GTYF!$C:$AP,AM$201,FALSE) -> 0 | AN221: =VLOOKUP($U$202&$U221,GTYF!$C:$AP,AN$201,FALSE) -> 0 | AO221: =VLOOKUP($U$202&$U221,GTYF!$C:$AP,AO$201,FALSE) -> 0 | AP221: =VLOOKUP($U$202&$U221,GTYF!$C:$AP,AP$201,FALSE) -> 0 | AQ221: =VLOOKUP($U$202&$U221,GTYF!$C:$AP,AQ$201,FALSE) -> 0 | AR221: =VLOOKUP($U$202&$U221,GTYF!$C:$AP,AR$201,FALSE) -> 0 | AS221: =VLOOKUP($U$202&$U221,GTYF!$C:$AP,AS$201,FALSE) -> 0 | AT221: =VLOOKUP($U$202&$U221,GTYF!$C:$AP,AT$201,FALSE) -> 0 | AU221: =VLOOKUP($U$202&$U221,GTYF!$C:$AP,AU$201,FALSE) -> 0 | AV221: =VLOOKUP($U$202&$U221,GTYF!$C:$AP,AV$201,FALSE) -> 0 | AW221: =VLOOKUP($U$202&$U221,GTYF!$C:$AP,AW$201,FALSE) -> 0 | AX221: =VLOOKUP($U$202&$U221,GTYF!$C:$AP,AX$201,FALSE) -> 0 | AY221: =VLOOKUP($U$202&$U221,GTYF!$C:$AP,AY$201,FALSE) -> 0 | AZ221: =VLOOKUP($U$202&$U221,GTYF!$C:$AP,AZ$201,FALSE) -> 0
S222: Figure 10a | T222: Prucheraies | U222: (FCTYF_PRU) | V222: =VLOOKUP($U$202&$U222,GTYF!$C:$AP,V$201,FALSE) -> 0 | W222: =VLOOKUP($U$202&$U222,GTYF!$C:$AP,W$201,FALSE) -> 0 | X222: =VLOOKUP($U$202&$U222,GTYF!$C:$AP,X$201,FALSE) -> 0 | Y222: =VLOOKUP($U$202&$U222,GTYF!$C:$AP,Y$201,FALSE) -> 0 | Z222: =VLOOKUP($U$202&$U222,GTYF!$C:$AP,Z$201,FALSE) -> 0 | AA222: =VLOOKUP($U$202&$U222,GTYF!$C:$AP,AA$201,FALSE) -> 0 | AB222: =VLOOKUP($U$202&$U222,GTYF!$C:$AP,AB$201,FALSE) -> 0 | AC222: =VLOOKUP($U$202&$U222,GTYF!$C:$AP,AC$201,FALSE) -> 0 | AD222: =VLOOKUP($U$202&$U222,GTYF!$C:$AP,AD$201,FALSE) -> 0 | AE222: =VLOOKUP($U$202&$U222,GTYF!$C:$AP,AE$201,FALSE) -> 0 | AF222: =VLOOKUP($U$202&$U222,GTYF!$C:$AP,AF$201,FALSE) -> 0 | AG222: =VLOOKUP($U$202&$U222,GTYF!$C:$AP,AG$201,FALSE) -> 0 | AH222: =VLOOKUP($U$202&$U222,GTYF!$C:$AP,AH$201,FALSE) -> 0 | AI222: =VLOOKUP($U$202&$U222,GTYF!$C:$AP,AI$201,FALSE) -> 0 | AJ222: =VLOOKUP($U$202&$U222,GTYF!$C:$AP,AJ$201,FALSE) -> 0 | AK222: =VLOOKUP($U$202&$U222,GTYF!$C:$AP,AK$201,FALSE) -> 0 | AL222: =VLOOKUP($U$202&$U222,GTYF!$C:$AP,AL$201,FALSE) -> 0 | AM222: =VLOOKUP($U$202&$U222,GTYF!$C:$AP,AM$201,FALSE) -> 0 | AN222: =VLOOKUP($U$202&$U222,GTYF!$C:$AP,AN$201,FALSE) -> 0 | AO222: =VLOOKUP($U$202&$U222,GTYF!$C:$AP,AO$201,FALSE) -> 0 | AP222: =VLOOKUP($U$202&$U222,GTYF!$C:$AP,AP$201,FALSE) -> 0 | AQ222: =VLOOKUP($U$202&$U222,GTYF!$C:$AP,AQ$201,FALSE) -> 0 | AR222: =VLOOKUP($U$202&$U222,GTYF!$C:$AP,AR$201,FALSE) -> 0 | AS222: =VLOOKUP($U$202&$U222,GTYF!$C:$AP,AS$201,FALSE) -> 0 | AT222: =VLOOKUP($U$202&$U222,GTYF!$C:$AP,AT$201,FALSE) -> 0 | AU222: =VLOOKUP($U$202&$U222,GTYF!$C:$AP,AU$201,FALSE) -> 0 | AV222: =VLOOKUP($U$202&$U222,GTYF!$C:$AP,AV$201,FALSE) -> 0 | AW222: =VLOOKUP($U$202&$U222,GTYF!$C:$AP,AW$201,FALSE) -> 0 | AX222: =VLOOKUP($U$202&$U222,GTYF!$C:$AP,AX$201,FALSE) -> 0 | AY222: =VLOOKUP($U$202&$U222,GTYF!$C:$AP,AY$201,FALSE) -> 0 | AZ222: =VLOOKUP($U$202&$U222,GTYF!$C:$AP,AZ$201,FALSE) -> 0
S223: Figure 10a | T223: Résineux à feuillus | U223: (FCTYF_RF) | V223: =VLOOKUP($U$202&$U223,GTYF!$C:$AP,V$201,FALSE) -> 107461.6 | W223: =VLOOKUP($U$202&$U223,GTYF!$C:$AP,W$201,FALSE) -> 118721.85 | X223: =VLOOKUP($U$202&$U223,GTYF!$C:$AP,X$201,FALSE) -> 115367.82 | Y223: =VLOOKUP($U$202&$U223,GTYF!$C:$AP,Y$201,FALSE) -> 118043.72 | Z223: =VLOOKUP($U$202&$U223,GTYF!$C:$AP,Z$201,FALSE) -> 118716.36 | AA223: =VLOOKUP($U$202&$U223,GTYF!$C:$AP,AA$201,FALSE) -> 124623.1 | AB223: =VLOOKUP($U$202&$U223,GTYF!$C:$AP,AB$201,FALSE) -> 126071.75 | AC223: =VLOOKUP($U$202&$U223,GTYF!$C:$AP,AC$201,FALSE) -> 128432.46 | AD223: =VLOOKUP($U$202&$U223,GTYF!$C:$AP,AD$201,FALSE) -> 131971.16 | AE223: =VLOOKUP($U$202&$U223,GTYF!$C:$AP,AE$201,FALSE) -> 142025 | AF223: =VLOOKUP($U$202&$U223,GTYF!$C:$AP,AF$201,FALSE) -> 141238.2 | AG223: =VLOOKUP($U$202&$U223,GTYF!$C:$AP,AG$201,FALSE) -> 144628.39 | AH223: =VLOOKUP($U$202&$U223,GTYF!$C:$AP,AH$201,FALSE) -> 151681.04 | AI223: =VLOOKUP($U$202&$U223,GTYF!$C:$AP,AI$201,FALSE) -> 155934.87 | AJ223: =VLOOKUP($U$202&$U223,GTYF!$C:$AP,AJ$201,FALSE) -> 155224.54 | AK223: =VLOOKUP($U$202&$U223,GTYF!$C:$AP,AK$201,FALSE) -> 158588.61 | AL223: =VLOOKUP($U$202&$U223,GTYF!$C:$AP,AL$201,FALSE) -> 160140.68 | AM223: =VLOOKUP($U$202&$U223,GTYF!$C:$AP,AM$201,FALSE) -> 172499.32 | AN223: =VLOOKUP($U$202&$U223,GTYF!$C:$AP,AN$201,FALSE) -> 170068.52 | AO223: =VLOOKUP($U$202&$U223,GTYF!$C:$AP,AO$201,FALSE) -> 172086.73 | AP223: =VLOOKUP($U$202&$U223,GTYF!$C:$AP,AP$201,FALSE) -> 172655.16 | AQ223: =VLOOKUP($U$202&$U223,GTYF!$C:$AP,AQ$201,FALSE) -> 176996.49 | AR223: =VLOOKUP($U$202&$U223,GTYF!$C:$AP,AR$201,FALSE) -> 177882.5 | AS223: =VLOOKUP($U$202&$U223,GTYF!$C:$AP,AS$201,FALSE) -> 181469.04 | AT223: =VLOOKUP($U$202&$U223,GTYF!$C:$AP,AT$201,FALSE) -> 182762.41 | AU223: =VLOOKUP($U$202&$U223,GTYF!$C:$AP,AU$201,FALSE) -> 184644.02 | AV223: =VLOOKUP($U$202&$U223,GTYF!$C:$AP,AV$201,FALSE) -> 184442.32 | AW223: =VLOOKUP($U$202&$U223,GTYF!$C:$AP,AW$201,FALSE) -> 183005.6 | AX223: =VLOOKUP($U$202&$U223,GTYF!$C:$AP,AX$201,FALSE) -> 184620.29 | AY223: =VLOOKUP($U$202&$U223,GTYF!$C:$AP,AY$201,FALSE) -> 184011.06 | AZ223: =VLOOKUP($U$202&$U223,GTYF!$C:$AP,AZ$201,FALSE) -> 183222.02
S224: Figure 10a | T224: Sapinières | U224: (FCTYF_SAB) | V224: =VLOOKUP($U$202&$U224,GTYF!$C:$AP,V$201,FALSE) -> 235884.4 | W224: =VLOOKUP($U$202&$U224,GTYF!$C:$AP,W$201,FALSE) -> 227760.41 | X224: =VLOOKUP($U$202&$U224,GTYF!$C:$AP,X$201,FALSE) -> 226450.85 | Y224: =VLOOKUP($U$202&$U224,GTYF!$C:$AP,Y$201,FALSE) -> 228457.78 | Z224: =VLOOKUP($U$202&$U224,GTYF!$C:$AP,Z$201,FALSE) -> 229365.83 | AA224: =VLOOKUP($U$202&$U224,GTYF!$C:$AP,AA$201,FALSE) -> 228780.67 | AB224: =VLOOKUP($U$202&$U224,GTYF!$C:$AP,AB$201,FALSE) -> 229969.02 | AC224: =VLOOKUP($U$202&$U224,GTYF!$C:$AP,AC$201,FALSE) -> 228385.6 | AD224: =VLOOKUP($U$202&$U224,GTYF!$C:$AP,AD$201,FALSE) -> 219973.28 | AE224: =VLOOKUP($U$202&$U224,GTYF!$C:$AP,AE$201,FALSE) -> 216014.1 | AF224: =VLOOKUP($U$202&$U224,GTYF!$C:$AP,AF$201,FALSE) -> 210662.73 | AG224: =VLOOKUP($U$202&$U224,GTYF!$C:$AP,AG$201,FALSE) -> 202998.34 | AH224: =VLOOKUP($U$202&$U224,GTYF!$C:$AP,AH$201,FALSE) -> 197558.92 | AI224: =VLOOKUP($U$202&$U224,GTYF!$C:$AP,AI$201,FALSE) -> 191069.82 | AJ224: =VLOOKUP($U$202&$U224,GTYF!$C:$AP,AJ$201,FALSE) -> 186017.04 | AK224: =VLOOKUP($U$202&$U224,GTYF!$C:$AP,AK$201,FALSE) -> 180192.02 | AL224: =VLOOKUP($U$202&$U224,GTYF!$C:$AP,AL$201,FALSE) -> 181217 | AM224: =VLOOKUP($U$202&$U224,GTYF!$C:$AP,AM$201,FALSE) -> 183097.7 | AN224: =VLOOKUP($U$202&$U224,GTYF!$C:$AP,AN$201,FALSE) -> 183012.78 | AO224: =VLOOKUP($U$202&$U224,GTYF!$C:$AP,AO$201,FALSE) -> 184088.6 | AP224: =VLOOKUP($U$202&$U224,GTYF!$C:$AP,AP$201,FALSE) -> 182934.79 | AQ224: =VLOOKUP($U$202&$U224,GTYF!$C:$AP,AQ$201,FALSE) -> 181785.17 | AR224: =VLOOKUP($U$202&$U224,GTYF!$C:$AP,AR$201,FALSE) -> 179092.28 | AS224: =VLOOKUP($U$202&$U224,GTYF!$C:$AP,AS$201,FALSE) -> 176669.86 | AT224: =VLOOKUP($U$202&$U224,GTYF!$C:$AP,AT$201,FALSE) -> 179312.89 | AU224: =VLOOKUP($U$202&$U224,GTYF!$C:$AP,AU$201,FALSE) -> 179705.43 | AV224: =VLOOKUP($U$202&$U224,GTYF!$C:$AP,AV$201,FALSE) -> 179970.63 | AW224: =VLOOKUP($U$202&$U224,GTYF!$C:$AP,AW$201,FALSE) -> 183792.25 | AX224: =VLOOKUP($U$202&$U224,GTYF!$C:$AP,AX$201,FALSE) -> 183792.25 | AY224: =VLOOKUP($U$202&$U224,GTYF!$C:$AP,AY$201,FALSE) -> 186226.81 | AZ224: =VLOOKUP($U$202&$U224,GTYF!$C:$AP,AZ$201,FALSE) -> 186220.69
B225: * Attention, étant donné que le graphique fait appel aux GTYF, certains TYF ne paraissent pas dans les bons types de couvert (ex: EoRx, PbFx, PuFx, ToFx) | S225: Figure 10a | T225: Cédrières | U225: (FCTYF_THO) | V225: =VLOOKUP($U$202&$U225,GTYF!$C:$AP,V$201,FALSE) -> 0 | W225: =VLOOKUP($U$202&$U225,GTYF!$C:$AP,W$201,FALSE) -> 0 | X225: =VLOOKUP($U$202&$U225,GTYF!$C:$AP,X$201,FALSE) -> 0 | Y225: =VLOOKUP($U$202&$U225,GTYF!$C:$AP,Y$201,FALSE) -> 0 | Z225: =VLOOKUP($U$202&$U225,GTYF!$C:$AP,Z$201,FALSE) -> 0 | AA225: =VLOOKUP($U$202&$U225,GTYF!$C:$AP,AA$201,FALSE) -> 0 | AB225: =VLOOKUP($U$202&$U225,GTYF!$C:$AP,AB$201,FALSE) -> 0 | AC225: =VLOOKUP($U$202&$U225,GTYF!$C:$AP,AC$201,FALSE) -> 0 | AD225: =VLOOKUP($U$202&$U225,GTYF!$C:$AP,AD$201,FALSE) -> 0 | AE225: =VLOOKUP($U$202&$U225,GTYF!$C:$AP,AE$201,FALSE) -> 0 | AF225: =VLOOKUP($U$202&$U225,GTYF!$C:$AP,AF$201,FALSE) -> 0 | AG225: =VLOOKUP($U$202&$U225,GTYF!$C:$AP,AG$201,FALSE) -> 0 | AH225: =VLOOKUP($U$202&$U225,GTYF!$C:$AP,AH$201,FALSE) -> 0 | AI225: =VLOOKUP($U$202&$U225,GTYF!$C:$AP,AI$201,FALSE) -> 0 | AJ225: =VLOOKUP($U$202&$U225,GTYF!$C:$AP,AJ$201,FALSE) -> 0 | AK225: =VLOOKUP($U$202&$U225,GTYF!$C:$AP,AK$201,FALSE) -> 0 | AL225: =VLOOKUP($U$202&$U225,GTYF!$C:$AP,AL$201,FALSE) -> 0 | AM225: =VLOOKUP($U$202&$U225,GTYF!$C:$AP,AM$201,FALSE) -> 0 | AN225: =VLOOKUP($U$202&$U225,GTYF!$C:$AP,AN$201,FALSE) -> 0 | AO225: =VLOOKUP($U$202&$U225,GTYF!$C:$AP,AO$201,FALSE) -> 0 | AP225: =VLOOKUP($U$202&$U225,GTYF!$C:$AP,AP$201,FALSE) -> 0 | AQ225: =VLOOKUP($U$202&$U225,GTYF!$C:$AP,AQ$201,FALSE) -> 0 | AR225: =VLOOKUP($U$202&$U225,GTYF!$C:$AP,AR$201,FALSE) -> 0 | AS225: =VLOOKUP($U$202&$U225,GTYF!$C:$AP,AS$201,FALSE) -> 0 | AT225: =VLOOKUP($U$202&$U225,GTYF!$C:$AP,AT$201,FALSE) -> 0 | AU225: =VLOOKUP($U$202&$U225,GTYF!$C:$AP,AU$201,FALSE) -> 0 | AV225: =VLOOKUP($U$202&$U225,GTYF!$C:$AP,AV$201,FALSE) -> 0 | AW225: =VLOOKUP($U$202&$U225,GTYF!$C:$AP,AW$201,FALSE) -> 0 | AX225: =VLOOKUP($U$202&$U225,GTYF!$C:$AP,AX$201,FALSE) -> 0 | AY225: =VLOOKUP($U$202&$U225,GTYF!$C:$AP,AY$201,FALSE) -> 0 | AZ225: =VLOOKUP($U$202&$U225,GTYF!$C:$AP,AZ$201,FALSE) -> 0
U228: Colonne | V228: 6 | W228: 7 | X228: 8 | Y228: 9 | Z228: 10 | AA228: 11 | AB228: 12 | AC228: 13 | AD228: 14 | AE228: 15 | AF228: 16 | AG228: 17 | AH228: 18 | AI228: 19 | AJ228: 20 | AK228: 21 | AL228: 22 | AM228: 23 | AN228: 24 | AO228: 25 | AP228: 26 | AQ228: 27 | AR228: 28 | AS228: 29 | AT228: 30 | AU228: 31 | AV228: 32 | AW228: 33 | AX228: 34 | AY228: 35 | AZ228: 36
B229: Figure 10c Évolution des superficies de hêtraie et d'érablière à hêtre | U229: Période | V229: P0 | W229: P1 | X229: P2 | Y229: P3 | Z229: P4 | AA229: P5 | AB229: P6 | AC229: P7 | AD229: P8 | AE229: P9 | AF229: P10 | AG229: P11 | AH229: P12 | AI229: P13 | AJ229: P14 | AK229: P15 | AL229: P16 | AM229: P17 | AN229: P18 | AO229: P19 | AP229: P20 | AQ229: P21 | AR229: P22 | AS229: P23 | AT229: P24 | AU229: P25 | AV229: P26 | AW229: P27 | AX229: P28 | AY229: P29 | AZ229: P30
U230: Axe des "X" Fin de période | V230: 2018 | W230: 2023 | X230: 2028 | Y230: 2033 | Z230: 2038 | AA230: 2043 | AB230: 2048 | AC230: 2053 | AD230: 2058 | AE230: 2063 | AF230: 2068 | AG230: 2073 | AH230: 2078 | AI230: 2083 | AJ230: 2088 | AK230: 2093 | AL230: 2098 | AM230: 2103 | AN230: 2108 | AO230: 2113 | AP230: 2118 | AQ230: 2123 | AR230: 2128 | AS230: 2133 | AT230: 2138 | AU230: 2143 | AV230: 2148 | AW230: 2153 | AX230: 2158 | AY230: 2163 | AZ230: 2168
S231: =LEFT(B$229,10) -> Figure 10c | T231: Hêtraie | U231: OSUPESHG_FX | V231: =VLOOKUP($U231,Output!$C:$AQ,V$228,FALSE) ->  | W231: =VLOOKUP($U231,Output!$C:$AQ,W$228,FALSE) ->  | X231: =VLOOKUP($U231,Output!$C:$AQ,X$228,FALSE) ->  | Y231: =VLOOKUP($U231,Output!$C:$AQ,Y$228,FALSE) ->  | Z231: =VLOOKUP($U231,Output!$C:$AQ,Z$228,FALSE) ->  | AA231: =VLOOKUP($U231,Output!$C:$AQ,AA$228,FALSE) ->  | AB231: =VLOOKUP($U231,Output!$C:$AQ,AB$228,FALSE) ->  | AC231: =VLOOKUP($U231,Output!$C:$AQ,AC$228,FALSE) ->  | AD231: =VLOOKUP($U231,Output!$C:$AQ,AD$228,FALSE) ->  | AE231: =VLOOKUP($U231,Output!$C:$AQ,AE$228,FALSE) ->  | AF231: =VLOOKUP($U231,Output!$C:$AQ,AF$228,FALSE) ->  | AG231: =VLOOKUP($U231,Output!$C:$AQ,AG$228,FALSE) ->  | AH231: =VLOOKUP($U231,Output!$C:$AQ,AH$228,FALSE) ->  | AI231: =VLOOKUP($U231,Output!$C:$AQ,AI$228,FALSE) ->  | AJ231: =VLOOKUP($U231,Output!$C:$AQ,AJ$228,FALSE) ->  | AK231: =VLOOKUP($U231,Output!$C:$AQ,AK$228,FALSE) ->  | AL231: =VLOOKUP($U231,Output!$C:$AQ,AL$228,FALSE) ->  | AM231: =VLOOKUP($U231,Output!$C:$AQ,AM$228,FALSE) ->  | AN231: =VLOOKUP($U231,Output!$C:$AQ,AN$228,FALSE) ->  | AO231: =VLOOKUP($U231,Output!$C:$AQ,AO$228,FALSE) ->  | AP231: =VLOOKUP($U231,Output!$C:$AQ,AP$228,FALSE) ->  | AQ231: =VLOOKUP($U231,Output!$C:$AQ,AQ$228,FALSE) ->  | AR231: =VLOOKUP($U231,Output!$C:$AQ,AR$228,FALSE) ->  | AS231: =VLOOKUP($U231,Output!$C:$AQ,AS$228,FALSE) ->  | AT231: =VLOOKUP($U231,Output!$C:$AQ,AT$228,FALSE) ->  | AU231: =VLOOKUP($U231,Output!$C:$AQ,AU$228,FALSE) ->  | AV231: =VLOOKUP($U231,Output!$C:$AQ,AV$228,FALSE) ->  | AW231: =VLOOKUP($U231,Output!$C:$AQ,AW$228,FALSE) ->  | AX231: =VLOOKUP($U231,Output!$C:$AQ,AX$228,FALSE) ->  | AY231: =VLOOKUP($U231,Output!$C:$AQ,AY$228,FALSE) ->  | AZ231: =VLOOKUP($U231,Output!$C:$AQ,AZ$228,FALSE) -> 
S232: =LEFT(B$229,10) -> Figure 10c | T232: Érablière à hêtre | U232: OSUPESHG | V232: =VLOOKUP($U232,Output!$C:$AQ,V$228,FALSE) ->  | W232: =VLOOKUP($U232,Output!$C:$AQ,W$228,FALSE) ->  | X232: =VLOOKUP($U232,Output!$C:$AQ,X$228,FALSE) ->  | Y232: =VLOOKUP($U232,Output!$C:$AQ,Y$228,FALSE) ->  | Z232: =VLOOKUP($U232,Output!$C:$AQ,Z$228,FALSE) ->  | AA232: =VLOOKUP($U232,Output!$C:$AQ,AA$228,FALSE) ->  | AB232: =VLOOKUP($U232,Output!$C:$AQ,AB$228,FALSE) ->  | AC232: =VLOOKUP($U232,Output!$C:$AQ,AC$228,FALSE) ->  | AD232: =VLOOKUP($U232,Output!$C:$AQ,AD$228,FALSE) ->  | AE232: =VLOOKUP($U232,Output!$C:$AQ,AE$228,FALSE) ->  | AF232: =VLOOKUP($U232,Output!$C:$AQ,AF$228,FALSE) ->  | AG232: =VLOOKUP($U232,Output!$C:$AQ,AG$228,FALSE) ->  | AH232: =VLOOKUP($U232,Output!$C:$AQ,AH$228,FALSE) ->  | AI232: =VLOOKUP($U232,Output!$C:$AQ,AI$228,FALSE) ->  | AJ232: =VLOOKUP($U232,Output!$C:$AQ,AJ$228,FALSE) ->  | AK232: =VLOOKUP($U232,Output!$C:$AQ,AK$228,FALSE) ->  | AL232: =VLOOKUP($U232,Output!$C:$AQ,AL$228,FALSE) ->  | AM232: =VLOOKUP($U232,Output!$C:$AQ,AM$228,FALSE) ->  | AN232: =VLOOKUP($U232,Output!$C:$AQ,AN$228,FALSE) ->  | AO232: =VLOOKUP($U232,Output!$C:$AQ,AO$228,FALSE) ->  | AP232: =VLOOKUP($U232,Output!$C:$AQ,AP$228,FALSE) ->  | AQ232: =VLOOKUP($U232,Output!$C:$AQ,AQ$228,FALSE) ->  | AR232: =VLOOKUP($U232,Output!$C:$AQ,AR$228,FALSE) ->  | AS232: =VLOOKUP($U232,Output!$C:$AQ,AS$228,FALSE) ->  | AT232: =VLOOKUP($U232,Output!$C:$AQ,AT$228,FALSE) ->  | AU232: =VLOOKUP($U232,Output!$C:$AQ,AU$228,FALSE) ->  | AV232: =VLOOKUP($U232,Output!$C:$AQ,AV$228,FALSE) ->  | AW232: =VLOOKUP($U232,Output!$C:$AQ,AW$228,FALSE) ->  | AX232: =VLOOKUP($U232,Output!$C:$AQ,AX$228,FALSE) ->  | AY232: =VLOOKUP($U232,Output!$C:$AQ,AY$228,FALSE) ->  | AZ232: =VLOOKUP($U232,Output!$C:$AQ,AZ$228,FALSE) -> 
S233: =LEFT(B$229,10) -> Figure 10c | T233: Total | U233: Total | V233: =SUM(V231:V232) ->  | W233: =SUM(W231:W232) -> 
B255: Figure 11b Évolution du volume de sapin et d'épinettes sur pied dans la composante SEPM
U262: Colonne | V262: 6 | W262: 7 | X262: 8 | Y262: 9 | Z262: 10 | AA262: 11 | AB262: 12 | AC262: 13 | AD262: 14 | AE262: 15 | AF262: 16 | AG262: 17 | AH262: 18 | AI262: 19 | AJ262: 20 | AK262: 21 | AL262: 22 | AM262: 23 | AN262: 24 | AO262: 25 | AP262: 26 | AQ262: 27 | AR262: 28 | AS262: 29 | AT262: 30 | AU262: 31 | AV262: 32 | AW262: 33 | AX262: 34 | AY262: 35 | AZ262: 36
U263: Axe des "X" Fin de période | V263: 2018 | W263: 2023 | X263: 2028 | Y263: 2033 | Z263: 2038 | AA263: 2043 | AB263: 2048 | AC263: 2053 | AD263: 2058 | AE263: 2063 | AF263: 2068 | AG263: 2073 | AH263: 2078 | AI263: 2083 | AJ263: 2088 | AK263: 2093 | AL263: 2098 | AM263: 2103 | AN263: 2108 | AO263: 2113 | AP263: 2118 | AQ263: 2123 | AR263: 2128 | AS263: 2133 | AT263: 2138 | AU263: 2143 | AV263: 2148 | AW263: 2153 | AX263: 2158 | AY263: 2163 | AZ263: 2168
S264: =LEFT(B$255,10) -> Figure 11b | U264: Période | V264: P0 | W264: P1 | X264: P2 | Y264: P3 | Z264: P4 | AA264: P5 | AB264: P6 | AC264: P7 | AD264: P8 | AE264: P9 | AF264: P10 | AG264: P11 | AH264: P12 | AI264: P13 | AJ264: P14 | AK264: P15 | AL264: P16 | AM264: P17 | AN264: P18 | AO264: P19 | AP264: P20 | AQ264: P21 | AR264: P22 | AS264: P23 | AT264: P24 | AU264: P25 | AV264: P26 | AW264: P27 | AX264: P28 | AY264: P29 | AZ264: P30
S265: Figure 11b | T265: Légende | Y265: PERIOD3 | Z265: PERIOD4 | AA265: PERIOD5 | AB265: PERIOD6 | AC265: PERIOD7 | AD265: PERIOD8 | AE265: PERIOD9 | AF265: PERIOD10 | AG265: PERIOD11 | AH265: PERIOD12 | AI265: PERIOD13 | AJ265: PERIOD14 | AK265: PERIOD15 | AL265: PERIOD16 | AM265: PERIOD17 | AN265: PERIOD18 | AO265: PERIOD19 | AP265: PERIOD20 | AQ265: PERIOD21 | AR265: PERIOD22 | AS265: PERIOD23 | AT265: PERIOD24 | AU265: PERIOD25 | AV265: PERIOD26 | AW265: PERIOD27 | AX265: PERIOD28 | AY265: PERIOD29 | AZ265: PERIOD30
S266: Figure 11b | T266: Volume Sapin | U266: OVOLSABPIEDINC(FCTYF_SEPM) | V266: =VLOOKUP($U266,GTYF!$C:$AL,Figures!V$262,FALSE) -> 15958740.47 | W266: =VLOOKUP($U266,GTYF!$C:$AL,Figures!W$262,FALSE) -> 14836133.17 | X266: =VLOOKUP($U266,GTYF!$C:$AL,Figures!X$262,FALSE) -> 13045624.85 | Y266: =VLOOKUP($U266,GTYF!$C:$AL,Figures!Y$262,FALSE) -> 12062906.15 | Z266: =VLOOKUP($U266,GTYF!$C:$AL,Figures!Z$262,FALSE) -> 11317230.47 | AA266: =VLOOKUP($U266,GTYF!$C:$AL,Figures!AA$262,FALSE) -> 10616542.38 | AB266: =VLOOKUP($U266,GTYF!$C:$AL,Figures!AB$262,FALSE) -> 10318472.15 | AC266: =VLOOKUP($U266,GTYF!$C:$AL,Figures!AC$262,FALSE) -> 10378953.22 | AD266: =VLOOKUP($U266,GTYF!$C:$AL,Figures!AD$262,FALSE) -> 10680702.2 | AE266: =VLOOKUP($U266,GTYF!$C:$AL,Figures!AE$262,FALSE) -> 11457198.97 | AF266: =VLOOKUP($U266,GTYF!$C:$AL,Figures!AF$262,FALSE) -> 11859514.05 | AG266: =VLOOKUP($U266,GTYF!$C:$AL,Figures!AG$262,FALSE) -> 12258085 | AH266: =VLOOKUP($U266,GTYF!$C:$AL,Figures!AH$262,FALSE) -> 12896705.31 | AI266: =VLOOKUP($U266,GTYF!$C:$AL,Figures!AI$262,FALSE) -> 13560674.92 | AJ266: =VLOOKUP($U266,GTYF!$C:$AL,Figures!AJ$262,FALSE) -> 13412425.57 | AK266: =VLOOKUP($U266,GTYF!$C:$AL,Figures!AK$262,FALSE) -> 13168227.01 | AL266: =VLOOKUP($U266,GTYF!$C:$AL,Figures!AL$262,FALSE) -> 12775186.39 | AM266: =VLOOKUP($U266,GTYF!$C:$AL,Figures!AM$262,FALSE) -> 13554818.03 | AN266: =VLOOKUP($U266,GTYF!$C:$AL,Figures!AN$262,FALSE) -> 13481419.38 | AO266: =VLOOKUP($U266,GTYF!$C:$AL,Figures!AO$262,FALSE) -> 13004805.51 | AP266: =VLOOKUP($U266,GTYF!$C:$AL,Figures!AP$262,FALSE) -> 12826075.05 | AQ266: =VLOOKUP($U266,GTYF!$C:$AL,Figures!AQ$262,FALSE) -> 12185817.22 | AR266: =VLOOKUP($U266,GTYF!$C:$AL,Figures!AR$262,FALSE) -> 11866290.43 | AS266: =VLOOKUP($U266,GTYF!$C:$AL,Figures!AS$262,FALSE) -> 11960721.7 | AT266: =VLOOKUP($U266,GTYF!$C:$AL,Figures!AT$262,FALSE) -> 11762829.23 | AU266: =VLOOKUP($U266,GTYF!$C:$AL,Figures!AU$262,FALSE) -> 12080653.5 | AV266: =VLOOKUP($U266,GTYF!$C:$AL,Figures!AV$262,FALSE) -> 11825768.76 | AW266: =VLOOKUP($U266,GTYF!$C:$AL,Figures!AW$262,FALSE) -> 12547173.66 | AX266: =VLOOKUP($U266,GTYF!$C:$AL,Figures!AX$262,FALSE) -> 13575700.28 | AY266: =VLOOKUP($U266,GTYF!$C:$AL,Figures!AY$262,FALSE) -> 14427040.19 | AZ266: =VLOOKUP($U266,GTYF!$C:$AL,Figures!AZ$262,FALSE) -> 14144101.27
S267: Figure 11b | T267: Volume Épinettes | U267: OVOLGEPXPIEDINC(FCTYF_SEPM) | V267: =VLOOKUP($U267,GTYF!$C:$AL,Figures!V$262,FALSE) -> 53552305.44 | W267: =VLOOKUP($U267,GTYF!$C:$AL,Figures!W$262,FALSE) -> 50686500.24 | X267: =VLOOKUP($U267,GTYF!$C:$AL,Figures!X$262,FALSE) -> 47408408.92 | Y267: =VLOOKUP($U267,GTYF!$C:$AL,Figures!Y$262,FALSE) -> 44260085.43 | Z267: =VLOOKUP($U267,GTYF!$C:$AL,Figures!Z$262,FALSE) -> 41352998.2 | AA267: =VLOOKUP($U267,GTYF!$C:$AL,Figures!AA$262,FALSE) -> 38734601.52 | AB267: =VLOOKUP($U267,GTYF!$C:$AL,Figures!AB$262,FALSE) -> 36372006.85 | AC267: =VLOOKUP($U267,GTYF!$C:$AL,Figures!AC$262,FALSE) -> 34615987.74 | AD267: =VLOOKUP($U267,GTYF!$C:$AL,Figures!AD$262,FALSE) -> 33801369.78 | AE267: =VLOOKUP($U267,GTYF!$C:$AL,Figures!AE$262,FALSE) -> 33226498.27 | AF267: =VLOOKUP($U267,GTYF!$C:$AL,Figures!AF$262,FALSE) -> 33045553.59 | AG267: =VLOOKUP($U267,GTYF!$C:$AL,Figures!AG$262,FALSE) -> 33239656.91 | AH267: =VLOOKUP($U267,GTYF!$C:$AL,Figures!AH$262,FALSE) -> 34035985.03 | AI267: =VLOOKUP($U267,GTYF!$C:$AL,Figures!AI$262,FALSE) -> 36776453.26 | AJ267: =VLOOKUP($U267,GTYF!$C:$AL,Figures!AJ$262,FALSE) -> 38972179.73 | AK267: =VLOOKUP($U267,GTYF!$C:$AL,Figures!AK$262,FALSE) -> 41677099.38 | AL267: =VLOOKUP($U267,GTYF!$C:$AL,Figures!AL$262,FALSE) -> 44378195.55 | AM267: =VLOOKUP($U267,GTYF!$C:$AL,Figures!AM$262,FALSE) -> 46431348.03 | AN267: =VLOOKUP($U267,GTYF!$C:$AL,Figures!AN$262,FALSE) -> 47654733.77 | AO267: =VLOOKUP($U267,GTYF!$C:$AL,Figures!AO$262,FALSE) -> 48637544.9 | AP267: =VLOOKUP($U267,GTYF!$C:$AL,Figures!AP$262,FALSE) -> 49685976.6 | AQ267: =VLOOKUP($U267,GTYF!$C:$AL,Figures!AQ$262,FALSE) -> 50164393.08 | AR267: =VLOOKUP($U267,GTYF!$C:$AL,Figures!AR$262,FALSE) -> 49843337.41 | AS267: =VLOOKUP($U267,GTYF!$C:$AL,Figures!AS$262,FALSE) -> 49373829.97 | AT267: =VLOOKUP($U267,GTYF!$C:$AL,Figures!AT$262,FALSE) -> 48752375.77 | AU267: =VLOOKUP($U267,GTYF!$C:$AL,Figures!AU$262,FALSE) -> 46834557.61 | AV267: =VLOOKUP($U267,GTYF!$C:$AL,Figures!AV$262,FALSE) -> 45655558.69 | AW267: =VLOOKUP($U267,GTYF!$C:$AL,Figures!AW$262,FALSE) -> 44325705.87 | AX267: =VLOOKUP($U267,GTYF!$C:$AL,Figures!AX$262,FALSE) -> 42733693 | AY267: =VLOOKUP($U267,GTYF!$C:$AL,Figures!AY$262,FALSE) -> 42072906.4 | AZ267: =VLOOKUP($U267,GTYF!$C:$AL,Figures!AZ$262,FALSE) -> 41471128.92
S268: Figure 11b
S269: Figure 11b | T269: SEPM sur pied | U269: OVOLGSEPMPIEDINC(FCTYF_SEPM) | V269: =VLOOKUP($U269,GTYF!$C:$AL,Figures!V$262,FALSE) -> 72645832.87 | W269: =VLOOKUP($U269,GTYF!$C:$AL,Figures!W$262,FALSE) -> 68678334.93 | X269: =VLOOKUP($U269,GTYF!$C:$AL,Figures!X$262,FALSE) -> 63594566.44 | Y269: =VLOOKUP($U269,GTYF!$C:$AL,Figures!Y$262,FALSE) -> 59632662.2 | Z269: =VLOOKUP($U269,GTYF!$C:$AL,Figures!Z$262,FALSE) -> 56489935.51 | AA269: =VLOOKUP($U269,GTYF!$C:$AL,Figures!AA$262,FALSE) -> 53771359.67 | AB269: =VLOOKUP($U269,GTYF!$C:$AL,Figures!AB$262,FALSE) -> 52155599.5 | AC269: =VLOOKUP($U269,GTYF!$C:$AL,Figures!AC$262,FALSE) -> 51682837.42 | AD269: =VLOOKUP($U269,GTYF!$C:$AL,Figures!AD$262,FALSE) -> 52373484.39 | AE269: =VLOOKUP($U269,GTYF!$C:$AL,Figures!AE$262,FALSE) -> 53533526.13 | AF269: =VLOOKUP($U269,GTYF!$C:$AL,Figures!AF$262,FALSE) -> 55147475.82 | AG269: =VLOOKUP($U269,GTYF!$C:$AL,Figures!AG$262,FALSE) -> 56911092.48 | AH269: =VLOOKUP($U269,GTYF!$C:$AL,Figures!AH$262,FALSE) -> 58798155.34 | AI269: =VLOOKUP($U269,GTYF!$C:$AL,Figures!AI$262,FALSE) -> 61163838.36 | AJ269: =VLOOKUP($U269,GTYF!$C:$AL,Figures!AJ$262,FALSE) -> 63874399.15 | AK269: =VLOOKUP($U269,GTYF!$C:$AL,Figures!AK$262,FALSE) -> 66504315.79 | AL269: =VLOOKUP($U269,GTYF!$C:$AL,Figures!AL$262,FALSE) -> 68964629.26 | AM269: =VLOOKUP($U269,GTYF!$C:$AL,Figures!AM$262,FALSE) -> 71137624.93 | AN269: =VLOOKUP($U269,GTYF!$C:$AL,Figures!AN$262,FALSE) -> 72544540.05 | AO269: =VLOOKUP($U269,GTYF!$C:$AL,Figures!AO$262,FALSE) -> 73792255.12 | AP269: =VLOOKUP($U269,GTYF!$C:$AL,Figures!AP$262,FALSE) -> 74623772.03 | AQ269: =VLOOKUP($U269,GTYF!$C:$AL,Figures!AQ$262,FALSE) -> 75223832.53 | AR269: =VLOOKUP($U269,GTYF!$C:$AL,Figures!AR$262,FALSE) -> 74489034.83 | AS269: =VLOOKUP($U269,GTYF!$C:$AL,Figures!AS$262,FALSE) -> 73554000.58 | AT269: =VLOOKUP($U269,GTYF!$C:$AL,Figures!AT$262,FALSE) -> 72461643.41 | AU269: =VLOOKUP($U269,GTYF!$C:$AL,Figures!AU$262,FALSE) -> 71092824.23 | AV269: =VLOOKUP($U269,GTYF!$C:$AL,Figures!AV$262,FALSE) -> 70171065.27 | AW269: =VLOOKUP($U269,GTYF!$C:$AL,Figures!AW$262,FALSE) -> 69508301.1 | AX269: =VLOOKUP($U269,GTYF!$C:$AL,Figures!AX$262,FALSE) -> 69052549.71 | AY269: =VLOOKUP($U269,GTYF!$C:$AL,Figures!AY$262,FALSE) -> 69159442.64 | AZ269: =VLOOKUP($U269,GTYF!$C:$AL,Figures!AZ$262,FALSE) -> 68561997.66
S270: Figure 11b
S271: Figure 11b | T271: % Sapin | V271: =IF(ISERROR(V266),0,V266/V269) -> 0.2196786772 | W271: 0.2160234838 | X271: 0.2051374132 | Y271: 0.2022868962 | Z271: 0.2003406513 | AA271: 0.1974386076 | AB271: 0.19784016 | AC271: 0.2008201124 | AD271: 0.2039333897 | AE271: 0.2140191353 | AF271: 0.2150508953 | AG271: 0.2153900842 | AH271: 0.219338604 | AI271: 0.2217106592 | AJ271: 0.2099812405 | AK271: 0.1980056009 | AL271: 0.1852425878 | AM271: 0.1905435843 | AN271: 0.1858364444 | AO271: 0.1762353717 | AP271: 0.1718765308 | AQ271: 0.1619941023 | AR271: 0.1593025129 | AS271: 0.1626114366 | AT271: 0.1623318031 | AU271: 0.1699278884 | AV271: 0.1685277075 | AW271: 0.1805133122 | AX271: 0.1965995512 | AY271: 0.2086055011 | AZ271: 0.2062965163
S272: Figure 11b | T272: % Épinettes | V272: =IF(ISERROR(V267),0,V267/V269) -> 0.737169681 | W272: =IF(ISERROR(W267),0,W267/W269) -> 0.7380275059 | X272: 0.7454789233 | Y272: 0.7422121334 | Z272: 0.7320418731 | AA272: 0.7203574869 | AB272: 0.6973749166 | AC272: 0.6697772311 | AD272: 0.6453908915 | AE272: 0.6206670973 | AF272: 0.5992215074 | AG272: 0.5840628858 | AH272: 0.5788614427 | AI272: 0.6012777197 | AJ272: 0.6101377116 | AK272: 0.6266826278 | AL272: 0.6434921209 | AM272: 0.652697473 | AN272: 0.6569031072 | AO272: 0.6591144941 | AP272: 0.6658196879 | AQ272: 0.66686835 | AR272: 0.6691365719 | AS272: 0.6712596131 | AT272: 0.6728025128 | AU272: 0.6587803779 | AV272: 0.6506322587 | AW272: 0.6377037731 | AX272: 0.6188575683 | AY272: 0.6083465221 | AZ272: 0.6048704871
S273: Figure 11b | T273: % Volume autre | V273: =1-(V272+V271) -> 0.04315164182 | W273: 0.04594901031 | X273: 0.04938366351 | Y273: 0.05550097041 | Z273: 0.06761747567 | AA273: 0.08220390552 | AB273: 0.1047849234 | AC273: 0.1294026565 | AD273: 0.1506757189 | AE273: 0.1653137675 | AF273: 0.1857275973 | AG273: 0.20054703 | AH273: 0.2017999533 | AI273: 0.1770116211 | AJ273: 0.1798810479 | AK273: 0.1753117713 | AL273: 0.1712652913 | AM273: 0.1567589427 | AN273: 0.1572604484 | AO273: 0.1646501342 | AP273: 0.1623037814 | AQ273: 0.1711375477 | AR273: 0.1715609152 | AS273: 0.1661289503 | AT273: 0.1648656841 | AU273: 0.1712917338 | AV273: 0.1808400339 | AW273: 0.1817829147 | AX273: 0.1845428805 | AY273: 0.1830479768 | AZ273: 0.1888329966
... 444 more rows

Sheet UTA
M1: Jeune forêt | R1: Niveau d'altération des vieilles forêts | W1: Niveau d'altération combiné | AA1: Info à récupérer par le SSP Niveau d'altération des vieilles forêts
A2: Inscrire la liste des numéros d'UTA de l'UA: | B2: VieuxAlerte (%) | C2: VieuxAccept (%) | D2: RegeAlerte (%) | E2: RegeAccept (%) | G2: VieuxAlerte (ha) | H2: VieuxAccept (ha) | I2: RegeAlerte (ha) | J2: RegeAccept (ha) | K2: SupUTA | M2: OSUPJEUNEREGECO PERIOD1 (%) | N2: État Jeune 2023 | O2: OSUPJEUNEREGECO PERIOD6 (%) | P2: État Jeune 2048 | R2: OSUPVIEUXTOTREGECO PERIOD1 (%) | S2: État Vielle 2023 | T2: OSUPVIEUXTOTREGECO PERIOD6 (%) | U2: État Vielle 2048 | W2: UTA | X2: 2023 | Y2: 2048 | AA2: UA | AB2: UTA | AC2: 2023 | AD2: 2048 | AE2: Mode de répartition spatiale | AP2: Mode de répartition spatiale
A3: UTA1 | B3: =ROUND(G3/$K3,3) -> 0.183 | C3: =ROUND(H3/$K3,3) -> 0.305 | D3: =ROUND(I3/$K3,3) -> 0.3 | E3: =ROUND(J3/$K3,3) -> 0.2 | G3: =VLOOKUP(CONCATENATE("OSUPVIEUXALERTEREGECO_"&A3),Output!$C:$AQ,6,FALSE) -> 4880.01 | H3: =VLOOKUP(CONCATENATE("OSUPVIEUXACCEPTREGECO_"&A3),Output!$C:$AQ,6,FALSE) -> 8133.34 | I3: =VLOOKUP(CONCATENATE("OSUPJEUNEALERTEREGECO_"&A3),Output!$C:$AQ,6,FALSE) -> 8000.01 | J3: =VLOOKUP(CONCATENATE("OSUPJEUNEACCEPTREGECO_"&A3),Output!$C:$AQ,6,FALSE) -> 5333.34 | K3: =VLOOKUP(CONCATENATE("OSUPREGECO_"&A3),Output!$C:$AQ,6,FALSE) -> 26666.7 | M3: =ROUND(VLOOKUP("OSUPJEUNEREGECO_"&A3,Output!$C:$AQ,7,FALSE)/VLOOKUP("OSUPREGECO_UTA"&MID($A3,4,2),Output!$C:$AQ,6,FALSE),3) -> 0.21 | N3: =IF(M3<=$E3,"Faible",IF(M3<$D3,"Modéré","Supérieur")) -> Modéré | O3: =ROUND(VLOOKUP("OSUPJEUNEREGECO_"&$A3,Output!$C:$AQ,12,FALSE)/VLOOKUP("OSUPREGECO_UTA"&MID($A3,4,2),Output!$C:$AQ,6,FALSE),3) -> 0.084 | P3: =IF(O3<=$E3,"Faible",IF(O3<$D3,"Modéré","Supérieur")) -> Faible | R3: =ROUND(VLOOKUP("OSUPVIEUXTOTREGECO_"&$A3,Output!$C:$AQ,7,FALSE)/VLOOKUP("OSUPREGECO_UTA"&MID($A3,4,2),Output!$C:$AQ,6,FALSE),3) -> 0.163 | S3: =IF(R3<$B3,"Supérieur",IF(R3<$C3,"Modéré","Faible")) -> Supérieur | T3: =ROUND(VLOOKUP("OSUPVIEUXTOTREGECO_"&$A3,Output!$C:$AQ,12,FALSE)/VLOOKUP("OSUPREGECO_UTA"&MID($A3,4,2),Output!$C:$AQ,6,FALSE),3) -> 0.285 | U3: =IF(T3<$B3,"Supérieur",IF(T3<$C3,"Modéré","Faible")) -> Modéré | W3: =A3 -> UTA1 | X3: =IF(S3>N3,S3,N3) -> Supérieur | Y3: =IF(U3>P3,U3,P3) -> Modéré | AA3: =Tableaux!$O$33 -> 02471 | AB3: =W3 -> UTA1 | AC3: =S3 -> Supérieur | AD3: =U3 -> Modéré | AE3: COS sapinière | AG3: Note: "Élevé" a été renommé "Supérieur" pour le bon fonctionnement des formules. | AP3: COS sapinière
A4: UTA2 | B4: =ROUND(G4/$K4,3) -> 0.183 | C4: 0.305 | D4: 0.3 | E4: 0.2 | G4: =VLOOKUP(CONCATENATE("OSUPVIEUXALERTEREGECO_"&A4),Output!$C:$AQ,6,FALSE) -> 6460.39 | H4: =VLOOKUP(CONCATENATE("OSUPVIEUXACCEPTREGECO_"&A4),Output!$C:$AQ,6,FALSE) -> 10767.32 | I4: =VLOOKUP(CONCATENATE("OSUPJEUNEALERTEREGECO_"&A4),Output!$C:$AQ,6,FALSE) -> 10590.81 | J4: =VLOOKUP(CONCATENATE("OSUPJEUNEACCEPTREGECO_"&A4),Output!$C:$AQ,6,FALSE) -> 7060.54 | K4: =VLOOKUP(CONCATENATE("OSUPREGECO_"&A4),Output!$C:$AQ,6,FALSE) -> 35302.7 | M4: =ROUND(VLOOKUP("OSUPJEUNEREGECO_"&A4,Output!$C:$AQ,7,FALSE)/VLOOKUP("OSUPREGECO_UTA"&MID($A4,4,2),Output!$C:$AQ,6,FALSE),3) -> 0.163 | N4: =IF(M4<=$E4,"Faible",IF(M4<$D4,"Modéré","Supérieur")) -> Faible | O4: =ROUND(VLOOKUP("OSUPJEUNEREGECO_"&$A4,Output!$C:$AQ,12,FALSE)/VLOOKUP("OSUPREGECO_UTA"&MID($A4,4,2),Output!$C:$AQ,6,FALSE),3) -> 0.159 | P4: =IF(O4<=$E4,"Faible",IF(O4<$D4,"Modéré","Supérieur")) -> Faible | R4: =ROUND(VLOOKUP("OSUPVIEUXTOTREGECO_"&$A4,Output!$C:$AQ,7,FALSE)/VLOOKUP("OSUPREGECO_UTA"&MID($A4,4,2),Output!$C:$AQ,6,FALSE),3) -> 0.14 | S4: =IF(R4<$B4,"Supérieur",IF(R4<$C4,"Modéré","Faible")) -> Supérieur | T4: =ROUND(VLOOKUP("OSUPVIEUXTOTREGECO_"&$A4,Output!$C:$AQ,12,FALSE)/VLOOKUP("OSUPREGECO_UTA"&MID($A4,4,2),Output!$C:$AQ,6,FALSE),3) -> 0.306 | U4: =IF(T4<$B4,"Supérieur",IF(T4<$C4,"Modéré","Faible")) -> Faible | W4: =A4 -> UTA2 | X4: =IF(S4>N4,S4,N4) -> Supérieur | Y4: =IF(U4>P4,U4,P4) -> Faible | AA4: =Tableaux!$O$33 -> 02471 | AB4: =W4 -> UTA2 | AC4: =S4 -> Supérieur | AD4: =U4 -> Faible | AE4: COS sapinière | AP4: COS pessière
A5: UTA3 | B5: 0.183 | C5: 0.305 | D5: 0.3 | E5: 0.2 | G5: =VLOOKUP(CONCATENATE("OSUPVIEUXALERTEREGECO_"&A5),Output!$C:$AQ,6,FALSE) -> 5243.24 | H5: =VLOOKUP(CONCATENATE("OSUPVIEUXACCEPTREGECO_"&A5),Output!$C:$AQ,6,FALSE) -> 8738.74 | I5: =VLOOKUP(CONCATENATE("OSUPJEUNEALERTEREGECO_"&A5),Output!$C:$AQ,6,FALSE) -> 8595.48 | J5: =VLOOKUP(CONCATENATE("OSUPJEUNEACCEPTREGECO_"&A5),Output!$C:$AQ,6,FALSE) -> 5730.32 | K5: =VLOOKUP(CONCATENATE("OSUPREGECO_"&A5),Output!$C:$AQ,6,FALSE) -> 28651.6 | M5: =ROUND(VLOOKUP("OSUPJEUNEREGECO_"&A5,Output!$C:$AQ,7,FALSE)/VLOOKUP("OSUPREGECO_UTA"&MID($A5,4,2),Output!$C:$AQ,6,FALSE),3) -> 0.299 | N5: Modéré | O5: =ROUND(VLOOKUP("OSUPJEUNEREGECO_"&$A5,Output!$C:$AQ,12,FALSE)/VLOOKUP("OSUPREGECO_UTA"&MID($A5,4,2),Output!$C:$AQ,6,FALSE),3) -> 0.061 | P5: Faible | R5: =ROUND(VLOOKUP("OSUPVIEUXTOTREGECO_"&$A5,Output!$C:$AQ,7,FALSE)/VLOOKUP("OSUPREGECO_UTA"&MID($A5,4,2),Output!$C:$AQ,6,FALSE),3) -> 0.143 | S5: Supérieur | T5: =ROUND(VLOOKUP("OSUPVIEUXTOTREGECO_"&$A5,Output!$C:$AQ,12,FALSE)/VLOOKUP("OSUPREGECO_UTA"&MID($A5,4,2),Output!$C:$AQ,6,FALSE),3) -> 0.272 | U5: Modéré | W5: UTA3 | X5: Supérieur | Y5: Modéré | AA5: =Tableaux!$O$33 -> 02471 | AB5: =W5 -> UTA3 | AC5: =S5 -> Supérieur | AD5: =U5 -> Modéré | AE5: COS sapinière | AP5: CMO
A6: UTA4 | B6: 0.183 | C6: 0.305 | D6: 0.3 | E6: 0.2 | G6: =VLOOKUP(CONCATENATE("OSUPVIEUXALERTEREGECO_"&A6),Output!$C:$AQ,6,FALSE) -> 4098.89 | H6: =VLOOKUP(CONCATENATE("OSUPVIEUXACCEPTREGECO_"&A6),Output!$C:$AQ,6,FALSE) -> 6831.48 | I6: =VLOOKUP(CONCATENATE("OSUPJEUNEALERTEREGECO_"&A6),Output!$C:$AQ,6,FALSE) -> 6719.49 | J6: =VLOOKUP(CONCATENATE("OSUPJEUNEACCEPTREGECO_"&A6),Output!$C:$AQ,6,FALSE) -> 4479.66 | K6: =VLOOKUP(CONCATENATE("OSUPREGECO_"&A6),Output!$C:$AQ,6,FALSE) -> 22398.3 | M6: =ROUND(VLOOKUP("OSUPJEUNEREGECO_"&A6,Output!$C:$AQ,7,FALSE)/VLOOKUP("OSUPREGECO_UTA"&MID($A6,4,2),Output!$C:$AQ,6,FALSE),3) -> 0.177 | N6: Faible | O6: =ROUND(VLOOKUP("OSUPJEUNEREGECO_"&$A6,Output!$C:$AQ,12,FALSE)/VLOOKUP("OSUPREGECO_UTA"&MID($A6,4,2),Output!$C:$AQ,6,FALSE),3) -> 0.093 | P6: Faible | R6: =ROUND(VLOOKUP("OSUPVIEUXTOTREGECO_"&$A6,Output!$C:$AQ,7,FALSE)/VLOOKUP("OSUPREGECO_UTA"&MID($A6,4,2),Output!$C:$AQ,6,FALSE),3) -> 0.202 | S6: Modéré | T6: =ROUND(VLOOKUP("OSUPVIEUXTOTREGECO_"&$A6,Output!$C:$AQ,12,FALSE)/VLOOKUP("OSUPREGECO_UTA"&MID($A6,4,2),Output!$C:$AQ,6,FALSE),3) -> 0.398 | U6: Faible | W6: UTA4 | X6: Modéré | Y6: Faible | AA6: =Tableaux!$O$33 -> 02471 | AB6: UTA4 | AC6: Modéré | AD6: =U6 -> Faible | AE6: COS sapinière | AP6: CMO entente Cris
A7: UTA5 | B7: 0.183 | C7: 0.305 | D7: 0.3 | E7: 0.2 | G7: =VLOOKUP(CONCATENATE("OSUPVIEUXALERTEREGECO_"&A7),Output!$C:$AQ,6,FALSE) -> 5677.67 | H7: =VLOOKUP(CONCATENATE("OSUPVIEUXACCEPTREGECO_"&A7),Output!$C:$AQ,6,FALSE) -> 9462.78 | I7: =VLOOKUP(CONCATENATE("OSUPJEUNEALERTEREGECO_"&A7),Output!$C:$AQ,6,FALSE) -> 9307.65 | J7: =VLOOKUP(CONCATENATE("OSUPJEUNEACCEPTREGECO_"&A7),Output!$C:$AQ,6,FALSE) -> 6205.1 | K7: =VLOOKUP(CONCATENATE("OSUPREGECO_"&A7),Output!$C:$AQ,6,FALSE) -> 31025.5 | M7: =ROUND(VLOOKUP("OSUPJEUNEREGECO_"&A7,Output!$C:$AQ,7,FALSE)/VLOOKUP("OSUPREGECO_UTA"&MID($A7,4,2),Output!$C:$AQ,6,FALSE),3) -> 0.17 | N7: Faible | O7: =ROUND(VLOOKUP("OSUPJEUNEREGECO_"&$A7,Output!$C:$AQ,12,FALSE)/VLOOKUP("OSUPREGECO_UTA"&MID($A7,4,2),Output!$C:$AQ,6,FALSE),3) -> 0.046 | P7: Faible | R7: =ROUND(VLOOKUP("OSUPVIEUXTOTREGECO_"&$A7,Output!$C:$AQ,7,FALSE)/VLOOKUP("OSUPREGECO_UTA"&MID($A7,4,2),Output!$C:$AQ,6,FALSE),3) -> 0.282 | S7: Modéré | T7: =ROUND(VLOOKUP("OSUPVIEUXTOTREGECO_"&$A7,Output!$C:$AQ,12,FALSE)/VLOOKUP("OSUPREGECO_UTA"&MID($A7,4,2),Output!$C:$AQ,6,FALSE),3) -> 0.306 | U7: Faible | W7: UTA5 | X7: Modéré | Y7: Faible | AA7: =Tableaux!$O$33 -> 02471 | AB7: UTA5 | AC7: =S7 -> Modéré | AD7: =U7 -> Faible | AE7: COS sapinière | AG7: Voir à renommer "Élevé" dans la légende des figures | AP7: CMO entente BM
A8: UTA6 | B8: 0.183 | C8: 0.305 | D8: 0.3 | E8: 0.2 | G8: =VLOOKUP(CONCATENATE("OSUPVIEUXALERTEREGECO_"&A8),Output!$C:$AQ,6,FALSE) -> 4497.15 | H8: =VLOOKUP(CONCATENATE("OSUPVIEUXACCEPTREGECO_"&A8),Output!$C:$AQ,6,FALSE) -> 7495.25 | I8: =VLOOKUP(CONCATENATE("OSUPJEUNEALERTEREGECO_"&A8),Output!$C:$AQ,6,FALSE) -> 7372.38 | J8: =VLOOKUP(CONCATENATE("OSUPJEUNEACCEPTREGECO_"&A8),Output!$C:$AQ,6,FALSE) -> 4914.92 | K8: =VLOOKUP(CONCATENATE("OSUPREGECO_"&A8),Output!$C:$AQ,6,FALSE) -> 24574.6 | M8: =ROUND(VLOOKUP("OSUPJEUNEREGECO_"&A8,Output!$C:$AQ,7,FALSE)/VLOOKUP("OSUPREGECO_UTA"&MID($A8,4,2),Output!$C:$AQ,6,FALSE),3) -> 0.106 | N8: Faible | O8: =ROUND(VLOOKUP("OSUPJEUNEREGECO_"&$A8,Output!$C:$AQ,12,FALSE)/VLOOKUP("OSUPREGECO_UTA"&MID($A8,4,2),Output!$C:$AQ,6,FALSE),3) -> 0.109 | P8: Faible | R8: =ROUND(VLOOKUP("OSUPVIEUXTOTREGECO_"&$A8,Output!$C:$AQ,7,FALSE)/VLOOKUP("OSUPREGECO_UTA"&MID($A8,4,2),Output!$C:$AQ,6,FALSE),3) -> 0.268 | S8: Modéré | T8: =ROUND(VLOOKUP("OSUPVIEUXTOTREGECO_"&$A8,Output!$C:$AQ,12,FALSE)/VLOOKUP("OSUPREGECO_UTA"&MID($A8,4,2),Output!$C:$AQ,6,FALSE),3) -> 0.427 | U8: Faible | W8: UTA6 | X8: Modéré | Y8: Faible | AA8: =Tableaux!$O$33 -> 02471 | AB8: UTA6 | AC8: Modéré | AD8: Faible | AE8: COS sapinière
A9: UTA7 | B9: 0.168 | C9: 0.28 | D9: 0.3 | E9: 0.2 | G9: =VLOOKUP(CONCATENATE("OSUPVIEUXALERTEREGECO_"&A9),Output!$C:$AQ,6,FALSE) -> 5036.51 | H9: =VLOOKUP(CONCATENATE("OSUPVIEUXACCEPTREGECO_"&A9),Output!$C:$AQ,6,FALSE) -> 8394.18 | I9: =VLOOKUP(CONCATENATE("OSUPJEUNEALERTEREGECO_"&A9),Output!$C:$AQ,6,FALSE) -> 8993.76 | J9: =VLOOKUP(CONCATENATE("OSUPJEUNEACCEPTREGECO_"&A9),Output!$C:$AQ,6,FALSE) -> 5995.84 | K9: =VLOOKUP(CONCATENATE("OSUPREGECO_"&A9),Output!$C:$AQ,6,FALSE) -> 29979.2 | M9: =ROUND(VLOOKUP("OSUPJEUNEREGECO_"&A9,Output!$C:$AQ,7,FALSE)/VLOOKUP("OSUPREGECO_UTA"&MID($A9,4,2),Output!$C:$AQ,6,FALSE),3) -> 0.067 | N9: Faible | O9: =ROUND(VLOOKUP("OSUPJEUNEREGECO_"&$A9,Output!$C:$AQ,12,FALSE)/VLOOKUP("OSUPREGECO_UTA"&MID($A9,4,2),Output!$C:$AQ,6,FALSE),3) -> 0.024 | P9: Faible | R9: =ROUND(VLOOKUP("OSUPVIEUXTOTREGECO_"&$A9,Output!$C:$AQ,7,FALSE)/VLOOKUP("OSUPREGECO_UTA"&MID($A9,4,2),Output!$C:$AQ,6,FALSE),3) -> 0.345 | S9: Faible | T9: =ROUND(VLOOKUP("OSUPVIEUXTOTREGECO_"&$A9,Output!$C:$AQ,12,FALSE)/VLOOKUP("OSUPREGECO_UTA"&MID($A9,4,2),Output!$C:$AQ,6,FALSE),3) -> 0.418 | U9: Faible | W9: UTA7 | X9: Faible | Y9: Faible | AA9: =Tableaux!$O$33 -> 02471 | AB9: UTA7 | AC9: Faible | AD9: Faible | AE9: COS sapinière
A10: UTA8 | B10: 0.168 | C10: 0.28 | D10: 0.3 | E10: 0.2 | G10: =VLOOKUP(CONCATENATE("OSUPVIEUXALERTEREGECO_"&A10),Output!$C:$AQ,6,FALSE) -> 5825.64 | H10: =VLOOKUP(CONCATENATE("OSUPVIEUXACCEPTREGECO_"&A10),Output!$C:$AQ,6,FALSE) -> 9709.39 | I10: =VLOOKUP(CONCATENATE("OSUPJEUNEALERTEREGECO_"&A10),Output!$C:$AQ,6,FALSE) -> 10402.92 | J10: =VLOOKUP(CONCATENATE("OSUPJEUNEACCEPTREGECO_"&A10),Output!$C:$AQ,6,FALSE) -> 6935.28 | K10: =VLOOKUP(CONCATENATE("OSUPREGECO_"&A10),Output!$C:$AQ,6,FALSE) -> 34676.4 | M10: =ROUND(VLOOKUP("OSUPJEUNEREGECO_"&A10,Output!$C:$AQ,7,FALSE)/VLOOKUP("OSUPREGECO_UTA"&MID($A10,4,2),Output!$C:$AQ,6,FALSE),3) -> 0.249 | N10: Modéré | O10: =ROUND(VLOOKUP("OSUPJEUNEREGECO_"&$A10,Output!$C:$AQ,12,FALSE)/VLOOKUP("OSUPREGECO_UTA"&MID($A10,4,2),Output!$C:$AQ,6,FALSE),3) -> 0.12 | P10: Faible | R10: =ROUND(VLOOKUP("OSUPVIEUXTOTREGECO_"&$A10,Output!$C:$AQ,7,FALSE)/VLOOKUP("OSUPREGECO_UTA"&MID($A10,4,2),Output!$C:$AQ,6,FALSE),3) -> 0.252 | S10: Modéré | T10: =ROUND(VLOOKUP("OSUPVIEUXTOTREGECO_"&$A10,Output!$C:$AQ,12,FALSE)/VLOOKUP("OSUPREGECO_UTA"&MID($A10,4,2),Output!$C:$AQ,6,FALSE),3) -> 0.221 | U10: Modéré | W10: UTA8 | X10: Modéré | Y10: Modéré | AA10: =Tableaux!$O$33 -> 02471 | AB10: UTA8 | AC10: Modéré | AD10: Modéré | AE10: COS sapinière
A11: UTA9 | B11: 0.168 | C11: 0.28 | D11: 0.3 | E11: =ROUND(J11/$K11,3) -> 0.2 | G11: =VLOOKUP(CONCATENATE("OSUPVIEUXALERTEREGECO_"&A11),Output!$C:$AQ,6,FALSE) -> 6453.52 | H11: =VLOOKUP(CONCATENATE("OSUPVIEUXACCEPTREGECO_"&A11),Output!$C:$AQ,6,FALSE) -> 10755.86 | I11: =VLOOKUP(CONCATENATE("OSUPJEUNEALERTEREGECO_"&A11),Output!$C:$AQ,6,FALSE) -> 11524.14 | J11: =VLOOKUP(CONCATENATE("OSUPJEUNEACCEPTREGECO_"&A11),Output!$C:$AQ,6,FALSE) -> 7682.76 | K11: =VLOOKUP(CONCATENATE("OSUPREGECO_"&A11),Output!$C:$AQ,6,FALSE) -> 38413.8 | M11: =ROUND(VLOOKUP("OSUPJEUNEREGECO_"&A11,Output!$C:$AQ,7,FALSE)/VLOOKUP("OSUPREGECO_UTA"&MID($A11,4,2),Output!$C:$AQ,6,FALSE),3) -> 0.456 | N11: Supérieur | O11: =ROUND(VLOOKUP("OSUPJEUNEREGECO_"&$A11,Output!$C:$AQ,12,FALSE)/VLOOKUP("OSUPREGECO_UTA"&MID($A11,4,2),Output!$C:$AQ,6,FALSE),3) -> 0.057 | P11: Faible | R11: =ROUND(VLOOKUP("OSUPVIEUXTOTREGECO_"&$A11,Output!$C:$AQ,7,FALSE)/VLOOKUP("OSUPREGECO_UTA"&MID($A11,4,2),Output!$C:$AQ,6,FALSE),3) -> 0.163 | S11: Supérieur | T11: =ROUND(VLOOKUP("OSUPVIEUXTOTREGECO_"&$A11,Output!$C:$AQ,12,FALSE)/VLOOKUP("OSUPREGECO_UTA"&MID($A11,4,2),Output!$C:$AQ,6,FALSE),3) -> 0.178 | U11: Modéré | W11: UTA9 | X11: Supérieur | Y11: Modéré | AA11: =Tableaux!$O$33 -> 02471 | AB11: UTA9 | AC11: Supérieur | AD11: Modéré | AE11: COS sapinière
A12: UTA10 | B12: 0.168 | C12: 0.28 | D12: 0.3 | E12: 0.2 | G12: =VLOOKUP(CONCATENATE("OSUPVIEUXALERTEREGECO_"&A12),Output!$C:$AQ,6,FALSE) -> 5238.37 | H12: =VLOOKUP(CONCATENATE("OSUPVIEUXACCEPTREGECO_"&A12),Output!$C:$AQ,6,FALSE) -> 8730.62 | I12: =VLOOKUP(CONCATENATE("OSUPJEUNEALERTEREGECO_"&A12),Output!$C:$AQ,6,FALSE) -> 9354.24 | J12: =VLOOKUP(CONCATENATE("OSUPJEUNEACCEPTREGECO_"&A12),Output!$C:$AQ,6,FALSE) -> 6236.16 | K12: =VLOOKUP(CONCATENATE("OSUPREGECO_"&A12),Output!$C:$AQ,6,FALSE) -> 31180.8 | M12: =ROUND(VLOOKUP("OSUPJEUNEREGECO_"&A12,Output!$C:$AQ,7,FALSE)/VLOOKUP("OSUPREGECO_UTA"&MID($A12,4,2),Output!$C:$AQ,6,FALSE),3) -> 0.207 | N12: Modéré | O12: =ROUND(VLOOKUP("OSUPJEUNEREGECO_"&$A12,Output!$C:$AQ,12,FALSE)/VLOOKUP("OSUPREGECO_UTA"&MID($A12,4,2),Output!$C:$AQ,6,FALSE),3) -> 0.166 | P12: Faible | R12: =ROUND(VLOOKUP("OSUPVIEUXTOTREGECO_"&$A12,Output!$C:$AQ,7,FALSE)/VLOOKUP("OSUPREGECO_UTA"&MID($A12,4,2),Output!$C:$AQ,6,FALSE),3) -> 0.096 | S12: Supérieur | T12: =ROUND(VLOOKUP("OSUPVIEUXTOTREGECO_"&$A12,Output!$C:$AQ,12,FALSE)/VLOOKUP("OSUPREGECO_UTA"&MID($A12,4,2),Output!$C:$AQ,6,FALSE),3) -> 0.192 | U12: Modéré | W12: UTA10 | X12: Supérieur | Y12: Modéré | AA12: =Tableaux!$O$33 -> 02471 | AB12: UTA10 | AC12: Supérieur | AD12: Modéré | AE12: COS sapinière | AG12: Compléter cellules en jaune
A13: UTA11 | B13: 0.168 | C13: 0.28 | D13: 0.3 | E13: 0.2 | G13: =VLOOKUP(CONCATENATE("OSUPVIEUXALERTEREGECO_"&A13),Output!$C:$AQ,6,FALSE) -> 6593.33 | H13: =VLOOKUP(CONCATENATE("OSUPVIEUXACCEPTREGECO_"&A13),Output!$C:$AQ,6,FALSE) -> 10988.88 | I13: =VLOOKUP(CONCATENATE("OSUPJEUNEALERTEREGECO_"&A13),Output!$C:$AQ,6,FALSE) -> 11773.8 | J13: =VLOOKUP(CONCATENATE("OSUPJEUNEACCEPTREGECO_"&A13),Output!$C:$AQ,6,FALSE) -> 7849.2 | K13: =VLOOKUP(CONCATENATE("OSUPREGECO_"&A13),Output!$C:$AQ,6,FALSE) -> 39246 | M13: =ROUND(VLOOKUP("OSUPJEUNEREGECO_"&A13,Output!$C:$AQ,7,FALSE)/VLOOKUP("OSUPREGECO_UTA"&MID($A13,4,2),Output!$C:$AQ,6,FALSE),3) -> 0.429 | N13: Supérieur | O13: =ROUND(VLOOKUP("OSUPJEUNEREGECO_"&$A13,Output!$C:$AQ,12,FALSE)/VLOOKUP("OSUPREGECO_UTA"&MID($A13,4,2),Output!$C:$AQ,6,FALSE),3) -> 0.151 | P13: Faible | R13: =ROUND(VLOOKUP("OSUPVIEUXTOTREGECO_"&$A13,Output!$C:$AQ,7,FALSE)/VLOOKUP("OSUPREGECO_UTA"&MID($A13,4,2),Output!$C:$AQ,6,FALSE),3) -> 0.068 | S13: Supérieur | T13: =ROUND(VLOOKUP("OSUPVIEUXTOTREGECO_"&$A13,Output!$C:$AQ,12,FALSE)/VLOOKUP("OSUPREGECO_UTA"&MID($A13,4,2),Output!$C:$AQ,6,FALSE),3) -> 0.123 | U13: Supérieur | W13: UTA11 | X13: Supérieur | Y13: Supérieur | AA13: =Tableaux!$O$33 -> 02471 | AB13: UTA11 | AC13: Supérieur | AD13: Supérieur | AE13: COS sapinière
A14: UTA12 | B14: 0.195 | C14: 0.325 | D14: 0.3 | E14: 0.2 | G14: =VLOOKUP(CONCATENATE("OSUPVIEUXALERTEREGECO_"&A14),Output!$C:$AQ,6,FALSE) -> 5482 | H14: =VLOOKUP(CONCATENATE("OSUPVIEUXACCEPTREGECO_"&A14),Output!$C:$AQ,6,FALSE) -> 9136.66 | I14: =VLOOKUP(CONCATENATE("OSUPJEUNEALERTEREGECO_"&A14),Output!$C:$AQ,6,FALSE) -> 8433.84 | J14: =VLOOKUP(CONCATENATE("OSUPJEUNEACCEPTREGECO_"&A14),Output!$C:$AQ,6,FALSE) -> 5622.56 | K14: =VLOOKUP(CONCATENATE("OSUPREGECO_"&A14),Output!$C:$AQ,6,FALSE) -> 28112.8 | M14: =ROUND(VLOOKUP("OSUPJEUNEREGECO_"&A14,Output!$C:$AQ,7,FALSE)/VLOOKUP("OSUPREGECO_UTA"&MID($A14,4,2),Output!$C:$AQ,6,FALSE),3) -> 0.038 | N14: Faible | O14: =ROUND(VLOOKUP("OSUPJEUNEREGECO_"&$A14,Output!$C:$AQ,12,FALSE)/VLOOKUP("OSUPREGECO_UTA"&MID($A14,4,2),Output!$C:$AQ,6,FALSE),3) -> 0.079 | P14: Faible | R14: =ROUND(VLOOKUP("OSUPVIEUXTOTREGECO_"&$A14,Output!$C:$AQ,7,FALSE)/VLOOKUP("OSUPREGECO_UTA"&MID($A14,4,2),Output!$C:$AQ,6,FALSE),3) -> 0.254 | S14: Modéré | T14: =ROUND(VLOOKUP("OSUPVIEUXTOTREGECO_"&$A14,Output!$C:$AQ,12,FALSE)/VLOOKUP("OSUPREGECO_UTA"&MID($A14,4,2),Output!$C:$AQ,6,FALSE),3) -> 0.084 | U14: Supérieur | W14: UTA12 | X14: Modéré | Y14: Supérieur | AA14: =Tableaux!$O$33 -> 02471 | AB14: UTA12 | AC14: Modéré | AD14: Supérieur | AE14: COS sapinière
A15: UTA13 | B15: 0.195 | C15: 0.325 | D15: 0.3 | E15: 0.2 | G15: =VLOOKUP(CONCATENATE("OSUPVIEUXALERTEREGECO_"&A15),Output!$C:$AQ,6,FALSE) -> 6676.78 | H15: =VLOOKUP(CONCATENATE("OSUPVIEUXACCEPTREGECO_"&A15),Output!$C:$AQ,6,FALSE) -> 11127.97 | I15: =VLOOKUP(CONCATENATE("OSUPJEUNEALERTEREGECO_"&A15),Output!$C:$AQ,6,FALSE) -> 10271.97 | J15: =VLOOKUP(CONCATENATE("OSUPJEUNEACCEPTREGECO_"&A15),Output!$C:$AQ,6,FALSE) -> 6847.98 | K15: =VLOOKUP(CONCATENATE("OSUPREGECO_"&A15),Output!$C:$AQ,6,FALSE) -> 34239.9 | M15: =ROUND(VLOOKUP("OSUPJEUNEREGECO_"&A15,Output!$C:$AQ,7,FALSE)/VLOOKUP("OSUPREGECO_UTA"&MID($A15,4,2),Output!$C:$AQ,6,FALSE),3) -> 0.105 | N15: Faible | O15: =ROUND(VLOOKUP("OSUPJEUNEREGECO_"&$A15,Output!$C:$AQ,12,FALSE)/VLOOKUP("OSUPREGECO_UTA"&MID($A15,4,2),Output!$C:$AQ,6,FALSE),3) -> 0.196 | P15: Faible | R15: =ROUND(VLOOKUP("OSUPVIEUXTOTREGECO_"&$A15,Output!$C:$AQ,7,FALSE)/VLOOKUP("OSUPREGECO_UTA"&MID($A15,4,2),Output!$C:$AQ,6,FALSE),3) -> 0.16 | S15: Supérieur | T15: =ROUND(VLOOKUP("OSUPVIEUXTOTREGECO_"&$A15,Output!$C:$AQ,12,FALSE)/VLOOKUP("OSUPREGECO_UTA"&MID($A15,4,2),Output!$C:$AQ,6,FALSE),3) -> 0.177 | U15: Supérieur | W15: UTA13 | X15: Supérieur | Y15: Supérieur | AA15: =Tableaux!$O$33 -> 02471 | AB15: UTA13 | AC15: Supérieur | AD15: Supérieur | AE15: COS sapinière
A16: UTA51 | B16: 0.195 | C16: 0.325 | D16: 0.35 | E16: 0.25 | G16: =VLOOKUP(CONCATENATE("OSUPVIEUXALERTEREGECO_"&A16),Output!$C:$AQ,6,FALSE) -> 12730.15 | H16: =VLOOKUP(CONCATENATE("OSUPVIEUXACCEPTREGECO_"&A16),Output!$C:$AQ,6,FALSE) -> 21216.91 | I16: =VLOOKUP(CONCATENATE("OSUPJEUNEALERTEREGECO_"&A16),Output!$C:$AQ,6,FALSE) -> 22848.98 | J16: =VLOOKUP(CONCATENATE("OSUPJEUNEACCEPTREGECO_"&A16),Output!$C:$AQ,6,FALSE) -> 16320.7 | K16: =VLOOKUP(CONCATENATE("OSUPREGECO_"&A16),Output!$C:$AQ,6,FALSE) -> 65282.8 | M16: =ROUND(VLOOKUP("OSUPJEUNEREGECO_"&A16,Output!$C:$AQ,7,FALSE)/VLOOKUP("OSUPREGECO_UTA"&MID($A16,4,2),Output!$C:$AQ,6,FALSE),3) -> 0 | N16: Faible | O16: =ROUND(VLOOKUP("OSUPJEUNEREGECO_"&$A16,Output!$C:$AQ,12,FALSE)/VLOOKUP("OSUPREGECO_UTA"&MID($A16,4,2),Output!$C:$AQ,6,FALSE),3) -> 0.35 | P16: Supérieur | R16: =ROUND(VLOOKUP("OSUPVIEUXTOTREGECO_"&$A16,Output!$C:$AQ,7,FALSE)/VLOOKUP("OSUPREGECO_UTA"&MID($A16,4,2),Output!$C:$AQ,6,FALSE),3) -> 0.892 | S16: Faible | T16: =ROUND(VLOOKUP("OSUPVIEUXTOTREGECO_"&$A16,Output!$C:$AQ,12,FALSE)/VLOOKUP("OSUPREGECO_UTA"&MID($A16,4,2),Output!$C:$AQ,6,FALSE),3) -> 0.588 | U16: Faible | W16: UTA51 | X16: Faible | Y16: Supérieur | AA16: =Tableaux!$O$33 -> 02471 | AB16: UTA51 | AC16: Faible | AD16: Faible | AE16: COS pessière
A17: UTA52 | B17: 0.195 | C17: 0.325 | D17: 0.35 | E17: 0.25 | G17: =VLOOKUP(CONCATENATE("OSUPVIEUXALERTEREGECO_"&A17),Output!$C:$AQ,6,FALSE) -> 22626.82 | H17: =VLOOKUP(CONCATENATE("OSUPVIEUXACCEPTREGECO_"&A17),Output!$C:$AQ,6,FALSE) -> 37711.38 | I17: =VLOOKUP(CONCATENATE("OSUPJEUNEALERTEREGECO_"&A17),Output!$C:$AQ,6,FALSE) -> 40612.25 | J17: =VLOOKUP(CONCATENATE("OSUPJEUNEACCEPTREGECO_"&A17),Output!$C:$AQ,6,FALSE) -> 29008.75 | K17: =VLOOKUP(CONCATENATE("OSUPREGECO_"&A17),Output!$C:$AQ,6,FALSE) -> 116035 | M17: =ROUND(VLOOKUP("OSUPJEUNEREGECO_"&A17,Output!$C:$AQ,7,FALSE)/VLOOKUP("OSUPREGECO_UTA"&MID($A17,4,2),Output!$C:$AQ,6,FALSE),3) -> 0.003 | N17: Faible | O17: =ROUND(VLOOKUP("OSUPJEUNEREGECO_"&$A17,Output!$C:$AQ,12,FALSE)/VLOOKUP("OSUPREGECO_UTA"&MID($A17,4,2),Output!$C:$AQ,6,FALSE),3) -> 0.199 | P17: Faible | R17: =ROUND(VLOOKUP("OSUPVIEUXTOTREGECO_"&$A17,Output!$C:$AQ,7,FALSE)/VLOOKUP("OSUPREGECO_UTA"&MID($A17,4,2),Output!$C:$AQ,6,FALSE),3) -> 0.933 | S17: Faible | T17: =ROUND(VLOOKUP("OSUPVIEUXTOTREGECO_"&$A17,Output!$C:$AQ,12,FALSE)/VLOOKUP("OSUPREGECO_UTA"&MID($A17,4,2),Output!$C:$AQ,6,FALSE),3) -> 0.75 | U17: Faible | W17: UTA52 | X17: Faible | Y17: Faible | AA17: =Tableaux!$O$33 -> 02471 | AB17: UTA52 | AC17: Faible | AD17: Faible | AE17: COS pessière
A18: UTA53 | B18: 0.195 | C18: 0.325 | D18: 0.35 | E18: 0.25 | G18: =VLOOKUP(CONCATENATE("OSUPVIEUXALERTEREGECO_"&A18),Output!$C:$AQ,6,FALSE) -> 34040.72 | H18: =VLOOKUP(CONCATENATE("OSUPVIEUXACCEPTREGECO_"&A18),Output!$C:$AQ,6,FALSE) -> 56734.54 | I18: =VLOOKUP(CONCATENATE("OSUPJEUNEALERTEREGECO_"&A18),Output!$C:$AQ,6,FALSE) -> 61098.73 | J18: =VLOOKUP(CONCATENATE("OSUPJEUNEACCEPTREGECO_"&A18),Output!$C:$AQ,6,FALSE) -> 43641.95 | K18: =VLOOKUP(CONCATENATE("OSUPREGECO_"&A18),Output!$C:$AQ,6,FALSE) -> 174567.8 | M18: =ROUND(VLOOKUP("OSUPJEUNEREGECO_"&A18,Output!$C:$AQ,7,FALSE)/VLOOKUP("OSUPREGECO_UTA"&MID($A18,4,2),Output!$C:$AQ,6,FALSE),3) -> 0.216 | N18: Faible | O18: =ROUND(VLOOKUP("OSUPJEUNEREGECO_"&$A18,Output!$C:$AQ,12,FALSE)/VLOOKUP("OSUPREGECO_UTA"&MID($A18,4,2),Output!$C:$AQ,6,FALSE),3) -> 0.092 | P18: Faible | R18: =ROUND(VLOOKUP("OSUPVIEUXTOTREGECO_"&$A18,Output!$C:$AQ,7,FALSE)/VLOOKUP("OSUPREGECO_UTA"&MID($A18,4,2),Output!$C:$AQ,6,FALSE),3) -> 0.62 | S18: Faible | T18: =ROUND(VLOOKUP("OSUPVIEUXTOTREGECO_"&$A18,Output!$C:$AQ,12,FALSE)/VLOOKUP("OSUPREGECO_UTA"&MID($A18,4,2),Output!$C:$AQ,6,FALSE),3) -> 0.497 | U18: Faible | W18: UTA53 | X18: Faible | Y18: Faible | AA18: =Tableaux!$O$33 -> 02471 | AB18: UTA53 | AC18: Faible | AD18: Faible | AE18: COS pessière
A19: UTA54 | B19: 0.195 | C19: 0.325 | D19: 0.35 | E19: 0.25 | G19: =VLOOKUP(CONCATENATE("OSUPVIEUXALERTEREGECO_"&A19),Output!$C:$AQ,6,FALSE) -> 13398.63 | H19: =VLOOKUP(CONCATENATE("OSUPVIEUXACCEPTREGECO_"&A19),Output!$C:$AQ,6,FALSE) -> 22331.04 | I19: =VLOOKUP(CONCATENATE("OSUPJEUNEALERTEREGECO_"&A19),Output!$C:$AQ,6,FALSE) -> 24048.81 | J19: =VLOOKUP(CONCATENATE("OSUPJEUNEACCEPTREGECO_"&A19),Output!$C:$AQ,6,FALSE) -> 17177.73 | K19: =VLOOKUP(CONCATENATE("OSUPREGECO_"&A19),Output!$C:$AQ,6,FALSE) -> 68710.9 | M19: =ROUND(VLOOKUP("OSUPJEUNEREGECO_"&A19,Output!$C:$AQ,7,FALSE)/VLOOKUP("OSUPREGECO_UTA"&MID($A19,4,2),Output!$C:$AQ,6,FALSE),3) -> 0.19 | N19: Faible | O19: =ROUND(VLOOKUP("OSUPJEUNEREGECO_"&$A19,Output!$C:$AQ,12,FALSE)/VLOOKUP("OSUPREGECO_UTA"&MID($A19,4,2),Output!$C:$AQ,6,FALSE),3) -> 0.054 | P19: Faible | R19: =ROUND(VLOOKUP("OSUPVIEUXTOTREGECO_"&$A19,Output!$C:$AQ,7,FALSE)/VLOOKUP("OSUPREGECO_UTA"&MID($A19,4,2),Output!$C:$AQ,6,FALSE),3) -> 0.536 | S19: Faible | T19: =ROUND(VLOOKUP("OSUPVIEUXTOTREGECO_"&$A19,Output!$C:$AQ,12,FALSE)/VLOOKUP("OSUPREGECO_UTA"&MID($A19,4,2),Output!$C:$AQ,6,FALSE),3) -> 0.665 | U19: Faible | W19: UTA54 | X19: Faible | Y19: Faible | AA19: =Tableaux!$O$33 -> 02471 | AB19: UTA54 | AC19: Faible | AD19: Faible | AE19: COS pessière
A20: UTA55 | B20: 0.195 | C20: 0.325 | D20: 0.35 | E20: 0.25 | G20: =VLOOKUP(CONCATENATE("OSUPVIEUXALERTEREGECO_"&A20),Output!$C:$AQ,6,FALSE) -> 7043.17 | H20: =VLOOKUP(CONCATENATE("OSUPVIEUXACCEPTREGECO_"&A20),Output!$C:$AQ,6,FALSE) -> 11738.61 | I20: =VLOOKUP(CONCATENATE("OSUPJEUNEALERTEREGECO_"&A20),Output!$C:$AQ,6,FALSE) -> 12641.58 | J20: =VLOOKUP(CONCATENATE("OSUPJEUNEACCEPTREGECO_"&A20),Output!$C:$AQ,6,FALSE) -> 9029.7 | K20: =VLOOKUP(CONCATENATE("OSUPREGECO_"&A20),Output!$C:$AQ,6,FALSE) -> 36118.8 | M20: =ROUND(VLOOKUP("OSUPJEUNEREGECO_"&A20,Output!$C:$AQ,7,FALSE)/VLOOKUP("OSUPREGECO_UTA"&MID($A20,4,2),Output!$C:$AQ,6,FALSE),3) -> 0.206 | N20: Faible | O20: =ROUND(VLOOKUP("OSUPJEUNEREGECO_"&$A20,Output!$C:$AQ,12,FALSE)/VLOOKUP("OSUPREGECO_UTA"&MID($A20,4,2),Output!$C:$AQ,6,FALSE),3) -> 0 | P20: Faible | R20: =ROUND(VLOOKUP("OSUPVIEUXTOTREGECO_"&$A20,Output!$C:$AQ,7,FALSE)/VLOOKUP("OSUPREGECO_UTA"&MID($A20,4,2),Output!$C:$AQ,6,FALSE),3) -> 0.683 | S20: Faible | T20: =ROUND(VLOOKUP("OSUPVIEUXTOTREGECO_"&$A20,Output!$C:$AQ,12,FALSE)/VLOOKUP("OSUPREGECO_UTA"&MID($A20,4,2),Output!$C:$AQ,6,FALSE),3) -> 0.744 | U20: Faible | W20: UTA55 | X20: Faible | Y20: Faible | AA20: =Tableaux!$O$33 -> 02471 | AB20: UTA55 | AC20: Faible | AD20: Faible | AE20: COS pessière
A21: UTA56 | B21: =ROUND(G21/$K21,2) -> 0.19 | C21: =H21/$K21 -> 0.3250000825 | D21: =ROUND(I21/$K21,3) -> 0.35 | E21: 0.25 | G21: =VLOOKUP(CONCATENATE("OSUPVIEUXALERTEREGECO_"&A21),Output!$C:$AQ,6,FALSE) -> 5905.59 | H21: =VLOOKUP(CONCATENATE("OSUPVIEUXACCEPTREGECO_"&A21),Output!$C:$AQ,6,FALSE) -> 9842.66 | I21: =VLOOKUP(CONCATENATE("OSUPJEUNEALERTEREGECO_"&A21),Output!$C:$AQ,6,FALSE) -> 10599.79 | J21: =VLOOKUP(CONCATENATE("OSUPJEUNEACCEPTREGECO_"&A21),Output!$C:$AQ,6,FALSE) -> 7571.27 | K21: =VLOOKUP(CONCATENATE("OSUPREGECO_"&A21),Output!$C:$AQ,6,FALSE) -> 30285.1 | M21: =ROUND(VLOOKUP("OSUPJEUNEREGECO_"&A21,Output!$C:$AQ,7,FALSE)/VLOOKUP("OSUPREGECO_UTA"&MID($A21,4,2),Output!$C:$AQ,6,FALSE),3) -> 0.084 | N21: Faible | O21: =ROUND(VLOOKUP("OSUPJEUNEREGECO_"&$A21,Output!$C:$AQ,12,FALSE)/VLOOKUP("OSUPREGECO_UTA"&MID($A21,4,2),Output!$C:$AQ,6,FALSE),3) -> 0.001 | P21: Faible | R21: =ROUND(VLOOKUP("OSUPVIEUXTOTREGECO_"&$A21,Output!$C:$AQ,7,FALSE)/VLOOKUP("OSUPREGECO_UTA"&MID($A21,4,2),Output!$C:$AQ,6,FALSE),3) -> 0.765 | S21: Faible | T21: =ROUND(VLOOKUP("OSUPVIEUXTOTREGECO_"&$A21,Output!$C:$AQ,12,FALSE)/VLOOKUP("OSUPREGECO_UTA"&MID($A21,4,2),Output!$C:$AQ,6,FALSE),3) -> 0.816 | U21: Faible | W21: UTA56 | X21: Faible | Y21: Faible | AA21: =Tableaux!$O$33 -> 02471 | AB21: UTA56 | AC21: Faible | AD21: Faible | AE21: COS pessière
A22: UTA57 | B22: 0.2 | C22: 0.325 | D22: 0.35 | E22: 0.25 | G22: =VLOOKUP(CONCATENATE("OSUPVIEUXALERTEREGECO_"&A22),Output!$C:$AQ,6,FALSE) -> 13391.12 | H22: =VLOOKUP(CONCATENATE("OSUPVIEUXACCEPTREGECO_"&A22),Output!$C:$AQ,6,FALSE) -> 22318.53 | I22: =VLOOKUP(CONCATENATE("OSUPJEUNEALERTEREGECO_"&A22),Output!$C:$AQ,6,FALSE) -> 24035.34 | J22: =VLOOKUP(CONCATENATE("OSUPJEUNEACCEPTREGECO_"&A22),Output!$C:$AQ,6,FALSE) -> 17168.1 | K22: =VLOOKUP(CONCATENATE("OSUPREGECO_"&A22),Output!$C:$AQ,6,FALSE) -> 68672.4 | M22: =ROUND(VLOOKUP("OSUPJEUNEREGECO_"&A22,Output!$C:$AQ,7,FALSE)/VLOOKUP("OSUPREGECO_UTA"&MID($A22,4,2),Output!$C:$AQ,6,FALSE),3) -> 0.141 | N22: Faible | O22: =ROUND(VLOOKUP("OSUPJEUNEREGECO_"&$A22,Output!$C:$AQ,12,FALSE)/VLOOKUP("OSUPREGECO_UTA"&MID($A22,4,2),Output!$C:$AQ,6,FALSE),3) -> 0.146 | P22: Faible | R22: =ROUND(VLOOKUP("OSUPVIEUXTOTREGECO_"&$A22,Output!$C:$AQ,7,FALSE)/VLOOKUP("OSUPREGECO_UTA"&MID($A22,4,2),Output!$C:$AQ,6,FALSE),3) -> 0.761 | S22: Faible | T22: =ROUND(VLOOKUP("OSUPVIEUXTOTREGECO_"&$A22,Output!$C:$AQ,12,FALSE)/VLOOKUP("OSUPREGECO_UTA"&MID($A22,4,2),Output!$C:$AQ,6,FALSE),3) -> 0.56 | U22: Faible | W22: UTA57 | X22: Faible | Y22: Faible | AA22: =Tableaux!$O$33 -> 02471 | AB22: UTA57 | AC22: Faible | AD22: Faible | AE22: COS pessière
A23: UTA58 | B23: 0.19 | C23: 0.325 | D23: 0.35 | E23: 0.25 | G23: =VLOOKUP(CONCATENATE("OSUPVIEUXALERTEREGECO_"&A23),Output!$C:$AQ,6,FALSE) -> 17659.51 | H23: =VLOOKUP(CONCATENATE("OSUPVIEUXACCEPTREGECO_"&A23),Output!$C:$AQ,6,FALSE) -> 29432.52 | I23: =VLOOKUP(CONCATENATE("OSUPJEUNEALERTEREGECO_"&A23),Output!$C:$AQ,6,FALSE) -> 31696.56 | J23: =VLOOKUP(CONCATENATE("OSUPJEUNEACCEPTREGECO_"&A23),Output!$C:$AQ,6,FALSE) -> 22640.4 | K23: =VLOOKUP(CONCATENATE("OSUPREGECO_"&A23),Output!$C:$AQ,6,FALSE) -> 90561.6 | M23: =ROUND(VLOOKUP("OSUPJEUNEREGECO_"&A23,Output!$C:$AQ,7,FALSE)/VLOOKUP("OSUPREGECO_UTA"&MID($A23,4,2),Output!$C:$AQ,6,FALSE),3) -> 0.183 | N23: Faible | O23: =ROUND(VLOOKUP("OSUPJEUNEREGECO_"&$A23,Output!$C:$AQ,12,FALSE)/VLOOKUP("OSUPREGECO_UTA"&MID($A23,4,2),Output!$C:$AQ,6,FALSE),3) -> 0.213 | P23: Faible | R23: =ROUND(VLOOKUP("OSUPVIEUXTOTREGECO_"&$A23,Output!$C:$AQ,7,FALSE)/VLOOKUP("OSUPREGECO_UTA"&MID($A23,4,2),Output!$C:$AQ,6,FALSE),3) -> 0.759 | S23: Faible | T23: =ROUND(VLOOKUP("OSUPVIEUXTOTREGECO_"&$A23,Output!$C:$AQ,12,FALSE)/VLOOKUP("OSUPREGECO_UTA"&MID($A23,4,2),Output!$C:$AQ,6,FALSE),3) -> 0.502 | U23: Faible | W23: UTA58 | X23: Faible | Y23: Faible | AA23: =Tableaux!$O$33 -> 02471 | AB23: UTA58 | AC23: Faible | AD23: Faible | AE23: COS pessière
A24: UTA59 | B24: 0.2 | C24: 0.3250000386 | D24: 0.35 | E24: 0.25 | G24: =VLOOKUP(CONCATENATE("OSUPVIEUXALERTEREGECO_"&A24),Output!$C:$AQ,6,FALSE) -> 25243.18 | H24: =VLOOKUP(CONCATENATE("OSUPVIEUXACCEPTREGECO_"&A24),Output!$C:$AQ,6,FALSE) -> 42071.97 | I24: =VLOOKUP(CONCATENATE("OSUPJEUNEALERTEREGECO_"&A24),Output!$C:$AQ,6,FALSE) -> 45308.27 | J24: =VLOOKUP(CONCATENATE("OSUPJEUNEACCEPTREGECO_"&A24),Output!$C:$AQ,6,FALSE) -> 32363.05 | K24: =VLOOKUP(CONCATENATE("OSUPREGECO_"&A24),Output!$C:$AQ,6,FALSE) -> 129452.2 | M24: =ROUND(VLOOKUP("OSUPJEUNEREGECO_"&A24,Output!$C:$AQ,7,FALSE)/VLOOKUP("OSUPREGECO_UTA"&MID($A24,4,2),Output!$C:$AQ,6,FALSE),3) -> 0.334 | N24: Modéré | O24: =ROUND(VLOOKUP("OSUPJEUNEREGECO_"&$A24,Output!$C:$AQ,12,FALSE)/VLOOKUP("OSUPREGECO_UTA"&MID($A24,4,2),Output!$C:$AQ,6,FALSE),3) -> 0.086 | P24: Faible | R24: =ROUND(VLOOKUP("OSUPVIEUXTOTREGECO_"&$A24,Output!$C:$AQ,7,FALSE)/VLOOKUP("OSUPREGECO_UTA"&MID($A24,4,2),Output!$C:$AQ,6,FALSE),3) -> 0.47 | S24: Faible | T24: =ROUND(VLOOKUP("OSUPVIEUXTOTREGECO_"&$A24,Output!$C:$AQ,12,FALSE)/VLOOKUP("OSUPREGECO_UTA"&MID($A24,4,2),Output!$C:$AQ,6,FALSE),3) -> 0.373 | U24: Faible | W24: UTA59 | X24: Modéré | Y24: Faible | AA24: =Tableaux!$O$33 -> 02471 | AB24: UTA59 | AC24: Faible | AD24: Faible | AE24: COS pessière
A25: UTA60 | B25: 0.19 | C25: 0.3250000656 | D25: 0.35 | E25: 0.25 | G25: =VLOOKUP(CONCATENATE("OSUPVIEUXALERTEREGECO_"&A25),Output!$C:$AQ,6,FALSE) -> 7433.77 | H25: =VLOOKUP(CONCATENATE("OSUPVIEUXACCEPTREGECO_"&A25),Output!$C:$AQ,6,FALSE) -> 12389.62 | I25: =VLOOKUP(CONCATENATE("OSUPJEUNEALERTEREGECO_"&A25),Output!$C:$AQ,6,FALSE) -> 13342.66 | J25: =VLOOKUP(CONCATENATE("OSUPJEUNEACCEPTREGECO_"&A25),Output!$C:$AQ,6,FALSE) -> 9530.47 | K25: =VLOOKUP(CONCATENATE("OSUPREGECO_"&A25),Output!$C:$AQ,6,FALSE) -> 38121.9 | M25: =ROUND(VLOOKUP("OSUPJEUNEREGECO_"&A25,Output!$C:$AQ,7,FALSE)/VLOOKUP("OSUPREGECO_UTA"&MID($A25,4,2),Output!$C:$AQ,6,FALSE),3) -> 0.425 | N25: Supérieur | O25: =ROUND(VLOOKUP("OSUPJEUNEREGECO_"&$A25,Output!$C:$AQ,12,FALSE)/VLOOKUP("OSUPREGECO_UTA"&MID($A25,4,2),Output!$C:$AQ,6,FALSE),3) -> 0.043 | P25: Faible | R25: =ROUND(VLOOKUP("OSUPVIEUXTOTREGECO_"&$A25,Output!$C:$AQ,7,FALSE)/VLOOKUP("OSUPREGECO_UTA"&MID($A25,4,2),Output!$C:$AQ,6,FALSE),3) -> 0.388 | S25: Faible | T25: =ROUND(VLOOKUP("OSUPVIEUXTOTREGECO_"&$A25,Output!$C:$AQ,12,FALSE)/VLOOKUP("OSUPREGECO_UTA"&MID($A25,4,2),Output!$C:$AQ,6,FALSE),3) -> 0.398 | U25: Faible | W25: UTA60 | X25: Supérieur | Y25: Faible | AA25: =Tableaux!$O$33 -> 02471 | AB25: UTA60 | AC25: Faible | AD25: Faible | AE25: COS pessière
A26: UTA61 | B26: 0.19 | C26: 0.3249999589 | D26: 0.35 | E26: 0.25 | G26: =VLOOKUP(CONCATENATE("OSUPVIEUXALERTEREGECO_"&A26),Output!$C:$AQ,6,FALSE) -> 11869.51 | H26: =VLOOKUP(CONCATENATE("OSUPVIEUXACCEPTREGECO_"&A26),Output!$C:$AQ,6,FALSE) -> 19782.52 | I26: =VLOOKUP(CONCATENATE("OSUPJEUNEALERTEREGECO_"&A26),Output!$C:$AQ,6,FALSE) -> 21304.26 | J26: =VLOOKUP(CONCATENATE("OSUPJEUNEACCEPTREGECO_"&A26),Output!$C:$AQ,6,FALSE) -> 15217.33 | K26: =VLOOKUP(CONCATENATE("OSUPREGECO_"&A26),Output!$C:$AQ,6,FALSE) -> 60869.3 | M26: =ROUND(VLOOKUP("OSUPJEUNEREGECO_"&A26,Output!$C:$AQ,7,FALSE)/VLOOKUP("OSUPREGECO_UTA"&MID($A26,4,2),Output!$C:$AQ,6,FALSE),3) -> 0.414 | N26: Supérieur | O26: =ROUND(VLOOKUP("OSUPJEUNEREGECO_"&$A26,Output!$C:$AQ,12,FALSE)/VLOOKUP("OSUPREGECO_UTA"&MID($A26,4,2),Output!$C:$AQ,6,FALSE),3) -> 0.096 | P26: Faible | R26: =ROUND(VLOOKUP("OSUPVIEUXTOTREGECO_"&$A26,Output!$C:$AQ,7,FALSE)/VLOOKUP("OSUPREGECO_UTA"&MID($A26,4,2),Output!$C:$AQ,6,FALSE),3) -> 0.429 | S26: Faible | T26: =ROUND(VLOOKUP("OSUPVIEUXTOTREGECO_"&$A26,Output!$C:$AQ,12,FALSE)/VLOOKUP("OSUPREGECO_UTA"&MID($A26,4,2),Output!$C:$AQ,6,FALSE),3) -> 0.373 | U26: Faible | W26: UTA61 | X26: Supérieur | Y26: Faible | AA26: =Tableaux!$O$33 -> 02471 | AB26: UTA61 | AC26: Faible | AD26: Faible | AE26: COS pessière
A27: UTA62 | B27: 0.2 | C27: =ROUND(H27/$K27,3) -> 0.325 | D27: 0.35 | E27: 0.25 | G27: =VLOOKUP(CONCATENATE("OSUPVIEUXALERTEREGECO_"&A27),Output!$C:$AQ,6,FALSE) -> 11951.24 | H27: =VLOOKUP(CONCATENATE("OSUPVIEUXACCEPTREGECO_"&A27),Output!$C:$AQ,6,FALSE) -> 19918.73 | I27: =VLOOKUP(CONCATENATE("OSUPJEUNEALERTEREGECO_"&A27),Output!$C:$AQ,6,FALSE) -> 21450.94 | J27: =VLOOKUP(CONCATENATE("OSUPJEUNEACCEPTREGECO_"&A27),Output!$C:$AQ,6,FALSE) -> 15322.1 | K27: =VLOOKUP(CONCATENATE("OSUPREGECO_"&A27),Output!$C:$AQ,6,FALSE) -> 61288.4 | M27: =ROUND(VLOOKUP("OSUPJEUNEREGECO_"&A27,Output!$C:$AQ,7,FALSE)/VLOOKUP("OSUPREGECO_UTA"&MID($A27,4,2),Output!$C:$AQ,6,FALSE),3) -> 0.117 | N27: Faible | O27: =ROUND(VLOOKUP("OSUPJEUNEREGECO_"&$A27,Output!$C:$AQ,12,FALSE)/VLOOKUP("OSUPREGECO_UTA"&MID($A27,4,2),Output!$C:$AQ,6,FALSE),3) -> 0.278 | P27: Modéré | R27: =ROUND(VLOOKUP("OSUPVIEUXTOTREGECO_"&$A27,Output!$C:$AQ,7,FALSE)/VLOOKUP("OSUPREGECO_UTA"&MID($A27,4,2),Output!$C:$AQ,6,FALSE),3) -> 0.687 | S27: Faible | T27: =ROUND(VLOOKUP("OSUPVIEUXTOTREGECO_"&$A27,Output!$C:$AQ,12,FALSE)/VLOOKUP("OSUPREGECO_UTA"&MID($A27,4,2),Output!$C:$AQ,6,FALSE),3) -> 0.435 | U27: Faible | W27: UTA62 | X27: Faible | Y27: Modéré | AA27: =Tableaux!$O$33 -> 02471 | AB27: UTA62 | AC27: Faible | AD27: Faible | AE27: COS pessière
A28: UTA63 | B28: 0.2 | C28: 0.325 | D28: 0.35 | E28: 0.25 | G28: =VLOOKUP(CONCATENATE("OSUPVIEUXALERTEREGECO_"&A28),Output!$C:$AQ,6,FALSE) -> 18563.32 | H28: =VLOOKUP(CONCATENATE("OSUPVIEUXACCEPTREGECO_"&A28),Output!$C:$AQ,6,FALSE) -> 30938.86 | I28: =VLOOKUP(CONCATENATE("OSUPJEUNEALERTEREGECO_"&A28),Output!$C:$AQ,6,FALSE) -> 33318.77 | J28: =VLOOKUP(CONCATENATE("OSUPJEUNEACCEPTREGECO_"&A28),Output!$C:$AQ,6,FALSE) -> 23799.12 | K28: =VLOOKUP(CONCATENATE("OSUPREGECO_"&A28),Output!$C:$AQ,6,FALSE) -> 95196.5 | M28: =ROUND(VLOOKUP("OSUPJEUNEREGECO_"&A28,Output!$C:$AQ,7,FALSE)/VLOOKUP("OSUPREGECO_UTA"&MID($A28,4,2),Output!$C:$AQ,6,FALSE),3) -> 0.255 | N28: Modéré | O28: =ROUND(VLOOKUP("OSUPJEUNEREGECO_"&$A28,Output!$C:$AQ,12,FALSE)/VLOOKUP("OSUPREGECO_UTA"&MID($A28,4,2),Output!$C:$AQ,6,FALSE),3) -> 0.108 | P28: Faible | R28: =ROUND(VLOOKUP("OSUPVIEUXTOTREGECO_"&$A28,Output!$C:$AQ,7,FALSE)/VLOOKUP("OSUPREGECO_UTA"&MID($A28,4,2),Output!$C:$AQ,6,FALSE),3) -> 0.38 | S28: Faible | T28: =ROUND(VLOOKUP("OSUPVIEUXTOTREGECO_"&$A28,Output!$C:$AQ,12,FALSE)/VLOOKUP("OSUPREGECO_UTA"&MID($A28,4,2),Output!$C:$AQ,6,FALSE),3) -> 0.256 | U28: Modéré | W28: UTA63 | X28: Modéré | Y28: Modéré | AA28: =Tableaux!$O$33 -> 02471 | AB28: UTA63 | AC28: Faible | AD28: Modéré | AE28: COS pessière
A29: UTA64 | B29: 0.2 | C29: 0.325 | D29: 0.35 | E29: 0.25 | G29: =VLOOKUP(CONCATENATE("OSUPVIEUXALERTEREGECO_"&A29),Output!$C:$AQ,6,FALSE) -> 17493.57 | H29: =VLOOKUP(CONCATENATE("OSUPVIEUXACCEPTREGECO_"&A29),Output!$C:$AQ,6,FALSE) -> 29155.94 | I29: =VLOOKUP(CONCATENATE("OSUPJEUNEALERTEREGECO_"&A29),Output!$C:$AQ,6,FALSE) -> 31398.71 | J29: =VLOOKUP(CONCATENATE("OSUPJEUNEACCEPTREGECO_"&A29),Output!$C:$AQ,6,FALSE) -> 22427.65 | K29: =VLOOKUP(CONCATENATE("OSUPREGECO_"&A29),Output!$C:$AQ,6,FALSE) -> 89710.6 | M29: =ROUND(VLOOKUP("OSUPJEUNEREGECO_"&A29,Output!$C:$AQ,7,FALSE)/VLOOKUP("OSUPREGECO_UTA"&MID($A29,4,2),Output!$C:$AQ,6,FALSE),3) -> 0.209 | N29: Faible | O29: =ROUND(VLOOKUP("OSUPJEUNEREGECO_"&$A29,Output!$C:$AQ,12,FALSE)/VLOOKUP("OSUPREGECO_UTA"&MID($A29,4,2),Output!$C:$AQ,6,FALSE),3) -> 0.226 | P29: Faible | R29: =ROUND(VLOOKUP("OSUPVIEUXTOTREGECO_"&$A29,Output!$C:$AQ,7,FALSE)/VLOOKUP("OSUPREGECO_UTA"&MID($A29,4,2),Output!$C:$AQ,6,FALSE),3) -> 0.239 | S29: Modéré | T29: =ROUND(VLOOKUP("OSUPVIEUXTOTREGECO_"&$A29,Output!$C:$AQ,12,FALSE)/VLOOKUP("OSUPREGECO_UTA"&MID($A29,4,2),Output!$C:$AQ,6,FALSE),3) -> 0.195 | U29: Supérieur | W29: UTA64 | X29: Modéré | Y29: Supérieur | AA29: =Tableaux!$O$33 -> 02471 | AB29: UTA64 | AC29: Modéré | AD29: Supérieur | AE29: COS pessière
A30: UTA65 | B30: 0.19 | C30: 0.325 | D30: 0.35 | E30: 0.25 | G30: =VLOOKUP(CONCATENATE("OSUPVIEUXALERTEREGECO_"&A30),Output!$C:$AQ,6,FALSE) -> 15870.46 | H30: =VLOOKUP(CONCATENATE("OSUPVIEUXACCEPTREGECO_"&A30),Output!$C:$AQ,6,FALSE) -> 26450.78 | I30: =VLOOKUP(CONCATENATE("OSUPJEUNEALERTEREGECO_"&A30),Output!$C:$AQ,6,FALSE) -> 28485.45 | J30: =VLOOKUP(CONCATENATE("OSUPJEUNEACCEPTREGECO_"&A30),Output!$C:$AQ,6,FALSE) -> 20346.75 | K30: =VLOOKUP(CONCATENATE("OSUPREGECO_"&A30),Output!$C:$AQ,6,FALSE) -> 81387 | M30: =ROUND(VLOOKUP("OSUPJEUNEREGECO_"&A30,Output!$C:$AQ,7,FALSE)/VLOOKUP("OSUPREGECO_UTA"&MID($A30,4,2),Output!$C:$AQ,6,FALSE),3) -> 0.155 | N30: Faible | O30: =ROUND(VLOOKUP("OSUPJEUNEREGECO_"&$A30,Output!$C:$AQ,12,FALSE)/VLOOKUP("OSUPREGECO_UTA"&MID($A30,4,2),Output!$C:$AQ,6,FALSE),3) -> 0.306 | P30: Modéré | R30: =ROUND(VLOOKUP("OSUPVIEUXTOTREGECO_"&$A30,Output!$C:$AQ,7,FALSE)/VLOOKUP("OSUPREGECO_UTA"&MID($A30,4,2),Output!$C:$AQ,6,FALSE),3) -> 0.48 | S30: Faible | T30: =ROUND(VLOOKUP("OSUPVIEUXTOTREGECO_"&$A30,Output!$C:$AQ,12,FALSE)/VLOOKUP("OSUPREGECO_UTA"&MID($A30,4,2),Output!$C:$AQ,6,FALSE),3) -> 0.297 | U30: Modéré | W30: UTA65 | X30: Faible | Y30: Modéré | AA30: =Tableaux!$O$33 -> 02471 | AB30: UTA65 | AC30: Faible | AD30: Modéré | AE30: COS pessière
A31: UTA66 | B31: 0.2 | C31: 0.325 | D31: 0.35 | E31: 0.25 | G31: =VLOOKUP(CONCATENATE("OSUPVIEUXALERTEREGECO_"&A31),Output!$C:$AQ,6,FALSE) -> 16394.92 | H31: =VLOOKUP(CONCATENATE("OSUPVIEUXACCEPTREGECO_"&A31),Output!$C:$AQ,6,FALSE) -> 27324.86 | I31: =VLOOKUP(CONCATENATE("OSUPJEUNEALERTEREGECO_"&A31),Output!$C:$AQ,6,FALSE) -> 29426.77 | J31: =VLOOKUP(CONCATENATE("OSUPJEUNEACCEPTREGECO_"&A31),Output!$C:$AQ,6,FALSE) -> 21019.12 | K31: =VLOOKUP(CONCATENATE("OSUPREGECO_"&A31),Output!$C:$AQ,6,FALSE) -> 84076.5 | M31: =ROUND(VLOOKUP("OSUPJEUNEREGECO_"&A31,Output!$C:$AQ,7,FALSE)/VLOOKUP("OSUPREGECO_UTA"&MID($A31,4,2),Output!$C:$AQ,6,FALSE),3) -> 0.154 | N31: Faible | O31: =ROUND(VLOOKUP("OSUPJEUNEREGECO_"&$A31,Output!$C:$AQ,12,FALSE)/VLOOKUP("OSUPREGECO_UTA"&MID($A31,4,2),Output!$C:$AQ,6,FALSE),3) -> 0.108 | P31: Faible | R31: =ROUND(VLOOKUP("OSUPVIEUXTOTREGECO_"&$A31,Output!$C:$AQ,7,FALSE)/VLOOKUP("OSUPREGECO_UTA"&MID($A31,4,2),Output!$C:$AQ,6,FALSE),3) -> 0.304 | S31: Modéré | T31: =ROUND(VLOOKUP("OSUPVIEUXTOTREGECO_"&$A31,Output!$C:$AQ,12,FALSE)/VLOOKUP("OSUPREGECO_UTA"&MID($A31,4,2),Output!$C:$AQ,6,FALSE),3) -> 0.228 | U31: Modéré | W31: UTA66 | X31: Modéré | Y31: Modéré | AA31: =Tableaux!$O$33 -> 02471 | AB31: UTA66 | AC31: Modéré | AD31: Modéré | AE31: COS pessière
A32: UTA67 | B32: 0.2 | C32: 0.325 | D32: 0.35 | E32: 0.25 | G32: =VLOOKUP(CONCATENATE("OSUPVIEUXALERTEREGECO_"&A32),Output!$C:$AQ,6,FALSE) -> 17032.67 | H32: =VLOOKUP(CONCATENATE("OSUPVIEUXACCEPTREGECO_"&A32),Output!$C:$AQ,6,FALSE) -> 28387.77 | I32: =VLOOKUP(CONCATENATE("OSUPJEUNEALERTEREGECO_"&A32),Output!$C:$AQ,6,FALSE) -> 30571.45 | J32: =VLOOKUP(CONCATENATE("OSUPJEUNEACCEPTREGECO_"&A32),Output!$C:$AQ,6,FALSE) -> 21836.75 | K32: =VLOOKUP(CONCATENATE("OSUPREGECO_"&A32),Output!$C:$AQ,6,FALSE) -> 87347 | M32: =ROUND(VLOOKUP("OSUPJEUNEREGECO_"&A32,Output!$C:$AQ,7,FALSE)/VLOOKUP("OSUPREGECO_UTA"&MID($A32,4,2),Output!$C:$AQ,6,FALSE),3) -> 0.177 | N32: Faible | O32: =ROUND(VLOOKUP("OSUPJEUNEREGECO_"&$A32,Output!$C:$AQ,12,FALSE)/VLOOKUP("OSUPREGECO_UTA"&MID($A32,4,2),Output!$C:$AQ,6,FALSE),3) -> 0.212 | P32: Faible | R32: =ROUND(VLOOKUP("OSUPVIEUXTOTREGECO_"&$A32,Output!$C:$AQ,7,FALSE)/VLOOKUP("OSUPREGECO_UTA"&MID($A32,4,2),Output!$C:$AQ,6,FALSE),3) -> 0.473 | S32: Faible | T32: =ROUND(VLOOKUP("OSUPVIEUXTOTREGECO_"&$A32,Output!$C:$AQ,12,FALSE)/VLOOKUP("OSUPREGECO_UTA"&MID($A32,4,2),Output!$C:$AQ,6,FALSE),3) -> 0.29 | U32: Modéré | W32: UTA67 | X32: Faible | Y32: Modéré | AA32: =Tableaux!$O$33 -> 02471 | AB32: UTA67 | AC32: Faible | AD32: Modéré | AE32: COS pessière
A33: UTA68 | B33: 0.19 | C33: 0.325 | D33: 0.35 | E33: 0.25 | G33: =VLOOKUP(CONCATENATE("OSUPVIEUXALERTEREGECO_"&A33),Output!$C:$AQ,6,FALSE) -> 13322.22 | H33: =VLOOKUP(CONCATENATE("OSUPVIEUXACCEPTREGECO_"&A33),Output!$C:$AQ,6,FALSE) -> 22203.71 | I33: =VLOOKUP(CONCATENATE("OSUPJEUNEALERTEREGECO_"&A33),Output!$C:$AQ,6,FALSE) -> 23911.69 | J33: =VLOOKUP(CONCATENATE("OSUPJEUNEACCEPTREGECO_"&A33),Output!$C:$AQ,6,FALSE) -> 17079.78 | K33: =VLOOKUP(CONCATENATE("OSUPREGECO_"&A33),Output!$C:$AQ,6,FALSE) -> 68319.1 | M33: =ROUND(VLOOKUP("OSUPJEUNEREGECO_"&A33,Output!$C:$AQ,7,FALSE)/VLOOKUP("OSUPREGECO_UTA"&MID($A33,4,2),Output!$C:$AQ,6,FALSE),3) -> 0.128 | N33: Faible | O33: =ROUND(VLOOKUP("OSUPJEUNEREGECO_"&$A33,Output!$C:$AQ,12,FALSE)/VLOOKUP("OSUPREGECO_UTA"&MID($A33,4,2),Output!$C:$AQ,6,FALSE),3) -> 0.255 | P33: Modéré | R33: =ROUND(VLOOKUP("OSUPVIEUXTOTREGECO_"&$A33,Output!$C:$AQ,7,FALSE)/VLOOKUP("OSUPREGECO_UTA"&MID($A33,4,2),Output!$C:$AQ,6,FALSE),3) -> 0.282 | S33: Modéré | T33: =ROUND(VLOOKUP("OSUPVIEUXTOTREGECO_"&$A33,Output!$C:$AQ,12,FALSE)/VLOOKUP("OSUPREGECO_UTA"&MID($A33,4,2),Output!$C:$AQ,6,FALSE),3) -> 0.195 | U33: Modéré | W33: UTA68 | X33: Modéré | Y33: Modéré | AA33: =Tableaux!$O$33 -> 02471 | AB33: =W33 -> UTA68 | AC33: Modéré | AD33: Modéré | AE33: COS pessière
A34: UTA69 | B34: 0.19 | C34: 0.325 | D34: 0.35 | E34: 0.25 | G34: =VLOOKUP(CONCATENATE("OSUPVIEUXALERTEREGECO_"&A34),Output!$C:$AQ,6,FALSE) -> 17369.37 | H34: =VLOOKUP(CONCATENATE("OSUPVIEUXACCEPTREGECO_"&A34),Output!$C:$AQ,6,FALSE) -> 28948.95 | I34: =VLOOKUP(CONCATENATE("OSUPJEUNEALERTEREGECO_"&A34),Output!$C:$AQ,6,FALSE) -> 31175.79 | J34: =VLOOKUP(CONCATENATE("OSUPJEUNEACCEPTREGECO_"&A34),Output!$C:$AQ,6,FALSE) -> 22268.43 | K34: =VLOOKUP(CONCATENATE("OSUPREGECO_"&A34),Output!$C:$AQ,6,FALSE) -> 89073.7 | M34: =ROUND(VLOOKUP("OSUPJEUNEREGECO_"&A34,Output!$C:$AQ,7,FALSE)/VLOOKUP("OSUPREGECO_UTA"&MID($A34,4,2),Output!$C:$AQ,6,FALSE),3) -> 0.284 | N34: Modéré | O34: =ROUND(VLOOKUP("OSUPJEUNEREGECO_"&$A34,Output!$C:$AQ,12,FALSE)/VLOOKUP("OSUPREGECO_UTA"&MID($A34,4,2),Output!$C:$AQ,6,FALSE),3) -> 0.249 | P34: Faible | R34: =ROUND(VLOOKUP("OSUPVIEUXTOTREGECO_"&$A34,Output!$C:$AQ,7,FALSE)/VLOOKUP("OSUPREGECO_UTA"&MID($A34,4,2),Output!$C:$AQ,6,FALSE),3) -> 0.619 | S34: Faible | T34: =ROUND(VLOOKUP("OSUPVIEUXTOTREGECO_"&$A34,Output!$C:$AQ,12,FALSE)/VLOOKUP("OSUPREGECO_UTA"&MID($A34,4,2),Output!$C:$AQ,6,FALSE),3) -> 0.329 | U34: Faible | W34: UTA69 | X34: Modéré | Y34: Faible | AA34: =Tableaux!$O$33 -> 02471 | AB34: UTA69 | AC34: Faible | AD34: Faible | AE34: COS pessière
G35: =VLOOKUP(CONCATENATE("OSUPVIEUXALERTEREGECO_"&A35),Output!$C:$AQ,6,FALSE) ->  | H35: =VLOOKUP(CONCATENATE("OSUPVIEUXACCEPTREGECO_"&A35),Output!$C:$AQ,6,FALSE) ->  | I35: =VLOOKUP(CONCATENATE("OSUPJEUNEALERTEREGECO_"&A35),Output!$C:$AQ,6,FALSE) ->  | J35: =VLOOKUP(CONCATENATE("OSUPJEUNEACCEPTREGECO_"&A35),Output!$C:$AQ,6,FALSE) ->  | K35: =VLOOKUP(CONCATENATE("OSUPREGECO_"&A35),Output!$C:$AQ,6,FALSE) ->  | M35: =ROUND(VLOOKUP("OSUPJEUNEREGECO_"&A35,Output!$C:$AQ,7,FALSE)/VLOOKUP("OSUPREGECO_UTA"&MID($A35,4,2),Output!$C:$AQ,6,FALSE),3) ->  | O35: =ROUND(VLOOKUP("OSUPJEUNEREGECO_"&$A35,Output!$C:$AQ,12,FALSE)/VLOOKUP("OSUPREGECO_UTA"&MID($A35,4,2),Output!$C:$AQ,6,FALSE),3) ->  | R35: =ROUND(VLOOKUP("OSUPVIEUXTOTREGECO_"&$A35,Output!$C:$AQ,7,FALSE)/VLOOKUP("OSUPREGECO_UTA"&MID($A35,4,2),Output!$C:$AQ,6,FALSE),3) ->  | T35: =ROUND(VLOOKUP("OSUPVIEUXTOTREGECO_"&$A35,Output!$C:$AQ,12,FALSE)/VLOOKUP("OSUPREGECO_UTA"&MID($A35,4,2),Output!$C:$AQ,6,FALSE),3) ->  | W35: 0 | AA35: =Tableaux!$O$33 -> 02471 | AB35: 0
G36: =VLOOKUP(CONCATENATE("OSUPVIEUXALERTEREGECO_"&A36),Output!$C:$AQ,6,FALSE) ->  | H36: =VLOOKUP(CONCATENATE("OSUPVIEUXACCEPTREGECO_"&A36),Output!$C:$AQ,6,FALSE) ->  | I36: =VLOOKUP(CONCATENATE("OSUPJEUNEALERTEREGECO_"&A36),Output!$C:$AQ,6,FALSE) ->  | J36: =VLOOKUP(CONCATENATE("OSUPJEUNEACCEPTREGECO_"&A36),Output!$C:$AQ,6,FALSE) ->  | K36: =VLOOKUP(CONCATENATE("OSUPREGECO_"&A36),Output!$C:$AQ,6,FALSE) ->  | M36: =ROUND(VLOOKUP("OSUPJEUNEREGECO_"&A36,Output!$C:$AQ,7,FALSE)/VLOOKUP("OSUPREGECO_UTA"&MID($A36,4,2),Output!$C:$AQ,6,FALSE),3) ->  | O36: =ROUND(VLOOKUP("OSUPJEUNEREGECO_"&$A36,Output!$C:$AQ,12,FALSE)/VLOOKUP("OSUPREGECO_UTA"&MID($A36,4,2),Output!$C:$AQ,6,FALSE),3) ->  | R36: =ROUND(VLOOKUP("OSUPVIEUXTOTREGECO_"&$A36,Output!$C:$AQ,7,FALSE)/VLOOKUP("OSUPREGECO_UTA"&MID($A36,4,2),Output!$C:$AQ,6,FALSE),3) ->  | T36: =ROUND(VLOOKUP("OSUPVIEUXTOTREGECO_"&$A36,Output!$C:$AQ,12,FALSE)/VLOOKUP("OSUPREGECO_UTA"&MID($A36,4,2),Output!$C:$AQ,6,FALSE),3) ->  | W36: 0 | AA36: =Tableaux!$O$33 -> 02471 | AB36: 0
G37: =VLOOKUP(CONCATENATE("OSUPVIEUXALERTEREGECO_"&A37),Output!$C:$AQ,6,FALSE) ->  | H37: =VLOOKUP(CONCATENATE("OSUPVIEUXACCEPTREGECO_"&A37),Output!$C:$AQ,6,FALSE) ->  | I37: =VLOOKUP(CONCATENATE("OSUPJEUNEALERTEREGECO_"&A37),Output!$C:$AQ,6,FALSE) ->  | J37: =VLOOKUP(CONCATENATE("OSUPJEUNEACCEPTREGECO_"&A37),Output!$C:$AQ,6,FALSE) ->  | K37: =VLOOKUP(CONCATENATE("OSUPREGECO_"&A37),Output!$C:$AQ,6,FALSE) ->  | M37: =ROUND(VLOOKUP("OSUPJEUNEREGECO_"&A37,Output!$C:$AQ,7,FALSE)/VLOOKUP("OSUPREGECO_UTA"&MID($A37,4,2),Output!$C:$AQ,6,FALSE),3) ->  | O37: =ROUND(VLOOKUP("OSUPJEUNEREGECO_"&$A37,Output!$C:$AQ,12,FALSE)/VLOOKUP("OSUPREGECO_UTA"&MID($A37,4,2),Output!$C:$AQ,6,FALSE),3) ->  | R37: =ROUND(VLOOKUP("OSUPVIEUXTOTREGECO_"&$A37,Output!$C:$AQ,7,FALSE)/VLOOKUP("OSUPREGECO_UTA"&MID($A37,4,2),Output!$C:$AQ,6,FALSE),3) ->  | T37: =ROUND(VLOOKUP("OSUPVIEUXTOTREGECO_"&$A37,Output!$C:$AQ,12,FALSE)/VLOOKUP("OSUPREGECO_UTA"&MID($A37,4,2),Output!$C:$AQ,6,FALSE),3) ->  | W37: 0 | AA37: =Tableaux!$O$33 -> 02471 | AB37: 0
G38: =VLOOKUP(CONCATENATE("OSUPVIEUXALERTEREGECO_"&A38),Output!$C:$AQ,6,FALSE) ->  | H38: =VLOOKUP(CONCATENATE("OSUPVIEUXACCEPTREGECO_"&A38),Output!$C:$AQ,6,FALSE) ->  | I38: =VLOOKUP(CONCATENATE("OSUPJEUNEALERTEREGECO_"&A38),Output!$C:$AQ,6,FALSE) ->  | J38: =VLOOKUP(CONCATENATE("OSUPJEUNEACCEPTREGECO_"&A38),Output!$C:$AQ,6,FALSE) ->  | K38: =VLOOKUP(CONCATENATE("OSUPREGECO_"&A38),Output!$C:$AQ,6,FALSE) ->  | M38: =ROUND(VLOOKUP("OSUPJEUNEREGECO_"&A38,Output!$C:$AQ,7,FALSE)/VLOOKUP("OSUPREGECO_UTA"&MID($A38,4,2),Output!$C:$AQ,6,FALSE),3) ->  | O38: =ROUND(VLOOKUP("OSUPJEUNEREGECO_"&$A38,Output!$C:$AQ,12,FALSE)/VLOOKUP("OSUPREGECO_UTA"&MID($A38,4,2),Output!$C:$AQ,6,FALSE),3) ->  | R38: =ROUND(VLOOKUP("OSUPVIEUXTOTREGECO_"&$A38,Output!$C:$AQ,7,FALSE)/VLOOKUP("OSUPREGECO_UTA"&MID($A38,4,2),Output!$C:$AQ,6,FALSE),3) ->  | T38: =ROUND(VLOOKUP("OSUPVIEUXTOTREGECO_"&$A38,Output!$C:$AQ,12,FALSE)/VLOOKUP("OSUPREGECO_UTA"&MID($A38,4,2),Output!$C:$AQ,6,FALSE),3) ->  | W38: 0 | AA38: =Tableaux!$O$33 -> 02471 | AB38: 0
G39: =VLOOKUP(CONCATENATE("OSUPVIEUXALERTEREGECO_"&A39),Output!$C:$AQ,6,FALSE) ->  | H39: =VLOOKUP(CONCATENATE("OSUPVIEUXACCEPTREGECO_"&A39),Output!$C:$AQ,6,FALSE) ->  | I39: =VLOOKUP(CONCATENATE("OSUPJEUNEALERTEREGECO_"&A39),Output!$C:$AQ,6,FALSE) ->  | J39: =VLOOKUP(CONCATENATE("OSUPJEUNEACCEPTREGECO_"&A39),Output!$C:$AQ,6,FALSE) ->  | K39: =VLOOKUP(CONCATENATE("OSUPREGECO_"&A39),Output!$C:$AQ,6,FALSE) ->  | M39: =ROUND(VLOOKUP("OSUPJEUNEREGECO_"&A39,Output!$C:$AQ,7,FALSE)/VLOOKUP("OSUPREGECO_UTA"&MID($A39,4,2),Output!$C:$AQ,6,FALSE),3) ->  | O39: =ROUND(VLOOKUP("OSUPJEUNEREGECO_"&$A39,Output!$C:$AQ,12,FALSE)/VLOOKUP("OSUPREGECO_UTA"&MID($A39,4,2),Output!$C:$AQ,6,FALSE),3) ->  | R39: =ROUND(VLOOKUP("OSUPVIEUXTOTREGECO_"&$A39,Output!$C:$AQ,7,FALSE)/VLOOKUP("OSUPREGECO_UTA"&MID($A39,4,2),Output!$C:$AQ,6,FALSE),3) ->  | T39: =ROUND(VLOOKUP("OSUPVIEUXTOTREGECO_"&$A39,Output!$C:$AQ,12,FALSE)/VLOOKUP("OSUPREGECO_UTA"&MID($A39,4,2),Output!$C:$AQ,6,FALSE),3) ->  | W39: 0 | AA39: =Tableaux!$O$33 -> 02471 | AB39: 0
G40: =VLOOKUP(CONCATENATE("OSUPVIEUXALERTEREGECO_"&A40),Output!$C:$AQ,6,FALSE) ->  | H40: =VLOOKUP(CONCATENATE("OSUPVIEUXACCEPTREGECO_"&A40),Output!$C:$AQ,6,FALSE) ->  | I40: =VLOOKUP(CONCATENATE("OSUPJEUNEALERTEREGECO_"&A40),Output!$C:$AQ,6,FALSE) ->  | J40: =VLOOKUP(CONCATENATE("OSUPJEUNEACCEPTREGECO_"&A40),Output!$C:$AQ,6,FALSE) ->  | K40: =VLOOKUP(CONCATENATE("OSUPREGECO_"&A40),Output!$C:$AQ,6,FALSE) ->  | M40: =ROUND(VLOOKUP("OSUPJEUNEREGECO_"&A40,Output!$C:$AQ,7,FALSE)/VLOOKUP("OSUPREGECO_UTA"&MID($A40,4,2),Output!$C:$AQ,6,FALSE),3) ->  | O40: =ROUND(VLOOKUP("OSUPJEUNEREGECO_"&$A40,Output!$C:$AQ,12,FALSE)/VLOOKUP("OSUPREGECO_UTA"&MID($A40,4,2),Output!$C:$AQ,6,FALSE),3) ->  | R40: =ROUND(VLOOKUP("OSUPVIEUXTOTREGECO_"&$A40,Output!$C:$AQ,7,FALSE)/VLOOKUP("OSUPREGECO_UTA"&MID($A40,4,2),Output!$C:$AQ,6,FALSE),3) ->  | T40: =ROUND(VLOOKUP("OSUPVIEUXTOTREGECO_"&$A40,Output!$C:$AQ,12,FALSE)/VLOOKUP("OSUPREGECO_UTA"&MID($A40,4,2),Output!$C:$AQ,6,FALSE),3) ->  | W40: 0 | AA40: =Tableaux!$O$33 -> 02471 | AB40: 0
G41: =VLOOKUP(CONCATENATE("OSUPVIEUXALERTEREGECO_"&A41),Output!$C:$AQ,6,FALSE) ->  | H41: =VLOOKUP(CONCATENATE("OSUPVIEUXACCEPTREGECO_"&A41),Output!$C:$AQ,6,FALSE) ->  | I41: =VLOOKUP(CONCATENATE("OSUPJEUNEALERTEREGECO_"&A41),Output!$C:$AQ,6,FALSE) ->  | J41: =VLOOKUP(CONCATENATE("OSUPJEUNEACCEPTREGECO_"&A41),Output!$C:$AQ,6,FALSE) ->  | K41: =VLOOKUP(CONCATENATE("OSUPREGECO_"&A41),Output!$C:$AQ,6,FALSE) ->  | M41: =ROUND(VLOOKUP("OSUPJEUNEREGECO_"&A41,Output!$C:$AQ,7,FALSE)/VLOOKUP("OSUPREGECO_UTA"&MID($A41,4,2),Output!$C:$AQ,6,FALSE),3) ->  | O41: =ROUND(VLOOKUP("OSUPJEUNEREGECO_"&$A41,Output!$C:$AQ,12,FALSE)/VLOOKUP("OSUPREGECO_UTA"&MID($A41,4,2),Output!$C:$AQ,6,FALSE),3) ->  | R41: =ROUND(VLOOKUP("OSUPVIEUXTOTREGECO_"&$A41,Output!$C:$AQ,7,FALSE)/VLOOKUP("OSUPREGECO_UTA"&MID($A41,4,2),Output!$C:$AQ,6,FALSE),3) ->  | T41: =ROUND(VLOOKUP("OSUPVIEUXTOTREGECO_"&$A41,Output!$C:$AQ,12,FALSE)/VLOOKUP("OSUPREGECO_UTA"&MID($A41,4,2),Output!$C:$AQ,6,FALSE),3) ->  | W41: 0 | AA41: =Tableaux!$O$33 -> 02471 | AB41: 0
G42: =VLOOKUP(CONCATENATE("OSUPVIEUXALERTEREGECO_"&A42),Output!$C:$AQ,6,FALSE) ->  | H42: =VLOOKUP(CONCATENATE("OSUPVIEUXACCEPTREGECO_"&A42),Output!$C:$AQ,6,FALSE) ->  | I42: =VLOOKUP(CONCATENATE("OSUPJEUNEALERTEREGECO_"&A42),Output!$C:$AQ,6,FALSE) ->  | J42: =VLOOKUP(CONCATENATE("OSUPJEUNEACCEPTREGECO_"&A42),Output!$C:$AQ,6,FALSE) ->  | K42: =VLOOKUP(CONCATENATE("OSUPREGECO_"&A42),Output!$C:$AQ,6,FALSE) ->  | M42: =ROUND(VLOOKUP("OSUPJEUNEREGECO_"&A42,Output!$C:$AQ,7,FALSE)/VLOOKUP("OSUPREGECO_UTA"&MID($A42,4,2),Output!$C:$AQ,6,FALSE),3) ->  | O42: =ROUND(VLOOKUP("OSUPJEUNEREGECO_"&$A42,Output!$C:$AQ,12,FALSE)/VLOOKUP("OSUPREGECO_UTA"&MID($A42,4,2),Output!$C:$AQ,6,FALSE),3) ->  | R42: =ROUND(VLOOKUP("OSUPVIEUXTOTREGECO_"&$A42,Output!$C:$AQ,7,FALSE)/VLOOKUP("OSUPREGECO_UTA"&MID($A42,4,2),Output!$C:$AQ,6,FALSE),3) ->  | T42: =ROUND(VLOOKUP("OSUPVIEUXTOTREGECO_"&$A42,Output!$C:$AQ,12,FALSE)/VLOOKUP("OSUPREGECO_UTA"&MID($A42,4,2),Output!$C:$AQ,6,FALSE),3) ->  | W42: 0 | AA42: =Tableaux!$O$33 -> 02471 | AB42: 0

Sheet Output
C1: 1 | D1: 2 | E1: 3 | F1: 4 | G1: 5 | H1: 6 | I1: 7 | J1: 8 | K1: 9 | L1: 10 | M1: 11 | N1: 12 | O1: 13 | P1: 14 | Q1: 15 | R1: 16 | S1: 17 | T1: 18 | U1: 19 | V1: 20 | W1: 21 | X1: 22 | Y1: 23 | Z1: 24 | AA1: 25 | AB1: 26 | AC1: 27 | AD1: 28 | AE1: 29 | AF1: 30 | AG1: 31 | AH1: 32 | AI1: 33 | AJ1: 34 | AK1: 35 | AL1: 36 | AM1: 37 | AN1: 38 | AO1: 39 | AP1: 40 | AQ1: 41
A2: Record | B2: GROUP | C2: NAME | D2: DESCRIPTIO | E2: ATTRIBUTE | F2: MINIMUM | G2: MAXIMUM | H2: PERIOD0 | I2: PERIOD1 | J2: PERIOD2 | K2: PERIOD3 | L2: PERIOD4 | M2: PERIOD5 | N2: PERIOD6 | O2: PERIOD7 | P2: PERIOD8 | Q2: PERIOD9 | R2: PERIOD10 | S2: PERIOD11 | T2: PERIOD12 | U2: PERIOD13 | V2: PERIOD14 | W2: PERIOD15 | X2: PERIOD16 | Y2: PERIOD17 | Z2: PERIOD18 | AA2: PERIOD19 | AB2: PERIOD20 | AC2: PERIOD21 | AD2: PERIOD22 | AE2: PERIOD23 | AF2: PERIOD24 | AG2: PERIOD25 | AH2: PERIOD26 | AI2: PERIOD27 | AJ2: PERIOD28 | AK2: PERIOD29 | AL2: PERIOD30 | AM2: Moyemme P3 à P6 | AN2: Moyenne P7 à P11 | AO2: Moyenne P12 à P20 | AP2: Moyenne P21 à P30 | AQ2: Moyenne P2 à P30
B3: GROUP | C3: NAME | D3: DESCRIPTIO | E3: ATTRIBUTE | F3: MINIMUM | G3: MAXIMUM | H3: PERIOD0 | I3: PERIOD1 | J3: PERIOD2 | K3: PERIOD3 | L3: PERIOD4 | M3: PERIOD5 | N3: PERIOD6 | O3: PERIOD7 | P3: PERIOD8 | Q3: PERIOD9 | R3: PERIOD10 | S3: PERIOD11 | T3: PERIOD12 | U3: PERIOD13 | V3: PERIOD14 | W3: PERIOD15 | X3: PERIOD16 | Y3: PERIOD17 | Z3: PERIOD18 | AA3: PERIOD19 | AB3: PERIOD20 | AC3: PERIOD21 | AD3: PERIOD22 | AE3: PERIOD23 | AF3: PERIOD24 | AG3: PERIOD25 | AH3: PERIOD26 | AI3: PERIOD27 | AJ3: PERIOD28 | AK3: PERIOD29 | AL3: PERIOD30 | AM3: =AVERAGE(J3:N3) ->  | AN3: =AVERAGE(O3:S3) ->  | AO3: =AVERAGE(T3:AB3) ->  | AP3: =AVERAGE(AC3:AL3) ->  | AQ3: =AVERAGE(J3:AL3) -> 
B4: <Non regroupÚ(s)> | C4: OSUPTOT | D4: Superficie Totale | F4: 2458804 | G4: 2458804 | H4: 2458804 | I4: 2458804 | J4: 2458804 | K4: 2458804 | L4: 2458804 | M4: 2458804 | N4: 2458804 | O4: 2458804 | P4: 2458804 | Q4: 2458804 | R4: 2458804 | S4: 2458804 | T4: 2458804 | U4: 2458804 | V4: 2458804 | W4: 2458804 | X4: 2458804 | Y4: 2458804 | Z4: 2458804 | AA4: 2458804 | AB4: 2458804 | AC4: 2458804 | AD4: 2458804 | AE4: 2458804 | AF4: 2458804 | AG4: 2458804 | AH4: 2458804 | AI4: 2458804 | AJ4: 2458804 | AK4: 2458804 | AL4: 2458804 | AM4: =AVERAGE(K4:N4) -> 2458804 | AN4: =AVERAGE(O4:S4) -> 2458804 | AO4: =AVERAGE(T4:AB4) -> 2458804 | AP4: =AVERAGE(AC4:AL4) -> 2458804 | AQ4: =AVERAGE(J4:AL4) -> 2458804
B5: <Non regroupÚ(s)> | C5: OSUPINC | D5: Superficie InclusActions par courbe | F5: 1442187.03 | G5: 1479116.1 | H5: 1479116.1 | I5: 1475118.02 | J5: 1472139.53 | K5: 1469267.93 | L5: 1466388.09 | M5: 1464064.48 | N5: 1461564.1 | O5: 1458234.9 | P5: 1454923.56 | Q5: 1453226.24 | R5: 1450913.15 | S5: 1449720.11 | T5: 1448765.24 | U5: 1448224.32 | V5: 1447232.84 | W5: 1445585.96 | X5: 1444114.9 | Y5: 1443873.45 | Z5: 1443754.49 | AA5: 1443586.55 | AB5: 1443385.15 | AC5: 1443086.77 | AD5: 1442789.29 | AE5: 1442629.52 | AF5: 1442552.22 | AG5: 1442491.66 | AH5: 1442483.1 | AI5: 1442336.74 | AJ5: 1442267.01 | AK5: 1442193.48 | AL5: 1442187.03 | AM5: =AVERAGE(K5:N5) -> 1465321.15 | AN5: 1453403.592 | AO5: 1445391.433 | AP5: 1442501.682 | AQ5: 1449447.649
B6: <Non regroupÚ(s)> | C6: OSUPregECO | D6: Superficie Disponible aux RÚsultats ╔cologiques | F6: 1911720.43 | G6: 1948649.5 | H6: 1948649.5 | I6: 1944651.42 | J6: 1941672.93 | K6: 1938801.33 | L6: 1935921.49 | M6: 1933597.88 | N6: 1931097.5 | O6: 1927768.3 | P6: 1924456.96 | Q6: 1922759.64 | R6: 1920446.55 | S6: 1919253.51 | T6: 1918298.64 | U6: 1917757.72 | V6: 1916766.24 | W6: 1915119.36 | X6: 1913648.3 | Y6: 1913406.85 | Z6: 1913287.89 | AA6: 1913119.95 | AB6: 1912918.55 | AC6: 1912620.17 | AD6: 1912322.69 | AE6: 1912162.92 | AF6: 1912085.62 | AG6: 1912025.06 | AH6: 1912016.5 | AI6: 1911870.14 | AJ6: 1911800.41 | AK6: 1911726.88 | AL6: 1911720.43 | AM6: 1934854.55 | AN6: 1922936.992 | AO6: 1914924.833 | AP6: 1912035.082 | AQ6: 1918981.049
B7: <Non regroupÚ(s)> | C7: OSUPEXIN | D7: Superficie ExcluActionsInclus | F7: 469533.4 | G7: 469533.4 | H7: 469533.4 | I7: 469533.4 | J7: 469533.4 | K7: 469533.4 | L7: 469533.4 | M7: 469533.4 | N7: 469533.4 | O7: 469533.4 | P7: 469533.4 | Q7: 469533.4 | R7: 469533.4 | S7: 469533.4 | T7: 469533.4 | U7: 469533.4 | V7: 469533.4 | W7: 469533.4 | X7: 469533.4 | Y7: 469533.4 | Z7: 469533.4 | AA7: 469533.4 | AB7: 469533.4 | AC7: 469533.4 | AD7: 469533.4 | AE7: 469533.4 | AF7: 469533.4 | AG7: 469533.4 | AH7: 469533.4 | AI7: 469533.4 | AJ7: 469533.4 | AK7: 469533.4 | AL7: 469533.4 | AM7: 469533.4 | AN7: 469533.4 | AO7: 469533.4 | AP7: 469533.4 | AQ7: 469533.4
B8: <Non regroupÚ(s)> | C8: OSUPEXTI | D8: Superficie Improductive | F8: 201664.5 | G8: 206664.5 | H8: 206664.5 | I8: 206664.5 | J8: 205664.5 | K8: 204664.5 | L8: 203664.5 | M8: 202664.5 | N8: 201664.5 | O8: 201664.5 | P8: 201664.5 | Q8: 201664.5 | R8: 201664.5 | S8: 201664.5 | T8: 201664.5 | U8: 201664.5 | V8: 201664.5 | W8: 201664.5 | X8: 201664.5 | Y8: 201664.5 | Z8: 201664.5 | AA8: 201664.5 | AB8: 201664.5 | AC8: 201664.5 | AD8: 201664.5 | AE8: 201664.5 | AF8: 201664.5 | AG8: 201664.5 | AH8: 201664.5 | AI8: 201664.5 | AJ8: 201664.5 | AK8: 201664.5 | AL8: 201664.5 | AM8: 203164.5 | AN8: 201664.5 | AO8: 201664.5 | AP8: 201664.5 | AQ8: 202009.3276
B9: <Non regroupÚ(s)> | C9: OSUPLOCK | D9: Superficie Sous Verrous | F9: 9922.24 | G9: 136320.55 | H9: 129778.8 | I9: 136320.55 | J9: 133793.7 | K9: 135093.85 | L9: 134750.9 | M9: 90357.95 | N9: 93461.7 | O9: 96908.99 | P9: 45397.24 | Q9: 18319.99 | R9: 14689.29 | S9: 14938.42 | T9: 15555.67 | U9: 16479.95 | V9: 14765.19 | W9: 10996.19 | X9: 9922.24 | Y9: 13606.72 | Z9: 18872.89 | AA9: 22497.28 | AB9: 20995.64 | AC9: 18559.7 | AD9: 21257.76 | AE9: 22867.85 | AF9: 23625.4 | AG9: 25803.53 | AH9: 18809.95 | AI9: 15240.34 | AJ9: 18121.57 | AK9: 22765.46 | AL9: 27833.92 | AM9: 113416.1 | AN9: 38050.786 | AO9: 15965.75222 | AP9: 21488.548 | AQ9: 39182.38897
B10: Economique | C10: oSupTcsdDEG_1_T100% | D10: oSupTcsdDEG_1_T100% | F10: 0 | G10: 17218.2 | H10: 0 | I10: 8550.03 | J10: 17218.2 | K10: 6939.33 | L10: 3927.73 | M10: 7094.8 | N10: 7014.97 | O10: 3328.97 | P10: 6995.73 | Q10: 6736.03 | R10: 7497.74 | S10: 11955.56 | T10: 2879.57 | U10: 6572.86 | V10: 9079.15 | W10: 5706.52 | X10: 3315.17 | Y10: 5697.17 | Z10: 8729.23 | AA10: 4080.3 | AB10: 6867.55 | AC10: 8617.1 | AD10: 2931.41 | AE10: 4561.19 | AF10: 8261.14 | AG10: 7478.09 | AH10: 5178.42 | AI10: 2520.73 | AJ10: 2434.1 | AK10: 8011.84 | AL10: 7807.45 | AM10: 6244.2075 | AN10: 7302.806 | AO10: 5880.835556 | AP10: 5780.147 | AQ10: 6532.346552
B11: Economique | C11: oSupTcsdDEG_2_T100% | D11: oSupTcsdDEG_2_T100% | F11: 0 | G11: 5278.76 | H11: 0 | I11: 4102.5 | J11: 3150 | K11: 3850 | L11: 3180.2 | M11: 3192.74 | N11: 3150 | O11: 5278.76 | P11: 295.69 | Q11: 116.32 | R11: 0 | S11: 0 | T11: 628.84 | U11: 1139.26 | V11: 1880.01 | W11: 1462.24 | X11: 1152.04 | Y11: 3687.3 | Z11: 3522.07 | AA11: 2509.1 | AB11: 1341.97 | AC11: 1177.99 | AD11: 0 | AE11: 0 | AF11: 0 | AG11: 801.05 | AH11: 0 | AI11: 0 | AJ11: 0 | AK11: 2897.26 | AL11: 2400.56 | AM11: 3343.235 | AN11: 1138.154 | AO11: 1924.758889 | AP11: 727.686 | AQ11: 1614.255172
B12: Economique | C12: oSupDEG_1_T100% | D12: oSupDEG_1_T100% | F12: 0 | G12: 17218.2 | H12: 0 | I12: 8550.03 | J12: 17218.2 | K12: 6939.33 | L12: 3927.73 | M12: 7094.8 | N12: 7014.97 | O12: 3328.97 | P12: 6995.73 | Q12: 6736.03 | R12: 7497.74 | S12: 11955.56 | T12: 2879.57 | U12: 6572.86 | V12: 9079.15 | W12: 5706.52 | X12: 3315.17 | Y12: 5697.17 | Z12: 8729.23 | AA12: 4080.3 | AB12: 6867.55 | AC12: 8617.1 | AD12: 2931.41 | AE12: 4561.19 | AF12: 8261.14 | AG12: 7478.09 | AH12: 5178.42 | AI12: 2520.73 | AJ12: 2434.1 | AK12: 8011.84 | AL12: 7807.45 | AM12: 6244.2075 | AN12: 7302.806 | AO12: 5880.835556 | AP12: 5780.147 | AQ12: 6532.346552
B13: Economique | C13: oSupDEG_2_T100% | D13: oSupDEG_2_T100% | F13: 0 | G13: 5278.76 | H13: 0 | I13: 4102.5 | J13: 3150 | K13: 3850 | L13: 3180.2 | M13: 3192.74 | N13: 3150 | O13: 5278.76 | P13: 295.69 | Q13: 116.32 | R13: 0 | S13: 0 | T13: 628.84 | U13: 1139.26 | V13: 1880.01 | W13: 1462.24 | X13: 1152.04 | Y13: 3687.3 | Z13: 3522.07 | AA13: 2509.1 | AB13: 1341.97 | AC13: 1177.99 | AD13: 0 | AE13: 0 | AF13: 0 | AG13: 801.05 | AH13: 0 | AI13: 0 | AJ13: 0 | AK13: 2897.26 | AL13: 2400.56 | AM13: 3343.235 | AN13: 1138.154 | AO13: 1924.758889 | AP13: 727.686 | AQ13: 1614.255172
B14: Economique | C14: oSupDEG_1 | D14: oSupDEG_1 | F14: 0 | G14: 17218.2 | H14: 0 | I14: 8550.03 | J14: 17218.2 | K14: 6939.33 | L14: 3927.73 | M14: 7094.8 | N14: 7014.97 | O14: 3328.97 | P14: 6995.73 | Q14: 6736.03 | R14: 7497.74 | S14: 11955.56 | T14: 2879.57 | U14: 6572.86 | V14: 9079.15 | W14: 5706.52 | X14: 3315.17 | Y14: 5697.17 | Z14: 8729.23 | AA14: 4080.3 | AB14: 6867.55 | AC14: 8617.1 | AD14: 2931.41 | AE14: 4561.19 | AF14: 8261.14 | AG14: 7478.09 | AH14: 5178.42 | AI14: 2520.73 | AJ14: 2434.1 | AK14: 8011.84 | AL14: 7807.45 | AM14: 6244.2075 | AN14: 7302.806 | AO14: 5880.835556 | AP14: 5780.147 | AQ14: 6532.346552
B15: Economique | C15: oSupDEG_2 | D15: oSupDEG_2 | F15: 0 | G15: 5278.76 | H15: 0 | I15: 4102.5 | J15: 3150 | K15: 3850 | L15: 3180.2 | M15: 3192.74 | N15: 3150 | O15: 5278.76 | P15: 295.69 | Q15: 116.32 | R15: 0 | S15: 0 | T15: 628.84 | U15: 1139.26 | V15: 1880.01 | W15: 1462.24 | X15: 1152.04 | Y15: 3687.3 | Z15: 3522.07 | AA15: 2509.1 | AB15: 1341.97 | AC15: 1177.99 | AD15: 0 | AE15: 0 | AF15: 0 | AG15: 801.05 | AH15: 0 | AI15: 0 | AJ15: 0 | AK15: 2897.26 | AL15: 2400.56 | AM15: 3343.235 | AN15: 1138.154 | AO15: 1924.758889 | AP15: 727.686 | AQ15: 1614.255172
B16: Economique | C16: oSupTcsdSCA_LIGN_T100% | D16: oSupTcsdSCA_LIGN_T100% | F16: 0 | G16: 0 | H16: 0 | I16: 0 | J16: 0 | K16: 0 | L16: 0 | M16: 0 | N16: 0 | O16: 0 | P16: 0 | Q16: 0 | R16: 0 | S16: 0 | T16: 0 | U16: 0 | V16: 0 | W16: 0 | X16: 0 | Y16: 0 | Z16: 0 | AA16: 0 | AB16: 0 | AC16: 0 | AD16: 0 | AE16: 0 | AF16: 0 | AG16: 0 | AH16: 0 | AI16: 0 | AJ16: 0 | AK16: 0 | AL16: 0 | AM16: 0 | AN16: 0 | AO16: 0 | AP16: 0 | AQ16: 0
B17: Economique | C17: oSupTcsdSCA_LRD_T100% | D17: oSupTcsdSCA_LRD_T100% | F17: 0 | G17: 0 | H17: 0 | I17: 0 | J17: 0 | K17: 0 | L17: 0 | M17: 0 | N17: 0 | O17: 0 | P17: 0 | Q17: 0 | R17: 0 | S17: 0 | T17: 0 | U17: 0 | V17: 0 | W17: 0 | X17: 0 | Y17: 0 | Z17: 0 | AA17: 0 | AB17: 0 | AC17: 0 | AD17: 0 | AE17: 0 | AF17: 0 | AG17: 0 | AH17: 0 | AI17: 0 | AJ17: 0 | AK17: 0 | AL17: 0 | AM17: 0 | AN17: 0 | AO17: 0 | AP17: 0 | AQ17: 0
B18: Economique | C18: oSupTcsdSCA_PART_T100% | D18: oSupTcsdSCA_PART_T100% | F18: 0 | G18: 10952.5 | H18: 0 | I18: 10952.5 | J18: 6400 | K18: 7100 | L18: 6430.2 | M18: 6442.74 | N18: 6400 | O18: 7918.96 | P18: 295.69 | Q18: 116.32 | R18: 0 | S18: 0 | T18: 628.84 | U18: 2621.38 | V18: 3224.01 | W18: 1810.18 | X18: 1152.04 | Y18: 3687.3 | Z18: 3811.37 | AA18: 7690.07 | AB18: 4413.93 | AC18: 1210.07 | AD18: 869.12 | AE18: 1423.59 | AF18: 955.87 | AG18: 3497.01 | AH18: 1782.4 | AI18: 4219.51 | AJ18: 6175.11 | AK18: 3928.77 | AL18: 6799.32 | AM18: 6593.235 | AN18: 1666.194 | AO18: 3226.568889 | AP18: 3086.077 | AQ18: 3482.889655
B19: Economique | C19: oSupTcsdSCA_REG_T100% | D19: oSupTcsdSCA_REG_T100% | F19: 0 | G19: 22921.66 | H19: 0 | I19: 16497.5 | J19: 20317.71 | K19: 13019.64 | L19: 11640 | M19: 12254.54 | N19: 13454.89 | O19: 14352.56 | P19: 18688.05 | Q19: 18900.32 | R19: 20015.27 | S19: 18168.2 | T19: 19196.67 | U19: 17252.23 | V19: 17923.84 | W19: 18469.08 | X19: 21989.42 | Y19: 20930.45 | Z19: 13852.93 | AA19: 17356.94 | AB19: 18799.2 | AC19: 20624.57 | AD19: 22921.66 | AE19: 22136.88 | AF19: 19145.86 | AG19: 18926.5 | AH19: 21304.84 | AI19: 18509.67 | AJ19: 17375 | AK19: 14494.05 | AL19: 15902.09 | AM19: 12592.2675 | AN19: 18024.88 | AO19: 18418.97333 | AP19: 19134.112 | AQ19: 17859.41586
B20: Economique | C20: oSupSCA_LIGN_T100% | D20: oSupSCA_LIGN_T100% | F20: 0 | G20: 0 | H20: 0 | I20: 0 | J20: 0 | K20: 0 | L20: 0 | M20: 0 | N20: 0 | O20: 0 | P20: 0 | Q20: 0 | R20: 0 | S20: 0 | T20: 0 | U20: 0 | V20: 0 | W20: 0 | X20: 0 | Y20: 0 | Z20: 0 | AA20: 0 | AB20: 0 | AC20: 0 | AD20: 0 | AE20: 0 | AF20: 0 | AG20: 0 | AH20: 0 | AI20: 0 | AJ20: 0 | AK20: 0 | AL20: 0 | AM20: 0 | AN20: 0 | AO20: 0 | AP20: 0 | AQ20: 0
B21: Economique | C21: oSupSCA_LRD_T100% | D21: oSupSCA_LRD_T100% | F21: 0 | G21: 0 | H21: 0 | I21: 0 | J21: 0 | K21: 0 | L21: 0 | M21: 0 | N21: 0 | O21: 0 | P21: 0 | Q21: 0 | R21: 0 | S21: 0 | T21: 0 | U21: 0 | V21: 0 | W21: 0 | X21: 0 | Y21: 0 | Z21: 0 | AA21: 0 | AB21: 0 | AC21: 0 | AD21: 0 | AE21: 0 | AF21: 0 | AG21: 0 | AH21: 0 | AI21: 0 | AJ21: 0 | AK21: 0 | AL21: 0 | AM21: 0 | AN21: 0 | AO21: 0 | AP21: 0 | AQ21: 0
B22: Economique | C22: oSupSCA_PART_T100% | D22: oSupSCA_PART_T100% | F22: 0 | G22: 10952.5 | H22: 0 | I22: 10952.5 | J22: 6400 | K22: 7100 | L22: 6430.2 | M22: 6442.74 | N22: 6400 | O22: 7918.96 | P22: 295.69 | Q22: 116.32 | R22: 0 | S22: 0 | T22: 628.84 | U22: 2621.38 | V22: 3224.01 | W22: 1810.18 | X22: 1152.04 | Y22: 3687.3 | Z22: 3811.37 | AA22: 7690.07 | AB22: 4413.93 | AC22: 1210.07 | AD22: 869.12 | AE22: 1423.59 | AF22: 955.87 | AG22: 3497.01 | AH22: 1782.4 | AI22: 4219.51 | AJ22: 6175.11 | AK22: 3928.77 | AL22: 6799.32 | AM22: 6593.235 | AN22: 1666.194 | AO22: 3226.568889 | AP22: 3086.077 | AQ22: 3482.889655
B23: Economique | C23: oSupSCA_REG_T100% | D23: oSupSCA_REG_T100% | F23: 0 | G23: 22921.66 | H23: 0 | I23: 16497.5 | J23: 20317.71 | K23: 13019.64 | L23: 11640 | M23: 12254.54 | N23: 13454.89 | O23: 14352.56 | P23: 18688.05 | Q23: 18900.32 | R23: 20015.27 | S23: 18168.2 | T23: 19196.67 | U23: 17252.23 | V23: 17923.84 | W23: 18469.08 | X23: 21989.42 | Y23: 20930.45 | Z23: 13852.93 | AA23: 17356.94 | AB23: 18799.2 | AC23: 20624.57 | AD23: 22921.66 | AE23: 22136.88 | AF23: 19145.86 | AG23: 18926.5 | AH23: 21304.84 | AI23: 18509.67 | AJ23: 17375 | AK23: 14494.05 | AL23: 15902.09 | AM23: 12592.2675 | AN23: 18024.88 | AO23: 18418.97333 | AP23: 19134.112 | AQ23: 17859.41586
B24: Economique | C24: oSupSCA_LIGN | D24: oSupSCA_LIGN | F24: 0 | G24: 0 | H24: 0 | I24: 0 | J24: 0 | K24: 0 | L24: 0 | M24: 0 | N24: 0 | O24: 0 | P24: 0 | Q24: 0 | R24: 0 | S24: 0 | T24: 0 | U24: 0 | V24: 0 | W24: 0 | X24: 0 | Y24: 0 | Z24: 0 | AA24: 0 | AB24: 0 | AC24: 0 | AD24: 0 | AE24: 0 | AF24: 0 | AG24: 0 | AH24: 0 | AI24: 0 | AJ24: 0 | AK24: 0 | AL24: 0 | AM24: 0 | AN24: 0 | AO24: 0 | AP24: 0 | AQ24: 0
B25: Economique | C25: oSupSCA_LRD | D25: oSupSCA_LRD | F25: 0 | G25: 0 | H25: 0 | I25: 0 | J25: 0 | K25: 0 | L25: 0 | M25: 0 | N25: 0 | O25: 0 | P25: 0 | Q25: 0 | R25: 0 | S25: 0 | T25: 0 | U25: 0 | V25: 0 | W25: 0 | X25: 0 | Y25: 0 | Z25: 0 | AA25: 0 | AB25: 0 | AC25: 0 | AD25: 0 | AE25: 0 | AF25: 0 | AG25: 0 | AH25: 0 | AI25: 0 | AJ25: 0 | AK25: 0 | AL25: 0 | AM25: 0 | AN25: 0 | AO25: 0 | AP25: 0 | AQ25: 0
B26: Economique | C26: oSupSCA_PART | D26: oSupSCA_PART | F26: 0 | G26: 10952.5 | H26: 0 | I26: 10952.5 | J26: 6400 | K26: 7100 | L26: 6430.2 | M26: 6442.74 | N26: 6400 | O26: 7918.96 | P26: 295.69 | Q26: 116.32 | R26: 0 | S26: 0 | T26: 628.84 | U26: 2621.38 | V26: 3224.01 | W26: 1810.18 | X26: 1152.04 | Y26: 3687.3 | Z26: 3811.37 | AA26: 7690.07 | AB26: 4413.93 | AC26: 1210.07 | AD26: 869.12 | AE26: 1423.59 | AF26: 955.87 | AG26: 3497.01 | AH26: 1782.4 | AI26: 4219.51 | AJ26: 6175.11 | AK26: 3928.77 | AL26: 6799.32 | AM26: 6593.235 | AN26: 1666.194 | AO26: 3226.568889 | AP26: 3086.077 | AQ26: 3482.889655
B27: Economique | C27: oSupSCA_REG | D27: oSupSCA_REG | F27: 0 | G27: 22921.66 | H27: 0 | I27: 16497.5 | J27: 20317.71 | K27: 13019.64 | L27: 11640 | M27: 12254.54 | N27: 13454.89 | O27: 14352.56 | P27: 18688.05 | Q27: 18900.32 | R27: 20015.27 | S27: 18168.2 | T27: 19196.67 | U27: 17252.23 | V27: 17923.84 | W27: 18469.08 | X27: 21989.42 | Y27: 20930.45 | Z27: 13852.93 | AA27: 17356.94 | AB27: 18799.2 | AC27: 20624.57 | AD27: 22921.66 | AE27: 22136.88 | AF27: 19145.86 | AG27: 18926.5 | AH27: 21304.84 | AI27: 18509.67 | AJ27: 17375 | AK27: 14494.05 | AL27: 15902.09 | AM27: 12592.2675 | AN27: 18024.88 | AO27: 18418.97333 | AP27: 19134.112 | AQ27: 17859.41586
B28: Economique | C28: oSupActREG_T100% | D28: oSupActREG_T100% | F28: 0 | G28: 5278.76 | H28: 0 | I28: 4102.5 | J28: 3150 | K28: 3850 | L28: 3180.2 | M28: 3192.74 | N28: 3150 | O28: 5278.76 | P28: 295.69 | Q28: 116.32 | R28: 0 | S28: 0 | T28: 628.84 | U28: 1139.26 | V28: 1880.01 | W28: 1462.24 | X28: 1152.04 | Y28: 3687.3 | Z28: 3522.07 | AA28: 2509.1 | AB28: 1341.97 | AC28: 1177.99 | AD28: 0 | AE28: 0 | AF28: 0 | AG28: 801.05 | AH28: 0 | AI28: 0 | AJ28: 0 | AK28: 2897.26 | AL28: 2400.56 | AM28: 3343.235 | AN28: 1138.154 | AO28: 1924.758889 | AP28: 727.686 | AQ28: 1614.255172
B29: Economique | C29: oSupREG_T100% | D29: oSupREG_T100% | F29: 0 | G29: 5278.76 | H29: 0 | I29: 4102.5 | J29: 3150 | K29: 3850 | L29: 3180.2 | M29: 3192.74 | N29: 3150 | O29: 5278.76 | P29: 295.69 | Q29: 116.32 | R29: 0 | S29: 0 | T29: 628.84 | U29: 1139.26 | V29: 1880.01 | W29: 1462.24 | X29: 1152.04 | Y29: 3687.3 | Z29: 3522.07 | AA29: 2509.1 | AB29: 1341.97 | AC29: 1177.99 | AD29: 0 | AE29: 0 | AF29: 0 | AG29: 801.05 | AH29: 0 | AI29: 0 | AJ29: 0 | AK29: 2897.26 | AL29: 2400.56 | AM29: 3343.235 | AN29: 1138.154 | AO29: 1924.758889 | AP29: 727.686 | AQ29: 1614.255172
B30: Economique | C30: oSupREG | D30: oSupREG | F30: 0 | G30: 5278.76 | H30: 0 | I30: 4102.5 | J30: 3150 | K30: 3850 | L30: 3180.2 | M30: 3192.74 | N30: 3150 | O30: 5278.76 | P30: 295.69 | Q30: 116.32 | R30: 0 | S30: 0 | T30: 628.84 | U30: 1139.26 | V30: 1880.01 | W30: 1462.24 | X30: 1152.04 | Y30: 3687.3 | Z30: 3522.07 | AA30: 2509.1 | AB30: 1341.97 | AC30: 1177.99 | AD30: 0 | AE30: 0 | AF30: 0 | AG30: 801.05 | AH30: 0 | AI30: 0 | AJ30: 0 | AK30: 2897.26 | AL30: 2400.56 | AM30: 3343.235 | AN30: 1138.154 | AO30: 1924.758889 | AP30: 727.686 | AQ30: 1614.255172
B31: Economique | C31: oSupActCPIRL_FIN_T100% | D31: oSupActCPIRL_FIN_T100% | F31: 0 | G31: 5090.59 | H31: 0 | I31: 0 | J31: 0 | K31: 0 | L31: 0 | M31: 0 | N31: 0 | O31: 0 | P31: 3932.5 | Q31: 2872.75 | R31: 3354.67 | S31: 1881.28 | T31: 583.57 | U31: 901.66 | V31: 2340.48 | W31: 5090.59 | X31: 3624.39 | Y31: 0 | Z31: 0 | AA31: 0 | AB31: 19.52 | AC31: 1419.47 | AD31: 1369.72 | AE31: 138.69 | AF31: 0 | AG31: 282.58 | AH31: 4717.6 | AI31: 2280.49 | AJ31: 324.89 | AK31: 986.99 | AL31: 7.95 | AM31: 0 | AN31: 2408.24 | AO31: 1395.578889 | AP31: 1152.838 | AQ31: 1245.854828
B32: Economique | C32: oSupActCPIRL_INI_T100% | D32: oSupActCPIRL_INI_T100% | F32: 0 | G32: 6850 | H32: 0 | I32: 6850 | J32: 3250 | K32: 3250 | L32: 3250 | M32: 3250 | N32: 3250 | O32: 2640.2 | P32: 0 | Q32: 0 | R32: 0 | S32: 0 | T32: 0 | U32: 1482.12 | V32: 1344 | W32: 347.94 | X32: 0 | Y32: 0 | Z32: 289.3 | AA32: 5180.96 | AB32: 3071.96 | AC32: 32.08 | AD32: 869.12 | AE32: 1423.59 | AF32: 955.87 | AG32: 2695.96 | AH32: 1782.4 | AI32: 4219.51 | AJ32: 6175.11 | AK32: 1031.52 | AL32: 4398.75 | AM32: 3250 | AN32: 528.04 | AO32: 1301.808889 | AP32: 2358.391 | AQ32: 1868.634138
B33: Economique | C33: oSupCPIRL_FIN_T100% | D33: oSupCPIRL_FIN_T100% | F33: 0 | G33: 5090.59 | H33: 0 | I33: 0 | J33: 0 | K33: 0 | L33: 0 | M33: 0 | N33: 0 | O33: 0 | P33: 3932.5 | Q33: 2872.75 | R33: 3354.67 | S33: 1881.28 | T33: 583.57 | U33: 901.66 | V33: 2340.48 | W33: 5090.59 | X33: 3624.39 | Y33: 0 | Z33: 0 | AA33: 0 | AB33: 19.52 | AC33: 1419.47 | AD33: 1369.72 | AE33: 138.69 | AF33: 0 | AG33: 282.58 | AH33: 4717.6 | AI33: 2280.49 | AJ33: 324.89 | AK33: 986.99 | AL33: 7.95 | AM33: 0 | AN33: 2408.24 | AO33: 1395.578889 | AP33: 1152.838 | AQ33: 1245.854828
B34: Economique | C34: oSupCPIRL_INI_T100% | D34: oSupCPIRL_INI_T100% | F34: 0 | G34: 6850 | H34: 0 | I34: 6850 | J34: 3250 | K34: 3250 | L34: 3250 | M34: 3250 | N34: 3250 | O34: 2640.2 | P34: 0 | Q34: 0 | R34: 0 | S34: 0 | T34: 0 | U34: 1482.12 | V34: 1344 | W34: 347.94 | X34: 0 | Y34: 0 | Z34: 289.3 | AA34: 5180.96 | AB34: 3071.96 | AC34: 32.08 | AD34: 869.12 | AE34: 1423.59 | AF34: 955.87 | AG34: 2695.96 | AH34: 1782.4 | AI34: 4219.51 | AJ34: 6175.11 | AK34: 1031.52 | AL34: 4398.75 | AM34: 3250 | AN34: 528.04 | AO34: 1301.808889 | AP34: 2358.391 | AQ34: 1868.634138
B35: Economique | C35: oSupCPIRL_FIN | D35: oSupCPIRL_FIN | F35: 0 | G35: 5090.59 | H35: 0 | I35: 0 | J35: 0 | K35: 0 | L35: 0 | M35: 0 | N35: 0 | O35: 0 | P35: 3932.5 | Q35: 2872.75 | R35: 3354.67 | S35: 1881.28 | T35: 583.57 | U35: 901.66 | V35: 2340.48 | W35: 5090.59 | X35: 3624.39 | Y35: 0 | Z35: 0 | AA35: 0 | AB35: 19.52 | AC35: 1419.47 | AD35: 1369.72 | AE35: 138.69 | AF35: 0 | AG35: 282.58 | AH35: 4717.6 | AI35: 2280.49 | AJ35: 324.89 | AK35: 986.99 | AL35: 7.95 | AM35: 0 | AN35: 2408.24 | AO35: 1395.578889 | AP35: 1152.838 | AQ35: 1245.854828
B36: Economique | C36: oSupCPIRL_INI | D36: oSupCPIRL_INI | F36: 0 | G36: 6850 | H36: 0 | I36: 6850 | J36: 3250 | K36: 3250 | L36: 3250 | M36: 3250 | N36: 3250 | O36: 2640.2 | P36: 0 | Q36: 0 | R36: 0 | S36: 0 | T36: 0 | U36: 1482.12 | V36: 1344 | W36: 347.94 | X36: 0 | Y36: 0 | Z36: 289.3 | AA36: 5180.96 | AB36: 3071.96 | AC36: 32.08 | AD36: 869.12 | AE36: 1423.59 | AF36: 955.87 | AG36: 2695.96 | AH36: 1782.4 | AI36: 4219.51 | AJ36: 6175.11 | AK36: 1031.52 | AL36: 4398.75 | AM36: 3250 | AN36: 528.04 | AO36: 1301.808889 | AP36: 2358.391 | AQ36: 1868.634138
B37: Economique | C37: oSupActCT_T100% | D37: oSupActCT_T100% | F37: 0 | G37: 89317.58 | H37: 0 | I37: 82002.46 | J37: 85210.65 | K37: 85281.15 | L37: 86105.19 | M37: 76794.12 | N37: 78333.51 | O37: 76366.89 | P37: 80964.07 | Q37: 63433.52 | R37: 71108.36 | S37: 63550.58 | T37: 61666.82 | U37: 56544.71 | V37: 69721.29 | W37: 70769.87 | X37: 75249.54 | Y37: 47349.62 | Z37: 72522.64 | AA37: 89317.58 | AB37: 73795.35 | AC37: 82186.71 | AD37: 86610.12 | AE37: 75135.12 | AF37: 81618.95 | AG37: 71584.34 | AH37: 87912.54 | AI37: 82438.01 | AJ37: 71551.3 | AK37: 72331.93 | AL37: 80187.27 | AM37: 81628.4925 | AN37: 71084.684 | AO37: 68548.60222 | AP37: 79155.629 | AQ37: 75022.12931
B38: Economique | C38: oSupCT_T100% | D38: oSupCT_T100% | F38: 0 | G38: 89317.58 | H38: 0 | I38: 82002.46 | J38: 85210.65 | K38: 85281.15 | L38: 86105.19 | M38: 76794.12 | N38: 78333.51 | O38: 76366.89 | P38: 80964.07 | Q38: 63433.52 | R38: 71108.36 | S38: 63550.58 | T38: 61666.82 | U38: 56544.71 | V38: 69721.29 | W38: 70769.87 | X38: 75249.54 | Y38: 47349.62 | Z38: 72522.64 | AA38: 89317.58 | AB38: 73795.35 | AC38: 82186.71 | AD38: 86610.12 | AE38: 75135.12 | AF38: 81618.95 | AG38: 71584.34 | AH38: 87912.54 | AI38: 82438.01 | AJ38: 71551.3 | AK38: 72331.93 | AL38: 80187.27 | AM38: 81628.4925 | AN38: 71084.684 | AO38: 68548.60222 | AP38: 79155.629 | AQ38: 75022.12931
B39: Economique | C39: oSupCT | D39: oSupCT | F39: 0 | G39: 89317.58 | H39: 0 | I39: 82002.46 | J39: 85210.65 | K39: 85281.15 | L39: 86105.19 | M39: 76794.12 | N39: 78333.51 | O39: 76366.89 | P39: 80964.07 | Q39: 63433.52 | R39: 71108.36 | S39: 63550.58 | T39: 61666.82 | U39: 56544.71 | V39: 69721.29 | W39: 70769.87 | X39: 75249.54 | Y39: 47349.62 | Z39: 72522.64 | AA39: 89317.58 | AB39: 73795.35 | AC39: 82186.71 | AD39: 86610.12 | AE39: 75135.12 | AF39: 81618.95 | AG39: 71584.34 | AH39: 87912.54 | AI39: 82438.01 | AJ39: 71551.3 | AK39: 72331.93 | AL39: 80187.27 | AM39: 81628.4925 | AN39: 71084.684 | AO39: 68548.60222 | AP39: 79155.629 | AQ39: 75022.12931
B40: Economique | C40: oSupActPL_PPF_T100% | D40: oSupActPL_PPF_T100% | F40: 0 | G40: 0 | H40: 0 | I40: 0 | J40: 0 | K40: 0 | L40: 0 | M40: 0 | N40: 0 | O40: 0 | P40: 0 | Q40: 0 | R40: 0 | S40: 0 | T40: 0 | U40: 0 | V40: 0 | W40: 0 | X40: 0 | Y40: 0 | Z40: 0 | AA40: 0 | AB40: 0 | AC40: 0 | AD40: 0 | AE40: 0 | AF40: 0 | AG40: 0 | AH40: 0 | AI40: 0 | AJ40: 0 | AK40: 0 | AL40: 0 | AM40: 0 | AN40: 0 | AO40: 0 | AP40: 0 | AQ40: 0
B41: Economique | C41: oSupActPL_SEPM_E_T100% | D41: oSupActPL_SEPM_E_T100% | F41: 0 | G41: 19724.73 | H41: 0 | I41: 14757.64 | J41: 15848.04 | K41: 10258.94 | L41: 9211.14 | M41: 8304.98 | N41: 9834.35 | O41: 14096.1 | P41: 12978.69 | Q41: 15234.07 | R41: 13681.67 | S41: 15625.28 | T41: 14701.15 | U41: 11320.25 | V41: 9400.86 | W41: 12652.14 | X41: 13440.27 | Y41: 10425.9 | Z41: 7173.56 | AA41: 11118.8 | AB41: 9361.16 | AC41: 11380.38 | AD41: 19724.73 | AE41: 18381.3 | AF41: 10830.78 | AG41: 10432.65 | AH41: 14514.87 | AI41: 14545.44 | AJ41: 14345.55 | AK41: 8223.26 | AL41: 10019.77 | AM41: 9402.3525 | AN41: 14323.162 | AO41: 11066.01 | AP41: 13239.873 | AQ41: 12312.62345
B42: Economique | C42: oSupActPL_SEPM_I_T100% | D42: oSupActPL_SEPM_I_T100% | F42: 0 | G42: 8252.77 | H42: 0 | I42: 1739.86 | J42: 4469.67 | K42: 2760.7 | L42: 2428.86 | M42: 3949.56 | N42: 3620.54 | O42: 256.46 | P42: 5709.36 | Q42: 3666.25 | R42: 6333.6 | S42: 2388.46 | T42: 2045.01 | U42: 4915.49 | V42: 6094.13 | W42: 3260.62 | X42: 2782.69 | Y42: 3261.8 | Z42: 6679.37 | AA42: 3747.1 | AB42: 6671.86 | AC42: 6368.97 | AD42: 1095.34 | AE42: 2283.89 | AF42: 8252.77 | AG42: 7438.29 | AH42: 6024.32 | AI42: 3939.83 | AJ42: 3029.45 | AK42: 6270.79 | AL42: 4954.66 | AM42: 3189.915 | AN42: 3670.826 | AO42: 4384.23 | AP42: 4965.831 | AQ42: 4299.994483
B43: Economique | C43: oSupPL_PPF_T100% | D43: oSupPL_PPF_T100% | F43: 0 | G43: 0 | H43: 0 | I43: 0 | J43: 0 | K43: 0 | L43: 0 | M43: 0 | N43: 0 | O43: 0 | P43: 0 | Q43: 0 | R43: 0 | S43: 0 | T43: 0 | U43: 0 | V43: 0 | W43: 0 | X43: 0 | Y43: 0 | Z43: 0 | AA43: 0 | AB43: 0 | AC43: 0 | AD43: 0 | AE43: 0 | AF43: 0 | AG43: 0 | AH43: 0 | AI43: 0 | AJ43: 0 | AK43: 0 | AL43: 0 | AM43: 0 | AN43: 0 | AO43: 0 | AP43: 0 | AQ43: 0
B44: Economique | C44: oSupPL_SEPM_E_T100% | D44: oSupPL_SEPM_E_T100% | F44: 0 | G44: 19724.73 | H44: 0 | I44: 14757.64 | J44: 15848.04 | K44: 10258.94 | L44: 9211.14 | M44: 8304.98 | N44: 9834.35 | O44: 14096.1 | P44: 12978.69 | Q44: 15234.07 | R44: 13681.67 | S44: 15625.28 | T44: 14701.15 | U44: 11320.25 | V44: 9400.86 | W44: 12652.14 | X44: 13440.27 | Y44: 10425.9 | Z44: 7173.56 | AA44: 11118.8 | AB44: 9361.16 | AC44: 11380.38 | AD44: 19724.73 | AE44: 18381.3 | AF44: 10830.78 | AG44: 10432.65 | AH44: 14514.87 | AI44: 14545.44 | AJ44: 14345.55 | AK44: 8223.26 | AL44: 10019.77 | AM44: 9402.3525 | AN44: 14323.162 | AO44: 11066.01 | AP44: 13239.873 | AQ44: 12312.62345
B45: Economique | C45: oSupPL_SEPM_I_T100% | D45: oSupPL_SEPM_I_T100% | F45: 0 | G45: 8252.77 | H45: 0 | I45: 1739.86 | J45: 4469.67 | K45: 2760.7 | L45: 2428.86 | M45: 3949.56 | N45: 3620.54 | O45: 256.46 | P45: 5709.36 | Q45: 3666.25 | R45: 6333.6 | S45: 2388.46 | T45: 2045.01 | U45: 4915.49 | V45: 6094.13 | W45: 3260.62 | X45: 2782.69 | Y45: 3261.8 | Z45: 6679.37 | AA45: 3747.1 | AB45: 6671.86 | AC45: 6368.97 | AD45: 1095.34 | AE45: 2283.89 | AF45: 8252.77 | AG45: 7438.29 | AH45: 6024.32 | AI45: 3939.83 | AJ45: 3029.45 | AK45: 6270.79 | AL45: 4954.66 | AM45: 3189.915 | AN45: 3670.826 | AO45: 4384.23 | AP45: 4965.831 | AQ45: 4299.994483
B46: Economique | C46: oSupPL_PPF | D46: oSupPL_PPF | F46: 0 | G46: 0 | H46: 0 | I46: 0 | J46: 0 | K46: 0 | L46: 0 | M46: 0 | N46: 0 | O46: 0 | P46: 0 | Q46: 0 | R46: 0 | S46: 0 | T46: 0 | U46: 0 | V46: 0 | W46: 0 | X46: 0 | Y46: 0 | Z46: 0 | AA46: 0 | AB46: 0 | AC46: 0 | AD46: 0 | AE46: 0 | AF46: 0 | AG46: 0 | AH46: 0 | AI46: 0 | AJ46: 0 | AK46: 0 | AL46: 0 | AM46: 0 | AN46: 0 | AO46: 0 | AP46: 0 | AQ46: 0
B47: Economique | C47: oSupPL_SEPM_E | D47: oSupPL_SEPM_E | F47: 0 | G47: 19724.73 | H47: 0 | I47: 14757.64 | J47: 15848.04 | K47: 10258.94 | L47: 9211.14 | M47: 8304.98 | N47: 9834.35 | O47: 14096.1 | P47: 12978.69 | Q47: 15234.07 | R47: 13681.67 | S47: 15625.28 | T47: 14701.15 | U47: 11320.25 | V47: 9400.86 | W47: 12652.14 | X47: 13440.27 | Y47: 10425.9 | Z47: 7173.56 | AA47: 11118.8 | AB47: 9361.16 | AC47: 11380.38 | AD47: 19724.73 | AE47: 18381.3 | AF47: 10830.78 | AG47: 10432.65 | AH47: 14514.87 | AI47: 14545.44 | AJ47: 14345.55 | AK47: 8223.26 | AL47: 10019.77 | AM47: 9402.3525 | AN47: 14323.162 | AO47: 11066.01 | AP47: 13239.873 | AQ47: 12312.62345
B48: Economique | C48: oSupPL_SEPM_I | D48: oSupPL_SEPM_I | F48: 0 | G48: 8252.77 | H48: 0 | I48: 1739.86 | J48: 4469.67 | K48: 2760.7 | L48: 2428.86 | M48: 3949.56 | N48: 3620.54 | O48: 256.46 | P48: 5709.36 | Q48: 3666.25 | R48: 6333.6 | S48: 2388.46 | T48: 2045.01 | U48: 4915.49 | V48: 6094.13 | W48: 3260.62 | X48: 2782.69 | Y48: 3261.8 | Z48: 6679.37 | AA48: 3747.1 | AB48: 6671.86 | AC48: 6368.97 | AD48: 1095.34 | AE48: 2283.89 | AF48: 8252.77 | AG48: 7438.29 | AH48: 6024.32 | AI48: 3939.83 | AJ48: 3029.45 | AK48: 6270.79 | AL48: 4954.66 | AM48: 3189.915 | AN48: 3670.826 | AO48: 4384.23 | AP48: 4965.831 | AQ48: 4299.994483
B49: Economique | C49: oSupActEPC_1_T100% | D49: oSupActEPC_1_T100% | F49: 0 | G49: 2585.57 | H49: 0 | I49: 0 | J49: 0 | K49: 1100 | L49: 1100 | M49: 1100 | N49: 1100 | O49: 0 | P49: 2585.57 | Q49: 2333.76 | R49: 237.89 | S49: 69.33 | T49: 220.26 | U49: 87 | V49: 0 | W49: 36.05 | X49: 0 | Y49: 0 | Z49: 0 | AA49: 0 | AB49: 0 | AC49: 0 | AD49: 1802.56 | AE49: 754.55 | AF49: 0 | AG49: 0 | AH49: 471.95 | AI49: 1129 | AJ49: 2209.49 | AK49: 2023.93 | AL49: 2370.63 | AM49: 1100 | AN49: 1045.31 | AO49: 38.14555556 | AP49: 1076.211 | AQ49: 714.8955172
B50: Economique | C50: oSupActEPC_2_T100% | D50: oSupActEPC_2_T100% | F50: 0 | G50: 5608.17 | H50: 0 | I50: 0 | J50: 0 | K50: 441 | L50: 411.29 | M50: 690 | N50: 690 | O50: 3282.77 | P50: 2264.73 | Q50: 4789.95 | R50: 1639.31 | S50: 797.63 | T50: 3294.42 | U50: 4042.55 | V50: 1958.73 | W50: 4475.57 | X50: 2980.26 | Y50: 0 | Z50: 1111.14 | AA50: 2789.32 | AB50: 0 | AC50: 0 | AD50: 498.45 | AE50: 0 | AF50: 0 | AG50: 0 | AH50: 0 | AI50: 0 | AJ50: 5608.17 | AK50: 1234.42 | AL50: 713.53 | AM50: 558.0725 | AN50: 2554.878 | AO50: 2294.665556 | AP50: 805.457 | AQ50: 1507.353103
B51: Economique | C51: oSupEPC_1_T100% | D51: oSupEPC_1_T100% | F51: 0 | G51: 2585.57 | H51: 0 | I51: 0 | J51: 0 | K51: 1100 | L51: 1100 | M51: 1100 | N51: 1100 | O51: 0 | P51: 2585.57 | Q51: 2333.76 | R51: 237.89 | S51: 69.33 | T51: 220.26 | U51: 87 | V51: 0 | W51: 36.05 | X51: 0 | Y51: 0 | Z51: 0 | AA51: 0 | AB51: 0 | AC51: 0 | AD51: 1802.56 | AE51: 754.55 | AF51: 0 | AG51: 0 | AH51: 471.95 | AI51: 1129 | AJ51: 2209.49 | AK51: 2023.93 | AL51: 2370.63 | AM51: 1100 | AN51: 1045.31 | AO51: 38.14555556 | AP51: 1076.211 | AQ51: 714.8955172
B52: Economique | C52: oSupEPC_2_T100% | D52: oSupEPC_2_T100% | F52: 0 | G52: 5608.17 | H52: 0 | I52: 0 | J52: 0 | K52: 441 | L52: 411.29 | M52: 690 | N52: 690 | O52: 3282.77 | P52: 2264.73 | Q52: 4789.95 | R52: 1639.31 | S52: 797.63 | T52: 3294.42 | U52: 4042.55 | V52: 1958.73 | W52: 4475.57 | X52: 2980.26 | Y52: 0 | Z52: 1111.14 | AA52: 2789.32 | AB52: 0 | AC52: 0 | AD52: 498.45 | AE52: 0 | AF52: 0 | AG52: 0 | AH52: 0 | AI52: 0 | AJ52: 5608.17 | AK52: 1234.42 | AL52: 713.53 | AM52: 558.0725 | AN52: 2554.878 | AO52: 2294.665556 | AP52: 805.457 | AQ52: 1507.353103
B53: Economique | C53: oSupEPC_1 | D53: oSupEPC_1 | F53: 0 | G53: 2585.57 | H53: 0 | I53: 0 | J53: 0 | K53: 1100 | L53: 1100 | M53: 1100 | N53: 1100 | O53: 0 | P53: 2585.57 | Q53: 2333.76 | R53: 237.89 | S53: 69.33 | T53: 220.26 | U53: 87 | V53: 0 | W53: 36.05 | X53: 0 | Y53: 0 | Z53: 0 | AA53: 0 | AB53: 0 | AC53: 0 | AD53: 1802.56 | AE53: 754.55 | AF53: 0 | AG53: 0 | AH53: 471.95 | AI53: 1129 | AJ53: 2209.49 | AK53: 2023.93 | AL53: 2370.63 | AM53: 1100 | AN53: 1045.31 | AO53: 38.14555556 | AP53: 1076.211 | AQ53: 714.8955172
B54: Economique | C54: oSupEPC_2 | D54: oSupEPC_2 | F54: 0 | G54: 5608.17 | H54: 0 | I54: 0 | J54: 0 | K54: 441 | L54: 411.29 | M54: 690 | N54: 690 | O54: 3282.77 | P54: 2264.73 | Q54: 4789.95 | R54: 1639.31 | S54: 797.63 | T54: 3294.42 | U54: 4042.55 | V54: 1958.73 | W54: 4475.57 | X54: 2980.26 | Y54: 0 | Z54: 1111.14 | AA54: 2789.32 | AB54: 0 | AC54: 0 | AD54: 498.45 | AE54: 0 | AF54: 0 | AG54: 0 | AH54: 0 | AI54: 0 | AJ54: 5608.17 | AK54: 1234.42 | AL54: 713.53 | AM54: 558.0725 | AN54: 2554.878 | AO54: 2294.665556 | AP54: 805.457 | AQ54: 1507.353103
B55: Economique | C55: oSupActEC_SEPM_T100% | D55: oSupActEC_SEPM_T100% | F55: 0 | G55: 6500 | H55: 0 | I55: 0 | J55: 0 | K55: 0 | L55: 0 | M55: 0 | N55: 0 | O55: 934.8 | P55: 0 | Q55: 1453 | R55: 1403.65 | S55: 3352.88 | T55: 5174 | U55: 3949.56 | V55: 2815.52 | W55: 1061.47 | X55: 2875.61 | Y55: 6500 | Z55: 6039.52 | AA55: 1319.04 | AB55: 3408.52 | AC55: 4915.49 | AD55: 3491.5 | AE55: 3595.02 | AF55: 4717.16 | AG55: 3261.8 | AH55: 0 | AI55: 0 | AJ55: 0 | AK55: 4481.49 | AL55: 2093.3 | AM55: 0 | AN55: 1428.866 | AO55: 3682.582222 | AP55: 2655.576 | AQ55: 2304.942414
B56: Economique | C56: oSupEC_SEPM_T100% | D56: oSupEC_SEPM_T100% | F56: 0 | G56: 6500 | H56: 0 | I56: 0 | J56: 0 | K56: 0 | L56: 0 | M56: 0 | N56: 0 | O56: 934.8 | P56: 0 | Q56: 1453 | R56: 1403.65 | S56: 3352.88 | T56: 5174 | U56: 3949.56 | V56: 2815.52 | W56: 1061.47 | X56: 2875.61 | Y56: 6500 | Z56: 6039.52 | AA56: 1319.04 | AB56: 3408.52 | AC56: 4915.49 | AD56: 3491.5 | AE56: 3595.02 | AF56: 4717.16 | AG56: 3261.8 | AH56: 0 | AI56: 0 | AJ56: 0 | AK56: 4481.49 | AL56: 2093.3 | AM56: 0 | AN56: 1428.866 | AO56: 3682.582222 | AP56: 2655.576 | AQ56: 2304.942414
B57: Economique | C57: oSupEC_SEPM | D57: oSupEC_SEPM | F57: 0 | G57: 6500 | H57: 0 | I57: 0 | J57: 0 | K57: 0 | L57: 0 | M57: 0 | N57: 0 | O57: 934.8 | P57: 0 | Q57: 1453 | R57: 1403.65 | S57: 3352.88 | T57: 5174 | U57: 3949.56 | V57: 2815.52 | W57: 1061.47 | X57: 2875.61 | Y57: 6500 | Z57: 6039.52 | AA57: 1319.04 | AB57: 3408.52 | AC57: 4915.49 | AD57: 3491.5 | AE57: 3595.02 | AF57: 4717.16 | AG57: 3261.8 | AH57: 0 | AI57: 0 | AJ57: 0 | AK57: 4481.49 | AL57: 2093.3 | AM57: 0 | AN57: 1428.866 | AO57: 3682.582222 | AP57: 2655.576 | AQ57: 2304.942414
B58: Economique | C58: oSupActNETT_T100% | D58: oSupActNETT_T100% | F58: 0 | G58: 5460.85 | H58: 0 | I58: 0 | J58: 4400 | K58: 4000 | L58: 4000 | M58: 4000 | N58: 4000 | O58: 0 | P58: 53.4 | Q58: 50.8 | R58: 0 | S58: 0 | T58: 574.02 | U58: 362.99 | V58: 601.73 | W58: 0 | X58: 2641.24 | Y58: 1162.76 | Z58: 0 | AA58: 1168.5 | AB58: 0 | AC58: 0 | AD58: 0 | AE58: 0 | AF58: 2667.89 | AG58: 2354.44 | AH58: 1141.75 | AI58: 5460.85 | AJ58: 0 | AK58: 0 | AL58: 783.5 | AM58: 4000 | AN58: 20.84 | AO58: 723.4711111 | AP58: 1240.843 | AQ58: 1359.443793
B59: Economique | C59: oSupTcadNETT_T100% | D59: oSupTcadNETT_T100% | F59: 0 | G59: 11770.74 | H59: 0 | I59: 0 | J59: 0 | K59: 5842.36 | L59: 11770.74 | M59: 7025.66 | N59: 5755.03 | O59: 7648.5 | P59: 5389.99 | Q59: 1799.72 | R59: 5900.04 | S59: 3927.46 | T59: 7477.87 | U59: 3034.96 | V59: 3243.95 | W59: 6759.55 | X59: 6507.22 | Y59: 4389.11 | Z59: 3067.54 | AA59: 5995.99 | AB59: 6679.37 | AC59: 3604.91 | AD59: 6827.58 | AE59: 6744.27 | AF59: 1504.76 | AG59: 3043.59 | AH59: 8252.77 | AI59: 7438.79 | AJ59: 4810.92 | AK59: 2385.73 | AL59: 2220.4 | AM59: 7598.4475 | AN59: 4933.142 | AO59: 5239.506667 | AP59: 4683.372 | AQ59: 5139.613103
B60: Economique | C60: oSupNETT_T100% | D60: oSupNETT_T100% | F60: 0 | G60: 15770.74 | H60: 0 | I60: 0 | J60: 4400 | K60: 9842.36 | L60: 15770.74 | M60: 11025.66 | N60: 9755.03 | O60: 7648.5 | P60: 5443.39 | Q60: 1850.52 | R60: 5900.04 | S60: 3927.46 | T60: 8051.9 | U60: 3397.95 | V60: 3845.68 | W60: 6759.55 | X60: 9148.46 | Y60: 5551.87 | Z60: 3067.54 | AA60: 7164.49 | AB60: 6679.37 | AC60: 3604.91 | AD60: 6827.58 | AE60: 6744.27 | AF60: 4172.65 | AG60: 5398.03 | AH60: 9394.52 | AI60: 12899.64 | AJ60: 4810.92 | AK60: 2385.73 | AL60: 3003.9 | AM60: 11598.4475 | AN60: 4953.982 | AO60: 5962.978889 | AP60: 5924.215 | AQ60: 6499.057241
B61: Economique | C61: oSupNETT | D61: oSupNETT | F61: 0 | G61: 15770.74 | H61: 0 | I61: 0 | J61: 4400 | K61: 9842.36 | L61: 15770.74 | M61: 11025.66 | N61: 9755.03 | O61: 7648.5 | P61: 5443.39 | Q61: 1850.52 | R61: 5900.04 | S61: 3927.46 | T61: 8051.9 | U61: 3397.95 | V61: 3845.68 | W61: 6759.55 | X61: 9148.46 | Y61: 5551.87 | Z61: 3067.54 | AA61: 7164.49 | AB61: 6679.37 | AC61: 3604.91 | AD61: 6827.58 | AE61: 6744.27 | AF61: 4172.65 | AG61: 5398.03 | AH61: 9394.52 | AI61: 12899.64 | AJ61: 4810.92 | AK61: 2385.73 | AL61: 3003.9 | AM61: 11598.4475 | AN61: 4953.982 | AO61: 5962.978889 | AP61: 5924.215 | AQ61: 6499.057241
B62: Economique | C62: oTauxDEG | D62: oTauxDEG | F62: 0 | G62: 26071298.89 | H62: 0 | I62: 16195239.46 | J62: 26071298.89 | K62: 13810346.03 | L62: 9098149.43 | M62: 13168054.31 | N62: 13011159 | O62: 11017893.77 | P62: 9333011.66 | Q62: 8771011.84 | R62: 9597104.63 | S62: 15303121.98 | T62: 4490761.36 | U62: 9871508.36 | V62: 14027732.61 | W62: 9176006.71 | X62: 5718037.15 | Y62: 12012126.94 | Z62: 15681666.47 | AA62: 8434433.97 | AB62: 10508189.74 | AC62: 12537718.89 | AD62: 3752202.02 | AE62: 5838320.42 | AF62: 10574261.84 | AG62: 10597301.13 | AH62: 6628381.15 | AI62: 3226535.86 | AJ62: 3115652.42 | AK62: 13963651.47 | AL62: 13066250.27 | AM62: 12271927.19 | AN62: 10804428.78 | AO62: 9991162.59 | AP62: 8330027.547 | AQ62: 10427651.39
B63: Economique | C63: oTauxSCA | D63: oTauxSCA | F63: 0 | G63: 13227325 | H63: 0 | I63: 13227325 | J63: 12320615.16 | K63: 9574446.52 | L63: 8606114.26 | M63: 8877388.4 | N63: 9369602.56 | O63: 10606216.58 | P63: 8201446.26 | Q63: 8192275.94 | R63: 8606566.45 | S63: 7812324.35 | T63: 8606719.4 | U63: 8886429.78 | V63: 9512697.01 | W63: 8955403.97 | X63: 10100595.83 | Y63: 11064983.28 | Z63: 8091126.23 | AA63: 11769921.53 | AB63: 10555456.45 | AC63: 9546206.05 | AD63: 10343020.09 | AE63: 10316072.07 | AF63: 8768007.64 | AG63: 10096722.29 | AH63: 10159224.22 | AI63: 10322083.05 | AJ63: 10929311.04 | AK63: 8432554.44 | AL63: 10645517.72 | AM63: 9106887.935 | AN63: 8683765.916 | AO63: 9727037.053 | AP63: 9955871.861 | AQ63: 9629967.192
B64: Economique | C64: oTauxREG | D64: oTauxREG | F64: 0 | G64: 2217079.13 | H64: 0 | I64: 1723050 | J64: 1323000 | K64: 1617000 | L64: 1335685.69 | M64: 1340952.53 | N64: 1323000 | O64: 2217079.13 | P64: 124188.1 | Q64: 48853.98 | R64: 0 | S64: 0 | T64: 264113.67 | U64: 478489.13 | V64: 789605.46 | W64: 614140.31 | X64: 483858.31 | Y64: 1548665.77 | Z64: 1479270.2 | AA64: 1053822.8 | AB64: 563628.49 | AC64: 494756.47 | AD64: 0 | AE64: 0 | AF64: 0 | AG64: 336442.02 | AH64: 0 | AI64: 0 | AJ64: 0 | AK64: 1216848.26 | AL64: 1008235.93 | AM64: 1404159.555 | AN64: 478024.242 | AO64: 808399.3489 | AP64: 305628.268 | AQ64: 677987.4569
B65: Economique | C65: oTauxCPI | D65: oTauxCPI | F65: 0 | G65: 2055000 | H65: 0 | I65: 2055000 | J65: 975000 | K65: 975000 | L65: 975000 | M65: 975000 | N65: 975000 | O65: 792060 | P65: 0 | Q65: 0 | R65: 0 | S65: 0 | T65: 0 | U65: 444635.93 | V65: 403198.87 | W65: 104382.18 | X65: 0 | Y65: 0 | Z65: 86789.4 | AA65: 1554289.38 | AB65: 921586.54 | AC65: 9624.41 | AD65: 260736.49 | AE65: 427077.76 | AF65: 286762.12 | AG65: 808788.24 | AH65: 534720.42 | AI65: 1265853.52 | AJ65: 1852532.7 | AK65: 309454.76 | AL65: 1319626.3 | AM65: 975000 | AN65: 158412 | AO65: 390542.4778 | AP65: 707517.672 | AQ65: 560590.311
B66: Economique | C66: oTauxCT | D66: oTauxCT | F66: 0 | G66: 0 | H66: 0 | I66: 0 | J66: 0 | K66: 0 | L66: 0 | M66: 0 | N66: 0 | O66: 0 | P66: 0 | Q66: 0 | R66: 0 | S66: 0 | T66: 0 | U66: 0 | V66: 0 | W66: 0 | X66: 0 | Y66: 0 | Z66: 0 | AA66: 0 | AB66: 0 | AC66: 0 | AD66: 0 | AE66: 0 | AF66: 0 | AG66: 0 | AH66: 0 | AI66: 0 | AJ66: 0 | AK66: 0 | AL66: 0 | AM66: 0 | AN66: 0 | AO66: 0 | AP66: 0 | AQ66: 0
B67: Economique | C67: oTauxPL | D67: oTauxPL | F67: 0 | G67: 24485314.94 | H67: 0 | I67: 18799385.54 | J67: 23804164.95 | K67: 15224801.21 | L67: 13600481.64 | M67: 14708413.54 | N67: 15948677.73 | O67: 16003145.33 | P67: 22342358.02 | Q67: 22005904.35 | R67: 23990359.99 | S67: 20664024.29 | T67: 19160838.58 | U67: 19398009.66 | V67: 18905790.74 | W67: 18576138.92 | X67: 18786634.77 | Y67: 16106650.66 | Z67: 17246972.56 | AA67: 17550334.79 | AB67: 19664782.39 | AC67: 21485078.47 | AD67: 23416966.63 | AE67: 23577849.4 | AF67: 23493507.14 | AG67: 21919465.99 | AH67: 24485314.94 | AI67: 21621806.74 | AJ67: 20134495.71 | AK67: 17844215.79 | AL67: 18008932.31 | AM67: 14870593.53 | AN67: 21001158.4 | AO67: 18377350.34 | AP67: 21598763.31 | AQ67: 19644004.04
B68: Economique | C68: oTauxEPC | D68: oTauxEPC | F68: 0 | G68: 12195542.9 | H68: 0 | I68: 0 | J68: 0 | K68: 2403960 | L68: 2357619.13 | M68: 2792400 | N68: 2792400 | O68: 5121128.54 | P68: 7566458.74 | Q68: 11112993.23 | R68: 2928429.78 | S68: 1352456.2 | T68: 5482904.29 | U68: 6442099.33 | V68: 3055612.84 | W68: 7038130.71 | X68: 4649213.39 | Y68: 0 | Z68: 1733380.06 | AA68: 4351340.84 | AB68: 0 | AC68: 0 | AD68: 3589581.1 | AE68: 1177093.39 | AF68: 0 | AG68: 0 | AH68: 736234.2 | AI68: 1761241.56 | AJ68: 12195542.9 | AK68: 5083031.39 | AL68: 4811289.58 | AM68: 2586594.782 | AN68: =AVERAGE(O68:S68) -> 5616293.298 | AO68: =AVERAGE(T68:AB68) -> 3639186.829 | AP68: =AVERAGE(AC68:AL68) -> 2935401.412 | AQ68: =AVERAGE(J68:AL68) -> 3466708.317
B69: Economique | C69: oTauxEC | D69: oTauxEC | F69: 0 | G69: 8125000 | H69: 0 | I69: 0 | J69: 0 | K69: 0 | L69: 0 | M69: 0 | N69: 0 | O69: 1168500 | P69: 0 | Q69: 1816244.64 | R69: 1754566.92 | S69: 4191098.06 | T69: 6467501.88 | U69: 4936943.96 | V69: 3519402.72 | W69: 1326840.11 | X69: 3594512.62 | Y69: 8125000 | Z69: 7549400.88 | AA69: 1648794.25 | AB69: 4260650.48 | AC69: 6144366.36 | AD69: 4364375.14 | AE69: 4493777.21 | AF69: 5896455.5 | AG69: 4077245.81 | AH69: 0 | AI69: 0 | AJ69: 0 | AK69: 5601864.53 | AL69: 2616622.72 | AM69: =AVERAGE(K69:N69) -> 0 | AN69: 1786081.924 | AO69: 4603227.433 | AP69: 3319470.727 | AQ69: 2881178.062
B70: Economique | C70: oTauxNET | D70: oTauxNET | F70: 0 | G70: 19555714.55 | H70: 0 | I70: 0 | J70: 5456000 | K70: 12204525.24 | L70: 19555714.55 | M70: 13671822.74 | N70: 12096239.72 | O70: 9484134.78 | P70: 6749804.31 | Q70: 2294649.01 | R70: 7316051.24 | S70: 4870054.12 | T70: 9984353.49 | U70: 4213451.98 | V70: 4768644.21 | W70: 8381845.61 | X70: 11344085.25 | Y70: 6884318.12 | Z70: 3803743.4 | AA70: 8883964.24 | AB70: 8282413.41 | AC70: 4470084.82 | AD70: 8466197.52 | AE70: 8362888.76 | AF70: 5174084.77 | AG70: 6693555.54 | AH70: 11649204.08 | AI70: 15995558.27 | AJ70: 5965544.24 | AK70: 2958306.61 | AL70: 3724840.1 | AM70: 14382075.56 | AN70: 6142938.692 | AO70: 7394091.079 | AP70: 7346026.471 | AQ70: 8058830.349
B71: Economique | C71: oSupRealDEG | D71: oSupRealDEG | F71: 0 | G71: 20368.2 | H71: 0 | I71: 12652.53 | J71: 20368.2 | K71: 10789.33 | L71: 7107.93 | M71: 10287.54 | N71: 10164.97 | O71: 8607.73 | P71: 7291.42 | Q71: 6852.35 | R71: 7497.74 | S71: 11955.56 | T71: 3508.41 | U71: 7712.12 | V71: 10959.17 | W71: 7168.76 | X71: 4467.22 | Y71: 9384.47 | Z71: 12251.3 | AA71: 6589.4 | AB71: 8209.52 | AC71: 9795.09 | AD71: 2931.41 | AE71: 4561.19 | AF71: 8261.14 | AG71: 8279.14 | AH71: 5178.42 | AI71: 2520.73 | AJ71: 2434.1 | AK71: 10909.1 | AL71: 10208.01 | AM71: 9587.4425 | AN71: 8440.96 | AO71: 7805.596667 | AP71: 6507.833 | AQ71: 8146.602414
B72: Economique | C72: oSupRealSCA | D72: oSupRealSCA | F72: 0 | G72: 27450 | H72: 0 | I72: 27450 | J72: 26717.71 | K72: 20119.64 | L72: 18070.2 | M72: 18697.28 | N72: 19854.89 | O72: 22271.52 | P72: 18983.74 | Q72: 19016.64 | R72: 20015.27 | S72: 18168.2 | T72: 19825.51 | U72: 19873.61 | V72: 21147.85 | W72: 20279.26 | X72: 23141.47 | Y72: 24617.75 | Z72: 17664.3 | AA72: 25047.01 | AB72: 23213.13 | AC72: 21834.64 | AD72: 23790.78 | AE72: 23560.48 | AF72: 20101.73 | AG72: 22423.51 | AH72: 23087.24 | AI72: 22729.18 | AJ72: 23550.11 | AK72: 18422.82 | AL72: 22701.41 | AM72: 19185.5025 | AN72: 19691.074 | AO72: 21645.54333 | AP72: 22220.19 | AQ72: 21342.30621
B73: Economique | C73: oSupRealREG | D73: oSupRealREG | F73: 0 | G73: 5278.76 | H73: 0 | I73: 4102.5 | J73: 3150 | K73: 3850 | L73: 3180.2 | M73: 3192.74 | N73: 3150 | O73: 5278.76 | P73: 295.69 | Q73: 116.32 | R73: 0 | S73: 0 | T73: 628.84 | U73: 1139.26 | V73: 1880.01 | W73: 1462.24 | X73: 1152.04 | Y73: 3687.3 | Z73: 3522.07 | AA73: 2509.1 | AB73: 1341.97 | AC73: 1177.99 | AD73: 0 | AE73: 0 | AF73: 0 | AG73: 801.05 | AH73: 0 | AI73: 0 | AJ73: 0 | AK73: 2897.26 | AL73: 2400.56 | AM73: 3343.235 | AN73: 1138.154 | AO73: 1924.758889 | AP73: 727.686 | AQ73: 1614.255172
B74: Economique | C74: oSupRealCPI | D74: oSupRealCPI | F74: 0 | G74: 6850 | H74: 0 | I74: 6850 | J74: 3250 | K74: 3250 | L74: 3250 | M74: 3250 | N74: 3250 | O74: 2640.2 | P74: 3932.5 | Q74: 2872.75 | R74: 3354.67 | S74: 1881.28 | T74: 583.57 | U74: 2383.78 | V74: 3684.48 | W74: 5438.53 | X74: 3624.39 | Y74: 0 | Z74: 289.3 | AA74: 5180.96 | AB74: 3091.48 | AC74: 1451.55 | AD74: 2238.84 | AE74: 1562.29 | AF74: 955.87 | AG74: 2978.55 | AH74: 6500 | AI74: 6500 | AJ74: 6500 | AK74: 2018.51 | AL74: 4406.7 | AM74: 3250 | AN74: 2936.28 | AO74: 2697.387778 | AP74: 3511.231 | AQ74: 3114.489655
B75: Economique | C75: oSupRealCT | D75: oSupRealCT | F75: 0 | G75: 89317.58 | H75: 0 | I75: 82002.46 | J75: 85210.65 | K75: 85281.15 | L75: 86105.19 | M75: 76794.12 | N75: 78333.51 | O75: 76366.89 | P75: 80964.07 | Q75: 63433.52 | R75: 71108.36 | S75: 63550.58 | T75: 61666.82 | U75: 56544.71 | V75: 69721.29 | W75: 70769.87 | X75: 75249.54 | Y75: 47349.62 | Z75: 72522.64 | AA75: 89317.58 | AB75: 73795.35 | AC75: 82186.71 | AD75: 86610.12 | AE75: 75135.12 | AF75: 81618.95 | AG75: 71584.34 | AH75: 87912.54 | AI75: 82438.01 | AJ75: 71551.3 | AK75: 72331.93 | AL75: 80187.27 | AM75: 81628.4925 | AN75: 71084.684 | AO75: 68548.60222 | AP75: 79155.629 | AQ75: 75022.12931
B76: Economique | C76: oSupRealPL | D76: oSupRealPL | F76: 0 | G76: 20820.07 | H76: 0 | I76: 16497.5 | J76: 20317.71 | K76: 13019.64 | L76: 11640 | M76: 12254.54 | N76: 13454.89 | O76: 14352.56 | P76: 18688.05 | Q76: 18900.32 | R76: 20015.27 | S76: 18013.74 | T76: 16746.16 | U76: 16235.74 | V76: 15494.99 | W76: 15912.76 | X76: 16222.96 | Y76: 13687.7 | Z76: 13852.93 | AA76: 14865.9 | AB76: 16033.03 | AC76: 17749.34 | AD76: 20820.07 | AE76: 20665.19 | AF76: 19083.54 | AG76: 17870.94 | AH76: 20539.19 | AI76: 18485.27 | AJ76: 17375 | AK76: 14494.05 | AL76: 14974.44 | AM76: 12592.2675 | AN76: 17993.988 | AO76: 15450.24111 | AP76: 18205.703 | AQ76: 16612.61793
B77: Economique | C77: oSupRealEPC | D77: oSupRealEPC | F77: 0 | G77: 7817.66 | H77: 0 | I77: 0 | J77: 0 | K77: 1541 | L77: 1511.29 | M77: 1790 | N77: 1790 | O77: 3282.77 | P77: 4850.29 | Q77: 7123.71 | R77: 1877.2 | S77: 866.96 | T77: 3514.68 | U77: 4129.55 | V77: 1958.73 | W77: 4511.62 | X77: 2980.26 | Y77: 0 | Z77: 1111.14 | AA77: 2789.32 | AB77: 0 | AC77: 0 | AD77: 2301.01 | AE77: 754.55 | AF77: 0 | AG77: 0 | AH77: 471.95 | AI77: 1129 | AJ77: 7817.66 | AK77: 3258.35 | AL77: 3084.16 | AM77: 1658.0725 | AN77: 3600.186 | AO77: 2332.811111 | AP77: 1881.668 | AQ77: 2222.248276
B78: Economique | C78: oSupRealEC | D78: oSupRealEC | F78: 0 | G78: 6500 | H78: 0 | I78: 0 | J78: 0 | K78: 0 | L78: 0 | M78: 0 | N78: 0 | O78: 934.8 | P78: 0 | Q78: 1453 | R78: 1403.65 | S78: 3352.88 | T78: 5174 | U78: 3949.56 | V78: 2815.52 | W78: 1061.47 | X78: 2875.61 | Y78: 6500 | Z78: 6039.52 | AA78: 1319.04 | AB78: 3408.52 | AC78: 4915.49 | AD78: 3491.5 | AE78: 3595.02 | AF78: 4717.16 | AG78: 3261.8 | AH78: 0 | AI78: 0 | AJ78: 0 | AK78: 4481.49 | AL78: 2093.3 | AM78: 0 | AN78: 1428.866 | AO78: 3682.582222 | AP78: 2655.576 | AQ78: 2304.942414
B79: Economique | C79: oSupRealNET | D79: oSupRealNET | F79: 0 | G79: 15770.74 | H79: 0 | I79: 0 | J79: 4400 | K79: 9842.36 | L79: 15770.74 | M79: 11025.66 | N79: 9755.03 | O79: 7648.5 | P79: 5443.39 | Q79: 1850.52 | R79: 5900.04 | S79: 3927.46 | T79: 8051.9 | U79: 3397.95 | V79: 3845.68 | W79: 6759.55 | X79: 9148.46 | Y79: 5551.87 | Z79: 3067.54 | AA79: 7164.49 | AB79: 6679.37 | AC79: 3604.91 | AD79: 6827.58 | AE79: 6744.27 | AF79: 4172.65 | AG79: 5398.03 | AH79: 9394.52 | AI79: 12899.64 | AJ79: 4810.92 | AK79: 2385.73 | AL79: 3003.9 | AM79: 11598.4475 | AN79: 4953.982 | AO79: 5962.978889 | AP79: 5924.215 | AQ79: 6499.057241
B80: Economique | C80: oCoutProdPlants | D80: oCoutProdPlants | F80: 0 | G80: 0 | H80: 0 | I80: 0 | J80: 0 | K80: 0 | L80: 0 | M80: 0 | N80: 0 | O80: 0 | P80: 0 | Q80: 0 | R80: 0 | S80: 0 | T80: 0 | U80: 0 | V80: 0 | W80: 0 | X80: 0 | Y80: 0 | Z80: 0 | AA80: 0 | AB80: 0 | AC80: 0 | AD80: 0 | AE80: 0 | AF80: 0 | AG80: 0 | AH80: 0 | AI80: 0 | AJ80: 0 | AK80: 0 | AL80: 0 | AM80: 0 | AN80: 0 | AO80: 0 | AP80: 0 | AQ80: 0
B81: Economique | C81: oCoutTransPlants | D81: oCoutTransPlants | F81: 0 | G81: 0 | H81: 0 | I81: 0 | J81: 0 | K81: 0 | L81: 0 | M81: 0 | N81: 0 | O81: 0 | P81: 0 | Q81: 0 | R81: 0 | S81: 0 | T81: 0 | U81: 0 | V81: 0 | W81: 0 | X81: 0 | Y81: 0 | Z81: 0 | AA81: 0 | AB81: 0 | AC81: 0 | AD81: 0 | AE81: 0 | AF81: 0 | AG81: 0 | AH81: 0 | AI81: 0 | AJ81: 0 | AK81: 0 | AL81: 0 | AM81: 0 | AN81: 0 | AO81: 0 | AP81: 0 | AQ81: 0
B82: Economique | C82: OSUP_REG_PAFIt | D82: OSUP_REG_PAFIT | F82: 0 | G82: 22000 | H82: 0 | I82: 4102.5 | J82: 22000 | K82: 22000 | L82: 22000 | M82: 22000 | N82: 22000 | O82: 22000 | P82: 22000 | Q82: 22000 | R82: 22000 | S82: 22000 | T82: 22000 | U82: 22000 | V82: 22000 | W82: 22000 | X82: 22000 | Y82: 22000 | Z82: 22000 | AA82: 22000 | AB82: 22000 | AC82: 22000 | AD82: 22000 | AE82: 22000 | AF82: 22000 | AG82: 22000 | AH82: 22000 | AI82: 22000 | AJ82: 22000 | AK82: 22000 | AL82: 22000 | AM82: 22000 | AN82: 22000 | AO82: 22000 | AP82: 22000 | AQ82: 22000
B83: Economique | C83: oSUPrealREG_fantome | D83: oSUPrealREG_fantome | F83: 0 | G83: 22000 | H83: 0 | I83: 0 | J83: 18850 | K83: 18150 | L83: 18819.8 | M83: 18807.26 | N83: 18850 | O83: 16721.24 | P83: 21704.31 | Q83: 21883.68 | R83: 22000 | S83: 22000 | T83: 21371.16 | U83: 20860.74 | V83: 20119.99 | W83: 20537.76 | X83: 20847.96 | Y83: 18312.7 | Z83: 18477.93 | AA83: 19490.9 | AB83: 20658.03 | AC83: 20822.01 | AD83: 22000 | AE83: 22000 | AF83: 22000 | AG83: 21198.95 | AH83: 22000 | AI83: 22000 | AJ83: 22000 | AK83: 19102.74 | AL83: 19599.44 | AM83: 18656.765 | AN83: 20861.846 | AO83: 20075.24111 | AP83: 21272.314 | AQ83: 20385.74483
B84: Economique | C84: oTauxREG_fantome | D84: oTauxREG_fantome | F84: 0 | G84: 9240000 | H84: 0 | I84: 0 | J84: 7917000 | K84: 7623000 | L84: 7904314.31 | M84: 7899047.47 | N84: 7917000 | O84: 7022920.87 | P84: 9115811.9 | Q84: 9191146.02 | R84: 9240000 | S84: 9240000 | T84: 8975886.33 | U84: 8761510.87 | V84: 8450394.54 | W84: 8625859.69 | X84: 8756141.69 | Y84: 7691334.23 | Z84: 7760729.8 | AA84: 8186177.2 | AB84: 8676371.51 | AC84: 8745243.53 | AD84: 9240000 | AE84: 9240000 | AF84: 9240000 | AG84: 8903557.98 | AH84: 9240000 | AI84: 9240000 | AJ84: 9240000 | AK84: 8023151.74 | AL84: 8231764.07 | AM84: 7835840.445 | AN84: 8761975.758 | AO84: 8431600.651 | AP84: 8934371.732 | AQ84: 8562012.543
B85: Economique | C85: o$InvestisTS | D85: o$InvestisTS | F85: 0 | G85: 69950079 | H85: 0 | I85: 52000000 | J85: 69950079 | K85: 55810079 | L85: 55528764.69 | M85: 55534031.53 | N85: 55516079 | O85: 56410158.13 | P85: 54317267.1 | Q85: 54241932.98 | R85: 54193079 | S85: 54193079 | T85: 54457192.67 | U85: 54671568.13 | V85: 54982684.46 | W85: 54172888.52 | X85: 54676937.31 | Y85: 55741744.77 | Z85: 55672349.2 | AA85: 55246901.8 | AB85: 54756707.49 | AC85: 54687835.47 | AD85: 54193079 | AE85: 54193079 | AF85: 54193079 | AG85: 54529521.02 | AH85: 54193079 | AI85: 54193079 | AJ85: 54193079 | AK85: 55409927.26 | AL85: 55201314.93 | AM85: 55597238.55 | AN85: 54671103.24 | AO85: 54930997.15 | AP85: 54498707.27 | AQ85: 55346917.12
B86: Economique | C86: o$InvestisTS_2 | D86: o$InvestisTS_2 | F86: 0 | G86: 77867079 | H86: 0 | I86: 52000000 | J86: 77867079 | K86: 63433079 | L86: 63433079 | M86: 63433079 | N86: 63433079 | O86: 63433079 | P86: 63433079 | Q86: 63433079 | R86: 63433079 | S86: 63433079 | T86: 63433079 | U86: 63433079 | V86: 63433079 | W86: 62798748.21 | X86: 63433079 | Y86: 63433079 | Z86: 63433079 | AA86: 63433079 | AB86: 63433079 | AC86: 63433079 | AD86: 63433079 | AE86: 63433079 | AF86: 63433079 | AG86: 63433079 | AH86: 63433079 | AI86: 63433079 | AJ86: 63433079 | AK86: 63433079 | AL86: 63433079 | AM86: 63433079 | AN86: 63433079 | AO86: 63362597.8 | AP86: 63433079 | AQ86: 63908929.66
B87: Economique | C87: oTauxREGAPAR | D87: oTauxREGAPAR | F87: 0 | G87: 8125000 | H87: 0 | I87: 2055000 | J87: 975000 | K87: 975000 | L87: 975000 | M87: 975000 | N87: 975000 | O87: 1960560 | P87: 0 | Q87: 1816244.64 | R87: 1754566.92 | S87: 4191098.06 | T87: 6467501.88 | U87: 5381579.89 | V87: 3922601.59 | W87: 1431222.29 | X87: 3594512.62 | Y87: 8125000 | Z87: 7636190.28 | AA87: 3203083.63 | AB87: 5182237.01 | AC87: 6153990.76 | AD87: 4625111.64 | AE87: 4920854.96 | AF87: 6183217.62 | AG87: 4886034.05 | AH87: 534720.42 | AI87: 1265853.52 | AJ87: 1852532.7 | AK87: 5911319.29 | AL87: 3936249.02 | AM87: 975000 | AN87: 1944493.924 | AO87: 4993769.91 | AP87: 4026988.398 | AQ87: 3441768.372
B88: Economique | C88: oTauxREGAEDU | D88: oTauxREGAEDU | F88: 0 | G88: 31527298.89 | H88: 0 | I88: 16195239.46 | J88: 31527298.89 | K88: 28418831.27 | L88: 31011483.1 | M88: 29632277.05 | N88: 27899798.72 | O88: 25623157.09 | P88: 23649274.72 | Q88: 22178654.07 | R88: 19841585.64 | S88: 21525632.3 | T88: 19958019.15 | U88: 20527059.67 | V88: 21851989.66 | W88: 24595983.03 | X88: 21711335.79 | Y88: 18896445.06 | Z88: 21218789.92 | AA88: 21669739.05 | AB88: 18790603.15 | AC88: 17007803.72 | AD88: 15807980.64 | AE88: 15378302.57 | AF88: 15748346.6 | AG88: 17290856.67 | AH88: 19013819.42 | AI88: 20983335.69 | AJ88: 21276739.55 | AK88: 22004989.48 | AL88: 21602379.95 | AM88: 29240597.54 | AN88: 22563660.76 | AO88: 21024440.5 | AP88: 18611455.43 | AQ88: 21953190.06
B89: Economique | C89: oTauxREGAREG | D89: oTauxREGAREG | F89: 0 | G89: 25127164.95 | H89: 0 | I89: 20522435.54 | J89: 25127164.95 | K89: 16841801.21 | L89: 14936167.33 | M89: 16049366.08 | N89: 17271677.73 | O89: 18220224.47 | P89: 22466546.12 | Q89: 22054758.33 | R89: 23990359.99 | S89: 20664024.29 | T89: 19424952.24 | U89: 19876498.79 | V89: 19695396.2 | W89: 19190279.23 | X89: 19270493.08 | Y89: 17655316.43 | Z89: 18726242.77 | AA89: 18604157.59 | AB89: 20228410.87 | AC89: 21979834.94 | AD89: 23416966.63 | AE89: 23577849.4 | AF89: 23493507.14 | AG89: 22255908.01 | AH89: 24485314.94 | AI89: 21621806.74 | AJ89: 20134495.71 | AK89: 19061064.05 | AL89: 19017168.24 | AM89: 16274753.09 | AN89: 21479182.64 | AO89: 19185749.69 | AP89: 21904391.58 | AQ89: 20321991.5
B90: Economique | C90: oTauxAUTRES | D90: oTauxAUTRES | F90: 0 | G90: 13227325 | H90: 0 | I90: 13227325 | J90: 12320615.16 | K90: 9574446.52 | L90: 8606114.26 | M90: 8877388.4 | N90: 9369602.56 | O90: 10606216.58 | P90: 8201446.26 | Q90: 8192275.94 | R90: 8606566.45 | S90: 7812324.35 | T90: 8606719.4 | U90: 8886429.78 | V90: 9512697.01 | W90: 8955403.97 | X90: 10100595.83 | Y90: 11064983.28 | Z90: 8091126.23 | AA90: 11769921.53 | AB90: 10555456.45 | AC90: 9546206.05 | AD90: 10343020.09 | AE90: 10316072.07 | AF90: 8768007.64 | AG90: 10096722.29 | AH90: 10159224.22 | AI90: 10322083.05 | AJ90: 10929311.04 | AK90: 8432554.44 | AL90: 10645517.72 | AM90: 9106887.935 | AN90: 8683765.916 | AO90: 9727037.053 | AP90: 9955871.861 | AQ90: 9629967.192
B91: Economique | C91: oTauxREGAFIN | D91: oTauxREGAFIN | F91: 0 | G91: 0 | H91: 0 | I91: 0 | J91: 0 | K91: 0 | L91: 0 | M91: 0 | N91: 0 | O91: 0 | P91: 0 | Q91: 0 | R91: 0 | S91: 0 | T91: 0 | U91: 0 | V91: 0 | W91: 0 | X91: 0 | Y91: 0 | Z91: 0 | AA91: 0 | AB91: 0 | AC91: 0 | AD91: 0 | AE91: 0 | AF91: 0 | AG91: 0 | AH91: 0 | AI91: 0 | AJ91: 0 | AK91: 0 | AL91: 0 | AM91: 0 | AN91: 0 | AO91: 0 | AP91: 0 | AQ91: 0
B92: Economique | C92: oSupRealREGAPAR | D92: oSupRealREGAPAR | F92: 0 | G92: 6850 | H92: 0 | I92: 6850 | J92: 3250 | K92: 3250 | L92: 3250 | M92: 3250 | N92: 3250 | O92: 3575 | P92: 3932.5 | Q92: 4325.75 | R92: 4758.33 | S92: 5234.16 | T92: 5757.57 | U92: 6333.33 | V92: 6500 | W92: 6500 | X92: 6500 | Y92: 6500 | Z92: 6328.82 | AA92: 6500 | AB92: 6500 | AC92: 6367.05 | AD92: 5730.34 | AE92: 5157.31 | AF92: 5673.04 | AG92: 6240.34 | AH92: 6500 | AI92: 6500 | AJ92: 6500 | AK92: 6500 | AL92: 6500 | AM92: 3250 | AN92: 4365.148 | AO92: 6379.968889 | AP92: 6166.808 | AQ92: 5419.432414
B93: Economique | C93: oSupRealREGAEDU | D93: oSupRealREGAEDU | F93: 0 | G93: 24768.2 | H93: 0 | I93: 12652.53 | J93: 24768.2 | K93: 22172.69 | L93: 24389.96 | M93: 23103.21 | N93: 21710 | O93: 19539 | P93: 17585.1 | Q93: 15826.59 | R93: 15274.98 | S93: 16749.99 | T93: 15074.99 | U93: 15239.61 | V93: 16763.57 | W93: 18439.93 | X93: 16595.94 | Y93: 14936.34 | Z93: 16429.98 | AA93: 16543.21 | AB93: 14888.89 | AC93: 13400 | AD93: 12060 | AE93: 12060 | AF93: 12433.79 | AG93: 13677.17 | AH93: 15044.89 | AI93: 16549.38 | AJ93: 15062.68 | AK93: 16553.19 | AL93: 16296.07 | AM93: 22843.965 | AN93: 16995.132 | AO93: 16101.38444 | AP93: 14313.717 | AQ93: 16867.90862
